Workbook

Sheet Layout (hidden)
C1: %,ATF,FACCOUNT | D1: %,ATF,FDESCR | E1: %,SPER01 | F1: %,SPER02 | G1: %,SPER03 | H1: %,SPER04 | I1: %,SPER05 | J1: %,SPER06 | K1: %,SPER07 | L1: %,SPER08 | M1: %,SPER09 | N1: %,SPER10 | O1: %,SPER11 | P1: %,SPER12
D2: ="Run Date: "&TEXT(NvsEndTime,"MM/DD/YYYY")&" Run Time: "&TEXT(NvsEndTime,"HH:MM:SS") -> Run Date: 07/11/2017 Run Time: 14:35:39 | Y2: ="Elapsed Time: " & TEXT(NvsElapsedTime, "HH:MM:SS") -> Elapsed Time: 00:12:23 | Z2: HOA_BUDGET_PROFORMA_SWF_2016 | AA2: 12 | AB2: 2017-12-31 | AC2: 39027 | AD2: E:\PeopleSoft\HWPF92PD\appserv\prcs\HWPF92PD\NVISION\INSTANCE | AE2: Club Regency of Marco Island
D3: ="Report: "&NV_RBU&" - "&NV_RID -> Report: 39027 - BUD_PROF | J3: Hilton Grand Vacations Management, LLC. | Z3: BUD_PROF | AA3: 2017 | AB3: 2017-12-31 | AC3: (None) | AD3: 39027_BUD_PROF_2017_12.xlsm
D4: ="Layout: "&NV_LYN -> Layout: HOA_BUDGET_PROFORMA_SWF_2016 | J4: =VLOOKUP(NV_RBU,TITLE,2,FALSE) -> Club Regency of Marco Island Condominium Association, Inc | Z4: New Year Budget Proforma | AA4: 2017-12-31 | AB4: CTHOMAS | AC4: 39027 | AD4: Club Regency of Marco Island
J5: ANNUAL BUDGET FOR THE PERIOD
D6: =VLOOKUP(NV_BUV,TITLE,4,FALSE) -> 1632 | E6: (unit/weeks) | J6: ="JANUARY 1, "&NV_YEAR4+1&" THROUGH DECEMBER 31, "&NV_YEAR4+1 -> JANUARY 1, 2018 THROUGH DECEMBER 31, 2018
W7: ="As of 1/1/"&NV_YEAR4+1 -> As of 1/1/2018 | X7: ="As of 12/31/"&NV_YEAR4+1 -> As of 12/31/2018
B8: ******* | C8: ******* | D8: ***************************** | E8: *************** | F8: ************ | G8: ************ | H8: ************** | I8: *********** | J8: ************ | K8: *********** | L8: ************ | M8: ************ | N8: ************ | O8: ************ | P8: *********** | Q8: ************ | R8: *********
B9: DEPT | C9: ACCT # | D9: ACCOUNT DESCRIPTION | R9: PROJ
D10: ="YEAR: "&NV_YEAR4 -> YEAR: 2017 | E10: JAN | F10: FEB | G10: MAR | H10: APR | I10: MAY | J10: JUN | K10: JUL | L10: AUG | M10: SEP | N10: OCT | O10: NOV | P10: DEC | Q10: TOTAL | R10: TOTAL
B11: ******* | C11: ******* | D11: ***************************** | E11: *************** | F11: ************ | G11: ************ | H11: ************** | I11: *********** | J11: ************ | K11: *********** | L11: ************ | M11: ************ | N11: ************ | O11: ************ | P11: *********** | Q11: ************ | R11: *********
C13: REVENUE
B15: 19800 | C15: 458010 | D15: ASSOCIATION FEES
A17: %,R,FDEPTID,V19800,FACCOUNT,V458010,LBUD_USD | D17: CURRENT BUDGET | E17: 92503.75 | F17: 92503.75 | G17: 92503.75 | H17: 92503.75 | I17: 92503.75 | J17: 92503.75 | K17: 92503.75 | L17: 92503.75 | M17: 92503.75 | N17: 92503.75 | O17: 92503.75 | P17: 92503.75 | Q17: =SUM(E17:P17) -> 1110045
A19: %,R,FDEPTID,V19800,FACCOUNT,V458010,LACT_USD | D19: CURRENT ACTUAL | E19: 92503.75 | F19: 92503.75 | G19: 92503.75 | H19: 92503.75 | I19: 92503.75 | J19: 92503.75 | K19: 92503.75 | L19: 92504 | M19: 92504 | N19: 92504 | O19: 92504 | P19: 92504 | Q19: =SUM(E19:P19) -> 1110046.25 | R19: =Q19 -> 1110046.25
D21: PRIOR YEAR ACTUALS | E21: 98163.44 | F21: 98163.44 | G21: 98163.44 | H21: 98163.44 | I21: 98163.44 | J21: 98163.44 | K21: 98163.44 | L21: 98163.44 | M21: 98163.44 | N21: 98163.44 | O21: 98163.44 | P21: 98163.44 | Q21: =SUM(E21:P21) -> 1177961.28
S24: Enter Notes Below
B28: 19800 | C28: 458030 | D28: SPECIAL ASSESSMENT REVENUE
A30: %,R,FDEPTID,V19800,FACCOUNT,V458030,LBUD_USD | D30: CURRENT BUDGET | E30: 0 | F30: 0 | G30: 0 | H30: 0 | I30: 0 | J30: 0 | K30: 0 | L30: 0 | M30: 0 | N30: 0 | O30: 0 | P30: 0 | Q30: =SUM(E30:P30) -> 0
A32: %,R,FDEPTID,V19800,FACCOUNT,V458030,LACT_USD | D32: CURRENT ACTUAL | E32: 0 | F32: 0 | G32: 0 | H32: 0 | I32: 0 | J32: 0 | K32: 0 | L32: 0 | M32: 0 | N32: 0 | O32: 0 | P32: 0 | Q32: =SUM(E32:P32) -> 0 | R32: =Q32 -> 0
D34: PRIOR YEAR ACTUALS | E34: 0 | F34: 0 | G34: 0 | H34: 0 | I34: 0 | J34: 0 | K34: 0 | L34: 0 | M34: 0 | N34: 0 | O34: 0 | P34: 0 | Q34: =SUM(E34:P34) -> 0
S37: Enter Notes Below
D38: FUTURE BUDGET | E38: 0 | F38: 0 | G38: 0 | H38: 0 | I38: 0 | J38: 0 | K38: 0 | L38: 0 | M38: 0 | N38: 0 | O38: 0 | P38: 0 | Q38: =SUM(E38:P38) -> 0
B42: 19800 | C42: 444230 | D42: OTHER REAL ESTATE REVENUE
A44: %,R,FDEPTID,V19800,FACCOUNT,V444230,LBUD_USD | D44: CURRENT BUDGET | E44: 0 | F44: 0 | G44: 0 | H44: 0 | I44: 0 | J44: 0 | K44: 0 | L44: 0 | M44: 0 | N44: 0 | O44: 0 | P44: 0 | Q44: =SUM(E44:P44) -> 0
A46: %,R,FDEPTID,V19800,FACCOUNT,V444230,LACT_USD | D46: CURRENT ACTUAL | E46: 0 | F46: 0 | G46: 0 | H46: 0 | I46: 0 | J46: 0 | K46: 0 | L46: 0 | M46: 0 | N46: 0 | O46: 0 | P46: 0 | Q46: =SUM(E46:P46) -> 0 | R46: =Q46 -> 0
D48: PRIOR YEAR ACTUALS | E48: 0 | F48: 0 | G48: 0 | H48: 0 | I48: 0 | J48: 0 | K48: 0 | L48: 0 | M48: 0 | N48: 0 | O48: 0 | P48: 0 | Q48: =SUM(E48:P48) -> 0
S51: Enter Notes Below
D52: FUTURE BUDGET | E52: 0 | F52: 0 | G52: 0 | H52: 0 | I52: 0 | J52: 0 | K52: 0 | L52: 0 | M52: 0 | N52: 0 | O52: 0 | P52: 0 | Q52: =SUM(E52:P52) -> 0
B56: 19800 | C56: 458060 | D56: REAL ESTATE TAX FEE
A58: %,R,FDEPTID,V19800,FACCOUNT,V458060,LBUD_USD | D58: CURRENT BUDGET | E58: 0 | F58: 0 | G58: 0 | H58: 0 | I58: 0 | J58: 0 | K58: 0 | L58: 0 | M58: 0 | N58: 0 | O58: 0 | P58: 0 | Q58: =SUM(E58:P58) -> 0
A60: %,R,FDEPTID,V19800,FACCOUNT,V458060,LACT_USD | D60: CURRENT ACTUAL | E60: 0 | F60: 0 | G60: 0 | H60: 0 | I60: 0 | J60: 0 | K60: 0 | L60: 0 | M60: 0 | N60: 0 | O60: 0 | P60: 0 | Q60: =SUM(E60:P60) -> 0 | R60: =Q60 -> 0
D62: PRIOR YEAR ACTUALS | E62: 0 | F62: 0 | G62: 0 | H62: 0 | I62: 0 | J62: 0 | K62: 0 | L62: 0 | M62: 0 | N62: 0 | O62: 0 | P62: 0 | Q62: =SUM(E62:P62) -> 0
S65: Enter Notes Below
D66: FUTURE BUDGET | E66: 0 | F66: 0 | G66: 0 | H66: 0 | I66: 0 | J66: 0 | K66: 0 | L66: 0 | M66: 0 | N66: 0 | O66: 0 | P66: 0 | Q66: =SUM(E66:P66) -> 0
B70: 19800 | C70: 458080 | D70: LATE FEE INCOME
A72: %,R,FDEPTID,V19800,FACCOUNT,V458080,LBUD_USD | D72: CURRENT BUDGET | E72: 0 | F72: 575 | G72: 2300 | H72: 1000 | I72: 800 | J72: 1000 | K72: 200 | L72: 1500 | M72: 200 | N72: 25 | O72: 25 | P72: 25 | Q72: =SUM(E72:P72) -> 7650
A74: %,R,FDEPTID,V19800,FACCOUNT,V458080,LACT_USD | D74: CURRENT ACTUAL | E74: 68.04 | F74: 499.65 | G74: 707.59 | H74: 794.33 | I74: 784.85 | J74: 341.57 | K74: 18 | L74: 228 | M74: 400 | N74: 400 | O74: 400 | P74: 400 | Q74: =SUM(E74:P74) -> 5042.03 | R74: =Q74 -> 5042.03
D76: PRIOR YEAR ACTUALS | E76: 0 | F76: 329.57 | G76: 1662.84 | H76: 835.06 | I76: 530.55 | J76: 227.04 | K76: 82.36 | L76: 93.26 | M76: 130.32 | N76: 0 | O76: 0 | P76: 60 | Q76: =SUM(E76:P76) -> 3951
S79: Enter Notes Below
D80: FUTURE BUDGET | E80: 0 | F80: 575 | G80: 1800 | H80: 900 | I80: 800 | J80: 300 | K80: 100 | L80: 300 | M80: 200 | N80: 25 | O80: 25 | P80: 25 | Q80: =SUM(E80:P80) -> 5050
B84: 19800 | C84: 458090 | D84: NSF INCOME
A86: %,R,FDEPTID,V19800,FACCOUNT,V458090,LBUD_USD | D86: CURRENT BUDGET | E86: 0 | F86: 0 | G86: 0 | H86: 0 | I86: 0 | J86: 0 | K86: 0 | L86: 0 | M86: 0 | N86: 0 | O86: 0 | P86: 0 | Q86: =SUM(E86:P86) -> 0
A88: %,R,FDEPTID,V19800,FACCOUNT,V458090,LACT_USD | D88: CURRENT ACTUAL | E88: 0 | F88: 0 | G88: 0 | H88: 0 | I88: 0 | J88: 0 | K88: 0 | L88: 0 | M88: 0 | N88: 0 | O88: 0 | P88: 0 | Q88: =SUM(E88:P88) -> 0 | R88: =Q88 -> 0
D90: PRIOR YEAR ACTUALS | E90: 0 | F90: 35 | G90: 0 | H90: 0 | I90: 0 | J90: 0 | K90: 0 | L90: 0 | M90: 0 | N90: 0 | O90: 0 | P90: 0 | Q90: =SUM(E90:P90) -> 35
S93: Enter Notes Below
D94: FUTURE BUDGET | E94: 0 | F94: 0 | G94: 0 | H94: 0 | I94: 0 | J94: 0 | K94: 0 | L94: 0 | M94: 0 | N94: 0 | O94: 0 | P94: 0 | Q94: =SUM(E94:P94) -> 0
B98: 19800 | C98: 458100 | D98: INTEREST INCOME
A100: %,R,FDEPTID,V19800,FACCOUNT,V458100,LBUD_USD | D100: CURRENT BUDGET | E100: 0 | F100: 0 | G100: 0 | H100: 0 | I100: 0 | J100: 0 | K100: 0 | L100: 0 | M100: 0 | N100: 0 | O100: 0 | P100: 0 | Q100: =SUM(E100:P100) -> 0
A102: %,R,FDEPTID,V19800,FACCOUNT,V458100,LACT_USD | D102: CURRENT ACTUAL | E102: 0 | F102: 78.04 | G102: 380.84 | H102: 315.55 | I102: 417.09 | J102: 741.05 | K102: 0 | L102: 0 | M102: 0 | N102: 0 | O102: 0 | P102: 0 | Q102: =SUM(E102:P102) -> 1932.57 | R102: =Q102 -> 1932.57
D104: PRIOR YEAR ACTUALS | E104: 86.71 | F104: 2.22 | G104: 279.96 | H104: 66.78 | I104: 1.41 | J104: 451.17 | K104: 2.87 | L104: 87.91 | M104: 2.34 | N104: 2.72 | O104: 5.77 | P104: 79.88 | Q104: =SUM(E104:P104) -> 1069.74
S107: Enter Notes Below
D108: FUTURE BUDGET | E108: 0 | F108: 0 | G108: 0 | H108: 0 | I108: 0 | J108: 0 | K108: 0 | L108: 0 | M108: 0 | N108: 0 | O108: 0 | P108: 0 | Q108: =SUM(E108:P108) -> 0
B112: 19800 | C112: 458110 | D112: DIVIDEND INCOME
A114: %,R,FDEPTID,V19800,FACCOUNT,V458110,LBUD_USD | D114: CURRENT BUDGET | E114: 0 | F114: 0 | G114: 0 | H114: 0 | I114: 0 | J114: 0 | K114: 0 | L114: 0 | M114: 0 | N114: 0 | O114: 0 | P114: 0 | Q114: =SUM(E114:P114) -> 0
A116: %,R,FDEPTID,V19800,FACCOUNT,V458110,LACT_USD | D116: CURRENT ACTUAL | E116: 0 | F116: 0 | G116: 0 | H116: 0 | I116: 0 | J116: 0 | K116: 0 | L116: 0 | M116: 0 | N116: 0 | O116: 0 | P116: 0 | Q116: =SUM(E116:P116) -> 0 | R116: =Q116 -> 0
D118: PRIOR YEAR ACTUALS | E118: 0 | F118: 0 | G118: 0 | H118: 0 | I118: 0 | J118: 0 | K118: 0 | L118: 0 | M118: 0 | N118: 0 | O118: 0 | P118: 0 | Q118: =SUM(E118:P118) -> 0
S121: Enter Notes Below
D122: FUTURE BUDGET | E122: 0 | F122: 0 | G122: 0 | H122: 0 | I122: 0 | J122: 0 | K122: 0 | L122: 0 | M122: 0 | N122: 0 | O122: 0 | P122: 0 | Q122: =SUM(E122:P122) -> 0
B126: 19800 | C126: 458150 | D126: SUPPORT AREA 1 OFFICE
A128: %,R,FDEPTID,V19800,FACCOUNT,V458150,LBUD_USD | D128: CURRENT BUDGET | E128: 0 | F128: 0 | G128: 0 | H128: 0 | I128: 0 | J128: 0 | K128: 0 | L128: 0 | M128: 0 | N128: 0 | O128: 0 | P128: 0 | Q128: =SUM(E128:P128) -> 0
A130: %,R,FDEPTID,V19800,FACCOUNT,V458150,LACT_USD | D130: CURRENT ACTUAL | E130: 0 | F130: 0 | G130: 0 | H130: 0 | I130: 0 | J130: 0 | K130: 0 | L130: 0 | M130: 0 | N130: 0 | O130: 0 | P130: 0 | Q130: =SUM(E130:P130) -> 0 | R130: =Q130 -> 0
D132: PRIOR YEAR ACTUALS | E132: 0 | F132: 0 | G132: 0 | H132: 0 | I132: 0 | J132: 0 | K132: 0 | L132: 0 | M132: 0 | N132: 0 | O132: 0 | P132: 0 | Q132: =SUM(E132:P132) -> 0
S135: Enter Notes Below
D136: FUTURE BUDGET | E136: 0 | F136: 0 | G136: 0 | H136: 0 | I136: 0 | J136: 0 | K136: 0 | L136: 0 | M136: 0 | N136: 0 | O136: 0 | P136: 0 | Q136: =SUM(E136:P136) -> 0
B140: 19800 | C140: 458140 | D140: SALES RENT INCOME
A142: %,R,FDEPTID,V19800,FACCOUNT,V458140,LBUD_USD | D142: CURRENT BUDGET | E142: 710 | F142: 710 | G142: 710 | H142: 710 | I142: 710 | J142: 710 | K142: 710 | L142: 710 | M142: 710 | N142: 710 | O142: 710 | P142: 710 | Q142: =SUM(E142:P142) -> 8520
A144: %,R,FDEPTID,V19800,FACCOUNT,V458140,LACT_USD | D144: CURRENT ACTUAL | E144: 152 | F144: 100 | G144: 0 | H144: 460 | I144: 750 | J144: 460 | K144: 0 | L144: 700 | M144: 700 | N144: 700 | O144: 700 | P144: 700 | Q144: =SUM(E144:P144) -> 5422 | R144: =Q144 -> 5422
D146: PRIOR YEAR ACTUALS | E146: 96 | F146: 695 | G146: 1861 | H146: 270 | I146: 460 | J146: 561.6 | K146: 320 | L146: 388.36 | M146: 388.6 | N146: 260 | O146: 390 | P146: 0 | Q146: =SUM(E146:P146) -> 5690.56
S149: Enter Notes Below
D150: FUTURE BUDGET | E150: 710 | F150: 710 | G150: 710 | H150: 710 | I150: 710 | J150: 710 | K150: 710 | L150: 710 | M150: 710 | N150: 710 | O150: 710 | P150: 710 | Q150: =SUM(E150:P150) -> 8520
B154: 19800 | C154: 458160 | D154: SUPPORT AREA 2 RETAIL
A156: %,R,FDEPTID,V19800,FACCOUNT,V458160,LBUD_USD | D156: CURRENT BUDGET | E156: 0 | F156: 0 | G156: 0 | H156: 0 | I156: 0 | J156: 0 | K156: 0 | L156: 0 | M156: 0 | N156: 0 | O156: 0 | P156: 0 | Q156: =SUM(E156:P156) -> 0
A158: %,R,FDEPTID,V19800,FACCOUNT,V458160,LACT_USD | D158: CURRENT ACTUAL | E158: 0 | F158: 0 | G158: 0 | H158: 0 | I158: 0 | J158: 0 | K158: 0 | L158: 0 | M158: 0 | N158: 0 | O158: 0 | P158: 0 | Q158: =SUM(E158:P158) -> 0 | R158: =Q158 -> 0
D160: PRIOR YEAR ACTUALS | E160: 0 | F160: 0 | G160: 0 | H160: 0 | I160: 0 | J160: 0 | K160: 0 | L160: 0 | M160: 0 | N160: 0 | O160: 0 | P160: 0 | Q160: =SUM(E160:P160) -> 0
S163: Enter Notes Below
D164: FUTURE BUDGET | E164: 0 | F164: 0 | G164: 0 | H164: 0 | I164: 0 | J164: 0 | K164: 0 | L164: 0 | M164: 0 | N164: 0 | O164: 0 | P164: 0 | Q164: =SUM(E164:P164) -> 0
B168: 19800 | C168: 458170 | D168: SUPPORT AREA 3 POOL BAR
A170: %,R,FDEPTID,V19800,FACCOUNT,V458170,LBUD_USD | D170: CURRENT BUDGET | E170: 0 | F170: 0 | G170: 0 | H170: 0 | I170: 0 | J170: 0 | K170: 0 | L170: 0 | M170: 0 | N170: 0 | O170: 0 | P170: 0 | Q170: =SUM(E170:P170) -> 0
A172: %,R,FDEPTID,V19800,FACCOUNT,V458170,LACT_USD | D172: CURRENT ACTUAL | E172: 0 | F172: 0 | G172: 0 | H172: 0 | I172: 0 | J172: 0 | K172: 0 | L172: 0 | M172: 0 | N172: 0 | O172: 0 | P172: 0 | Q172: =SUM(E172:P172) -> 0 | R172: =Q172 -> 0
D174: PRIOR YEAR ACTUALS | E174: 0 | F174: 0 | G174: 0 | H174: 0 | I174: 0 | J174: 0 | K174: 0 | L174: 0 | M174: 0 | N174: 0 | O174: 0 | P174: 0 | Q174: =SUM(E174:P174) -> 0
S177: Enter Notes Below
D178: FUTURE BUDGET | E178: 0 | F178: 0 | G178: 0 | H178: 0 | I178: 0 | J178: 0 | K178: 0 | L178: 0 | M178: 0 | N178: 0 | O178: 0 | P178: 0 | Q178: =SUM(E178:P178) -> 0
B182: 19800 | C182: 458180 | D182: SUPPORT AREA 4 LOBBY BAR
A184: %,R,FDEPTID,V19800,FACCOUNT,V458180,LBUD_USD | D184: CURRENT BUDGET | E184: 0 | F184: 0 | G184: 0 | H184: 0 | I184: 0 | J184: 0 | K184: 0 | L184: 0 | M184: 0 | N184: 0 | O184: 0 | P184: 0 | Q184: =SUM(E184:P184) -> 0
A186: %,R,FDEPTID,V19800,FACCOUNT,V458180,LACT_USD | D186: CURRENT ACTUAL | E186: 0 | F186: 0 | G186: 0 | H186: 0 | I186: 0 | J186: 0 | K186: 0 | L186: 0 | M186: 0 | N186: 0 | O186: 0 | P186: 0 | Q186: =SUM(E186:P186) -> 0 | R186: =Q186 -> 0
D188: PRIOR YEAR ACTUALS | E188: 0 | F188: 0 | G188: 0 | H188: 0 | I188: 0 | J188: 0 | K188: 0 | L188: 0 | M188: 0 | N188: 0 | O188: 0 | P188: 0 | Q188: =SUM(E188:P188) -> 0
S191: Enter Notes Below
D192: FUTURE BUDGET | E192: 0 | F192: 0 | G192: 0 | H192: 0 | I192: 0 | J192: 0 | K192: 0 | L192: 0 | M192: 0 | N192: 0 | O192: 0 | P192: 0 | Q192: =SUM(E192:P192) -> 0
B196: 19800 | C196: 458190 | D196: SUPPORT AREA 5 DELI
A198: %,R,FDEPTID,V19800,FACCOUNT,V458190,LBUD_USD | D198: CURRENT BUDGET | E198: 0 | F198: 0 | G198: 0 | H198: 0 | I198: 0 | J198: 0 | K198: 0 | L198: 0 | M198: 0 | N198: 0 | O198: 0 | P198: 0 | Q198: =SUM(E198:P198) -> 0
A200: %,R,FDEPTID,V19800,FACCOUNT,V458190,LACT_USD | D200: CURRENT ACTUAL | E200: 0 | F200: 0 | G200: 0 | H200: 0 | I200: 0 | J200: 0 | K200: 0 | L200: 0 | M200: 0 | N200: 0 | O200: 0 | P200: 0 | Q200: =SUM(E200:P200) -> 0 | R200: =Q200 -> 0
D202: PRIOR YEAR ACTUALS | E202: 0 | F202: 0 | G202: 0 | H202: 0 | I202: 0 | J202: 0 | K202: 0 | L202: 0 | M202: 0 | N202: 0 | O202: 0 | P202: 0 | Q202: =SUM(E202:P202) -> 0
S205: Enter Notes Below
D206: FUTURE BUDGET | E206: 0 | F206: 0 | G206: 0 | H206: 0 | I206: 0 | J206: 0 | K206: 0 | L206: 0 | M206: 0 | N206: 0 | O206: 0 | P206: 0 | Q206: =SUM(E206:P206) -> 0
B210: 19800 | C210: 458200 | D210: VENDING INCOME
A212: %,R,FDEPTID,V19800,FACCOUNT,V458200,LBUD_USD | D212: CURRENT BUDGET | E212: 0 | F212: 0 | G212: 200 | H212: 0 | I212: 200 | J212: 0 | K212: 0 | L212: 200 | M212: 0 | N212: 200 | O212: 0 | P212: 200 | Q212: =SUM(E212:P212) -> 1000
A214: %,R,FDEPTID,V19800,FACCOUNT,V458200,LACT_USD | D214: CURRENT ACTUAL | E214: 0 | F214: 0 | G214: 0 | H214: 0 | I214: 0 | J214: 0 | K214: 0 | L214: 0 | M214: 0 | N214: 0 | O214: 0 | P214: 0 | Q214: =SUM(E214:P214) -> 0 | R214: =Q214 -> 0
D216: PRIOR YEAR ACTUALS | E216: 0 | F216: 0 | G216: 0 | H216: 0 | I216: 0 | J216: 0 | K216: 0 | L216: 0 | M216: 0 | N216: 0 | O216: 0 | P216: 0 | Q216: =SUM(E216:P216) -> 0
S219: Enter Notes Below
D220: FUTURE BUDGET | E220: 0 | F220: 0 | G220: 200 | H220: 0 | I220: 200 | J220: 0 | K220: 0 | L220: 200 | M220: 0 | N220: 200 | O220: 0 | P220: 200 | Q220: =SUM(E220:P220) -> 1000
B224: 19800 | C224: 458210 | D224: CONCESSION INCOME
A226: %,R,FDEPTID,V19800,FACCOUNT,V458210,LBUD_USD | D226: CURRENT BUDGET | E226: 1100 | F226: 1100 | G226: 1100 | H226: 1100 | I226: 1100 | J226: 1100 | K226: 1100 | L226: 1100 | M226: 1100 | N226: 1100 | O226: 1100 | P226: 1100 | Q226: =SUM(E226:P226) -> 13200
A228: %,R,FDEPTID,V19800,FACCOUNT,V458210,LACT_USD | D228: CURRENT ACTUAL | E228: 1100 | F228: 1100 | G228: 1100 | H228: 1318.3 | I228: 0 | J228: 2649.07 | K228: 1126 | L228: 1100 | M228: 1100 | N228: 1100 | O228: 1100 | P228: 1100 | Q228: =SUM(E228:P228) -> 13893.37 | R228: =Q228 -> 13893.37
D230: PRIOR YEAR ACTUALS | E230: 1007.18 | F230: 1007.18 | G230: 1134.59 | H230: 1007.18 | I230: 1243.09 | J230: 1244.22 | K230: 1659.59 | L230: 1007.18 | M230: 1219.46 | N230: 0 | O230: 1100.14 | P230: 1007.18 | Q230: =SUM(E230:P230) -> 12636.99
S233: Enter Notes Below
D234: FUTURE BUDGET | E234: 1133 | F234: 1133 | G234: 1133 | H234: 1133 | I234: 1133 | J234: 1133 | K234: 1133 | L234: 1133 | M234: 1133 | N234: 1133 | O234: 1133 | P234: 1133 | Q234: =SUM(E234:P234) -> 13596
B238: 19800 | C238: 458380 | D238: WEEK 53 INCOME
A240: %,R,FDEPTID,V19800,FACCOUNT,V458380,LBUD_USD | D240: CURRENT BUDGET | E240: 0 | F240: 0 | G240: 0 | H240: 0 | I240: 0 | J240: 0 | K240: 0 | L240: 0 | M240: 0 | N240: 0 | O240: 0 | P240: 0 | Q240: =SUM(E240:P240) -> 0
A242: %,R,FDEPTID,V19800,FACCOUNT,V458380,LACT_USD | D242: CURRENT ACTUAL | E242: 0 | F242: 0 | G242: 0 | H242: 0 | I242: 0 | J242: 0 | K242: 0 | L242: 0 | M242: 0 | N242: 0 | O242: 0 | P242: 0 | Q242: =SUM(E242:P242) -> 0 | R242: =Q242 -> 0
D244: PRIOR YEAR ACTUALS | E244: 3100 | F244: 100 | G244: 0 | H244: 0 | I244: 0 | J244: 100 | K244: -100 | L244: 0 | M244: 0 | N244: 0 | O244: 0 | P244: 0 | Q244: =SUM(E244:P244) -> 3200
S247: Enter Notes Below
D248: FUTURE BUDGET | E248: 0 | F248: 0 | G248: 0 | H248: 0 | I248: 0 | J248: 0 | K248: 0 | L248: 0 | M248: 0 | N248: 0 | O248: 0 | P248: 0 | Q248: =SUM(E248:P248) -> 0
B252: 19800 | C252: 458230 | D252: ACTIVITIES REVENUE
A254: %,R,FDEPTID,V19800,FACCOUNT,V458230,LBUD_USD | D254: CURRENT BUDGET | E254: 0 | F254: 0 | G254: 0 | H254: 0 | I254: 0 | J254: 0 | K254: 0 | L254: 0 | M254: 0 | N254: 0 | O254: 0 | P254: 0 | Q254: =SUM(E254:P254) -> 0
A256: %,R,FDEPTID,V19800,FACCOUNT,V458230,LACT_USD | D256: CURRENT ACTUAL | E256: 0 | F256: 0 | G256: 0 | H256: 0 | I256: 0 | J256: 0 | K256: 0 | L256: 0 | M256: 0 | N256: 0 | O256: 0 | P256: 0 | Q256: =SUM(E256:P256) -> 0 | R256: =Q256 -> 0
D258: PRIOR YEAR ACTUALS | E258: 0 | F258: 0 | G258: 0 | H258: 0 | I258: 0 | J258: 0 | K258: 0 | L258: 0 | M258: 0 | N258: 0 | O258: 0 | P258: 0 | Q258: =SUM(E258:P258) -> 0
S261: Enter Notes Below
D262: FUTURE BUDGET | E262: 0 | F262: 0 | G262: 0 | H262: 0 | I262: 0 | J262: 0 | K262: 0 | L262: 0 | M262: 0 | N262: 0 | O262: 0 | P262: 0 | Q262: =SUM(E262:P262) -> 0
B266: 19800 | C266: 458240 | D266: SUBSIDY INCOME
A268: %,R,FDEPTID,V19800,FACCOUNT,V458240,LBUD_USD | D268: CURRENT BUDGET | E268: 0 | F268: 0 | G268: 0 | H268: 0 | I268: 0 | J268: 0 | K268: 0 | L268: 0 | M268: 0 | N268: 0 | O268: 0 | P268: 0 | Q268: =SUM(E268:P268) -> 0
A270: %,R,FDEPTID,V19800,FACCOUNT,V458240,LACT_USD | D270: CURRENT ACTUAL | E270: 0 | F270: 0 | G270: 0 | H270: 0 | I270: 0 | J270: 0 | K270: 0 | L270: 0 | M270: 0 | N270: 0 | O270: 0 | P270: 0 | Q270: =SUM(E270:P270) -> 0 | R270: =Q270 -> 0
D272: PRIOR YEAR ACTUALS | E272: 0 | F272: 0 | G272: 0 | H272: 0 | I272: 0 | J272: 0 | K272: 0 | L272: 0 | M272: 0 | N272: 0 | O272: 0 | P272: 0 | Q272: =SUM(E272:P272) -> 0
S275: Enter Notes Below
D276: FUTURE BUDGET | E276: 0 | F276: 0 | G276: 0 | H276: 0 | I276: 0 | J276: 0 | K276: 0 | L276: 0 | M276: 0 | N276: 0 | O276: 0 | P276: 0 | Q276: =SUM(E276:P276) -> 0
B280: 19800 | C280: 458270 | D280: FLEX RESERVATION FEES
A282: %,R,FDEPTID,V19800,FACCOUNT,V458270,LBUD_USD | D282: CURRENT BUDGET | E282: 0 | F282: 0 | G282: 0 | H282: 0 | I282: 0 | J282: 0 | K282: 0 | L282: 0 | M282: 0 | N282: 0 | O282: 0 | P282: 0 | Q282: =SUM(E282:P282) -> 0
A284: %,R,FDEPTID,V19800,FACCOUNT,V458270,LACT_USD | D284: CURRENT ACTUAL | E284: 0 | F284: 0 | G284: 0 | H284: 0 | I284: 0 | J284: 0 | K284: 0 | L284: 0 | M284: 0 | N284: 0 | O284: 0 | P284: 0 | Q284: =SUM(E284:P284) -> 0 | R284: =Q284 -> 0
D286: PRIOR YEAR ACTUALS | E286: 0 | F286: 0 | G286: 0 | H286: 0 | I286: 0 | J286: 0 | K286: 0 | L286: 0 | M286: 0 | N286: 0 | O286: 0 | P286: 0 | Q286: =SUM(E286:P286) -> 0
S289: Enter Notes Below
D290: FUTURE BUDGET | E290: 0 | F290: 0 | G290: 0 | H290: 0 | I290: 0 | J290: 0 | K290: 0 | L290: 0 | M290: 0 | N290: 0 | O290: 0 | P290: 0 | Q290: =SUM(E290:P290) -> 0
B294: 19800 | C294: 458340 | D294: SUPPORT AREA SPA
A296: %,R,FDEPTID,V19800,FACCOUNT,V458340,LBUD_USD | D296: CURRENT BUDGET | E296: 0 | F296: 0 | G296: 0 | H296: 0 | I296: 0 | J296: 0 | K296: 0 | L296: 0 | M296: 0 | N296: 0 | O296: 0 | P296: 0 | Q296: =SUM(E296:P296) -> 0
A298: %,R,FDEPTID,V19800,FACCOUNT,V458340,LACT_USD | D298: CURRENT ACTUAL | E298: 0 | F298: 0 | G298: 0 | H298: 0 | I298: 0 | J298: 0 | K298: 0 | L298: 0 | M298: 0 | N298: 0 | O298: 0 | P298: 0 | Q298: =SUM(E298:P298) -> 0 | R298: =Q298 -> 0
D300: PRIOR YEAR ACTUALS | E300: 0 | F300: 0 | G300: 0 | H300: 0 | I300: 0 | J300: 0 | K300: 0 | L300: 0 | M300: 0 | N300: 0 | O300: 0 | P300: 0 | Q300: =SUM(E300:P300) -> 0
S303: Enter Notes Below
D304: FUTURE BUDGET | E304: 0 | F304: 0 | G304: 0 | H304: 0 | I304: 0 | J304: 0 | K304: 0 | L304: 0 | M304: 0 | N304: 0 | O304: 0 | P304: 0 | Q304: =SUM(E304:P304) -> 0
B308: 19800 | C308: 458350 | D308: INSURANCE PROCEEDS
A310: %,R,FDEPTID,V19800,FACCOUNT,V458350,LBUD_USD | D310: CURRENT BUDGET | E310: 0 | F310: 0 | G310: 0 | H310: 0 | I310: 0 | J310: 0 | K310: 0 | L310: 0 | M310: 0 | N310: 0 | O310: 0 | P310: 0 | Q310: =SUM(E310:P310) -> 0
A312: %,R,FDEPTID,V19800,FACCOUNT,V458350,LACT_USD | D312: CURRENT ACTUAL | E312: 0 | F312: 0 | G312: 0 | H312: 0 | I312: 0 | J312: 0 | K312: 0 | L312: 0 | M312: 0 | N312: 0 | O312: 0 | P312: 0 | Q312: =SUM(E312:P312) -> 0 | R312: =Q312 -> 0
D314: PRIOR YEAR ACTUALS | E314: 0 | F314: 0 | G314: 0 | H314: 0 | I314: 0 | J314: 0 | K314: 0 | L314: 0 | M314: 0 | N314: 0 | O314: 0 | P314: 0 | Q314: =SUM(E314:P314) -> 0
S317: Enter Notes Below
D318: FUTURE BUDGET | E318: 0 | F318: 0 | G318: 0 | H318: 0 | I318: 0 | J318: 0 | K318: 0 | L318: 0 | M318: 0 | N318: 0 | O318: 0 | P318: 0 | Q318: =SUM(E318:P318) -> 0
B322: 19800 | C322: 438305 | D322: OTHER REVENUE NON-TAX
A324: %,R,FDEPTID,V19800,FACCOUNT,V438305,LBUD_USD | D324: CURRENT BUDGET | E324: 0 | F324: 0 | G324: 0 | H324: 0 | I324: 0 | J324: 0 | K324: 0 | L324: 0 | M324: 0 | N324: 0 | O324: 0 | P324: 0 | Q324: =SUM(E324:P324) -> 0
A326: %,R,FDEPTID,V19800,FACCOUNT,V438305,LACT_USD | D326: CURRENT ACTUAL | E326: 1.51 | F326: 1.88 | G326: 1.62 | H326: 0 | I326: 0 | J326: 5.06 | K326: 1 | L326: 2 | M326: 0 | N326: 0 | O326: 0 | P326: 0 | Q326: =SUM(E326:P326) -> 13.07 | R326: =Q326 -> 13.07
D328: PRIOR YEAR ACTUALS | E328: 1.78 | F328: 1.66 | G328: 2.55 | H328: 4.49 | I328: 1.92 | J328: 2.55 | K328: 2.71 | L328: 2.08 | M328: 2.09 | N328: 2.41 | O328: 0.39 | P328: 2.24 | Q328: =SUM(E328:P328) -> 26.87
S331: Enter Notes Below
D332: FUTURE BUDGET | E332: 0 | F332: 0 | G332: 0 | H332: 0 | I332: 0 | J332: 0 | K332: 0 | L332: 0 | M332: 0 | N332: 0 | O332: 0 | P332: 0 | Q332: =SUM(E332:P332) -> 0
B336: 19800 | C336: 452060 | D336: OTHER REVENUE - REAL ESTATE
A338: %,R,FDEPTID,V19800,FACCOUNT,V452060,LBUD_USD | D338: CURRENT BUDGET | E338: 0 | F338: 0 | G338: 0 | H338: 0 | I338: 0 | J338: 0 | K338: 0 | L338: 0 | M338: 0 | N338: 0 | O338: 0 | P338: 0 | Q338: =SUM(E338:P338) -> 0
A340: %,R,FDEPTID,V19800,FACCOUNT,V452060,LACT_USD | D340: CURRENT ACTUAL | E340: 0 | F340: 0 | G340: 0 | H340: 0 | I340: 0 | J340: 0 | K340: 0 | L340: 0 | M340: 0 | N340: 0 | O340: 0 | P340: 0 | Q340: =SUM(E340:P340) -> 0 | R340: =Q340 -> 0
D342: PRIOR YEAR ACTUALS | E342: 0 | F342: 35 | G342: 35 | H342: 0 | I342: 35 | J342: 0 | K342: -105 | L342: 0 | M342: 0 | N342: 0 | O342: 0 | P342: 0 | Q342: =SUM(E342:P342) -> 0
S345: Enter Notes Below
D346: FUTURE BUDGET | E346: 0 | F346: 0 | G346: 0 | H346: 0 | I346: 0 | J346: 0 | K346: 0 | L346: 0 | M346: 0 | N346: 0 | O346: 0 | P346: 0 | Q346: =SUM(E346:P346) -> 0
C348: SALE OF ASSOCIATION WEEKS
B350: 19800 | C350: 458360 | D350: SALE OF ASSOCIATION WEEK
A352: %,R,FDEPTID,V19800,FACCOUNT,V458360,LBUD_USD | D352: CURRENT BUDGET | E352: 0 | F352: 0 | G352: 10000 | H352: 8000 | I352: 8000 | J352: 0 | K352: 8000 | L352: 5000 | M352: 5000 | N352: 0 | O352: 5000 | P352: 0 | Q352: =SUM(E352:P352) -> 49000
A354: %,R,FDEPTID,V19800,FACCOUNT,V458360,LACT_USD | D354: CURRENT ACTUAL | E354: 0 | F354: 0 | G354: 0 | H354: 0 | I354: 0 | J354: 0 | K354: 6000 | L354: 0 | M354: 4000 | N354: 4000 | O354: 5000 | P354: 3000 | Q354: =SUM(E354:P354) -> 22000 | R354: =Q354 -> 22000
D356: PRIOR YEAR ACTUALS | E356: 0 | F356: 0 | G356: 3250 | H356: 0 | I356: 6500 | J356: 0 | K356: 0 | L356: 0 | M356: 0 | N356: 0 | O356: 0 | P356: 0 | Q356: =SUM(E356:P356) -> 9750
S359: Enter Notes Below
D360: FUTURE BUDGET | E360: 0 | F360: 0 | G360: 10000 | H360: 8000 | I360: 7000 | J360: 0 | K360: 7000 | L360: 4000 | M360: 5000 | N360: 0 | O360: 5000 | P360: 0 | Q360: =SUM(E360:P360) -> 46000
B365: 19800 | C365: 516070 | D365: COS HOA OWNED WEEKS
A367: %,FDEPTID,V19800,FACCOUNT,V516070,LBUD_USD | D367: CURRENT BUDGET | E367: 0 | F367: 0 | G367: 12000 | H367: 6000 | I367: 10000 | J367: 0 | K367: 10000 | L367: 5000 | M367: 6000 | N367: 0 | O367: 6000 | P367: 0 | Q367: =SUM(E367:P367) -> 55000
A369: %,FDEPTID,V19800,FACCOUNT,V516070,LACT_USD | D369: CURRENT ACTUAL | E369: 0 | F369: 0 | G369: 0 | H369: 0 | I369: 0 | J369: 0 | K369: 0 | L369: 4992 | M369: 6000 | N369: 0 | O369: 6000 | P369: 0 | Q369: =SUM(E369:P369) -> 16992 | R369: =Q369 -> 16992
D371: PRIOR YEAR ACTUALS | E371: 0 | F371: 0 | G371: 6578.9 | H371: 0 | I371: 7823.1 | J371: 0 | K371: 0 | L371: 0 | M371: 0 | N371: 0 | O371: 0 | P371: 0 | Q371: =SUM(E371:P371) -> 14402
S374: Enter Notes Below
D375: FUTURE BUDGET | E375: 0 | F375: 0 | G375: 12000 | H375: 6000 | I375: 10000 | J375: 0 | K375: 10000 | L375: 4000 | M375: 5000 | N375: 0 | O375: 5000 | P375: 0 | Q375: =SUM(E375:P375) -> 52000
C377: GENERAL AND ADMINISTRATIVE
B379: 11700 | C379: 431100 | D379: FAXES TELEX CABLE
A381: %,R,FDEPTID,V11700,FACCOUNT,V431100,LBUD_USD | D381: CURRENT BUDGET | E381: 0 | F381: 0 | G381: 0 | H381: 0 | I381: 0 | J381: 0 | K381: 0 | L381: 0 | M381: 0 | N381: 0 | O381: 0 | P381: 0 | Q381: =SUM(E381:P381) -> 0
A383: %,R,FDEPTID,V11700,FACCOUNT,V431100,LACT_USD | D383: CURRENT ACTUAL | E383: 0 | F383: 0 | G383: 0 | H383: 0 | I383: 0 | J383: 0 | K383: 0 | L383: 0 | M383: 0 | N383: 0 | O383: 0 | P383: 0 | Q383: =SUM(E383:P383) -> 0 | R383: =Q383 -> 0
D385: PRIOR YEAR ACTUALS | E385: 0 | F385: 0 | G385: 0 | H385: 0 | I385: 0 | J385: 0 | K385: 0 | L385: 0 | M385: 0 | N385: 0 | O385: 0 | P385: 0 | Q385: =SUM(E385:P385) -> 0
S388: Enter Notes Below
D389: FUTURE BUDGET | E389: 0 | F389: 0 | G389: 0 | H389: 0 | I389: 0 | J389: 0 | K389: 0 | L389: 0 | M389: 0 | N389: 0 | O389: 0 | P389: 0 | Q389: =SUM(E389:P389) -> 0
B393: 11700 | C393: 452060 | D393: OTHER REVENUE - REAL ESTATE
A395: %,R,FDEPTID,V11700,FACCOUNT,V452060,LBUD_USD | D395: CURRENT BUDGET | E395: 0 | F395: 0 | G395: 0 | H395: 0 | I395: 0 | J395: 0 | K395: 0 | L395: 0 | M395: 0 | N395: 0 | O395: 0 | P395: 0 | Q395: =SUM(E395:P395) -> 0
A397: %,R,FDEPTID,V11700,FACCOUNT,V452060,LACT_USD | D397: CURRENT ACTUAL | E397: 0 | F397: 0 | G397: 0 | H397: 0 | I397: 0 | J397: 0 | K397: 0 | L397: 0 | M397: 0 | N397: 0 | O397: 0 | P397: 0 | Q397: =SUM(E397:P397) -> 0 | R397: =Q397 -> 0
D399: PRIOR YEAR ACTUALS | E399: 0 | F399: 0 | G399: 0 | H399: 0 | I399: 0 | J399: 0 | K399: 0 | L399: 0 | M399: 0 | N399: 0 | O399: 0 | P399: 0 | Q399: =SUM(E399:P399) -> 0
S402: Enter Notes Below
D403: FUTURE BUDGET | E403: 0 | F403: 0 | G403: 0 | H403: 0 | I403: 0 | J403: 0 | K403: 0 | L403: 0 | M403: 0 | N403: 0 | O403: 0 | P403: 0 | Q403: =SUM(E403:P403) -> 0
B407: 11700 | C407: 555020 | D407: PERFORMANCE AWARDS
A409: %,FDEPTID,V11700,FACCOUNT,V555020,LBUD_USD | D409: CURRENT BUDGET | E409: 0 | F409: 0 | G409: 0 | H409: 0 | I409: 0 | J409: 0 | K409: 0 | L409: 0 | M409: 0 | N409: 0 | O409: 0 | P409: 0 | Q409: =SUM(E409:P409) -> 0
A411: %,FDEPTID,V11700,FACCOUNT,V555020,LACT_USD | D411: CURRENT ACTUAL | E411: 0 | F411: 0 | G411: 0 | H411: 0 | I411: 0 | J411: 0 | K411: 0 | L411: 0 | M411: 0 | N411: 0 | O411: 0 | P411: 0 | Q411: =SUM(E411:P411) -> 0 | R411: =Q411 -> 0
D413: PRIOR YEAR ACTUALS | E413: 0 | F413: 0 | G413: 0 | H413: 0 | I413: 0 | J413: 0 | K413: 0 | L413: 0 | M413: 0 | N413: 0 | O413: 0 | P413: 0 | Q413: =SUM(E413:P413) -> 0
S416: Enter Notes Below
D417: FUTURE BUDGET | E417: 0 | F417: 0 | G417: 0 | H417: 0 | I417: 0 | J417: 0 | K417: 0 | L417: 0 | M417: 0 | N417: 0 | O417: 0 | P417: 0 | Q417: =SUM(E417:P417) -> 0
B421: 11700 | C421: 541002 | D421: SALARIED MANAGER
A423: %,FDEPTID,V11700,FACCOUNT,V541002,LBUD_USD | D423: CURRENT BUDGET | E423: 3945 | F423: 4164 | G423: 3837 | H423: 4515 | I423: 4515 | J423: 6546 | K423: 3837 | L423: 3837 | M423: 4515 | N423: 4063 | O423: 6998 | P423: 3837 | Q423: =SUM(E423:P423) -> 54609
A425: %,FDEPTID,V11700,FACCOUNT,V541002,LACT_USD | D425: CURRENT ACTUAL | E425: 3849.2 | F425: 4725.81 | G425: 5010.57 | H425: 4850.45 | I425: 4850.45 | J425: 6656.15 | K425: 1655 | L425: 4364 | M425: 4500 | N425: 4850 | O425: 6800 | P425: 3800 | Q425: =SUM(E425:P425) -> 55911.63 | R425: =Q425 -> 55911.63
D427: PRIOR YEAR ACTUALS | E427: 3385.68 | F427: 3385.68 | G427: 4404.48 | H427: 4462.08 | I427: 4462.08 | J427: 3106.72 | K427: 4264.08 | L427: 4462.08 | M427: 3868.08 | N427: 4462.08 | O427: 4475.62 | P427: 7421.58 | Q427: =SUM(E427:P427) -> 52160.24
S430: Enter Notes Below
D431: FUTURE BUDGET | E431: 4289 | F431: 4514 | G431: 4185 | H431: 4882 | I431: 7556 | J431: 4417 | K431: 4185 | L431: 4185 | M431: 4882 | N431: 4417 | O431: 7556 | P431: 4185 | Q431: =SUM(E431:P431) -> 59253
B435: 11700 | C435: 541003 | D435: SALARIED NON-MANAGER
A437: %,FDEPTID,V11700,FACCOUNT,V541003,LBUD_USD | D437: CURRENT BUDGET | E437: 0 | F437: 0 | G437: 0 | H437: 0 | I437: 0 | J437: 0 | K437: 0 | L437: 0 | M437: 0 | N437: 0 | O437: 0 | P437: 0 | Q437: =SUM(E437:P437) -> 0
A439: %,FDEPTID,V11700,FACCOUNT,V541003,LACT_USD | D439: CURRENT ACTUAL | E439: 0 | F439: 0 | G439: 0 | H439: 0 | I439: 0 | J439: 0 | K439: 0 | L439: 0 | M439: 0 | N439: 0 | O439: 0 | P439: 0 | Q439: =SUM(E439:P439) -> 0 | R439: =Q439 -> 0
D441: PRIOR YEAR ACTUALS | E441: 0 | F441: 0 | G441: 0 | H441: 0 | I441: 0 | J441: 0 | K441: 0 | L441: 0 | M441: 0 | N441: 0 | O441: 0 | P441: 0 | Q441: =SUM(E441:P441) -> 0
S444: Enter Notes Below
D445: FUTURE BUDGET | E445: 0 | F445: 0 | G445: 0 | H445: 0 | I445: 0 | J445: 0 | K445: 0 | L445: 0 | M445: 0 | N445: 0 | O445: 0 | P445: 0 | Q445: =SUM(E445:P445) -> 0
B449: 11700 | C449: 542305 | D449: WAGES MINIMUM DRAW
... 1558 more rows

Sheet RESERVE (hidden)
E2: =OWNER!B2 -> Club Regency of Marco Island Condominium Association, Inc
E3: RESERVE ANALYSIS FOR THE PERIOD
E4: =Layout!J6 -> JANUARY 1, 2018 THROUGH DECEMBER 31, 2018
A6: =Layout!D6 -> 1632 | B6: Average | C6: Average | D6: Estimated | E6: =BUDGET!P6 -> 2018 | F6: Estimated | G6: =E6 -> 2018 | I6: Estimated
A7: unit/weeks | B7: Estimated | C7: Estimated | D7: Replacement | E7: Statutory | F7: Fund | G7: Proposed | H7: =E6 -> 2018 | I7: Fund
B8: Life | C8: Remaining Life | D8: Cost | E8: Reserve | F8: Balance | G8: Reserve/Assmt. | H8: Projected | I8: Balance
A9: Replacement Fund | B9: (in years) | C9: (in years) | D9: ="("&TEXT(VLOOKUP(NV_BUV,TITLE,4),"####")&" units)" -> (1632 units) | E9: Funding | F9: =Layout!W7 -> As of 1/1/2018 | G9: Contributions | H9: Expenses | I9: =Layout!X7 -> As of 12/31/2018
A10: Interior | B10: =[1]SUMMARY!$B$11 -> 12.52179395 | C10: =[1]SUMMARY!$C$11 -> 5.938298485 | D10: =[1]SUMMARY!$D$11 -> 3206365.16 | E10: =[1]SUMMARY!$E$11 -> 500538.019 | F10: =[1]SUMMARY!$F$11 -> 234021 | G10: =[1]SUMMARY!$G$11 -> 256062.7632 | H10: =[1]SUMMARY!$I$11 -> 86670 | I10: =+F10+G10-H10 -> 403413.7632
A11: Roof | B11: =[1]SUMMARY!$B$12 -> 26.62595591 | C11: =[2]SUMMARY!$C$12 -> 13.51120107 | D11: =[2]SUMMARY!$D$12 -> 300950 | E11: =[1]SUMMARY!$E$12 -> 18943.54163 | F11: =[1]SUMMARY!$F$12 -> 45000 | G11: =[1]SUMMARY!$G$12 -> 11302.88058 | H11: =[2]SUMMARY!$I$12 -> 152000 | I11: -95697.11942
A12: Painting | B12: =[1]SUMMARY!$B$13 -> 7.9105267 | C12: =[2]SUMMARY!$C$13 -> 6.882137154 | D12: =[2]SUMMARY!$D$13 -> 218900 | E12: =[1]SUMMARY!$E$13 -> 42099.88144 | F12: =[1]SUMMARY!$F$13 -> 36575 | G12: =[1]SUMMARY!$G$13 -> 27671.98801 | H12: =[2]SUMMARY!$I$13 -> 2300 | I12: 61946.98801
A13: Paving | B13: =[1]SUMMARY!$B$14 -> 26.79425837 | C13: =[2]SUMMARY!$C$14 -> 15.61722488 | D13: =[2]SUMMARY!$D$14 -> 160000 | E13: =[1]SUMMARY!$E$14 -> 8403.861826 | F13: =[1]SUMMARY!$F$14 -> 28755 | G13: =[1]SUMMARY!$G$14 -> 5971.428571 | H13: =[2]SUMMARY!$I$14 -> 0 | I13: 34726.42857
A14: Recreation | B14: 0 | C14: 0 | D14: 0 | E14: 0 | F14: 0 | G14: 0 | H14: 0 | I14: 0
A15: Capital Improvements | B15: =[1]SUMMARY!$B$15 -> 13.2160238 | C15: =[2]SUMMARY!$C$15 -> 6.052490735 | D15: =[2]SUMMARY!$D$15 -> 692500 | E15: =[1]SUMMARY!$E$15 -> 93031.35657 | F15: =[1]SUMMARY!$F$15 -> 10868 | G15: =[1]SUMMARY!$G$15 -> 85038.5134 | H15: =[2]SUMMARY!$I$15 -> 56000 | I15: 39906.5134
A16: Special Assessment | B16: 0 | C16: 0 | D16: 0 | E16: 0 | F16: 0 | G16: 0 | H16: 0 | I16: 0
A17: TOTAL | D17: =SUM(D10:D16) -> 4578715.16 | E17: 663016.6605 | F17: 355219 | G17: 386047.5738 | H17: 296970 | I17: 444296.5738
B20: =E6 -> 2018 | D20: =E6 -> 2018
B21: Statutory | D21: Proposed | F21: =IF(D31<amount,"** The State of Florida mandates that condominium associations prepare calculations"," ") -> ** The State of Florida mandates that condominium associations prepare calculations
B22: Reserve | D22: Reserve | F22: =IF(D31<amount," to fully fund reserves. The Law also provides the reserve requirement may be"," ") -> to fully fund reserves. The Law also provides the reserve requirement may be
B23: Funding | D23: Funding | F23: =IF(D31<amount," waived or reduced, allowing the unit owners to put less money into the reserve"," ") -> waived or reduced, allowing the unit owners to put less money into the reserve
A24: Operating Fee | B24: =BUDGET!Q383 -> 702.4834559 | D24: =BUDGET!W383 -> 702.4834559 | F24: =IF(D31<amount," accounts. To meet fully funded requirements for Statutory Reserves, the "," ") -> accounts. To meet fully funded requirements for Statutory Reserves, the
A25: Capital Reserve | B25: =BUDGET!Q384 -> 380.4637126 | D25: =BUDGET!W384 -> 219.5928834 | F25: =IF(D31<amount," resulting annual maintenance fee would be "& TEXT(amount,"$##,##0.00") &". The Board of Directors"," ") -> resulting annual maintenance fee would be $1,108.74. The Board of Directors
A26: Painting Reserve | B26: =BUDGET!Q385 -> 25.79649598 | D26: =BUDGET!W385 -> 16.95587501 | F26: =IF(D31<amount," recommends a vote in favor of waiving the full funding requirements for Statutory"," ") -> recommends a vote in favor of waiving the full funding requirements for Statutory
A27: Special Assessment | B27: =BUDGET!Q386 -> 0 | D27: =BUDGET!W386 -> 0 | F27: =IF(D31<amount," Reserves at the " & TEXT(VALUE(NV_YEAR4)+1,"####0") & " annual meeting, thereby establishing the maintenance fee at"," ") -> Reserves at the 2018 annual meeting, thereby establishing the maintenance fee at
A28: Total | B28: =SUM(B24:B27) -> 1108.743665 | D28: =SUM(D24:D27) -> 939.0322143 | F28: =IF(D31<amount," "&TEXT(D31,"$##,##0.00")&" for the "&TEXT(E6,"####0")&" budget year."," ") -> $939.03 for the 2018 budget year.
A29: Painting Reserve Credit | B29: =BUDGET!Q390 -> 0 | D29: =BUDGET!W390 -> 0
A30: Operating Surplus Credit | B30: =BUDGET!Q391 -> 0 | D30: =BUDGET!W391 -> 0
A31: TOTAL AMOUNT BILLED | B31: =B28+B30+B29 -> 1108.743665 | D31: =D28+D30+D29 -> 939.0322143
A35: NOTE: | B35: There may be some items that require future replacement and are not reserved for, i.e.: replacement of plumbing, railings,
B36: electrical wiring, etcetera. These types of items will need to be paid from operating funds or will require a special assessment.
B38: The components' actual replacement costs and useful lives may vary from the estimated amounts. If additional funds are
B39: needed, the Association has the right, subject to Board approval, to increase regular assessments, pass special assessments,
B40: or delay major repairs and replacements until funds are available.
B42: ="There are "& TEXT(A6,"#####") &" periods of 7-day annual use availability that exist within the timeshare plan for which annual fees are required" -> There are 1632 periods of 7-day annual use availability that exist within the timeshare plan for which annual fees are required
B43: to be paid to the Division of Florida Land Sales, Condominiums, and Mobile Homes, Bureau of Timeshare, in
B44: accordance with Section 721.27, Florida Statutes.

Sheet BU (hidden)
A1: Business Unit | B1: Legal Names | C1: Units | D1: Unit Weeks
A2: 39001 | B2: Plantation House Condominium Owners Association, Inc | C2: 12 | D2: 612
A3: 39002 | B3: The Cottages at South Seas Plantation Condominium Association, Inc | C3: 14 | D3: 700
A4: 39003 | B4: The South Seas Club Condominium Association, Inc | C4: 24 | D4: 1224
A5: 39004 | B5: Plantation Bay Villas Owners Association, Inc | C5: 4 | D5: 204
A6: 39005 | B6: Plantation Beach Club Owners Association, Inc | C6: 18 | D6: 918
A7: 39006 | B7: Plantation Beach Club II Owners Association, Inc | C7: 26 | D7: 1326
A8: 39007 | B8: Plantation Beach Club III Owners Association, Inc | C8: 12 | D8: 612
A9: 39011 | B9: Hurricane House Condominium Association, Inc | C9: 15 | D9: 765
A10: 39012 | B10: The Sanibel Cottages Condominium Association, Inc | C10: 28 | D10: 1400
A11: 39013 | B11: Casa Ybel Beach and Racquet Club Condominium Association, Inc | C11: 56 | D11: 2856
A12: 39014 | B12: Casa Ybel Beach and Racquet Club, Phase IJK, Condominium Association, Inc | C12: 18 | D12: 900
A13: 39015 | B13: Tortuga Beach Club Condominium Association, Inc | C13: 54 | D13: 2700
A14: 39018 | B14: Harbourview Villas at South Seas Resort Condominium Association, Inc | C14: 10 | D14: 510
A15: 39021 | B15: Seawatch On-The-Beach Condominium Association, Inc | C15: 42 | D15: 2100
A16: 39023 | B16: Eagles Nest on Marco Beach Condominium Association, Inc | C16: 96 | D16: 4800
A17: 39024 | B17: The Surf Club of Marco, Inc | C17: 44 | D17: 2244
A18: 39025 | B18: Plantation Beach Club Condominium Association, Inc | C18: 30 | D18: 1530
A19: 39026 | B19: The Charter Club of Marco Beach Condominium Association, Inc | C19: 80 | D19: 4080
A20: 39027 | B20: Club Regency of Marco Island Condominium Association, Inc | C20: 32 | D20: 1632

Sheet SSPHGVS (hidden)
B1: =OWNER!B2 -> Club Regency of Marco Island Condominium Association, Inc
B2: ANNUAL BUDGET FOR THE PERIOD
B3: =Layout!J6 -> JANUARY 1, 2018 THROUGH DECEMBER 31, 2018
B4: SUPPLEMENTAL SCHEDULE OF ITEMS PAID TO SOUTH SEAS PLANTATION
D7: =BUDGET!P6 -> 2018 | E7: =BUDGET!Q6 -> 2018 | G7: =BUDGET!S6 -> 2017 | H7: =BUDGET!T6 -> 2017 | I7: =BUDGET!U6 -> 2017 | J7: =BUDGET!V6 -> Variance $ | K7: =BUDGET!W6 -> Variance %
D8: Annual | E8: Per Unit/ | G8: Per Unit/ | H8: Annual | I8: Proj. Actuals | J8: =NV_YEAR4+1&" Budget VS "&NV_YEAR4&" YE Proj" -> 2018 Budget VS 2017 YE Proj | K8: =NV_YEAR4+1&" Budget VS "&NV_YEAR4&" YE Proj" -> 2018 Budget VS 2017 YE Proj
A9: DEPT | B9: ACCT | C9: Description | D9: Budget | E9: Week | G9: Week | H9: Budget | I9: For Year End
A11: 11700 | B11: =BUDGET!B110 -> 682070 | C11: Owners Coffee | D11: =BUDGET!P110 -> 0 | E11: =BUDGET!Q110 -> 0 | G11: =BUDGET!S110 -> 0 | H11: =BUDGET!T110 -> 0 | I11: =BUDGET!U110 -> 0 | J11: =D11-I11 -> 0 | K11: =IF(I11=0,0,J11/I11) -> 0
A12: 11700 | B12: =BUDGET!B107 -> 720490 | C12: Administrative Fees | D12: =BUDGET!P107 -> 0 | E12: =BUDGET!Q107 -> 0 | G12: =BUDGET!S107 -> 0 | H12: =BUDGET!T107 -> 0 | I12: =BUDGET!U107 -> 0 | J12: =D12-I12 -> 0 | K12: =IF(I12=0,0,J12/I12) -> 0
A13: 11700 | B13: =BUDGET!B81 -> 751010 | C13: Rent/CAM Office | D13: =BUDGET!P81 -> 0 | E13: =BUDGET!Q81 -> 0 | G13: =BUDGET!S81 -> 0 | H13: =BUDGET!T81 -> 0 | I13: =BUDGET!U81 -> 0 | J13: 0 | K13: 0
A14: 11715 | B14: =BUDGET!B193 -> 600250 | C14: Security Contract | D14: =BUDGET!P193 -> 0 | E14: =BUDGET!Q193 -> 0 | G14: =BUDGET!S193 -> 0 | H14: =BUDGET!T193 -> 0 | I14: =BUDGET!U193 -> 0 | J14: 0 | K14: 0
A15: 11700 | B15: =BUDGET!B113 -> 705060 | C15: SSP Tram Service | D15: =BUDGET!P113 -> 0 | E15: =BUDGET!Q113 -> 0 | G15: =BUDGET!S113 -> 0 | H15: =BUDGET!T113 -> 0 | I15: =BUDGET!U113 -> 0 | J15: 0 | K15: 0
A16: 11700 | B16: =BUDGET!B102 -> 705010 | C16: AMENITY MEMBERSHIP FEE | D16: =BUDGET!P102 -> 0 | E16: =BUDGET!Q102 -> 0 | G16: =BUDGET!S102 -> 0 | H16: =BUDGET!T102 -> 0 | I16: =BUDGET!U102 -> 0 | J16: 0 | K16: 0
A17: 11745 | B17: =BUDGET!B299 -> 661110 | C17: Waste Removal | D17: =BUDGET!P299 -> 9420 | E17: =BUDGET!Q299 -> 5.772058824 | G17: =BUDGET!S299 -> 5.707720588 | H17: =BUDGET!T299 -> 9315 | I17: =BUDGET!U299 -> 9319.08 | J17: 100.92 | K17: 0.01082939518
A18: 11201 | B18: =BUDGET!B136 -> 650010 | C18: TELEPHONE LOCAL | D18: =BUDGET!P136 -> 10200 | E18: =BUDGET!Q136 -> 6.25 | G18: =BUDGET!S136 -> 10.78431373 | H18: =BUDGET!T136 -> 17600 | I18: =BUDGET!U136 -> 10192.46 | J18: 7.54 | K18: 0.0007397625303
A19: 11745 | B19: =BUDGET!B301 -> 661060 | C19: Cable Television | D19: =BUDGET!P301 -> 30720 | E19: =BUDGET!Q301 -> 18.82352941 | G19: =BUDGET!S301 -> 16.91176471 | H19: =BUDGET!T301 -> 27600 | I19: =BUDGET!U301 -> 30612.76 | J19: 107.24 | K19: 0.003503114388
A20: 16610 | B20: =BUDGET!B274 -> 664160 | C20: Landscaping Contract | D20: =BUDGET!P274 -> 13800 | E20: =BUDGET!Q274 -> 8.455882353 | G20: =BUDGET!S274 -> 8.455882353 | H20: =BUDGET!T274 -> 13800 | I20: =BUDGET!U274 -> 13325 | J20: 475 | K20: 0.03564727955
A21: 11735 | B21: =BUDGET!B257 -> 650050 | C21: SSP Maintenance Contract | D21: =BUDGET!P257 -> 0 | E21: =BUDGET!Q257 -> 0 | G21: =BUDGET!S257 -> 0 | H21: =BUDGET!T257 -> 0 | I21: =BUDGET!U257 -> 0 | J21: 0 | K21: 0
C22: Total | D22: =SUM(D11:D21) -> 64140 | E22: =SUM(E11:E21) -> 39.30147059 | G22: =SUM(G11:G21) -> 41.85968137 | H22: =SUM(H11:H21) -> 68315 | I22: =SUM(I11:I21) -> 63449.3 | J22: =SUM(J11:J21) -> 690.7 | K22: =SUM(K11:K21) -> 0.05071955164
B25: SUPPLEMENTAL SCHEDULE OF ITEMS PAID TO HILTON GRAND VACATIONS COMPANY
D27: =BUDGET!P6 -> 2018 | E27: =BUDGET!Q6 -> 2018 | G27: =BUDGET!S6 -> 2017 | H27: =BUDGET!T6 -> 2017 | I27: =BUDGET!U6 -> 2017 | J27: =BUDGET!V6 -> Variance $ | K27: =BUDGET!W6 -> Variance %
D28: Annual | E28: Per Unit/ | G28: Per Unit/ | H28: Annual | I28: Proj. Actuals | J28: =NV_YEAR4+1&" Budget VS "&NV_YEAR4&" YE Proj" -> 2018 Budget VS 2017 YE Proj | K28: =NV_YEAR4+1&" Budget VS "&NV_YEAR4&" YE Proj" -> 2018 Budget VS 2017 YE Proj
C29: Description | D29: Budget | E29: Week | G29: Week | H29: Budget | I29: For Year End
A31: 11700 | B31: 678030 | C31: Financial Services Fees | D31: =BUDGET!P106 -> 29600 | E31: =BUDGET!Q106 -> 18.1372549 | G31: =BUDGET!S106 -> 17.1997549 | H31: =BUDGET!T106 -> 28070 | I31: =BUDGET!U106 -> 28069.02 | J31: =D31-I31 -> 1530.98 | K31: =IF(I31=0,0,J31/I31) -> 0.05454340764
A32: 11700 | B32: 790076 | C32: Resort Services Fees Expense | D32: =BUDGET!P101 -> 0 | E32: =BUDGET!Q101 -> 0 | G32: =BUDGET!S101 -> 0 | H32: =BUDGET!T101 -> 0 | I32: =BUDGET!U101 -> 0 | J32: =D32-I32 -> 0 | K32: =IF(I32=0,0,J32/I32) -> 0
A33: 11700 | B33: 790075 | C33: HOA Management Fee Expense | D33: =BUDGET!P104 -> 77424 | E33: =BUDGET!Q104 -> 47.44117647 | G33: =BUDGET!S104 -> 46.50735294 | H33: =BUDGET!T104 -> 75900 | I33: =BUDGET!U104 -> 75900 | J33: =D33-I33 -> 1524 | K33: 0.02007905138
A34: ALL DEPTS | B34: 541002 | C34: Salaried Manager | D34: =SUMIF(BUDGET!$B:$B,SSPHGVS!$B34,BUDGET!P:P) -> 59253 | E34: =SUMIF(BUDGET!$B:$B,SSPHGVS!$B34,BUDGET!Q:Q) -> 36.30698529 | G34: =SUMIF(BUDGET!$B:$B,SSPHGVS!$B34,BUDGET!S:S) -> 33.46139706 | H34: =SUMIF(BUDGET!$B:$B,SSPHGVS!$B34,BUDGET!T:T) -> 54609 | I34: =SUMIF(BUDGET!$B:$B,SSPHGVS!$B34,BUDGET!U:U) -> 55911.63 | J34: 3341.37 | K34: 0.05976162741
A35: ALL DEPTS | B35: 541003 | C35: Salaried Non-Manager | D35: =SUMIF(BUDGET!$B:$B,SSPHGVS!$B35,BUDGET!P:P) -> 69351 | E35: =SUMIF(BUDGET!$B:$B,SSPHGVS!$B35,BUDGET!Q:Q) -> 42.49448529 | G35: =SUMIF(BUDGET!$B:$B,SSPHGVS!$B35,BUDGET!S:S) -> 41.11458333 | H35: =SUMIF(BUDGET!$B:$B,SSPHGVS!$B35,BUDGET!T:T) -> 67099 | I35: =SUMIF(BUDGET!$B:$B,SSPHGVS!$B35,BUDGET!U:U) -> 67323.52 | J35: 2027.48 | K35: 0.03011547822
A36: ALL DEPTS | B36: 542030 | C36: Hourly Other | D36: =SUMIF(BUDGET!$B:$B,SSPHGVS!$B36,BUDGET!P:P) -> 138586 | E36: =SUMIF(BUDGET!$B:$B,SSPHGVS!$B36,BUDGET!Q:Q) -> 84.91789216 | G36: =SUMIF(BUDGET!$B:$B,SSPHGVS!$B36,BUDGET!S:S) -> 85.86519608 | H36: =SUMIF(BUDGET!$B:$B,SSPHGVS!$B36,BUDGET!T:T) -> 140132 | I36: =SUMIF(BUDGET!$B:$B,SSPHGVS!$B36,BUDGET!U:U) -> 116509.8 | J36: 22076.2 | K36: 0.1894793399
A37: ALL DEPTS | B37: 543030 | C37: OT Hourly Other | D37: =SUMIF(BUDGET!$B:$B,SSPHGVS!$B37,BUDGET!P:P) -> 400 | E37: =SUMIF(BUDGET!$B:$B,SSPHGVS!$B37,BUDGET!Q:Q) -> 0.2450980392 | G37: =SUMIF(BUDGET!$B:$B,SSPHGVS!$B37,BUDGET!S:S) -> 0.2230392157 | H37: =SUMIF(BUDGET!$B:$B,SSPHGVS!$B37,BUDGET!T:T) -> 364 | I37: =SUMIF(BUDGET!$B:$B,SSPHGVS!$B37,BUDGET!U:U) -> 2020.95 | J37: -1620.95 | K37: -0.8020732824
A38: ALL DEPTS | B38: 561240 | C38: Paid Time Off | D38: =SUMIF(BUDGET!$B:$B,SSPHGVS!$B38,BUDGET!P:P) -> 27933 | E38: =SUMIF(BUDGET!$B:$B,SSPHGVS!$B38,BUDGET!Q:Q) -> 17.11580882 | G38: =SUMIF(BUDGET!$B:$B,SSPHGVS!$B38,BUDGET!S:S) -> 18.54227941 | H38: =SUMIF(BUDGET!$B:$B,SSPHGVS!$B38,BUDGET!T:T) -> 30261 | I38: =SUMIF(BUDGET!$B:$B,SSPHGVS!$B38,BUDGET!U:U) -> 25275.97 | J38: 2657.03 | K38: 0.1051207926
A39: ALL DEPTS | B39: 561260 | C39: Workers Compensation Exp | D39: =SUMIF(BUDGET!$B:$B,SSPHGVS!$B39,BUDGET!P:P) -> 10278 | E39: =SUMIF(BUDGET!$B:$B,SSPHGVS!$B39,BUDGET!Q:Q) -> 6.297794118 | G39: =SUMIF(BUDGET!$B:$B,SSPHGVS!$B39,BUDGET!S:S) -> 8.639705882 | H39: =SUMIF(BUDGET!$B:$B,SSPHGVS!$B39,BUDGET!T:T) -> 14100 | I39: =SUMIF(BUDGET!$B:$B,SSPHGVS!$B39,BUDGET!U:U) -> 10059.42 | J39: =D39-I39 -> 218.58 | K39: =IF(I39=0,0,J39/I39) -> 0.02172888695
A40: ALL DEPTS | B40: 561490 | C40: Other Non-Union Benefit Exp | D40: =SUMIF(BUDGET!$B:$B,SSPHGVS!$B40,BUDGET!P:P) -> 17623 | E40: =SUMIF(BUDGET!$B:$B,SSPHGVS!$B40,BUDGET!Q:Q) -> 10.79840686 | G40: =SUMIF(BUDGET!$B:$B,SSPHGVS!$B40,BUDGET!S:S) -> 13.19056373 | H40: =SUMIF(BUDGET!$B:$B,SSPHGVS!$B40,BUDGET!T:T) -> 21527 | I40: =SUMIF(BUDGET!$B:$B,SSPHGVS!$B40,BUDGET!U:U) -> 17064.14 | J40: 558.86 | K40: 0.03275055174
A41: ALL DEPTS | B41: 555070 | C41: Other Incentive Compensation Exp | D41: =SUMIF(BUDGET!$B:$B,SSPHGVS!$B41,BUDGET!P:P) -> 0 | E41: =SUMIF(BUDGET!$B:$B,SSPHGVS!$B41,BUDGET!Q:Q) -> 0 | G41: =SUMIF(BUDGET!$B:$B,SSPHGVS!$B41,BUDGET!S:S) -> 0 | H41: =SUMIF(BUDGET!$B:$B,SSPHGVS!$B41,BUDGET!T:T) -> 0 | I41: =SUMIF(BUDGET!$B:$B,SSPHGVS!$B41,BUDGET!U:U) -> 0 | J41: =D41-I41 -> 0 | K41: 0
A42: ALL DEPTS | B42: 561010 | C42: Group Health Insurance Non-Union | D42: =SUMIF(BUDGET!$B:$B,SSPHGVS!$B42,BUDGET!P:P) -> 47849 | E42: =SUMIF(BUDGET!$B:$B,SSPHGVS!$B42,BUDGET!Q:Q) -> 29.3192402 | G42: =SUMIF(BUDGET!$B:$B,SSPHGVS!$B42,BUDGET!S:S) -> 26.36519608 | H42: =SUMIF(BUDGET!$B:$B,SSPHGVS!$B42,BUDGET!T:T) -> 43028 | I42: =SUMIF(BUDGET!$B:$B,SSPHGVS!$B42,BUDGET!U:U) -> 42757.97 | J42: 5091.03 | K42: 0.1190662232
A43: ALL DEPTS | B43: 561170 | C43: PTO and Vacation Expense | D43: =SUMIF(BUDGET!$B:$B,SSPHGVS!$B43,BUDGET!P:P) -> 0 | E43: =SUMIF(BUDGET!$B:$B,SSPHGVS!$B43,BUDGET!Q:Q) -> 0 | G43: =SUMIF(BUDGET!$B:$B,SSPHGVS!$B43,BUDGET!S:S) -> 0 | H43: =SUMIF(BUDGET!$B:$B,SSPHGVS!$B43,BUDGET!T:T) -> 0 | I43: =SUMIF(BUDGET!$B:$B,SSPHGVS!$B43,BUDGET!U:U) -> 0 | J43: =D43-I43 -> 0 | K43: =IF(I43=0,0,J43/I43) -> 0
C44: Total | D44: =SUM(D31:D43) -> 478297 | E44: =SUM(E31:E43) -> 293.0741422 | G44: =SUM(G31:G43) -> 291.1090686 | H44: =SUM(H31:H43) -> 475090 | I44: =SUM(I31:I43) -> 440892.42 | J44: =SUM(J31:J43) -> 37404.58 | K44: =SUM(K31:K43) -> -0.1694279233

Sheet MASTER SHEET DETAIL (hidden)
C1: Hilton Grand Vacations Management, LLC. | I1: Hilton Grand Vacations Company
C2: =Layout!J4 -> Club Regency of Marco Island Condominium Association, Inc | I2: =Layout!J4 -> Club Regency of Marco Island Condominium Association, Inc
C3: =Layout!J5 -> ANNUAL BUDGET FOR THE PERIOD | I3: =Layout!J5 -> ANNUAL BUDGET FOR THE PERIOD
C4: =Layout!J6 -> JANUARY 1, 2018 THROUGH DECEMBER 31, 2018 | I4: =Layout!J6 -> JANUARY 1, 2018 THROUGH DECEMBER 31, 2018
C7: =Layout!D6 -> 1632 | D7: (unit/weeks) | P7: =NV_YEAR4+1 -> 2018 | Q7: =NV_YEAR4+1 -> 2018 | S7: =NV_YEAR4 -> 2017 | T7: =NV_YEAR4 -> 2017 | U7: =NV_YEAR4 -> 2017 | V7: Variance $ | W7: Variance % | X7: Variance $ | Y7: Variance %
P8: Annual | Q8: Per Unit/ | S8: Per Unit/ | T8: Annual | U8: Proj. Actuals | V8: =NV_YEAR4+1&" VS "&NV_YEAR4 -> 2018 VS 2017 | W8: =NV_YEAR4+1&" VS "&NV_YEAR4 -> 2018 VS 2017 | X8: =NV_YEAR4+1&" Budget VS "&NV_YEAR4&" YE Proj" -> 2018 Budget VS 2017 YE Proj | Y8: =NV_YEAR4+1&" Budget VS "&NV_YEAR4&" YE Proj" -> 2018 Budget VS 2017 YE Proj | Z8: NOTES
A9: DEPT | B9: ACCT NO | C9: Description | D9: Jan | E9: Feb | F9: Mar | G9: Apr | H9: May | I9: Jun | J9: Jul | K9: Aug | L9: Sep | M9: Oct | N9: Nov | O9: Dec | P9: Budget | Q9: Week | S9: Week | T9: Budget | U9: For Year End | V9: Budget | W9: Week
C10: OPERATING REVENUE
A11: 19800 | B11: 458010 | C11: ASSOCIATION FEES | D11: =((+$P$324-SUM($P12:$P34))/12) -> 95537.75 | E11: 95537.75 | F11: 95537.75 | G11: 95537.75 | H11: 95537.75 | I11: 95537.75 | J11: 95537.75 | K11: 95537.75 | L11: 95537.75 | M11: 95537.75 | N11: 95537.75 | O11: 95537.75 | P11: =SUM(D11:O11) -> 1146453 | Q11: =P11/$C$7 -> 702.4834559 | S11: =T11/$C$7 -> 680.1746324 | T11: =ACCT_19800_458010_TOT_CY_BUD -> 1110045 | U11: =ACCT_19800_458010_TOT_CY_PROJ -> 1110046.25 | V11: =P11-T11 -> 36408 | W11: =IF(T11=0,0,V11/T11) -> 0.03279867032 | X11: =P11-U11 -> 36406.75 | Y11: =IF(U11=0,0,X11/U11) -> 0.03279750731 | Z11: =ACCT_19800_458010_NOTES -> 0 | AB11: =IF(AND(P11=0,T11=0,U11=0,Z11=0),"HIDE","") -> 
A12: 19800 | B12: 458030 | C12: SPECIAL ASSESSMENT REVENUE | D12: =ACCT_19800_458030_NYB_01 -> 0 | E12: =ACCT_19800_458030_NYB_02 -> 0 | F12: =ACCT_19800_458030_NYB_03 -> 0 | G12: =ACCT_19800_458030_NYB_04 -> 0 | H12: =ACCT_19800_458030_NYB_05 -> 0 | I12: =ACCT_19800_458030_NYB_06 -> 0 | J12: =ACCT_19800_458030_NYB_07 -> 0 | K12: =ACCT_19800_458030_NYB_08 -> 0 | L12: =ACCT_19800_458030_NYB_09 -> 0 | M12: =ACCT_19800_458030_NYB_10 -> 0 | N12: =ACCT_19800_458030_NYB_11 -> 0 | O12: =ACCT_19800_458030_NYB_12 -> 0 | P12: =SUM(D12:O12) -> 0 | Q12: =P12/$C$7 -> 0 | S12: =T12/$C$7 -> 0 | T12: =ACCT_19800_458030_TOT_CY_BUD -> 0 | U12: =ACCT_19800_458030_TOT_CY_PROJ -> 0 | V12: =P12-T12 -> 0 | W12: =IF(T12=0,0,V12/T12) -> 0 | X12: 0 | Y12: =IF(U12=0,0,X12/U12) -> 0 | Z12: =ACCT_19800_458030_NOTES -> 0 | AB12: HIDE
A13: 19800 | B13: 444230 | C13: OTHER REAL ESTATE REVENUE | D13: =ACCT_19800_444230_NYB_01 -> 0 | E13: =ACCT_19800_444230_NYB_02 -> 0 | F13: =ACCT_19800_444230_NYB_03 -> 0 | G13: =ACCT_19800_444230_NYB_04 -> 0 | H13: =ACCT_19800_444230_NYB_05 -> 0 | I13: =ACCT_19800_444230_NYB_06 -> 0 | J13: =ACCT_19800_444230_NYB_07 -> 0 | K13: =ACCT_19800_444230_NYB_08 -> 0 | L13: =ACCT_19800_444230_NYB_09 -> 0 | M13: =ACCT_19800_444230_NYB_10 -> 0 | N13: =ACCT_19800_444230_NYB_11 -> 0 | O13: =ACCT_19800_444230_NYB_12 -> 0 | P13: =SUM(D13:O13) -> 0 | Q13: =P13/$C$7 -> 0 | S13: =T13/$C$7 -> 0 | T13: =ACCT_19800_444230_TOT_CY_BUD -> 0 | U13: =ACCT_19800_444230_TOT_CY_PROJ -> 0 | V13: =P13-T13 -> 0 | W13: =IF(T13=0,0,V13/T13) -> 0 | X13: =P13-U13 -> 0 | Y13: =IF(U13=0,0,X13/U13) -> 0 | Z13: =ACCT_19800_444230_NOTES -> 0 | AB13: =IF(AND(P13=0,T13=0,U13=0,Z13=0),"HIDE","") -> HIDE
A14: 19800 | B14: 458060 | C14: REAL ESTATE TAX FEE | D14: =ACCT_19800_458060_NYB_01 -> 0 | E14: =ACCT_19800_458060_NYB_02 -> 0 | F14: =ACCT_19800_458060_NYB_03 -> 0 | G14: =ACCT_19800_458060_NYB_04 -> 0 | H14: =ACCT_19800_458060_NYB_05 -> 0 | I14: =ACCT_19800_458060_NYB_06 -> 0 | J14: =ACCT_19800_458060_NYB_07 -> 0 | K14: =ACCT_19800_458060_NYB_08 -> 0 | L14: =ACCT_19800_458060_NYB_09 -> 0 | M14: =ACCT_19800_458060_NYB_10 -> 0 | N14: =ACCT_19800_458060_NYB_11 -> 0 | O14: =ACCT_19800_458060_NYB_12 -> 0 | P14: 0 | Q14: 0 | S14: 0 | T14: =ACCT_19800_458060_TOT_CY_BUD -> 0 | U14: =ACCT_19800_458060_TOT_CY_PROJ -> 0 | V14: 0 | W14: 0 | X14: 0 | Y14: 0 | Z14: =ACCT_19800_458060_NOTES -> 0 | AB14: HIDE
A15: 19800 | B15: 458080 | C15: LATE FEE INCOME | D15: =ACCT_19800_458080_NYB_01 -> 0 | E15: =ACCT_19800_458080_NYB_02 -> 575 | F15: =ACCT_19800_458080_NYB_03 -> 1800 | G15: =ACCT_19800_458080_NYB_04 -> 900 | H15: =ACCT_19800_458080_NYB_05 -> 800 | I15: =ACCT_19800_458080_NYB_06 -> 300 | J15: =ACCT_19800_458080_NYB_07 -> 100 | K15: =ACCT_19800_458080_NYB_08 -> 300 | L15: =ACCT_19800_458080_NYB_09 -> 200 | M15: =ACCT_19800_458080_NYB_10 -> 25 | N15: =ACCT_19800_458080_NYB_11 -> 25 | O15: =ACCT_19800_458080_NYB_12 -> 25 | P15: 5050 | Q15: 3.094362745 | S15: 4.6875 | T15: =ACCT_19800_458080_TOT_CY_BUD -> 7650 | U15: =ACCT_19800_458080_TOT_CY_PROJ -> 5042.03 | V15: -2600 | W15: -0.339869281 | X15: 7.97 | Y15: 0.00158071253 | Z15: =ACCT_19800_458080_NOTES -> 0
A16: 19800 | B16: 458090 | C16: NSF INCOME | D16: =ACCT_19800_458090_NYB_01 -> 0 | E16: =ACCT_19800_458090_NYB_02 -> 0 | F16: =ACCT_19800_458090_NYB_03 -> 0 | G16: =ACCT_19800_458090_NYB_04 -> 0 | H16: =ACCT_19800_458090_NYB_05 -> 0 | I16: =ACCT_19800_458090_NYB_06 -> 0 | J16: =ACCT_19800_458090_NYB_07 -> 0 | K16: =ACCT_19800_458090_NYB_08 -> 0 | L16: =ACCT_19800_458090_NYB_09 -> 0 | M16: =ACCT_19800_458090_NYB_10 -> 0 | N16: =ACCT_19800_458090_NYB_11 -> 0 | O16: =ACCT_19800_458090_NYB_12 -> 0 | P16: 0 | Q16: 0 | S16: 0 | T16: =ACCT_19800_458090_TOT_CY_BUD -> 0 | U16: =ACCT_19800_458090_TOT_CY_PROJ -> 0 | V16: 0 | W16: 0 | X16: 0 | Y16: 0 | Z16: =ACCT_19800_458090_NOTES -> 0 | AB16: HIDE
A17: 19800 | B17: 458100 | C17: INTEREST INCOME | D17: =ACCT_19800_458100_NYB_01 -> 0 | E17: =ACCT_19800_458100_NYB_02 -> 0 | F17: =ACCT_19800_458100_NYB_03 -> 0 | G17: =ACCT_19800_458100_NYB_04 -> 0 | H17: =ACCT_19800_458100_NYB_05 -> 0 | I17: =ACCT_19800_458100_NYB_06 -> 0 | J17: =ACCT_19800_458100_NYB_07 -> 0 | K17: =ACCT_19800_458100_NYB_08 -> 0 | L17: =ACCT_19800_458100_NYB_09 -> 0 | M17: =ACCT_19800_458100_NYB_10 -> 0 | N17: =ACCT_19800_458100_NYB_11 -> 0 | O17: =ACCT_19800_458100_NYB_12 -> 0 | P17: 0 | Q17: 0 | S17: 0 | T17: =ACCT_19800_458100_TOT_CY_BUD -> 0 | U17: =ACCT_19800_458100_TOT_CY_PROJ -> 1932.57 | V17: 0 | W17: 0 | X17: -1932.57 | Y17: -1 | Z17: =ACCT_19800_458100_NOTES -> 0
A18: 19800 | B18: 458110 | C18: DIVIDEND INCOME | D18: =ACCT_19800_458110_NYB_01 -> 0 | E18: =ACCT_19800_458110_NYB_02 -> 0 | F18: =ACCT_19800_458110_NYB_03 -> 0 | G18: =ACCT_19800_458110_NYB_04 -> 0 | H18: =ACCT_19800_458110_NYB_05 -> 0 | I18: =ACCT_19800_458110_NYB_06 -> 0 | J18: =ACCT_19800_458110_NYB_07 -> 0 | K18: =ACCT_19800_458110_NYB_08 -> 0 | L18: =ACCT_19800_458110_NYB_09 -> 0 | M18: =ACCT_19800_458110_NYB_10 -> 0 | N18: =ACCT_19800_458110_NYB_11 -> 0 | O18: =ACCT_19800_458110_NYB_12 -> 0 | P18: 0 | Q18: 0 | S18: 0 | T18: =ACCT_19800_458110_TOT_CY_BUD -> 0 | U18: =ACCT_19800_458110_TOT_CY_PROJ -> 0 | V18: 0 | W18: 0 | X18: 0 | Y18: 0 | Z18: =ACCT_19800_458110_NOTES -> 0 | AB18: HIDE
A19: 19800 | B19: 458150 | C19: SUPPORT AREA 1 OFFICE | D19: =ACCT_19800_458150_NYB_01 -> 0 | E19: =ACCT_19800_458150_NYB_02 -> 0 | F19: =ACCT_19800_458150_NYB_03 -> 0 | G19: =ACCT_19800_458150_NYB_04 -> 0 | H19: =ACCT_19800_458150_NYB_05 -> 0 | I19: =ACCT_19800_458150_NYB_06 -> 0 | J19: =ACCT_19800_458150_NYB_07 -> 0 | K19: =ACCT_19800_458150_NYB_08 -> 0 | L19: =ACCT_19800_458150_NYB_09 -> 0 | M19: =ACCT_19800_458150_NYB_10 -> 0 | N19: =ACCT_19800_458150_NYB_11 -> 0 | O19: =ACCT_19800_458150_NYB_12 -> 0 | P19: 0 | Q19: 0 | S19: 0 | T19: =ACCT_19800_458150_TOT_CY_BUD -> 0 | U19: =ACCT_19800_458150_TOT_CY_PROJ -> 0 | V19: 0 | W19: 0 | X19: 0 | Y19: 0 | Z19: =ACCT_19800_458150_NOTES -> 0 | AB19: HIDE
A20: 19800 | B20: 458140 | C20: SALES RENT INCOME | D20: =ACCT_19800_458140_NYB_01 -> 710 | E20: =ACCT_19800_458140_NYB_02 -> 710 | F20: =ACCT_19800_458140_NYB_03 -> 710 | G20: =ACCT_19800_458140_NYB_04 -> 710 | H20: =ACCT_19800_458140_NYB_05 -> 710 | I20: =ACCT_19800_458140_NYB_06 -> 710 | J20: =ACCT_19800_458140_NYB_07 -> 710 | K20: =ACCT_19800_458140_NYB_08 -> 710 | L20: =ACCT_19800_458140_NYB_09 -> 710 | M20: =ACCT_19800_458140_NYB_10 -> 710 | N20: =ACCT_19800_458140_NYB_11 -> 710 | O20: =ACCT_19800_458140_NYB_12 -> 710 | P20: 8520 | Q20: 5.220588235 | S20: 5.220588235 | T20: =ACCT_19800_458140_TOT_CY_BUD -> 8520 | U20: =ACCT_19800_458140_TOT_CY_PROJ -> 5422 | V20: 0 | W20: 0 | X20: 3098 | Y20: 0.5713758761 | Z20: =ACCT_19800_458140_NOTES -> 0
A21: 19800 | B21: 458160 | C21: SUPPORT AREA 2 RETAIL | D21: =ACCT_19800_458160_NYB_01 -> 0 | E21: =ACCT_19800_458160_NYB_02 -> 0 | F21: =ACCT_19800_458160_NYB_03 -> 0 | G21: =ACCT_19800_458160_NYB_04 -> 0 | H21: =ACCT_19800_458160_NYB_05 -> 0 | I21: =ACCT_19800_458160_NYB_06 -> 0 | J21: =ACCT_19800_458160_NYB_07 -> 0 | K21: =ACCT_19800_458160_NYB_08 -> 0 | L21: =ACCT_19800_458160_NYB_09 -> 0 | M21: =ACCT_19800_458160_NYB_10 -> 0 | N21: =ACCT_19800_458160_NYB_11 -> 0 | O21: =ACCT_19800_458160_NYB_12 -> 0 | P21: =SUM(D21:O21) -> 0 | Q21: =P21/$C$7 -> 0 | S21: =T21/$C$7 -> 0 | T21: =ACCT_19800_458160_TOT_CY_BUD -> 0 | U21: =ACCT_19800_458160_TOT_CY_PROJ -> 0 | V21: =P21-T21 -> 0 | W21: =IF(T21=0,0,V21/T21) -> 0 | X21: =P21-U21 -> 0 | Y21: =IF(U21=0,0,X21/U21) -> 0 | Z21: =ACCT_19800_458160_NOTES -> 0 | AB21: =IF(AND(P21=0,T21=0,U21=0,Z21=0),"HIDE","") -> HIDE
A22: 19800 | B22: 458170 | C22: SUPPORT AREA 3 POOL BAR | D22: =ACCT_19800_458170_NYB_01 -> 0 | E22: =ACCT_19800_458170_NYB_02 -> 0 | F22: =ACCT_19800_458170_NYB_03 -> 0 | G22: =ACCT_19800_458170_NYB_04 -> 0 | H22: =ACCT_19800_458170_NYB_05 -> 0 | I22: =ACCT_19800_458170_NYB_06 -> 0 | J22: =ACCT_19800_458170_NYB_07 -> 0 | K22: =ACCT_19800_458170_NYB_08 -> 0 | L22: =ACCT_19800_458170_NYB_09 -> 0 | M22: =ACCT_19800_458170_NYB_10 -> 0 | N22: =ACCT_19800_458170_NYB_11 -> 0 | O22: =ACCT_19800_458170_NYB_12 -> 0 | P22: =SUM(D22:O22) -> 0 | Q22: =P22/$C$7 -> 0 | S22: =T22/$C$7 -> 0 | T22: =ACCT_19800_458170_TOT_CY_BUD -> 0 | U22: =ACCT_19800_458170_TOT_CY_PROJ -> 0 | V22: =P22-T22 -> 0 | W22: =IF(T22=0,0,V22/T22) -> 0 | X22: =P22-U22 -> 0 | Y22: =IF(U22=0,0,X22/U22) -> 0 | Z22: =ACCT_19800_458170_NOTES -> 0 | AB22: =IF(AND(P22=0,T22=0,U22=0,Z22=0),"HIDE","") -> HIDE
A23: 19800 | B23: 458180 | C23: SUPPORT AREA 4 LOBBY BAR | D23: =ACCT_19800_458180_NYB_01 -> 0 | E23: =ACCT_19800_458180_NYB_02 -> 0 | F23: =ACCT_19800_458180_NYB_03 -> 0 | G23: =ACCT_19800_458180_NYB_04 -> 0 | H23: =ACCT_19800_458180_NYB_05 -> 0 | I23: =ACCT_19800_458180_NYB_06 -> 0 | J23: =ACCT_19800_458180_NYB_07 -> 0 | K23: =ACCT_19800_458180_NYB_08 -> 0 | L23: =ACCT_19800_458180_NYB_09 -> 0 | M23: =ACCT_19800_458180_NYB_10 -> 0 | N23: =ACCT_19800_458180_NYB_11 -> 0 | O23: =ACCT_19800_458180_NYB_12 -> 0 | P23: =SUM(D23:O23) -> 0 | Q23: =P23/$C$7 -> 0 | S23: =T23/$C$7 -> 0 | T23: =ACCT_19800_458180_TOT_CY_BUD -> 0 | U23: =ACCT_19800_458180_TOT_CY_PROJ -> 0 | V23: =P23-T23 -> 0 | W23: =IF(T23=0,0,V23/T23) -> 0 | X23: =P23-U23 -> 0 | Y23: =IF(U23=0,0,X23/U23) -> 0 | Z23: =ACCT_19800_458180_NOTES -> 0 | AB23: =IF(AND(P23=0,T23=0,U23=0,Z23=0),"HIDE","") -> HIDE
A24: 19800 | B24: 458190 | C24: SUPPORT AREA 5 DELI | D24: =ACCT_19800_458190_NYB_01 -> 0 | E24: =ACCT_19800_458190_NYB_02 -> 0 | F24: =ACCT_19800_458190_NYB_03 -> 0 | G24: =ACCT_19800_458190_NYB_04 -> 0 | H24: =ACCT_19800_458190_NYB_05 -> 0 | I24: =ACCT_19800_458190_NYB_06 -> 0 | J24: =ACCT_19800_458190_NYB_07 -> 0 | K24: =ACCT_19800_458190_NYB_08 -> 0 | L24: =ACCT_19800_458190_NYB_09 -> 0 | M24: =ACCT_19800_458190_NYB_10 -> 0 | N24: =ACCT_19800_458190_NYB_11 -> 0 | O24: =ACCT_19800_458190_NYB_12 -> 0 | P24: =SUM(D24:O24) -> 0 | Q24: =P24/$C$7 -> 0 | S24: =T24/$C$7 -> 0 | T24: =ACCT_19800_458190_TOT_CY_BUD -> 0 | U24: =ACCT_19800_458190_TOT_CY_PROJ -> 0 | V24: =P24-T24 -> 0 | W24: =IF(T24=0,0,V24/T24) -> 0 | X24: =P24-U24 -> 0 | Y24: =IF(U24=0,0,X24/U24) -> 0 | Z24: =ACCT_19800_458190_NOTES -> 0 | AB24: =IF(AND(P24=0,T24=0,U24=0,Z24=0),"HIDE","") -> HIDE
A25: 19800 | B25: 458200 | C25: VENDING INCOME | D25: =ACCT_19800_458200_NYB_01 -> 0 | E25: =ACCT_19800_458200_NYB_02 -> 0 | F25: =ACCT_19800_458200_NYB_03 -> 200 | G25: =ACCT_19800_458200_NYB_04 -> 0 | H25: =ACCT_19800_458200_NYB_05 -> 200 | I25: =ACCT_19800_458200_NYB_06 -> 0 | J25: =ACCT_19800_458200_NYB_07 -> 0 | K25: =ACCT_19800_458200_NYB_08 -> 200 | L25: =ACCT_19800_458200_NYB_09 -> 0 | M25: =ACCT_19800_458200_NYB_10 -> 200 | N25: =ACCT_19800_458200_NYB_11 -> 0 | O25: =ACCT_19800_458200_NYB_12 -> 200 | P25: 1000 | Q25: 0.612745098 | S25: 0.612745098 | T25: =ACCT_19800_458200_TOT_CY_BUD -> 1000 | U25: =ACCT_19800_458200_TOT_CY_PROJ -> 0 | V25: 0 | W25: 0 | X25: 1000 | Y25: 0 | Z25: =ACCT_19800_458200_NOTES -> 0
A26: 19800 | B26: 458210 | C26: CONCESSION INCOME | D26: =ACCT_19800_458210_NYB_01 -> 1133 | E26: =ACCT_19800_458210_NYB_02 -> 1133 | F26: =ACCT_19800_458210_NYB_03 -> 1133 | G26: =ACCT_19800_458210_NYB_04 -> 1133 | H26: =ACCT_19800_458210_NYB_05 -> 1133 | I26: =ACCT_19800_458210_NYB_06 -> 1133 | J26: =ACCT_19800_458210_NYB_07 -> 1133 | K26: =ACCT_19800_458210_NYB_08 -> 1133 | L26: =ACCT_19800_458210_NYB_09 -> 1133 | M26: =ACCT_19800_458210_NYB_10 -> 1133 | N26: =ACCT_19800_458210_NYB_11 -> 1133 | O26: =ACCT_19800_458210_NYB_12 -> 1133 | P26: 13596 | Q26: 8.330882353 | S26: 8.088235294 | T26: =ACCT_19800_458210_TOT_CY_BUD -> 13200 | U26: =ACCT_19800_458210_TOT_CY_PROJ -> 13893.37 | V26: 396 | W26: 0.03 | X26: -297.37 | Y26: -0.0214037343 | Z26: =ACCT_19800_458210_NOTES -> 0
A27: 19800 | B27: 458380 | C27: WEEK 53 INCOME | D27: =ACCT_19800_458380_NYB_01 -> 0 | E27: =ACCT_19800_458380_NYB_02 -> 0 | F27: =ACCT_19800_458380_NYB_03 -> 0 | G27: =ACCT_19800_458380_NYB_04 -> 0 | H27: =ACCT_19800_458380_NYB_05 -> 0 | I27: =ACCT_19800_458380_NYB_06 -> 0 | J27: =ACCT_19800_458380_NYB_07 -> 0 | K27: =ACCT_19800_458380_NYB_08 -> 0 | L27: =ACCT_19800_458380_NYB_09 -> 0 | M27: =ACCT_19800_458380_NYB_10 -> 0 | N27: =ACCT_19800_458380_NYB_11 -> 0 | O27: =ACCT_19800_458380_NYB_12 -> 0 | P27: 0 | Q27: 0 | S27: 0 | T27: =ACCT_19800_458380_TOT_CY_BUD -> 0 | U27: =ACCT_19800_458380_TOT_CY_PROJ -> 0 | V27: 0 | W27: 0 | X27: 0 | Y27: 0 | Z27: =ACCT_19800_458380_NOTES -> 0 | AB27: HIDE
A28: 19800 | B28: 458230 | C28: ACTIVITIES REVENUE | D28: =ACCT_19800_458230_NYB_01 -> 0 | E28: =ACCT_19800_458230_NYB_02 -> 0 | F28: =ACCT_19800_458230_NYB_03 -> 0 | G28: =ACCT_19800_458230_NYB_04 -> 0 | H28: =ACCT_19800_458230_NYB_05 -> 0 | I28: =ACCT_19800_458230_NYB_06 -> 0 | J28: =ACCT_19800_458230_NYB_07 -> 0 | K28: =ACCT_19800_458230_NYB_08 -> 0 | L28: =ACCT_19800_458230_NYB_09 -> 0 | M28: =ACCT_19800_458230_NYB_10 -> 0 | N28: =ACCT_19800_458230_NYB_11 -> 0 | O28: =ACCT_19800_458230_NYB_12 -> 0 | P28: 0 | Q28: 0 | S28: 0 | T28: =ACCT_19800_458230_TOT_CY_BUD -> 0 | U28: =ACCT_19800_458230_TOT_CY_PROJ -> 0 | V28: 0 | W28: 0 | X28: 0 | Y28: 0 | Z28: =ACCT_19800_458230_NOTES -> 0 | AB28: HIDE
A29: 19800 | B29: 458240 | C29: SUBSIDY INCOME | D29: =ACCT_19800_458240_NYB_01 -> 0 | E29: =ACCT_19800_458240_NYB_02 -> 0 | F29: =ACCT_19800_458240_NYB_03 -> 0 | G29: =ACCT_19800_458240_NYB_04 -> 0 | H29: =ACCT_19800_458240_NYB_05 -> 0 | I29: =ACCT_19800_458240_NYB_06 -> 0 | J29: =ACCT_19800_458240_NYB_07 -> 0 | K29: =ACCT_19800_458240_NYB_08 -> 0 | L29: =ACCT_19800_458240_NYB_09 -> 0 | M29: =ACCT_19800_458240_NYB_10 -> 0 | N29: =ACCT_19800_458240_NYB_11 -> 0 | O29: =ACCT_19800_458240_NYB_12 -> 0 | P29: 0 | Q29: 0 | S29: 0 | T29: =ACCT_19800_458240_TOT_CY_BUD -> 0 | U29: =ACCT_19800_458240_TOT_CY_PROJ -> 0 | V29: 0 | W29: 0 | X29: 0 | Y29: 0 | Z29: =ACCT_19800_458240_NOTES -> 0 | AB29: HIDE
A30: 19800 | B30: 458270 | C30: FLEX RESERVATION FEES | D30: =ACCT_19800_458270_NYB_01 -> 0 | E30: =ACCT_19800_458270_NYB_02 -> 0 | F30: =ACCT_19800_458270_NYB_03 -> 0 | G30: =ACCT_19800_458270_NYB_04 -> 0 | H30: =ACCT_19800_458270_NYB_05 -> 0 | I30: =ACCT_19800_458270_NYB_06 -> 0 | J30: =ACCT_19800_458270_NYB_07 -> 0 | K30: =ACCT_19800_458270_NYB_08 -> 0 | L30: =ACCT_19800_458270_NYB_09 -> 0 | M30: =ACCT_19800_458270_NYB_10 -> 0 | N30: =ACCT_19800_458270_NYB_11 -> 0 | O30: =ACCT_19800_458270_NYB_12 -> 0 | P30: 0 | Q30: 0 | S30: 0 | T30: =ACCT_19800_458270_TOT_CY_BUD -> 0 | U30: =ACCT_19800_458270_TOT_CY_PROJ -> 0 | V30: 0 | W30: 0 | X30: 0 | Y30: 0 | Z30: =ACCT_19800_458270_NOTES -> 0 | AB30: HIDE
A31: 19800 | B31: 458340 | C31: SUPPORT AREA SPA | D31: =ACCT_19800_458340_NYB_01 -> 0 | E31: =ACCT_19800_458340_NYB_02 -> 0 | F31: =ACCT_19800_458340_NYB_03 -> 0 | G31: =ACCT_19800_458340_NYB_04 -> 0 | H31: =ACCT_19800_458340_NYB_05 -> 0 | I31: =ACCT_19800_458340_NYB_06 -> 0 | J31: =ACCT_19800_458340_NYB_07 -> 0 | K31: =ACCT_19800_458340_NYB_08 -> 0 | L31: =ACCT_19800_458340_NYB_09 -> 0 | M31: =ACCT_19800_458340_NYB_10 -> 0 | N31: =ACCT_19800_458340_NYB_11 -> 0 | O31: =ACCT_19800_458340_NYB_12 -> 0 | P31: 0 | Q31: 0 | S31: 0 | T31: =ACCT_19800_458340_TOT_CY_BUD -> 0 | U31: =ACCT_19800_458340_TOT_CY_PROJ -> 0 | V31: 0 | W31: 0 | X31: 0 | Y31: 0 | Z31: =ACCT_19800_458340_NOTES -> 0 | AB31: HIDE
A32: 19800 | B32: 458350 | C32: INSURANCE PROCEEDS | D32: =ACCT_19800_458350_NYB_01 -> 0 | E32: =ACCT_19800_458350_NYB_02 -> 0 | F32: =ACCT_19800_458350_NYB_03 -> 0 | G32: =ACCT_19800_458350_NYB_04 -> 0 | H32: =ACCT_19800_458350_NYB_05 -> 0 | I32: =ACCT_19800_458350_NYB_06 -> 0 | J32: =ACCT_19800_458350_NYB_07 -> 0 | K32: =ACCT_19800_458350_NYB_08 -> 0 | L32: =ACCT_19800_458350_NYB_09 -> 0 | M32: =ACCT_19800_458350_NYB_10 -> 0 | N32: =ACCT_19800_458350_NYB_11 -> 0 | O32: =ACCT_19800_458350_NYB_12 -> 0 | P32: 0 | Q32: 0 | S32: 0 | T32: =ACCT_19800_458350_TOT_CY_BUD -> 0 | U32: =ACCT_19800_458350_TOT_CY_PROJ -> 0 | V32: 0 | W32: 0 | X32: 0 | Y32: 0 | Z32: =ACCT_19800_458350_NOTES -> 0 | AB32: HIDE
A33: 19800 | B33: 438305 | C33: OTHER REVENUE NON-TAX | D33: =ACCT_19800_438305_NYB_01 -> 0 | E33: =ACCT_19800_438305_NYB_02 -> 0 | F33: =ACCT_19800_438305_NYB_03 -> 0 | G33: =ACCT_19800_438305_NYB_04 -> 0 | H33: =ACCT_19800_438305_NYB_05 -> 0 | I33: =ACCT_19800_438305_NYB_06 -> 0 | J33: =ACCT_19800_438305_NYB_07 -> 0 | K33: =ACCT_19800_438305_NYB_08 -> 0 | L33: =ACCT_19800_438305_NYB_09 -> 0 | M33: =ACCT_19800_438305_NYB_10 -> 0 | N33: =ACCT_19800_438305_NYB_11 -> 0 | O33: =ACCT_19800_438305_NYB_12 -> 0 | P33: 0 | Q33: 0 | S33: 0 | T33: =ACCT_19800_438305_TOT_CY_BUD -> 0 | U33: =ACCT_19800_438305_TOT_CY_PROJ -> 13.07 | V33: 0 | W33: 0 | X33: -13.07 | Y33: -1 | Z33: =ACCT_19800_438305_NOTES -> 0
A34: 19800 | B34: 452060 | C34: OTHER REVENUE - REAL ESTATE | D34: =ACCT_19800_452060_NYB_01 -> 0 | E34: =ACCT_19800_452060_NYB_02 -> 0 | F34: =ACCT_19800_452060_NYB_03 -> 0 | G34: =ACCT_19800_452060_NYB_04 -> 0 | H34: =ACCT_19800_452060_NYB_05 -> 0 | I34: =ACCT_19800_452060_NYB_06 -> 0 | J34: =ACCT_19800_452060_NYB_07 -> 0 | K34: =ACCT_19800_452060_NYB_08 -> 0 | L34: =ACCT_19800_452060_NYB_09 -> 0 | M34: =ACCT_19800_452060_NYB_10 -> 0 | N34: =ACCT_19800_452060_NYB_11 -> 0 | O34: =ACCT_19800_452060_NYB_12 -> 0 | P34: 0 | Q34: 0 | S34: 0 | T34: =ACCT_19800_452060_TOT_CY_BUD -> 0 | U34: =ACCT_19800_452060_TOT_CY_PROJ -> 0 | V34: 0 | W34: 0 | X34: 0 | Y34: =IF(U34=0,0,X34/U34) -> 0 | Z34: =ACCT_19800_452060_NOTES -> 0 | AB34: HIDE
C36: TOTAL OPERATING REVENUE | D36: =SUM(D11:D34) -> 97380.75 | E36: =SUM(E11:E34) -> 97955.75 | F36: 99380.75 | G36: 98280.75 | H36: 98380.75 | I36: 97680.75 | J36: 97480.75 | K36: 97880.75 | L36: 97580.75 | M36: 97605.75 | N36: 97405.75 | O36: 97605.75 | P36: 1174619 | Q36: =P36/$C$7 -> 719.7420343 | S36: 698.783701 | T36: =SUM(T11:T34) -> 1140415 | U36: =SUM(U11:U34) -> 1136349.29 | V36: =P36-T36 -> 34204 | W36: =IF(T36=0,0,V36/T36) -> 0.02999259042 | X36: =P36-U36 -> 38269.71 | Y36: =IF(U36=0,0,X36/U36) -> 0.03367776998
C38: HOUSEKEEPING SERVICES
A39: 11002 | B39: 458310 | C39: SECOND CLEAN REIMBURSEMENT | D39: =-ACCT_11002_458310_NYB_01 -> -1000 | E39: =-ACCT_11002_458310_NYB_02 -> -800 | F39: =-ACCT_11002_458310_NYB_03 -> -300 | G39: =-ACCT_11002_458310_NYB_04 -> -900 | H39: =-ACCT_11002_458310_NYB_05 -> -1000 | I39: =-ACCT_11002_458310_NYB_06 -> -1200 | J39: =-ACCT_11002_458310_NYB_07 -> -700 | K39: =-ACCT_11002_458310_NYB_08 -> -1500 | L39: =-ACCT_11002_458310_NYB_09 -> -300 | M39: =-ACCT_11002_458310_NYB_10 -> -500 | N39: =-ACCT_11002_458310_NYB_11 -> -900 | O39: =-ACCT_11002_458310_NYB_12 -> -1000 | P39: =SUM(D39:O39) -> -10100 | Q39: =P39/$C$7 -> -6.18872549 | S39: =T39/$C$7 -> -6.12745098 | T39: =-ACCT_11002_458310_TOT_CY_BUD -> -10000 | U39: =-ACCT_11002_458310_TOT_CY_PROJ -> -10080 | V39: =P39-T39 -> -100 | W39: =IF(T39=0,0,V39/T39) -> 0.01 | X39: =P39-U39 -> -20 | Y39: =IF(U39=0,0,X39/U39) -> 0.001984126984 | Z39: =ACCT_11002_458310_NOTES -> 0 | AB39: =IF(AND(P39=0,T39=0,U39=0,Z39=0),"HIDE","") -> 
A40: 11002 | B40: 458320 | C40: SPLIT WEEK CLEAN REIMBURSEMENT | D40: =-ACCT_11002_458320_NYB_01 -> 0 | E40: =-ACCT_11002_458320_NYB_02 -> 0 | F40: =-ACCT_11002_458320_NYB_03 -> 0 | G40: =-ACCT_11002_458320_NYB_04 -> 0 | H40: =-ACCT_11002_458320_NYB_05 -> 0 | I40: =-ACCT_11002_458320_NYB_06 -> 0 | J40: =-ACCT_11002_458320_NYB_07 -> 0 | K40: =-ACCT_11002_458320_NYB_08 -> 0 | L40: =-ACCT_11002_458320_NYB_09 -> 0 | M40: =-ACCT_11002_458320_NYB_10 -> 0 | N40: =-ACCT_11002_458320_NYB_11 -> 0 | O40: =-ACCT_11002_458320_NYB_12 -> 0 | P40: =SUM(D40:O40) -> 0 | Q40: 0 | S40: 0 | T40: =-ACCT_11002_458320_TOT_CY_BUD -> 0 | U40: =-ACCT_11002_458320_TOT_CY_PROJ -> 0 | V40: 0 | W40: 0 | X40: 0 | Y40: =IF(U40=0,0,X40/U40) -> 0 | Z40: =ACCT_11002_458320_NOTES -> 0 | AB40: HIDE
A41: 11002 | B41: 555020 | C41: PERFORMANCE AWARDS | D41: =ACCT_11002_555020_NYB_01 -> 0 | E41: =ACCT_11002_555020_NYB_02 -> 0 | F41: =ACCT_11002_555020_NYB_03 -> 0 | G41: =ACCT_11002_555020_NYB_04 -> 0 | H41: =ACCT_11002_555020_NYB_05 -> 0 | I41: =ACCT_11002_555020_NYB_06 -> 0 | J41: =ACCT_11002_555020_NYB_07 -> 0 | K41: =ACCT_11002_555020_NYB_08 -> 0 | L41: =ACCT_11002_555020_NYB_09 -> 0 | M41: =ACCT_11002_555020_NYB_10 -> 0 | N41: =ACCT_11002_555020_NYB_11 -> 0 | O41: =ACCT_11002_555020_NYB_12 -> 0 | P41: 0 | Q41: 0 | S41: 0 | T41: =ACCT_11002_555020_TOT_CY_BUD -> 0 | U41: =ACCT_11002_555020_TOT_CY_PROJ -> 0 | V41: 0 | W41: 0 | X41: 0 | Y41: 0 | Z41: =ACCT_11002_555020_NOTES -> 0 | AB41: HIDE
A42: 11002 | B42: 541002 | C42: SALARIED MANAGER | D42: =ACCT_11002_541002_NYB_01 -> 0 | E42: =ACCT_11002_541002_NYB_02 -> 0 | F42: =ACCT_11002_541002_NYB_03 -> 0 | G42: =ACCT_11002_541002_NYB_04 -> 0 | H42: =ACCT_11002_541002_NYB_05 -> 0 | I42: =ACCT_11002_541002_NYB_06 -> 0 | J42: =ACCT_11002_541002_NYB_07 -> 0 | K42: =ACCT_11002_541002_NYB_08 -> 0 | L42: =ACCT_11002_541002_NYB_09 -> 0 | M42: =ACCT_11002_541002_NYB_10 -> 0 | N42: =ACCT_11002_541002_NYB_11 -> 0 | O42: =ACCT_11002_541002_NYB_12 -> 0 | P42: 0 | Q42: 0 | S42: 0 | T42: =ACCT_11002_541002_TOT_CY_BUD -> 0 | U42: =ACCT_11002_541002_TOT_CY_PROJ -> 0 | V42: 0 | W42: 0 | X42: 0 | Y42: 0 | Z42: =ACCT_11002_541002_NOTES -> 0 | AB42: HIDE
A43: 11002 | B43: 541003 | C43: SALARIED NON-MANAGER | D43: =ACCT_11002_541003_NYB_01 -> 2117 | E43: =ACCT_11002_541003_NYB_02 -> 2382 | F43: =ACCT_11002_541003_NYB_03 -> 2726 | G43: =ACCT_11002_541003_NYB_04 -> 2317 | H43: =ACCT_11002_541003_NYB_05 -> 4089 | I43: =ACCT_11002_541003_NYB_06 -> 1772 | J43: =ACCT_11002_541003_NYB_07 -> 2726 | K43: =ACCT_11002_541003_NYB_08 -> 1772 | L43: =ACCT_11002_541003_NYB_09 -> 2726 | M43: =ACCT_11002_541003_NYB_10 -> 2726 | N43: =ACCT_11002_541003_NYB_11 -> 3680 | O43: =ACCT_11002_541003_NYB_12 -> 2044 | P43: 31077 | Q43: 19.04227941 | S43: 18.42034314 | T43: =ACCT_11002_541003_TOT_CY_BUD -> 30062 | U43: =ACCT_11002_541003_TOT_CY_PROJ -> 30062.17 | V43: 1015 | W43: 0.03376355532 | X43: 1014.83 | Y43: 0.03375770944 | Z43: =ACCT_11002_541003_NOTES -> 0
A44: 11002 | B44: 561170 | C44: PTO AND VACATION EXPENSE | D44: =ACCT_11002_561170_NYB_01 -> 0 | E44: =ACCT_11002_561170_NYB_02 -> 0 | F44: =ACCT_11002_561170_NYB_03 -> 0 | G44: =ACCT_11002_561170_NYB_04 -> 0 | H44: =ACCT_11002_561170_NYB_05 -> 0 | I44: =ACCT_11002_561170_NYB_06 -> 0 | J44: =ACCT_11002_561170_NYB_07 -> 0 | K44: =ACCT_11002_561170_NYB_08 -> 0 | L44: =ACCT_11002_561170_NYB_09 -> 0 | M44: =ACCT_11002_561170_NYB_10 -> 0 | N44: =ACCT_11002_561170_NYB_11 -> 0 | O44: =ACCT_11002_561170_NYB_12 -> 0 | P44: 0 | Q44: 0 | S44: 0 | T44: =ACCT_11002_561170_TOT_CY_BUD -> 0 | U44: =ACCT_11002_561170_TOT_CY_PROJ -> 0 | V44: 0 | W44: 0 | X44: 0 | Y44: 0 | Z44: =ACCT_11002_561170_NOTES -> 0 | AB44: HIDE
A45: 11002 | B45: 542030 | C45: HOURLY OTHER | D45: =ACCT_11002_542030_NYB_01 -> 3213 | E45: =ACCT_11002_542030_NYB_02 -> 3913 | F45: =ACCT_11002_542030_NYB_03 -> 3691 | G45: =ACCT_11002_542030_NYB_04 -> 4130 | H45: =ACCT_11002_542030_NYB_05 -> 5997 | I45: =ACCT_11002_542030_NYB_06 -> 4130 | J45: =ACCT_11002_542030_NYB_07 -> 1493 | K45: =ACCT_11002_542030_NYB_08 -> 4130 | L45: =ACCT_11002_542030_NYB_09 -> 4031 | M45: =ACCT_11002_542030_NYB_10 -> 4130 | N45: =ACCT_11002_542030_NYB_11 -> 5997 | O45: =ACCT_11002_542030_NYB_12 -> 3436 | P45: 48291 | Q45: 29.59007353 | S45: 28.54534314 | T45: =ACCT_11002_542030_TOT_CY_BUD -> 46586 | U45: =ACCT_11002_542030_TOT_CY_PROJ -> 42620.84 | V45: 1705 | W45: 0.03659897823 | X45: 5670.16 | Y45: 0.1330372653 | Z45: =ACCT_11002_542030_NOTES -> Projected actual under budget due to turn over.
A46: 11002 | B46: 543030 | C46: OT HOURLY OTHER | D46: =ACCT_11002_543030_NYB_01 -> 0 | E46: =ACCT_11002_543030_NYB_02 -> 0 | F46: =ACCT_11002_543030_NYB_03 -> 0 | G46: =ACCT_11002_543030_NYB_04 -> 0 | H46: =ACCT_11002_543030_NYB_05 -> 0 | I46: =ACCT_11002_543030_NYB_06 -> 0 | J46: =ACCT_11002_543030_NYB_07 -> 0 | K46: =ACCT_11002_543030_NYB_08 -> 0 | L46: =ACCT_11002_543030_NYB_09 -> 0 | M46: =ACCT_11002_543030_NYB_10 -> 0 | N46: =ACCT_11002_543030_NYB_11 -> 0 | O46: =ACCT_11002_543030_NYB_12 -> 0 | P46: 0 | Q46: 0 | S46: 0 | T46: =ACCT_11002_543030_TOT_CY_BUD -> 0 | U46: =ACCT_11002_543030_TOT_CY_PROJ -> 155.06 | V46: 0 | W46: 0 | X46: -155.06 | Y46: -1 | Z46: =ACCT_11002_543030_NOTES -> 0
A47: 11002 | B47: 561240 | C47: PAID TIME OFF | D47: =ACCT_11002_561240_NYB_01 -> 500 | E47: =ACCT_11002_561240_NYB_02 -> 500 | F47: =ACCT_11002_561240_NYB_03 -> 500 | G47: =ACCT_11002_561240_NYB_04 -> 500 | H47: =ACCT_11002_561240_NYB_05 -> 500 | I47: =ACCT_11002_561240_NYB_06 -> 500 | J47: =ACCT_11002_561240_NYB_07 -> 500 | K47: =ACCT_11002_561240_NYB_08 -> 500 | L47: =ACCT_11002_561240_NYB_09 -> 500 | M47: =ACCT_11002_561240_NYB_10 -> 500 | N47: =ACCT_11002_561240_NYB_11 -> 600 | O47: =ACCT_11002_561240_NYB_12 -> 600 | P47: 6200 | Q47: 3.799019608 | S47: 4.870710784 | T47: =ACCT_11002_561240_TOT_CY_BUD -> 7949 | U47: =ACCT_11002_561240_TOT_CY_PROJ -> 5835.35 | V47: -1749 | W47: -0.2200276764 | X47: 364.65 | Y47: 0.06248982495 | Z47: =ACCT_11002_561240_NOTES -> 0
A48: 11002 | B48: 561260 | C48: WORKERS COMPENSATION EXP | D48: =ACCT_11002_561260_NYB_01 -> 229 | E48: =ACCT_11002_561260_NYB_02 -> 270 | F48: =ACCT_11002_561260_NYB_03 -> 276 | G48: =ACCT_11002_561260_NYB_04 -> 277 | H48: =ACCT_11002_561260_NYB_05 -> 431 | I48: =ACCT_11002_561260_NYB_06 -> 259 | J48: =ACCT_11002_561260_NYB_07 -> 191 | K48: =ACCT_11002_561260_NYB_08 -> 256 | L48: =ACCT_11002_561260_NYB_09 -> 289 | M48: =ACCT_11002_561260_NYB_10 -> 293 | N48: =ACCT_11002_561260_NYB_11 -> 416 | O48: =ACCT_11002_561260_NYB_12 -> 240 | P48: =SUM(D48:O48) -> 3427 | Q48: =P48/$C$7 -> 2.099877451 | S48: =T48/$C$7 -> 2.992647059 | T48: =ACCT_11002_561260_TOT_CY_BUD -> 4884 | U48: =ACCT_11002_561260_TOT_CY_PROJ -> 3122.59 | V48: =P48-T48 -> -1457 | W48: =IF(T48=0,0,V48/T48) -> -0.2983210483 | X48: =P48-U48 -> 304.41 | Y48: =IF(U48=0,0,X48/U48) -> 0.0974863815 | Z48: =ACCT_11002_561260_NOTES -> 0 | AB48: =IF(AND(P48=0,T48=0,U48=0,Z48=0),"HIDE","") -> 
A49: 11002 | B49: 555070 | C49: OTHER INCENTIVE COMPENSATION EXP | D49: =ACCT_11002_555070_NYB_01 -> 0 | E49: =ACCT_11002_555070_NYB_02 -> 0 | F49: =ACCT_11002_555070_NYB_03 -> 0 | G49: =ACCT_11002_555070_NYB_04 -> 0 | H49: =ACCT_11002_555070_NYB_05 -> 0 | I49: =ACCT_11002_555070_NYB_06 -> 0 | J49: =ACCT_11002_555070_NYB_07 -> 0 | K49: =ACCT_11002_555070_NYB_08 -> 0 | L49: =ACCT_11002_555070_NYB_09 -> 0 | M49: =ACCT_11002_555070_NYB_10 -> 0 | N49: =ACCT_11002_555070_NYB_11 -> 0 | O49: =ACCT_11002_555070_NYB_12 -> 0 | P49: 0 | Q49: 0 | S49: 0 | T49: =ACCT_11002_555070_TOT_CY_BUD -> 0 | U49: =ACCT_11002_555070_TOT_CY_PROJ -> 0 | V49: 0 | W49: 0 | X49: 0 | Y49: 0 | Z49: =ACCT_11002_555070_NOTES -> 0 | AB49: HIDE
A50: 11002 | B50: 561020 | C50: PENSION DEFINED CONTRIBUTION | D50: =ACCT_11002_561020_NYB_01 -> 0 | E50: =ACCT_11002_561020_NYB_02 -> 0 | F50: =ACCT_11002_561020_NYB_03 -> 0 | G50: =ACCT_11002_561020_NYB_04 -> 0 | H50: =ACCT_11002_561020_NYB_05 -> 0 | I50: =ACCT_11002_561020_NYB_06 -> 0 | J50: =ACCT_11002_561020_NYB_07 -> 0 | K50: =ACCT_11002_561020_NYB_08 -> 0 | L50: =ACCT_11002_561020_NYB_09 -> 0 | M50: =ACCT_11002_561020_NYB_10 -> 0 | N50: =ACCT_11002_561020_NYB_11 -> 0 | O50: =ACCT_11002_561020_NYB_12 -> 0 | P50: 0 | Q50: 0 | S50: 0 | T50: =ACCT_11002_561020_TOT_CY_BUD -> 0 | U50: =ACCT_11002_561020_TOT_CY_PROJ -> 0 | V50: 0 | W50: 0 | X50: 0 | Y50: =IF(U50=0,0,X50/U50) -> 0 | Z50: =ACCT_11002_561020_NOTES -> 0 | AB50: HIDE
A51: 11002 | B51: 561010 | C51: GROUP HEALTH INSURANCE NON-UNION | D51: =ACCT_11002_561010_NYB_01 -> 1101 | E51: =ACCT_11002_561010_NYB_02 -> 1101 | F51: =ACCT_11002_561010_NYB_03 -> 1134 | G51: =ACCT_11002_561010_NYB_04 -> 1134 | H51: =ACCT_11002_561010_NYB_05 -> 1500 | I51: =ACCT_11002_561010_NYB_06 -> 1101 | J51: =ACCT_11002_561010_NYB_07 -> 1101 | K51: =ACCT_11002_561010_NYB_08 -> 1101 | L51: =ACCT_11002_561010_NYB_09 -> 1101 | M51: =ACCT_11002_561010_NYB_10 -> 1101 | N51: =ACCT_11002_561010_NYB_11 -> 1500 | O51: =ACCT_11002_561010_NYB_12 -> 1101 | P51: 14076 | Q51: 8.625 | S51: 6.828431373 | T51: =ACCT_11002_561010_TOT_CY_BUD -> 11144 | U51: =ACCT_11002_561010_TOT_CY_PROJ -> 12311.5 | V51: 2932 | W51: 0.2631012204 | X51: 1764.5 | Y51: 0.143321285 | Z51: =ACCT_11002_561010_NOTES -> 0 | AB51: =IF(AND(P51=0,T51=0,U51=0,Z51=0),"HIDE","") -> 
A52: 11002 | B52: 561490 | C52: OTHER NON-UNION BENEFIT EXP | D52: =ACCT_11002_561490_NYB_01 -> 414 | E52: =ACCT_11002_561490_NYB_02 -> 488 | F52: =ACCT_11002_561490_NYB_03 -> 498 | G52: =ACCT_11002_561490_NYB_04 -> 500 | H52: =ACCT_11002_561490_NYB_05 -> 779 | I52: =ACCT_11002_561490_NYB_06 -> 463 | J52: =ACCT_11002_561490_NYB_07 -> 345 | K52: =ACCT_11002_561490_NYB_08 -> 463 | L52: =ACCT_11002_561490_NYB_09 -> 523 | M52: =ACCT_11002_561490_NYB_10 -> 530 | N52: =ACCT_11002_561490_NYB_11 -> 753 | O52: =ACCT_11002_561490_NYB_12 -> 434 | P52: 6190 | Q52: 3.792892157 | S52: 4.205269608 | T52: =ACCT_11002_561490_TOT_CY_BUD -> 6863 | U52: =ACCT_11002_561490_TOT_CY_PROJ -> 5801.23 | V52: -673 | W52: -0.09806207198 | X52: 388.77 | Y52: 0.06701509852 | Z52: =ACCT_11002_561490_NOTES -> 0 | AB52: =IF(AND(P52=0,T52=0,U52=0,Z52=0),"HIDE","") -> 
A53: 11002 | B53: 565010 | C53: SOCIAL SECURITY TAX EXPENSE | D53: =ACCT_11002_565010_NYB_01 -> 437 | E53: =ACCT_11002_565010_NYB_02 -> 515 | F53: =ACCT_11002_565010_NYB_03 -> 526 | G53: =ACCT_11002_565010_NYB_04 -> 528 | H53: =ACCT_11002_565010_NYB_05 -> 823 | I53: =ACCT_11002_565010_NYB_06 -> 489 | J53: =ACCT_11002_565010_NYB_07 -> 365 | K53: =ACCT_11002_565010_NYB_08 -> 489 | L53: =ACCT_11002_565010_NYB_09 -> 553 | M53: =ACCT_11002_565010_NYB_10 -> 560 | N53: =ACCT_11002_565010_NYB_11 -> 795 | O53: =ACCT_11002_565010_NYB_12 -> 458 | P53: 6538 | Q53: 4.006127451 | S53: 3.930147059 | T53: =ACCT_11002_565010_TOT_CY_BUD -> 6414 | U53: =ACCT_11002_565010_TOT_CY_PROJ -> 5915.77 | V53: 124 | W53: 0.0193327097 | X53: =P53-U53 -> 622.23 | Y53: =IF(U53=0,0,X53/U53) -> 0.105181574 | Z53: =ACCT_11002_565010_NOTES -> 0 | AB53: =IF(AND(P53=0,T53=0,U53=0,Z53=0),"HIDE","") -> 
A54: 11002 | B54: 565040 | C54: STATE UNEMPLOYMENT TAX | D54: =ACCT_11002_565040_NYB_01 -> 37 | E54: =ACCT_11002_565040_NYB_02 -> 44 | F54: =ACCT_11002_565040_NYB_03 -> 45 | G54: =ACCT_11002_565040_NYB_04 -> 45 | H54: =ACCT_11002_565040_NYB_05 -> 70 | I54: =ACCT_11002_565040_NYB_06 -> 42 | J54: =ACCT_11002_565040_NYB_07 -> 31 | K54: =ACCT_11002_565040_NYB_08 -> 42 | L54: =ACCT_11002_565040_NYB_09 -> 47 | M54: =ACCT_11002_565040_NYB_10 -> 48 | N54: =ACCT_11002_565040_NYB_11 -> 68 | O54: =ACCT_11002_565040_NYB_12 -> 39 | P54: =SUM(D54:O54) -> 558 | Q54: =P54/$C$7 -> 0.3419117647 | S54: =T54/$C$7 -> 0.4044117647 | T54: =ACCT_11002_565040_TOT_CY_BUD -> 660 | U54: =ACCT_11002_565040_TOT_CY_PROJ -> 496.76 | V54: =P54-T54 -> -102 | W54: =IF(T54=0,0,V54/T54) -> -0.1545454545 | X54: =P54-U54 -> 61.24 | Y54: =IF(U54=0,0,X54/U54) -> 0.1232788469 | Z54: =ACCT_11002_565040_NOTES -> 0 | AB54: =IF(AND(P54=0,T54=0,U54=0,Z54=0),"HIDE","") -> 
A55: 11002 | B55: 545000 | C55: LEASED LABOR - HOTEL | D55: =ACCT_11002_545000_NYB_01 -> 0 | E55: =ACCT_11002_545000_NYB_02 -> 0 | F55: =ACCT_11002_545000_NYB_03 -> 0 | G55: =ACCT_11002_545000_NYB_04 -> 0 | H55: =ACCT_11002_545000_NYB_05 -> 0 | I55: =ACCT_11002_545000_NYB_06 -> 0 | J55: =ACCT_11002_545000_NYB_07 -> 0 | K55: =ACCT_11002_545000_NYB_08 -> 0 | L55: =ACCT_11002_545000_NYB_09 -> 0 | M55: =ACCT_11002_545000_NYB_10 -> 0 | N55: =ACCT_11002_545000_NYB_11 -> 0 | O55: =ACCT_11002_545000_NYB_12 -> 0 | P55: 0 | Q55: 0 | S55: 0 | T55: =ACCT_11002_545000_TOT_CY_BUD -> 0 | U55: =ACCT_11002_545000_TOT_CY_PROJ -> 0 | V55: 0 | W55: 0 | X55: 0 | Y55: 0 | Z55: =ACCT_11002_545000_NOTES -> 0 | AB55: =IF(AND(P55=0,T55=0,U55=0,Z55=0),"HIDE","") -> HIDE
A56: 11002 | B56: 696010 | C56: UNIFORMS | D56: =ACCT_11002_696010_NYB_01 -> 0 | E56: =ACCT_11002_696010_NYB_02 -> 0 | F56: =ACCT_11002_696010_NYB_03 -> 0 | G56: =ACCT_11002_696010_NYB_04 -> 0 | H56: =ACCT_11002_696010_NYB_05 -> 0 | I56: =ACCT_11002_696010_NYB_06 -> 0 | J56: =ACCT_11002_696010_NYB_07 -> 0 | K56: =ACCT_11002_696010_NYB_08 -> 0 | L56: =ACCT_11002_696010_NYB_09 -> 0 | M56: =ACCT_11002_696010_NYB_10 -> 0 | N56: =ACCT_11002_696010_NYB_11 -> 0 | O56: =ACCT_11002_696010_NYB_12 -> 0 | P56: 0 | Q56: 0 | S56: 0 | T56: =ACCT_11002_696010_TOT_CY_BUD -> 0 | U56: =ACCT_11002_696010_TOT_CY_PROJ -> 0 | V56: 0 | W56: 0 | X56: 0 | Y56: 0 | Z56: =ACCT_11002_696010_NOTES -> 0 | AB56: HIDE
A57: 11002 | B57: 600220 | C57: CLEANING SERVICES | D57: =ACCT_11002_600220_NYB_01 -> 6200 | E57: =ACCT_11002_600220_NYB_02 -> 6200 | F57: =ACCT_11002_600220_NYB_03 -> 6400 | G57: =ACCT_11002_600220_NYB_04 -> 6200 | H57: =ACCT_11002_600220_NYB_05 -> 6200 | I57: =ACCT_11002_600220_NYB_06 -> 7200 | J57: =ACCT_11002_600220_NYB_07 -> 6700 | K57: =ACCT_11002_600220_NYB_08 -> 6700 | L57: =ACCT_11002_600220_NYB_09 -> 6700 | M57: =ACCT_11002_600220_NYB_10 -> 6700 | N57: =ACCT_11002_600220_NYB_11 -> 6200 | O57: =ACCT_11002_600220_NYB_12 -> 7000 | P57: =SUM(D57:O57) -> 78400 | Q57: =P57/$C$7 -> 48.03921569 | S57: =T57/$C$7 -> 46.56862745 | T57: =ACCT_11002_600220_TOT_CY_BUD -> 76000 | U57: =ACCT_11002_600220_TOT_CY_PROJ -> 87982.5 | V57: =P57-T57 -> 2400 | W57: 0.03157894737 | X57: -9582.5 | Y57: -0.1089137044 | Z57: =ACCT_11002_600220_NOTES -> Utilized service during turnover of staff
A58: 11002 | B58: 694030 | C58: GUEST SUPPLIES | D58: =ACCT_11002_694030_NYB_01 -> 1500 | E58: =ACCT_11002_694030_NYB_02 -> 1500 | F58: =ACCT_11002_694030_NYB_03 -> 1500 | G58: =ACCT_11002_694030_NYB_04 -> 1500 | H58: =ACCT_11002_694030_NYB_05 -> 1500 | I58: =ACCT_11002_694030_NYB_06 -> 1500 | J58: =ACCT_11002_694030_NYB_07 -> 1500 | K58: =ACCT_11002_694030_NYB_08 -> 1500 | L58: =ACCT_11002_694030_NYB_09 -> 1500 | M58: =ACCT_11002_694030_NYB_10 -> 1500 | N58: =ACCT_11002_694030_NYB_11 -> 1500 | O58: =ACCT_11002_694030_NYB_12 -> 1500 | P58: 18000 | Q58: 11.02941176 | S58: 11.02941176 | T58: =ACCT_11002_694030_TOT_CY_BUD -> 18000 | U58: =ACCT_11002_694030_TOT_CY_PROJ -> 17579.67 | V58: 0 | W58: 0 | X58: 420.33 | Y58: 0.02391000514 | Z58: =ACCT_11002_694030_NOTES -> Under budget due to property closure.
A59: 11002 | B59: 694040 | C59: OPERATIONG SUPPLIES | D59: =ACCT_11002_694040_NYB_01 -> 0 | E59: =ACCT_11002_694040_NYB_02 -> 0 | F59: =ACCT_11002_694040_NYB_03 -> 0 | G59: =ACCT_11002_694040_NYB_04 -> 0 | H59: =ACCT_11002_694040_NYB_05 -> 0 | I59: =ACCT_11002_694040_NYB_06 -> 0 | J59: =ACCT_11002_694040_NYB_07 -> 0 | K59: =ACCT_11002_694040_NYB_08 -> 0 | L59: =ACCT_11002_694040_NYB_09 -> 0 | M59: =ACCT_11002_694040_NYB_10 -> 0 | N59: =ACCT_11002_694040_NYB_11 -> 0 | O59: =ACCT_11002_694040_NYB_12 -> 0 | P59: =SUM(D59:O59) -> 0 | Q59: =P59/$C$7 -> 0 | S59: =T59/$C$7 -> 0 | T59: =ACCT_11002_694040_TOT_CY_BUD -> 0 | U59: =ACCT_11002_694040_TOT_CY_PROJ -> 0 | V59: =P59-T59 -> 0 | W59: =IF(T59=0,0,V59/T59) -> 0 | X59: =P59-U59 -> 0 | Y59: =IF(U59=0,0,X59/U59) -> 0 | Z59: =ACCT_11002_694040_NOTES -> 0 | AB59: =IF(AND(P59=0,T59=0,U59=0,Z59=0),"HIDE","") -> HIDE
A60: 11002 | B60: 691040 | C60: LINEN EXPENSE | D60: =ACCT_11002_691040_NYB_01 -> 1500 | E60: =ACCT_11002_691040_NYB_02 -> 0 | F60: =ACCT_11002_691040_NYB_03 -> 0 | G60: =ACCT_11002_691040_NYB_04 -> 0 | H60: =ACCT_11002_691040_NYB_05 -> 3000 | I60: =ACCT_11002_691040_NYB_06 -> 0 | J60: =ACCT_11002_691040_NYB_07 -> 0 | K60: =ACCT_11002_691040_NYB_08 -> 15000 | L60: =ACCT_11002_691040_NYB_09 -> 3200 | M60: =ACCT_11002_691040_NYB_10 -> 0 | N60: =ACCT_11002_691040_NYB_11 -> 2500 | O60: =ACCT_11002_691040_NYB_12 -> 0 | P60: 25200 | Q60: 15.44117647 | S60: 15.44117647 | T60: =ACCT_11002_691040_TOT_CY_BUD -> 25200 | U60: =ACCT_11002_691040_TOT_CY_PROJ -> 25128.65 | V60: 0 | W60: 0 | X60: 71.35 | Y60: 0.002839388507 | Z60: =ACCT_11002_691040_NOTES -> 0
A61: 11002 | B61: 694010 | C61: CLEANING SUPPLIES | D61: =ACCT_11002_694010_NYB_01 -> 700 | E61: =ACCT_11002_694010_NYB_02 -> 700 | F61: =ACCT_11002_694010_NYB_03 -> 700 | G61: =ACCT_11002_694010_NYB_04 -> 700 | H61: =ACCT_11002_694010_NYB_05 -> 700 | I61: =ACCT_11002_694010_NYB_06 -> 700 | J61: =ACCT_11002_694010_NYB_07 -> 700 | K61: =ACCT_11002_694010_NYB_08 -> 700 | L61: =ACCT_11002_694010_NYB_09 -> 700 | M61: =ACCT_11002_694010_NYB_10 -> 700 | N61: =ACCT_11002_694010_NYB_11 -> 700 | O61: =ACCT_11002_694010_NYB_12 -> 700 | P61: 8400 | Q61: 5.147058824 | S61: 5.147058824 | T61: =ACCT_11002_694010_TOT_CY_BUD -> 8400 | U61: =ACCT_11002_694010_TOT_CY_PROJ -> 8219.87 | V61: 0 | W61: 0 | X61: 180.13 | Y61: 0.02191397188 | Z61: =ACCT_11002_694010_NOTES -> No increase
A62: 11002 | B62: 730370 | C62: LAUNDRY & DRY CLEANING | D62: =ACCT_11002_730370_NYB_01 -> 0 | E62: =ACCT_11002_730370_NYB_02 -> 0 | F62: =ACCT_11002_730370_NYB_03 -> 0 | G62: =ACCT_11002_730370_NYB_04 -> 0 | H62: =ACCT_11002_730370_NYB_05 -> 0 | I62: =ACCT_11002_730370_NYB_06 -> 0 | J62: =ACCT_11002_730370_NYB_07 -> 0 | K62: =ACCT_11002_730370_NYB_08 -> 0 | L62: =ACCT_11002_730370_NYB_09 -> 0 | M62: =ACCT_11002_730370_NYB_10 -> 0 | N62: =ACCT_11002_730370_NYB_11 -> 0 | O62: =ACCT_11002_730370_NYB_12 -> 0 | P62: 0 | Q62: 0 | S62: 0 | T62: =ACCT_11002_730370_TOT_CY_BUD -> 0 | U62: =ACCT_11002_730370_TOT_CY_PROJ -> 0 | V62: 0 | W62: 0 | X62: 0 | Y62: 0 | Z62: =ACCT_11002_730370_NOTES -> 0 | AB62: HIDE
A63: 11002 | B63: 600200 | C63: CONTRACT SERVICES | D63: =ACCT_11002_600200_NYB_01 -> 0 | E63: =ACCT_11002_600200_NYB_02 -> 0 | F63: =ACCT_11002_600200_NYB_03 -> 0 | G63: =ACCT_11002_600200_NYB_04 -> 0 | H63: =ACCT_11002_600200_NYB_05 -> 0 | I63: =ACCT_11002_600200_NYB_06 -> 0 | J63: =ACCT_11002_600200_NYB_07 -> 0 | K63: =ACCT_11002_600200_NYB_08 -> 0 | L63: =ACCT_11002_600200_NYB_09 -> 0 | M63: =ACCT_11002_600200_NYB_10 -> 0 | N63: =ACCT_11002_600200_NYB_11 -> 0 | O63: =ACCT_11002_600200_NYB_12 -> 0 | P63: =SUM(D63:O63) -> 0 | Q63: =P63/$C$7 -> 0 | S63: =T63/$C$7 -> 0 | T63: =ACCT_11002_600200_TOT_CY_BUD -> 0 | U63: =ACCT_11002_600200_TOT_CY_PROJ -> 0 | V63: =P63-T63 -> 0 | W63: =IF(T63=0,0,V63/T63) -> 0 | X63: =P63-U63 -> 0 | Y63: =IF(U63=0,0,X63/U63) -> 0 | Z63: =ACCT_11002_600200_NOTES -> 0 | AB63: =IF(AND(P63=0,T63=0,U63=0,Z63=0),"HIDE","") -> HIDE
A64: 11002 | B64: 600210 | C64: CONTRACT SERVICES MAINTENANCE | D64: =ACCT_11002_600210_NYB_01 -> 0 | E64: =ACCT_11002_600210_NYB_02 -> 0 | F64: =ACCT_11002_600210_NYB_03 -> 0 | G64: =ACCT_11002_600210_NYB_04 -> 0 | H64: =ACCT_11002_600210_NYB_05 -> 0 | I64: =ACCT_11002_600210_NYB_06 -> 0 | J64: =ACCT_11002_600210_NYB_07 -> 0 | K64: =ACCT_11002_600210_NYB_08 -> 0 | L64: =ACCT_11002_600210_NYB_09 -> 0 | M64: =ACCT_11002_600210_NYB_10 -> 0 | N64: =ACCT_11002_600210_NYB_11 -> 0 | O64: =ACCT_11002_600210_NYB_12 -> 0 | P64: 0 | Q64: 0 | S64: 0 | T64: =ACCT_11002_600210_TOT_CY_BUD -> 0 | U64: =ACCT_11002_600210_TOT_CY_PROJ -> 0 | V64: 0 | W64: 0 | X64: 0 | Y64: 0 | Z64: =ACCT_11002_600210_NOTES -> 0 | AB64: HIDE
A65: 11002 | B65: 664120 | C65: BUILDING SUPPLIES | D65: =ACCT_11002_664120_NYB_01 -> 0 | E65: =ACCT_11002_664120_NYB_02 -> 0 | F65: =ACCT_11002_664120_NYB_03 -> 0 | G65: =ACCT_11002_664120_NYB_04 -> 0 | H65: =ACCT_11002_664120_NYB_05 -> 0 | I65: =ACCT_11002_664120_NYB_06 -> 0 | J65: =ACCT_11002_664120_NYB_07 -> 0 | K65: =ACCT_11002_664120_NYB_08 -> 0 | L65: =ACCT_11002_664120_NYB_09 -> 0 | M65: =ACCT_11002_664120_NYB_10 -> 0 | N65: =ACCT_11002_664120_NYB_11 -> 0 | O65: =ACCT_11002_664120_NYB_12 -> 0 | P65: 0 | Q65: 0 | S65: 0 | T65: =ACCT_11002_664120_TOT_CY_BUD -> 0 | U65: =ACCT_11002_664120_TOT_CY_PROJ -> 0 | V65: 0 | W65: 0 | X65: 0 | Y65: 0 | Z65: =ACCT_11002_664120_NOTES -> 0 | AB65: HIDE
A66: 11002 | B66: 664250 | C66: BUILDING MAINTENANCE | D66: =ACCT_11002_664250_NYB_01 -> 0 | E66: =ACCT_11002_664250_NYB_02 -> 0 | F66: =ACCT_11002_664250_NYB_03 -> 0 | G66: =ACCT_11002_664250_NYB_04 -> 0 | H66: =ACCT_11002_664250_NYB_05 -> 0 | I66: =ACCT_11002_664250_NYB_06 -> 0 | J66: =ACCT_11002_664250_NYB_07 -> 0 | K66: =ACCT_11002_664250_NYB_08 -> 0 | L66: =ACCT_11002_664250_NYB_09 -> 0 | M66: =ACCT_11002_664250_NYB_10 -> 0 | N66: =ACCT_11002_664250_NYB_11 -> 0 | O66: =ACCT_11002_664250_NYB_12 -> 0 | P66: =SUM(D66:O66) -> 0 | Q66: =P66/$C$7 -> 0 | S66: =T66/$C$7 -> 0 | T66: =ACCT_11002_664250_TOT_CY_BUD -> 0 | U66: =ACCT_11002_664250_TOT_CY_PROJ -> 0 | V66: =P66-T66 -> 0 | W66: =IF(T66=0,0,V66/T66) -> 0 | X66: =P66-U66 -> 0 | Y66: =IF(U66=0,0,X66/U66) -> 0 | Z66: =ACCT_11002_664250_NOTES -> 0 | AB66: =IF(AND(P66=0,T66=0,U66=0,Z66=0),"HIDE","") -> HIDE
A67: 11002 | B67: 692030 | C67: HOUSEWARES REPLACEMENTS | D67: =ACCT_11002_692030_NYB_01 -> 630 | E67: =ACCT_11002_692030_NYB_02 -> 630 | F67: =ACCT_11002_692030_NYB_03 -> 630 | G67: =ACCT_11002_692030_NYB_04 -> 630 | H67: =ACCT_11002_692030_NYB_05 -> 630 | I67: =ACCT_11002_692030_NYB_06 -> 630 | J67: =ACCT_11002_692030_NYB_07 -> 630 | K67: =ACCT_11002_692030_NYB_08 -> 630 | L67: =ACCT_11002_692030_NYB_09 -> 630 | M67: =ACCT_11002_692030_NYB_10 -> 630 | N67: =ACCT_11002_692030_NYB_11 -> 630 | O67: =ACCT_11002_692030_NYB_12 -> 630 | P67: 7560 | Q67: 4.632352941 | S67: 4.632352941 | T67: =ACCT_11002_692030_TOT_CY_BUD -> 7560 | U67: =ACCT_11002_692030_TOT_CY_PROJ -> 7557.3 | V67: 0 | W67: 0 | X67: 2.7 | Y67: 0.0003572704537 | Z67: =ACCT_11002_692030_NOTES -> 0
A68: 11002 | B68: 664260 | C68: CARPET FURNITURE CLEANING | D68: =ACCT_11002_664260_NYB_01 -> 0 | E68: =ACCT_11002_664260_NYB_02 -> 0 | F68: =ACCT_11002_664260_NYB_03 -> 0 | G68: =ACCT_11002_664260_NYB_04 -> 0 | H68: =ACCT_11002_664260_NYB_05 -> 500 | I68: =ACCT_11002_664260_NYB_06 -> 0 | J68: =ACCT_11002_664260_NYB_07 -> 0 | K68: =ACCT_11002_664260_NYB_08 -> 0 | L68: =ACCT_11002_664260_NYB_09 -> 3000 | M68: =ACCT_11002_664260_NYB_10 -> 0 | N68: =ACCT_11002_664260_NYB_11 -> 0 | O68: =ACCT_11002_664260_NYB_12 -> 0 | P68: 3500 | Q68: 2.144607843 | S68: 2.144607843 | T68: =ACCT_11002_664260_TOT_CY_BUD -> 3500 | U68: =ACCT_11002_664260_TOT_CY_PROJ -> 3500 | V68: 0 | W68: 0 | X68: 0 | Y68: 0 | Z68: =ACCT_11002_664260_NOTES -> 0
A69: 11002 | B69: 705060 | C69: BOARD AUTHORIZED PROJECT | D69: =ACCT_11002_705060_NYB_01 -> 0 | E69: =ACCT_11002_705060_NYB_02 -> 0 | F69: =ACCT_11002_705060_NYB_03 -> 0 | G69: =ACCT_11002_705060_NYB_04 -> 0 | H69: =ACCT_11002_705060_NYB_05 -> 0 | I69: =ACCT_11002_705060_NYB_06 -> 0 | J69: =ACCT_11002_705060_NYB_07 -> 0 | K69: =ACCT_11002_705060_NYB_08 -> 0 | L69: =ACCT_11002_705060_NYB_09 -> 0 | M69: =ACCT_11002_705060_NYB_10 -> 0 | N69: =ACCT_11002_705060_NYB_11 -> 0 | O69: =ACCT_11002_705060_NYB_12 -> 0 | P69: =SUM(D69:O69) -> 0 | Q69: =P69/$C$7 -> 0 | S69: =T69/$C$7 -> 0 | T69: =ACCT_11002_705060_TOT_CY_BUD -> 0 | U69: =ACCT_11002_705060_TOT_CY_PROJ -> 0 | V69: =P69-T69 -> 0 | W69: =IF(T69=0,0,V69/T69) -> 0 | X69: =P69-U69 -> 0 | Y69: =IF(U69=0,0,X69/U69) -> 0 | Z69: =ACCT_11002_705060_NOTES -> 0 | AB69: =IF(AND(P69=0,T69=0,U69=0,Z69=0),"HIDE","") -> HIDE
A70: 11002 | B70: 730150 | C70: DRAPE BEDSPREAD CLEANING | D70: =ACCT_11002_730150_NYB_01 -> 0 | E70: =ACCT_11002_730150_NYB_02 -> 0 | F70: =ACCT_11002_730150_NYB_03 -> 0 | G70: =ACCT_11002_730150_NYB_04 -> 0 | H70: =ACCT_11002_730150_NYB_05 -> 0 | I70: =ACCT_11002_730150_NYB_06 -> 0 | J70: =ACCT_11002_730150_NYB_07 -> 0 | K70: =ACCT_11002_730150_NYB_08 -> 0 | L70: =ACCT_11002_730150_NYB_09 -> 0 | M70: =ACCT_11002_730150_NYB_10 -> 0 | N70: =ACCT_11002_730150_NYB_11 -> 0 | O70: =ACCT_11002_730150_NYB_12 -> 0 | P70: 0 | Q70: 0 | S70: 0 | T70: =ACCT_11002_730150_TOT_CY_BUD -> 0 | U70: =ACCT_11002_730150_TOT_CY_PROJ -> 0 | V70: 0 | W70: 0 | X70: 0 | Y70: =IF(U70=0,0,X70/U70) -> 0 | Z70: =ACCT_11002_730150_NOTES -> 0 | AB70: HIDE
C71: HOUSEKEEPING SERVICES TOTAL | D71: =SUM(D39:D70) -> 17578 | E71: =SUM(E39:E70) -> 17443 | F71: 18326 | G71: 17561 | H71: 25719 | I71: 17586 | J71: 15582 | K71: 31783 | L71: 25200 | M71: 18918 | N71: 24439 | O71: 17182 | P71: 247317 | Q71: 151.5422794 | S71: 149.0330882 | T71: =SUM(T39:T70) -> 243222 | U71: =SUM(U39:U70) -> 246209.26 | V71: =P71-T71 -> 4095 | W71: 0.01683647039 | X71: 1107.74 | Y71: =IF(U71=0,0,X71/U71) -> 0.0044991809
C72: TELEPHONE
A73: 11201 | B73: 458120 | C73: LONG DISTANCE | D73: =-ACCT_11201_458120_NYB_01 -> 0 | E73: =-ACCT_11201_458120_NYB_02 -> 0 | F73: =-ACCT_11201_458120_NYB_03 -> 0 | G73: =-ACCT_11201_458120_NYB_04 -> 0 | H73: =-ACCT_11201_458120_NYB_05 -> 0 | I73: =-ACCT_11201_458120_NYB_06 -> 0 | J73: =-ACCT_11201_458120_NYB_07 -> 0 | K73: =-ACCT_11201_458120_NYB_08 -> 0 | L73: =-ACCT_11201_458120_NYB_09 -> 0 | M73: =-ACCT_11201_458120_NYB_10 -> 0 | N73: =-ACCT_11201_458120_NYB_11 -> 0 | O73: =-ACCT_11201_458120_NYB_12 -> 0 | P73: =SUM(D73:O73) -> 0 | Q73: =P73/$C$7 -> 0 | S73: =T73/$C$7 -> 0 | T73: =-ACCT_11201_458120_TOT_CY_BUD -> 0 | U73: =-ACCT_11201_458120_TOT_CY_PROJ -> 0 | V73: =P73-T73 -> 0 | W73: =IF(T73=0,0,V73/T73) -> 0 | X73: =P73-U73 -> 0 | Y73: =IF(U73=0,0,X73/U73) -> 0 | Z73: =ACCT_11201_458120_NOTES -> 0 | AB73: =IF(AND(P73=0,T73=0,U73=0,Z73=0),"HIDE","") -> HIDE
A74: 11201 | B74: 650010 | C74: TELEPHONE LOCAL | D74: =ACCT_11201_650010_NYB_01 -> 850 | E74: =ACCT_11201_650010_NYB_02 -> 850 | F74: =ACCT_11201_650010_NYB_03 -> 850 | G74: =ACCT_11201_650010_NYB_04 -> 850 | H74: =ACCT_11201_650010_NYB_05 -> 850 | I74: =ACCT_11201_650010_NYB_06 -> 850 | J74: =ACCT_11201_650010_NYB_07 -> 850 | K74: =ACCT_11201_650010_NYB_08 -> 850 | L74: =ACCT_11201_650010_NYB_09 -> 850 | M74: =ACCT_11201_650010_NYB_10 -> 850 | N74: =ACCT_11201_650010_NYB_11 -> 850 | O74: =ACCT_11201_650010_NYB_12 -> 850 | P74: =SUM(D74:O74) -> 10200 | Q74: =P74/$C$7 -> 6.25 | S74: =T74/$C$7 -> 10.78431373 | T74: =ACCT_11201_650010_TOT_CY_BUD -> 17600 | U74: =ACCT_11201_650010_TOT_CY_PROJ -> 10192.46 | V74: =P74-T74 -> -7400 | W74: =IF(T74=0,0,V74/T74) -> -0.4204545455 | X74: =P74-U74 -> 7.54 | Y74: =IF(U74=0,0,X74/U74) -> 0.0007397625303 | Z74: =ACCT_11201_650010_NOTES -> 0 | AB74: =IF(AND(P74=0,T74=0,U74=0,Z74=0),"HIDE","") -> 
A75: 11201 | B75: 664550 | C75: REPAIRS & MAINTENANCE | D75: =ACCT_11201_664550_NYB_01 -> 0 | E75: =ACCT_11201_664550_NYB_02 -> 0 | F75: =ACCT_11201_664550_NYB_03 -> 0 | G75: =ACCT_11201_664550_NYB_04 -> 0 | H75: =ACCT_11201_664550_NYB_05 -> 0 | I75: =ACCT_11201_664550_NYB_06 -> 0 | J75: =ACCT_11201_664550_NYB_07 -> 0 | K75: =ACCT_11201_664550_NYB_08 -> 0 | L75: =ACCT_11201_664550_NYB_09 -> 0 | M75: =ACCT_11201_664550_NYB_10 -> 0 | N75: =ACCT_11201_664550_NYB_11 -> 0 | O75: =ACCT_11201_664550_NYB_12 -> 0 | P75: =SUM(D75:O75) -> 0 | Q75: =P75/$C$7 -> 0 | S75: =T75/$C$7 -> 0 | T75: =ACCT_11201_664550_TOT_CY_BUD -> 0 | U75: =ACCT_11201_664550_TOT_CY_PROJ -> 0 | V75: =P75-T75 -> 0 | W75: =IF(T75=0,0,V75/T75) -> 0 | X75: =P75-U75 -> 0 | Y75: =IF(U75=0,0,X75/U75) -> 0 | Z75: =ACCT_11201_664550_NOTES -> 0 | AB75: =IF(AND(P75=0,T75=0,U75=0,Z75=0),"HIDE","") -> HIDE
C76: TELEPHONE TOTAL | D76: =SUM(D73:D75) -> 850 | E76: =SUM(E73:E75) -> 850 | F76: 850 | G76: 850 | H76: 850 | I76: 850 | J76: 850 | K76: 850 | L76: 850 | M76: 850 | N76: 850 | O76: 850 | P76: 10200 | Q76: =P76/$C$7 -> 6.25 | S76: =T76/$C$7 -> 10.78431373 | T76: =SUM(T73:T75) -> 17600 | U76: =SUM(U73:U75) -> 10192.46 | V76: =P76-T76 -> -7400 | W76: =IF(T76=0,0,V76/T76) -> -0.4204545455 | X76: =P76-U76 -> 7.54 | Y76: =IF(U76=0,0,X76/U76) -> 0.0007397625303 | AB76: =IF(AND(P76=0,T76=0,U76=0,Z76=0),"HIDE","") -> 
C77: PARKING
A78: 11202 | B78: 435020 | C78: VALET PARKING | D78: =-ACCT_11202_435020_NYB_01 -> 0 | E78: =-ACCT_11202_435020_NYB_02 -> 0 | F78: =-ACCT_11202_435020_NYB_03 -> 0 | G78: =-ACCT_11202_435020_NYB_04 -> 0 | H78: =-ACCT_11202_435020_NYB_05 -> 0 | I78: =-ACCT_11202_435020_NYB_06 -> 0 | J78: =-ACCT_11202_435020_NYB_07 -> 0 | K78: =-ACCT_11202_435020_NYB_08 -> 0 | L78: =-ACCT_11202_435020_NYB_09 -> 0 | M78: =-ACCT_11202_435020_NYB_10 -> 0 | N78: =-ACCT_11202_435020_NYB_11 -> 0 | O78: =-ACCT_11202_435020_NYB_12 -> 0 | P78: =SUM(D78:O78) -> 0 | Q78: =P78/$C$7 -> 0 | S78: =T78/$C$7 -> 0 | T78: =-ACCT_11202_435020_TOT_CY_BUD -> 0 | U78: =-ACCT_11202_435020_TOT_CY_PROJ -> 0 | V78: =P78-T78 -> 0 | W78: =IF(T78=0,0,V78/T78) -> 0 | X78: =P78-U78 -> 0 | Y78: =IF(U78=0,0,X78/U78) -> 0 | Z78: =ACCT_11202_435020_NOTES -> 0 | AB78: =IF(AND(P78=0,T78=0,U78=0,Z78=0),"HIDE","") -> HIDE
A79: 11202 | B79: 600200 | C79: CONTRACT SERVICES | D79: =ACCT_11202_600200_NYB_01 -> 0 | E79: =ACCT_11202_600200_NYB_02 -> 0 | F79: =ACCT_11202_600200_NYB_03 -> 0 | G79: =ACCT_11202_600200_NYB_04 -> 0 | H79: =ACCT_11202_600200_NYB_05 -> 0 | I79: =ACCT_11202_600200_NYB_06 -> 0 | J79: =ACCT_11202_600200_NYB_07 -> 0 | K79: =ACCT_11202_600200_NYB_08 -> 0 | L79: =ACCT_11202_600200_NYB_09 -> 0 | M79: =ACCT_11202_600200_NYB_10 -> 0 | N79: =ACCT_11202_600200_NYB_11 -> 0 | O79: =ACCT_11202_600200_NYB_12 -> 0 | P79: =SUM(D79:O79) -> 0 | Q79: =P79/$C$7 -> 0 | S79: =T79/$C$7 -> 0 | T79: =ACCT_11202_600200_TOT_CY_BUD -> 0 | U79: =ACCT_11202_600200_TOT_CY_PROJ -> 0 | V79: =P79-T79 -> 0 | W79: =IF(T79=0,0,V79/T79) -> 0 | X79: =P79-U79 -> 0 | Y79: =IF(U79=0,0,X79/U79) -> 0 | Z79: =ACCT_11202_600200_NOTES -> 0 | AB79: =IF(AND(P79=0,T79=0,U79=0,Z79=0),"HIDE","") -> HIDE
C80: PARKING TOTAL | D80: =SUM(D78:D79) -> 0 | E80: 0 | F80: 0 | G80: 0 | H80: 0 | I80: 0 | J80: 0 | K80: 0 | L80: 0 | M80: 0 | N80: 0 | O80: 0 | P80: 0 | Q80: =P80/$C$7 -> 0 | S80: =T80/$C$7 -> 0 | T80: =SUM(T78:T79) -> 0 | U80: =SUM(U78:U79) -> 0 | V80: =P80-T80 -> 0 | W80: =IF(T80=0,0,V80/T80) -> 0 | X80: =P80-U80 -> 0 | Y80: =IF(U80=0,0,X80/U80) -> 0
C81: FRONT DESK
A82: 11003 | B82: 555020 | C82: PERFORMANCE AWARDS | D82: =ACCT_11003_555020_NYB_01 -> 0 | E82: =ACCT_11003_555020_NYB_02 -> 0 | F82: =ACCT_11003_555020_NYB_03 -> 0 | G82: =ACCT_11003_555020_NYB_04 -> 0 | H82: =ACCT_11003_555020_NYB_05 -> 0 | I82: =ACCT_11003_555020_NYB_06 -> 0 | J82: =ACCT_11003_555020_NYB_07 -> 0 | K82: =ACCT_11003_555020_NYB_08 -> 0 | L82: =ACCT_11003_555020_NYB_09 -> 0 | M82: =ACCT_11003_555020_NYB_10 -> 0 | N82: =ACCT_11003_555020_NYB_11 -> 0 | O82: =ACCT_11003_555020_NYB_12 -> 0 | P82: =SUM(D82:O82) -> 0 | Q82: =P82/$C$7 -> 0 | S82: =T82/$C$7 -> 0 | T82: =ACCT_11003_555020_TOT_CY_BUD -> 0 | U82: =ACCT_11003_555020_TOT_CY_PROJ -> 0 | V82: =P82-T82 -> 0 | W82: =IF(T82=0,0,V82/T82) -> 0 | X82: =P82-U82 -> 0 | Y82: =IF(U82=0,0,X82/U82) -> 0 | Z82: =ACCT_11003_555020_NOTES -> 0 | AB82: =IF(AND(P82=0,T82=0,U82=0,Z82=0),"HIDE","") -> HIDE
A83: 11003 | B83: 541002 | C83: SALARIED MANAGER | D83: =ACCT_11003_541002_NYB_01 -> 0 | E83: =ACCT_11003_541002_NYB_02 -> 0 | F83: =ACCT_11003_541002_NYB_03 -> 0 | G83: =ACCT_11003_541002_NYB_04 -> 0 | H83: =ACCT_11003_541002_NYB_05 -> 0 | I83: =ACCT_11003_541002_NYB_06 -> 0 | J83: =ACCT_11003_541002_NYB_07 -> 0 | K83: =ACCT_11003_541002_NYB_08 -> 0 | L83: =ACCT_11003_541002_NYB_09 -> 0 | M83: =ACCT_11003_541002_NYB_10 -> 0 | N83: =ACCT_11003_541002_NYB_11 -> 0 | O83: =ACCT_11003_541002_NYB_12 -> 0 | P83: =SUM(D83:O83) -> 0 | Q83: 0 | S83: 0 | T83: =ACCT_11003_541002_TOT_CY_BUD -> 0 | U83: =ACCT_11003_541002_TOT_CY_PROJ -> 0 | V83: 0 | W83: 0 | X83: 0 | Y83: =IF(U83=0,0,X83/U83) -> 0 | Z83: =ACCT_11003_541002_NOTES -> 0 | AB83: HIDE
A84: 11003 | B84: 541003 | C84: SALARIED NON-MANAGER | D84: =ACCT_11003_541003_NYB_01 -> 0 | E84: =ACCT_11003_541003_NYB_02 -> 0 | F84: =ACCT_11003_541003_NYB_03 -> 0 | G84: =ACCT_11003_541003_NYB_04 -> 0 | H84: =ACCT_11003_541003_NYB_05 -> 0 | I84: =ACCT_11003_541003_NYB_06 -> 0 | J84: =ACCT_11003_541003_NYB_07 -> 0 | K84: =ACCT_11003_541003_NYB_08 -> 0 | L84: =ACCT_11003_541003_NYB_09 -> 0 | M84: =ACCT_11003_541003_NYB_10 -> 0 | N84: =ACCT_11003_541003_NYB_11 -> 0 | O84: =ACCT_11003_541003_NYB_12 -> 0 | P84: 0 | Q84: 0 | S84: 0 | T84: =ACCT_11003_541003_TOT_CY_BUD -> 0 | U84: =ACCT_11003_541003_TOT_CY_PROJ -> 0 | V84: 0 | W84: 0 | X84: 0 | Y84: 0 | Z84: =ACCT_11003_541003_NOTES -> 0 | AB84: HIDE
A85: 11003 | B85: 561170 | C85: PTO AND VACATION EXPENSE | D85: =ACCT_11003_561170_NYB_01 -> 0 | E85: =ACCT_11003_561170_NYB_02 -> 0 | F85: =ACCT_11003_561170_NYB_03 -> 0 | G85: =ACCT_11003_561170_NYB_04 -> 0 | H85: =ACCT_11003_561170_NYB_05 -> 0 | I85: =ACCT_11003_561170_NYB_06 -> 0 | J85: =ACCT_11003_561170_NYB_07 -> 0 | K85: =ACCT_11003_561170_NYB_08 -> 0 | L85: =ACCT_11003_561170_NYB_09 -> 0 | M85: =ACCT_11003_561170_NYB_10 -> 0 | N85: =ACCT_11003_561170_NYB_11 -> 0 | O85: =ACCT_11003_561170_NYB_12 -> 0 | P85: 0 | Q85: 0 | S85: 0 | T85: =ACCT_11003_561170_TOT_CY_BUD -> 0 | U85: =ACCT_11003_561170_TOT_CY_PROJ -> 0 | V85: 0 | W85: 0 | X85: 0 | Y85: 0 | Z85: =ACCT_11003_561170_NOTES -> 0 | AB85: HIDE
A86: 11003 | B86: 542030 | C86: HOURLY OTHER | D86: =ACCT_11003_542030_NYB_01 -> 0 | E86: =ACCT_11003_542030_NYB_02 -> 0 | F86: =ACCT_11003_542030_NYB_03 -> 0 | G86: =ACCT_11003_542030_NYB_04 -> 0 | H86: =ACCT_11003_542030_NYB_05 -> 0 | I86: =ACCT_11003_542030_NYB_06 -> 0 | J86: =ACCT_11003_542030_NYB_07 -> 0 | K86: =ACCT_11003_542030_NYB_08 -> 0 | L86: =ACCT_11003_542030_NYB_09 -> 0 | M86: =ACCT_11003_542030_NYB_10 -> 0 | N86: =ACCT_11003_542030_NYB_11 -> 0 | O86: =ACCT_11003_542030_NYB_12 -> 0 | P86: 0 | Q86: 0 | S86: 0 | T86: =ACCT_11003_542030_TOT_CY_BUD -> 0 | U86: =ACCT_11003_542030_TOT_CY_PROJ -> 0 | V86: 0 | W86: 0 | X86: 0 | Y86: 0 | Z86: =ACCT_11003_542030_NOTES -> 0 | AB86: HIDE
A87: 11003 | B87: 543030 | C87: OT HOURLY OTHER | D87: =ACCT_11003_543030_NYB_01 -> 0 | E87: =ACCT_11003_543030_NYB_02 -> 0 | F87: =ACCT_11003_543030_NYB_03 -> 0 | G87: =ACCT_11003_543030_NYB_04 -> 0 | H87: =ACCT_11003_543030_NYB_05 -> 0 | I87: =ACCT_11003_543030_NYB_06 -> 0 | J87: =ACCT_11003_543030_NYB_07 -> 0 | K87: =ACCT_11003_543030_NYB_08 -> 0 | L87: =ACCT_11003_543030_NYB_09 -> 0 | M87: =ACCT_11003_543030_NYB_10 -> 0 | N87: =ACCT_11003_543030_NYB_11 -> 0 | O87: =ACCT_11003_543030_NYB_12 -> 0 | P87: 0 | Q87: 0 | S87: 0 | T87: =ACCT_11003_543030_TOT_CY_BUD -> 0 | U87: =ACCT_11003_543030_TOT_CY_PROJ -> 0 | V87: 0 | W87: 0 | X87: 0 | Y87: 0 | Z87: =ACCT_11003_543030_NOTES -> 0 | AB87: HIDE
A88: 11003 | B88: 561240 | C88: PAID TIME OFF | D88: =ACCT_11003_561240_NYB_01 -> 0 | E88: =ACCT_11003_561240_NYB_02 -> 0 | F88: =ACCT_11003_561240_NYB_03 -> 0 | G88: =ACCT_11003_561240_NYB_04 -> 0 | H88: =ACCT_11003_561240_NYB_05 -> 0 | I88: =ACCT_11003_561240_NYB_06 -> 0 | J88: =ACCT_11003_561240_NYB_07 -> 0 | K88: =ACCT_11003_561240_NYB_08 -> 0 | L88: =ACCT_11003_561240_NYB_09 -> 0 | M88: =ACCT_11003_561240_NYB_10 -> 0 | N88: =ACCT_11003_561240_NYB_11 -> 0 | O88: =ACCT_11003_561240_NYB_12 -> 0 | P88: 0 | Q88: 0 | S88: 0 | T88: =ACCT_11003_561240_TOT_CY_BUD -> 0 | U88: =ACCT_11003_561240_TOT_CY_PROJ -> 0 | V88: 0 | W88: 0 | X88: 0 | Y88: 0 | Z88: =ACCT_11003_561240_NOTES -> 0 | AB88: HIDE
A89: 11003 | B89: 561260 | C89: WORKERS COMPENSATION EXP | D89: =ACCT_11003_561260_NYB_01 -> 0 | E89: =ACCT_11003_561260_NYB_02 -> 0 | F89: =ACCT_11003_561260_NYB_03 -> 0 | G89: =ACCT_11003_561260_NYB_04 -> 0 | H89: =ACCT_11003_561260_NYB_05 -> 0 | I89: =ACCT_11003_561260_NYB_06 -> 0 | J89: =ACCT_11003_561260_NYB_07 -> 0 | K89: =ACCT_11003_561260_NYB_08 -> 0 | L89: =ACCT_11003_561260_NYB_09 -> 0 | M89: =ACCT_11003_561260_NYB_10 -> 0 | N89: =ACCT_11003_561260_NYB_11 -> 0 | O89: =ACCT_11003_561260_NYB_12 -> 0 | P89: =SUM(D89:O89) -> 0 | Q89: =P89/$C$7 -> 0 | S89: =T89/$C$7 -> 0 | T89: =ACCT_11003_561260_TOT_CY_BUD -> 0 | U89: =ACCT_11003_561260_TOT_CY_PROJ -> 0 | V89: =P89-T89 -> 0 | W89: =IF(T89=0,0,V89/T89) -> 0 | X89: =P89-U89 -> 0 | Y89: =IF(U89=0,0,X89/U89) -> 0 | Z89: =ACCT_11003_561260_NOTES -> 0 | AB89: =IF(AND(P89=0,T89=0,U89=0,Z89=0),"HIDE","") -> HIDE
A90: 11003 | B90: 555070 | C90: OTHER INCENTIVE COMPENSATION EXP | D90: =ACCT_11003_555070_NYB_01 -> 0 | E90: =ACCT_11003_555070_NYB_02 -> 0 | F90: =ACCT_11003_555070_NYB_03 -> 0 | G90: =ACCT_11003_555070_NYB_04 -> 0 | H90: =ACCT_11003_555070_NYB_05 -> 0 | I90: =ACCT_11003_555070_NYB_06 -> 0 | J90: =ACCT_11003_555070_NYB_07 -> 0 | K90: =ACCT_11003_555070_NYB_08 -> 0 | L90: =ACCT_11003_555070_NYB_09 -> 0 | M90: =ACCT_11003_555070_NYB_10 -> 0 | N90: =ACCT_11003_555070_NYB_11 -> 0 | O90: =ACCT_11003_555070_NYB_12 -> 0 | P90: 0 | Q90: 0 | S90: 0 | T90: =ACCT_11003_555070_TOT_CY_BUD -> 0 | U90: =ACCT_11003_555070_TOT_CY_PROJ -> 0 | V90: 0 | W90: 0 | X90: 0 | Y90: 0 | Z90: =ACCT_11003_555070_NOTES -> 0 | AB90: HIDE
A91: 11003 | B91: 561020 | C91: PENSION DEFINED CONTRIBUTION | D91: =ACCT_11003_561020_NYB_01 -> 0 | E91: =ACCT_11003_561020_NYB_02 -> 0 | F91: =ACCT_11003_561020_NYB_03 -> 0 | G91: =ACCT_11003_561020_NYB_04 -> 0 | H91: =ACCT_11003_561020_NYB_05 -> 0 | I91: =ACCT_11003_561020_NYB_06 -> 0 | J91: =ACCT_11003_561020_NYB_07 -> 0 | K91: =ACCT_11003_561020_NYB_08 -> 0 | L91: =ACCT_11003_561020_NYB_09 -> 0 | M91: =ACCT_11003_561020_NYB_10 -> 0 | N91: =ACCT_11003_561020_NYB_11 -> 0 | O91: =ACCT_11003_561020_NYB_12 -> 0 | P91: 0 | Q91: 0 | S91: 0 | T91: =ACCT_11003_561020_TOT_CY_BUD -> 0 | U91: =ACCT_11003_561020_TOT_CY_PROJ -> 0 | V91: 0 | W91: 0 | X91: 0 | Y91: =IF(U91=0,0,X91/U91) -> 0 | Z91: =ACCT_11003_561020_NOTES -> 0 | AB91: HIDE
A92: 11003 | B92: 561010 | C92: GROUP HEALTH INSURANCE NON-UNION | D92: =ACCT_11003_561010_NYB_01 -> 0 | E92: =ACCT_11003_561010_NYB_02 -> 0 | F92: =ACCT_11003_561010_NYB_03 -> 0 | G92: =ACCT_11003_561010_NYB_04 -> 0 | H92: =ACCT_11003_561010_NYB_05 -> 0 | I92: =ACCT_11003_561010_NYB_06 -> 0 | J92: =ACCT_11003_561010_NYB_07 -> 0 | K92: =ACCT_11003_561010_NYB_08 -> 0 | L92: =ACCT_11003_561010_NYB_09 -> 0 | M92: =ACCT_11003_561010_NYB_10 -> 0 | N92: =ACCT_11003_561010_NYB_11 -> 0 | O92: =ACCT_11003_561010_NYB_12 -> 0 | P92: 0 | Q92: 0 | S92: 0 | T92: =ACCT_11003_561010_TOT_CY_BUD -> 0 | U92: =ACCT_11003_561010_TOT_CY_PROJ -> 0 | V92: 0 | W92: 0 | X92: 0 | Y92: 0 | Z92: =ACCT_11003_561010_NOTES -> 0 | AB92: =IF(AND(P92=0,T92=0,U92=0,Z92=0),"HIDE","") -> HIDE
A93: 11003 | B93: 561490 | C93: OTHER NON-UNION BENEFIT EXP | D93: =ACCT_11003_561490_NYB_01 -> 0 | E93: =ACCT_11003_561490_NYB_02 -> 0 | F93: =ACCT_11003_561490_NYB_03 -> 0 | G93: =ACCT_11003_561490_NYB_04 -> 0 | H93: =ACCT_11003_561490_NYB_05 -> 0 | I93: =ACCT_11003_561490_NYB_06 -> 0 | J93: =ACCT_11003_561490_NYB_07 -> 0 | K93: =ACCT_11003_561490_NYB_08 -> 0 | L93: =ACCT_11003_561490_NYB_09 -> 0 | M93: =ACCT_11003_561490_NYB_10 -> 0 | N93: =ACCT_11003_561490_NYB_11 -> 0 | O93: =ACCT_11003_561490_NYB_12 -> 0 | P93: 0 | Q93: 0 | S93: 0 | T93: =ACCT_11003_561490_TOT_CY_BUD -> 0 | U93: =ACCT_11003_561490_TOT_CY_PROJ -> 0 | V93: 0 | W93: 0 | X93: 0 | Y93: 0 | Z93: =ACCT_11003_561490_NOTES -> 0 | AB93: =IF(AND(P93=0,T93=0,U93=0,Z93=0),"HIDE","") -> HIDE
A94: 11003 | B94: 565010 | C94: SOCIAL SECURITY TAX EXPENSE | D94: =ACCT_11003_565010_NYB_01 -> 0 | E94: =ACCT_11003_565010_NYB_02 -> 0 | F94: =ACCT_11003_565010_NYB_03 -> 0 | G94: =ACCT_11003_565010_NYB_04 -> 0 | H94: =ACCT_11003_565010_NYB_05 -> 0 | I94: =ACCT_11003_565010_NYB_06 -> 0 | J94: =ACCT_11003_565010_NYB_07 -> 0 | K94: =ACCT_11003_565010_NYB_08 -> 0 | L94: =ACCT_11003_565010_NYB_09 -> 0 | M94: =ACCT_11003_565010_NYB_10 -> 0 | N94: =ACCT_11003_565010_NYB_11 -> 0 | O94: =ACCT_11003_565010_NYB_12 -> 0 | P94: 0 | Q94: 0 | S94: 0 | T94: =ACCT_11003_565010_TOT_CY_BUD -> 0 | U94: =ACCT_11003_565010_TOT_CY_PROJ -> 0 | V94: 0 | W94: 0 | X94: =P94-U94 -> 0 | Y94: =IF(U94=0,0,X94/U94) -> 0 | Z94: =ACCT_11003_565010_NOTES -> 0 | AB94: =IF(AND(P94=0,T94=0,U94=0,Z94=0),"HIDE","") -> HIDE
A95: 11003 | B95: 565040 | C95: STATE UNEMPLOYMENT TAX | D95: =ACCT_11003_565040_NYB_01 -> 0 | E95: =ACCT_11003_565040_NYB_02 -> 0 | F95: =ACCT_11003_565040_NYB_03 -> 0 | G95: =ACCT_11003_565040_NYB_04 -> 0 | H95: =ACCT_11003_565040_NYB_05 -> 0 | I95: =ACCT_11003_565040_NYB_06 -> 0 | J95: =ACCT_11003_565040_NYB_07 -> 0 | K95: =ACCT_11003_565040_NYB_08 -> 0 | L95: =ACCT_11003_565040_NYB_09 -> 0 | M95: =ACCT_11003_565040_NYB_10 -> 0 | N95: =ACCT_11003_565040_NYB_11 -> 0 | O95: =ACCT_11003_565040_NYB_12 -> 0 | P95: =SUM(D95:O95) -> 0 | Q95: =P95/$C$7 -> 0 | S95: =T95/$C$7 -> 0 | T95: =ACCT_11003_565040_TOT_CY_BUD -> 0 | U95: =ACCT_11003_565040_TOT_CY_PROJ -> 0 | V95: =P95-T95 -> 0 | W95: 0 | X95: =P95-U95 -> 0 | Y95: =IF(U95=0,0,X95/U95) -> 0 | Z95: =ACCT_11003_565040_NOTES -> 0 | AB95: HIDE
A96: 11003 | B96: 696010 | C96: UNIFORMS | D96: =ACCT_11003_696010_NYB_01 -> 0 | E96: =ACCT_11003_696010_NYB_02 -> 0 | F96: =ACCT_11003_696010_NYB_03 -> 0 | G96: =ACCT_11003_696010_NYB_04 -> 0 | H96: =ACCT_11003_696010_NYB_05 -> 0 | I96: =ACCT_11003_696010_NYB_06 -> 0 | J96: =ACCT_11003_696010_NYB_07 -> 0 | K96: =ACCT_11003_696010_NYB_08 -> 0 | L96: =ACCT_11003_696010_NYB_09 -> 0 | M96: =ACCT_11003_696010_NYB_10 -> 0 | N96: =ACCT_11003_696010_NYB_11 -> 0 | O96: =ACCT_11003_696010_NYB_12 -> 0 | P96: 0 | Q96: 0 | S96: 0 | T96: =ACCT_11003_696010_TOT_CY_BUD -> 0 | U96: =ACCT_11003_696010_TOT_CY_PROJ -> 0 | V96: 0 | W96: 0 | X96: 0 | Y96: =IF(U96=0,0,X96/U96) -> 0 | Z96: =ACCT_11003_696010_NOTES -> 0 | AB96: HIDE
C97: FRONT DESK TOTAL | D97: =SUM(D82:D96) -> 0 | E97: =SUM(E82:E96) -> 0 | F97: 0 | G97: 0 | H97: 0 | I97: 0 | J97: 0 | K97: 0 | L97: 0 | M97: 0 | N97: 0 | O97: 0 | P97: 0 | Q97: 0 | S97: 0 | T97: =SUM(T82:T96) -> 0 | U97: =SUM(U82:U96) -> 0 | V97: =P97-T97 -> 0 | W97: 0 | X97: 0 | Y97: =IF(U97=0,0,X97/U97) -> 0
C98: GENERAL & ADMINISTRATIVE
A99: 11700 | B99: 431100 | C99: FAXES TELEX CABLE | D99: =-ACCT_11700_431100_NYB_01 -> 0 | E99: =-ACCT_11700_431100_NYB_02 -> 0 | F99: =-ACCT_11700_431100_NYB_03 -> 0 | G99: =-ACCT_11700_431100_NYB_04 -> 0 | H99: =-ACCT_11700_431100_NYB_05 -> 0 | I99: =-ACCT_11700_431100_NYB_06 -> 0 | J99: =-ACCT_11700_431100_NYB_07 -> 0 | K99: =-ACCT_11700_431100_NYB_08 -> 0 | L99: =-ACCT_11700_431100_NYB_09 -> 0 | M99: =-ACCT_11700_431100_NYB_10 -> 0 | N99: =-ACCT_11700_431100_NYB_11 -> 0 | O99: =-ACCT_11700_431100_NYB_12 -> 0 | P99: =SUM(D99:O99) -> 0 | Q99: =P99/$C$7 -> 0 | S99: =T99/$C$7 -> 0 | T99: =-ACCT_11700_431100_TOT_CY_BUD -> 0 | U99: =-ACCT_11700_431100_TOT_CY_PROJ -> 0 | V99: =P99-T99 -> 0 | W99: =IF(T99=0,0,V99/T99) -> 0 | X99: =P99-U99 -> 0 | Y99: =IF(U99=0,0,X99/U99) -> 0 | Z99: =ACCT_11700_431100_NOTES -> 0 | AB99: =IF(AND(P99=0,T99=0,U99=0,Z99=0),"HIDE","") -> HIDE
A100: 11700 | B100: 452060 | C100: OTHER REVENUE - REAL ESTATE | D100: =-ACCT_11700_452060_NYB_01 -> 0 | E100: =-ACCT_11700_452060_NYB_02 -> 0 | F100: =-ACCT_11700_452060_NYB_03 -> 0 | G100: =-ACCT_11700_452060_NYB_04 -> 0 | H100: =-ACCT_11700_452060_NYB_05 -> 0 | I100: =-ACCT_11700_452060_NYB_06 -> 0 | J100: =-ACCT_11700_452060_NYB_07 -> 0 | K100: =-ACCT_11700_452060_NYB_08 -> 0 | L100: =-ACCT_11700_452060_NYB_09 -> 0 | M100: =-ACCT_11700_452060_NYB_10 -> 0 | N100: =-ACCT_11700_452060_NYB_11 -> 0 | O100: =-ACCT_11700_452060_NYB_12 -> 0 | P100: =SUM(D100:O100) -> 0 | Q100: =P100/$C$7 -> 0 | S100: =T100/$C$7 -> 0 | T100: =-ACCT_11700_452060_TOT_CY_BUD -> 0 | U100: =-ACCT_11700_452060_TOT_CY_PROJ -> 0 | V100: =P100-T100 -> 0 | W100: =IF(T100=0,0,V100/T100) -> 0 | X100: =P100-U100 -> 0 | Y100: =IF(U100=0,0,X100/U100) -> 0 | Z100: =ACCT_11700_452060_NOTES -> 0 | AB100: =IF(AND(P100=0,T100=0,U100=0,Z100=0),"HIDE","") -> HIDE
A101: 11700 | B101: 555020 | C101: PERFORMANCE AWARDS | D101: =ACCT_11700_555020_NYB_01 -> 0 | E101: =ACCT_11700_555020_NYB_02 -> 0 | F101: =ACCT_11700_555020_NYB_03 -> 0 | G101: =ACCT_11700_555020_NYB_04 -> 0 | H101: =ACCT_11700_555020_NYB_05 -> 0 | I101: =ACCT_11700_555020_NYB_06 -> 0 | J101: =ACCT_11700_555020_NYB_07 -> 0 | K101: =ACCT_11700_555020_NYB_08 -> 0 | L101: =ACCT_11700_555020_NYB_09 -> 0 | M101: =ACCT_11700_555020_NYB_10 -> 0 | N101: =ACCT_11700_555020_NYB_11 -> 0 | O101: =ACCT_11700_555020_NYB_12 -> 0 | P101: 0 | Q101: 0 | S101: 0 | T101: =ACCT_11700_555020_TOT_CY_BUD -> 0 | U101: =ACCT_11700_555020_TOT_CY_PROJ -> 0 | V101: 0 | W101: 0 | X101: 0 | Y101: =IF(U101=0,0,X101/U101) -> 0 | Z101: =ACCT_11700_555020_NOTES -> 0 | AB101: HIDE
A102: 11700 | B102: 541002 | C102: SALARIED MANAGER | D102: =ACCT_11700_541002_NYB_01 -> 4289 | E102: =ACCT_11700_541002_NYB_02 -> 4514 | F102: =ACCT_11700_541002_NYB_03 -> 4185 | G102: =ACCT_11700_541002_NYB_04 -> 4882 | H102: =ACCT_11700_541002_NYB_05 -> 7556 | I102: =ACCT_11700_541002_NYB_06 -> 4417 | J102: =ACCT_11700_541002_NYB_07 -> 4185 | K102: =ACCT_11700_541002_NYB_08 -> 4185 | L102: =ACCT_11700_541002_NYB_09 -> 4882 | M102: =ACCT_11700_541002_NYB_10 -> 4417 | N102: =ACCT_11700_541002_NYB_11 -> 7556 | O102: =ACCT_11700_541002_NYB_12 -> 4185 | P102: 59253 | Q102: 36.30698529 | S102: 33.46139706 | T102: =ACCT_11700_541002_TOT_CY_BUD -> 54609 | U102: =ACCT_11700_541002_TOT_CY_PROJ -> 55911.63 | V102: 4644 | W102: 0.08504092732 | X102: 3341.37 | Y102: 0.05976162741 | Z102: =ACCT_11700_541002_NOTES -> 0
A103: 11700 | B103: 541003 | C103: SALARIED NON-MANAGER | D103: =ACCT_11700_541003_NYB_01 -> 0 | E103: =ACCT_11700_541003_NYB_02 -> 0 | F103: =ACCT_11700_541003_NYB_03 -> 0 | G103: =ACCT_11700_541003_NYB_04 -> 0 | H103: =ACCT_11700_541003_NYB_05 -> 0 | I103: =ACCT_11700_541003_NYB_06 -> 0 | J103: =ACCT_11700_541003_NYB_07 -> 0 | K103: =ACCT_11700_541003_NYB_08 -> 0 | L103: =ACCT_11700_541003_NYB_09 -> 0 | M103: =ACCT_11700_541003_NYB_10 -> 0 | N103: =ACCT_11700_541003_NYB_11 -> 0 | O103: =ACCT_11700_541003_NYB_12 -> 0 | P103: 0 | Q103: 0 | S103: 0 | T103: =ACCT_11700_541003_TOT_CY_BUD -> 0 | U103: =ACCT_11700_541003_TOT_CY_PROJ -> 0 | V103: 0 | W103: 0 | X103: 0 | Y103: 0 | Z103: =ACCT_11700_541003_NOTES -> 0 | AB103: HIDE
A104: 11700 | B104: 542305 | C104: WAGES MINIMUM DRAW | D104: =ACCT_11700_542305_NYB_01 -> 0 | E104: =ACCT_11700_542305_NYB_02 -> 0 | F104: =ACCT_11700_542305_NYB_03 -> 0 | G104: =ACCT_11700_542305_NYB_04 -> 0 | H104: =ACCT_11700_542305_NYB_05 -> 0 | I104: =ACCT_11700_542305_NYB_06 -> 0 | J104: =ACCT_11700_542305_NYB_07 -> 0 | K104: =ACCT_11700_542305_NYB_08 -> 0 | L104: =ACCT_11700_542305_NYB_09 -> 0 | M104: =ACCT_11700_542305_NYB_10 -> 0 | N104: =ACCT_11700_542305_NYB_11 -> 0 | O104: =ACCT_11700_542305_NYB_12 -> 0 | P104: 0 | Q104: 0 | S104: 0 | T104: =ACCT_11700_542305_TOT_CY_BUD -> 0 | U104: =ACCT_11700_542305_TOT_CY_PROJ -> 0 | V104: 0 | W104: 0 | X104: 0 | Y104: 0 | Z104: =ACCT_11700_542305_NOTES -> 0 | AB104: HIDE
A105: 11700 | B105: 542030 | C105: HOURLY OTHER | D105: =ACCT_11700_542030_NYB_01 -> 4609 | E105: =ACCT_11700_542030_NYB_02 -> 4434 | F105: =ACCT_11700_542030_NYB_03 -> 4979 | G105: =ACCT_11700_542030_NYB_04 -> 4600 | H105: =ACCT_11700_542030_NYB_05 -> 7205 | I105: =ACCT_11700_542030_NYB_06 -> 4400 | J105: =ACCT_11700_542030_NYB_07 -> 4568 | K105: =ACCT_11700_542030_NYB_08 -> 4104 | L105: =ACCT_11700_542030_NYB_09 -> 4863 | M105: =ACCT_11700_542030_NYB_10 -> 4748 | N105: =ACCT_11700_542030_NYB_11 -> 7089 | O105: =ACCT_11700_542030_NYB_12 -> 4452 | P105: 60051 | Q105: 36.79595588 | S105: 35.12990196 | T105: =ACCT_11700_542030_TOT_CY_BUD -> 57332 | U105: =ACCT_11700_542030_TOT_CY_PROJ -> 57371.19 | V105: 2719 | W105: 0.04742552152 | X105: 2679.81 | Y105: 0.04671002989 | Z105: =ACCT_11700_542030_NOTES -> 0
A106: 11700 | B106: 543030 | C106: OT HOURLY OTHER | D106: =ACCT_11700_543030_NYB_01 -> 0 | E106: =ACCT_11700_543030_NYB_02 -> 0 | F106: =ACCT_11700_543030_NYB_03 -> 0 | G106: =ACCT_11700_543030_NYB_04 -> 0 | H106: =ACCT_11700_543030_NYB_05 -> 0 | I106: =ACCT_11700_543030_NYB_06 -> 0 | J106: =ACCT_11700_543030_NYB_07 -> 0 | K106: =ACCT_11700_543030_NYB_08 -> 0 | L106: =ACCT_11700_543030_NYB_09 -> 0 | M106: =ACCT_11700_543030_NYB_10 -> 0 | N106: =ACCT_11700_543030_NYB_11 -> 0 | O106: =ACCT_11700_543030_NYB_12 -> 0 | P106: 0 | Q106: 0 | S106: 0 | T106: =ACCT_11700_543030_TOT_CY_BUD -> 0 | U106: =ACCT_11700_543030_TOT_CY_PROJ -> 0 | V106: 0 | W106: 0 | X106: 0 | Y106: 0 | Z106: =ACCT_11700_543030_NOTES -> 0 | AB106: HIDE
A107: 11700 | B107: 561240 | C107: PAID TIME OFF | D107: =ACCT_11700_561240_NYB_01 -> 945 | E107: =ACCT_11700_561240_NYB_02 -> 945 | F107: =ACCT_11700_561240_NYB_03 -> 973 | G107: =ACCT_11700_561240_NYB_04 -> 973 | H107: =ACCT_11700_561240_NYB_05 -> 1460 | I107: =ACCT_11700_561240_NYB_06 -> 973 | J107: =ACCT_11700_561240_NYB_07 -> 973 | K107: =ACCT_11700_561240_NYB_08 -> 973 | L107: =ACCT_11700_561240_NYB_09 -> 973 | M107: =ACCT_11700_561240_NYB_10 -> 973 | N107: =ACCT_11700_561240_NYB_11 -> 1460 | O107: =ACCT_11700_561240_NYB_12 -> 973 | P107: 12594 | Q107: 7.716911765 | S107: 7.81004902 | T107: =ACCT_11700_561240_TOT_CY_BUD -> 12746 | U107: =ACCT_11700_561240_TOT_CY_PROJ -> 11570.8 | V107: -152 | W107: -0.0119253099 | X107: 1023.2 | Y107: 0.08842949494 | Z107: =ACCT_11700_561240_NOTES -> 0
A108: 11700 | B108: 561260 | C108: WORKERS COMPENSATION EXP | D108: =ACCT_11700_561260_NYB_01 -> 287 | E108: =ACCT_11700_561260_NYB_02 -> 289 | F108: =ACCT_11700_561260_NYB_03 -> 296 | G108: =ACCT_11700_561260_NYB_04 -> 305 | H108: =ACCT_11700_561260_NYB_05 -> 474 | I108: =ACCT_11700_561260_NYB_06 -> 286 | J108: =ACCT_11700_561260_NYB_07 -> 284 | K108: =ACCT_11700_561260_NYB_08 -> 270 | L108: =ACCT_11700_561260_NYB_09 -> 313 | M108: =ACCT_11700_561260_NYB_10 -> 296 | N108: =ACCT_11700_561260_NYB_11 -> 470 | O108: =ACCT_11700_561260_NYB_12 -> 281 | P108: =SUM(D108:O108) -> 3851 | Q108: =P108/$C$7 -> 2.359681373 | S108: =T108/$C$7 -> 3.441176471 | T108: =ACCT_11700_561260_TOT_CY_BUD -> 5616 | U108: =ACCT_11700_561260_TOT_CY_PROJ -> 4042.09 | V108: =P108-T108 -> -1765 | W108: =IF(T108=0,0,V108/T108) -> -0.3142806268 | X108: =P108-U108 -> -191.09 | Y108: =IF(U108=0,0,X108/U108) -> -0.0472750483 | Z108: =ACCT_11700_561260_NOTES -> 0 | AB108: =IF(AND(P108=0,T108=0,U108=0,Z108=0),"HIDE","") -> 
A109: 11700 | B109: 561170 | C109: PTO AND VACATION EXPENSE | D109: =ACCT_11700_561170_NYB_01 -> 0 | E109: =ACCT_11700_561170_NYB_02 -> 0 | F109: =ACCT_11700_561170_NYB_03 -> 0 | G109: =ACCT_11700_561170_NYB_04 -> 0 | H109: =ACCT_11700_561170_NYB_05 -> 0 | I109: =ACCT_11700_561170_NYB_06 -> 0 | J109: =ACCT_11700_561170_NYB_07 -> 0 | K109: =ACCT_11700_561170_NYB_08 -> 0 | L109: =ACCT_11700_561170_NYB_09 -> 0 | M109: =ACCT_11700_561170_NYB_10 -> 0 | N109: =ACCT_11700_561170_NYB_11 -> 0 | O109: =ACCT_11700_561170_NYB_12 -> 0 | P109: =SUM(D109:O109) -> 0 | Q109: =P109/$C$7 -> 0 | S109: =T109/$C$7 -> 0 | T109: =ACCT_11700_561170_TOT_CY_BUD -> 0 | U109: =ACCT_11700_561170_TOT_CY_PROJ -> 0 | V109: =P109-T109 -> 0 | W109: =IF(T109=0,0,V109/T109) -> 0 | X109: =P109-U109 -> 0 | Y109: =IF(U109=0,0,X109/U109) -> 0 | Z109: =ACCT_11700_561170_NOTES -> 0 | AB109: =IF(AND(P109=0,T109=0,U109=0,Z109=0),"HIDE","") -> HIDE
A110: 11700 | B110: 555070 | C110: OTHER INCENTIVE COMPENSATION EXP | D110: =ACCT_11700_555070_NYB_01 -> 0 | E110: =ACCT_11700_555070_NYB_02 -> 0 | F110: =ACCT_11700_555070_NYB_03 -> 0 | G110: =ACCT_11700_555070_NYB_04 -> 0 | H110: =ACCT_11700_555070_NYB_05 -> 0 | I110: =ACCT_11700_555070_NYB_06 -> 0 | J110: =ACCT_11700_555070_NYB_07 -> 0 | K110: =ACCT_11700_555070_NYB_08 -> 0 | L110: =ACCT_11700_555070_NYB_09 -> 0 | M110: =ACCT_11700_555070_NYB_10 -> 0 | N110: =ACCT_11700_555070_NYB_11 -> 0 | O110: =ACCT_11700_555070_NYB_12 -> 0 | P110: 0 | Q110: 0 | S110: 0 | T110: =ACCT_11700_555070_TOT_CY_BUD -> 0 | U110: =ACCT_11700_555070_TOT_CY_PROJ -> 0 | V110: 0 | W110: 0 | X110: 0 | Y110: 0 | Z110: =ACCT_11700_555070_NOTES -> 0 | AB110: HIDE
A111: 11700 | B111: 561020 | C111: PENSION DEFINED CONTRIBUTION | D111: =ACCT_11700_561020_NYB_01 -> 152 | E111: =ACCT_11700_561020_NYB_02 -> 152 | F111: =ACCT_11700_561020_NYB_03 -> 156 | G111: =ACCT_11700_561020_NYB_04 -> 161 | H111: =ACCT_11700_561020_NYB_05 -> 250 | I111: =ACCT_11700_561020_NYB_06 -> 151 | J111: =ACCT_11700_561020_NYB_07 -> 150 | K111: =ACCT_11700_561020_NYB_08 -> 143 | L111: =ACCT_11700_561020_NYB_09 -> 165 | M111: =ACCT_11700_561020_NYB_10 -> 156 | N111: =ACCT_11700_561020_NYB_11 -> 248 | O111: =ACCT_11700_561020_NYB_12 -> 148 | P111: =SUM(D111:O111) -> 2032 | Q111: =P111/$C$7 -> 1.245098039 | S111: =T111/$C$7 -> 1.529411765 | T111: =ACCT_11700_561020_TOT_CY_BUD -> 2496 | U111: =ACCT_11700_561020_TOT_CY_PROJ -> 1930.11 | V111: =P111-T111 -> -464 | W111: -0.1858974359 | X111: =P111-U111 -> 101.89 | Y111: =IF(U111=0,0,X111/U111) -> 0.05278973737 | Z111: =ACCT_11700_561020_NOTES -> 0
A112: 11700 | B112: 561010 | C112: GROUP HEALTH INSURANCE NON-UNION | D112: =ACCT_11700_561010_NYB_01 -> 1994 | E112: =ACCT_11700_561010_NYB_02 -> 1994 | F112: =ACCT_11700_561010_NYB_03 -> 2054 | G112: =ACCT_11700_561010_NYB_04 -> 2053 | H112: =ACCT_11700_561010_NYB_05 -> 3080 | I112: =ACCT_11700_561010_NYB_06 -> 2053 | J112: =ACCT_11700_561010_NYB_07 -> 2053 | K112: =ACCT_11700_561010_NYB_08 -> 2053 | L112: =ACCT_11700_561010_NYB_09 -> 2053 | M112: =ACCT_11700_561010_NYB_10 -> 2053 | N112: =ACCT_11700_561010_NYB_11 -> 3080 | O112: =ACCT_11700_561010_NYB_12 -> 2053 | P112: 26573 | Q112: 16.28247549 | S112: 14.09068627 | T112: =ACCT_11700_561010_TOT_CY_BUD -> 22996 | U112: =ACCT_11700_561010_TOT_CY_PROJ -> 24879 | V112: 3577 | W112: 0.1555487911 | X112: 1694 | Y112: 0.06808955344 | Z112: =ACCT_11700_561010_NOTES -> 0 | AB112: =IF(AND(P112=0,T112=0,U112=0,Z112=0),"HIDE","") -> 
A113: 11700 | B113: 561490 | C113: OTHER NON-UNION BENEFIT EXP | D113: =ACCT_11700_561490_NYB_01 -> 600 | E113: =ACCT_11700_561490_NYB_02 -> 603 | F113: =ACCT_11700_561490_NYB_03 -> 618 | G113: =ACCT_11700_561490_NYB_04 -> 637 | H113: =ACCT_11700_561490_NYB_05 -> 988 | I113: =ACCT_11700_561490_NYB_06 -> 597 | J113: =ACCT_11700_561490_NYB_07 -> 593 | K113: =ACCT_11700_561490_NYB_08 -> 564 | L113: =ACCT_11700_561490_NYB_09 -> 653 | M113: =ACCT_11700_561490_NYB_10 -> 618 | N113: =ACCT_11700_561490_NYB_11 -> 981 | O113: =ACCT_11700_561490_NYB_12 -> 586 | P113: 8038 | Q113: 4.925245098 | S113: 5.345588235 | T113: =ACCT_11700_561490_TOT_CY_BUD -> 8724 | U113: =ACCT_11700_561490_TOT_CY_PROJ -> 7929.28 | V113: -686 | W113: -0.07863365429 | X113: 108.72 | Y113: 0.01371120707 | Z113: =ACCT_11700_561490_NOTES -> 0 | AB113: =IF(AND(P113=0,T113=0,U113=0,Z113=0),"HIDE","") -> 
A114: 11700 | B114: 565010 | C114: SOCIAL SECURITY TAX EXPENSE | D114: =ACCT_11700_565010_NYB_01 -> 733 | E114: =ACCT_11700_565010_NYB_02 -> 737 | F114: =ACCT_11700_565010_NYB_03 -> 755 | G114: =ACCT_11700_565010_NYB_04 -> 779 | H114: =ACCT_11700_565010_NYB_05 -> 1208 | I114: =ACCT_11700_565010_NYB_06 -> 729 | J114: =ACCT_11700_565010_NYB_07 -> 724 | K114: =ACCT_11700_565010_NYB_08 -> 690 | L114: =ACCT_11700_565010_NYB_09 -> 798 | M114: =ACCT_11700_565010_NYB_10 -> 755 | N114: =ACCT_11700_565010_NYB_11 -> 1200 | O114: =ACCT_11700_565010_NYB_12 -> 716 | P114: =SUM(D114:O114) -> 9824 | Q114: =P114/$C$7 -> 6.019607843 | S114: =T114/$C$7 -> 5.382352941 | T114: =ACCT_11700_565010_TOT_CY_BUD -> 8784 | U114: =ACCT_11700_565010_TOT_CY_PROJ -> 9336.27 | V114: =P114-T114 -> 1040 | W114: 0.1183970856 | X114: =P114-U114 -> 487.73 | Y114: =IF(U114=0,0,X114/U114) -> 0.05224034866 | Z114: =ACCT_11700_565010_NOTES -> Based on actuals | AB114: =IF(AND(P114=0,T114=0,U114=0,Z114=0),"HIDE","") -> 
A115: 11700 | B115: 565040 | C115: STATE UNEMPLOYMENT TAX | D115: =ACCT_11700_565040_NYB_01 -> 29 | E115: =ACCT_11700_565040_NYB_02 -> 29 | F115: =ACCT_11700_565040_NYB_03 -> 30 | G115: =ACCT_11700_565040_NYB_04 -> 31 | H115: =ACCT_11700_565040_NYB_05 -> 48 | I115: =ACCT_11700_565040_NYB_06 -> 29 | J115: =ACCT_11700_565040_NYB_07 -> 29 | K115: =ACCT_11700_565040_NYB_08 -> 27 | L115: =ACCT_11700_565040_NYB_09 -> 32 | M115: =ACCT_11700_565040_NYB_10 -> 30 | N115: =ACCT_11700_565040_NYB_11 -> 48 | O115: =ACCT_11700_565040_NYB_12 -> 28 | P115: =SUM(D115:O115) -> 390 | Q115: =P115/$C$7 -> 0.2389705882 | S115: =T115/$C$7 -> 0.4264705882 | T115: =ACCT_11700_565040_TOT_CY_BUD -> 696 | U115: =ACCT_11700_565040_TOT_CY_PROJ -> 374.55 | V115: =P115-T115 -> -306 | W115: =IF(T115=0,0,V115/T115) -> -0.4396551724 | X115: =P115-U115 -> 15.45 | Y115: =IF(U115=0,0,X115/U115) -> 0.0412494994 | Z115: =ACCT_11700_565040_NOTES -> Based on actuals | AB115: =IF(AND(P115=0,T115=0,U115=0,Z115=0),"HIDE","") -> 
A116: 11700 | B116: 730310 | C116: BAD DEBT WRITE-OFF | D116: =ACCT_11700_730310_NYB_01 -> 0 | E116: =ACCT_11700_730310_NYB_02 -> 0 | F116: =ACCT_11700_730310_NYB_03 -> 0 | G116: =ACCT_11700_730310_NYB_04 -> 0 | H116: =ACCT_11700_730310_NYB_05 -> 0 | I116: =ACCT_11700_730310_NYB_06 -> 0 | J116: =ACCT_11700_730310_NYB_07 -> 0 | K116: =ACCT_11700_730310_NYB_08 -> 0 | L116: =ACCT_11700_730310_NYB_09 -> 0 | M116: =ACCT_11700_730310_NYB_10 -> 0 | N116: =ACCT_11700_730310_NYB_11 -> 0 | O116: =ACCT_11700_730310_NYB_12 -> 0 | P116: =SUM(D116:O116) -> 0 | Q116: 0 | S116: 0 | T116: =ACCT_11700_730310_TOT_CY_BUD -> 0 | U116: =ACCT_11700_730310_TOT_CY_PROJ -> 0.03 | V116: 0 | W116: 0 | X116: -0.03 | Y116: -1 | Z116: =ACCT_11700_730310_NOTES -> 0 | AB116: =IF(AND(P116=0,T116=0,U116=0,Z116=0),"HIDE","") -> 
A117: 11700 | B117: 676090 | C117: BANK FEES | D117: =ACCT_11700_676090_NYB_01 -> 675 | E117: =ACCT_11700_676090_NYB_02 -> 460 | F117: =ACCT_11700_676090_NYB_03 -> 515 | G117: =ACCT_11700_676090_NYB_04 -> 90 | H117: =ACCT_11700_676090_NYB_05 -> 435 | I117: =ACCT_11700_676090_NYB_06 -> 275 | J117: =ACCT_11700_676090_NYB_07 -> 285 | K117: =ACCT_11700_676090_NYB_08 -> 310 | L117: =ACCT_11700_676090_NYB_09 -> 290 | M117: =ACCT_11700_676090_NYB_10 -> 295 | N117: =ACCT_11700_676090_NYB_11 -> 275 | O117: =ACCT_11700_676090_NYB_12 -> 515 | P117: 4420 | Q117: 2.708333333 | S117: 2.472426471 | T117: =ACCT_11700_676090_TOT_CY_BUD -> 4035 | U117: =ACCT_11700_676090_TOT_CY_PROJ -> 4337.81 | V117: 385 | W117: 0.09541511772 | X117: 82.19 | Y117: 0.01894734901 | Z117: =ACCT_11700_676090_NOTES -> 0
A118: 11700 | B118: 815190 | C118: INTEREST EXPENSE THIRD-PARTY | D118: =ACCT_11700_815190_NYB_01 -> 0 | E118: =ACCT_11700_815190_NYB_02 -> 0 | F118: =ACCT_11700_815190_NYB_03 -> 0 | G118: =ACCT_11700_815190_NYB_04 -> 0 | H118: =ACCT_11700_815190_NYB_05 -> 0 | I118: =ACCT_11700_815190_NYB_06 -> 0 | J118: =ACCT_11700_815190_NYB_07 -> 0 | K118: =ACCT_11700_815190_NYB_08 -> 0 | L118: =ACCT_11700_815190_NYB_09 -> 0 | M118: =ACCT_11700_815190_NYB_10 -> 0 | N118: =ACCT_11700_815190_NYB_11 -> 0 | O118: =ACCT_11700_815190_NYB_12 -> 0 | P118: =SUM(D118:O118) -> 0 | Q118: =P118/$C$7 -> 0 | S118: =T118/$C$7 -> 0 | T118: =ACCT_11700_815190_TOT_CY_BUD -> 0 | U118: =ACCT_11700_815190_TOT_CY_PROJ -> 0 | V118: =P118-T118 -> 0 | W118: =IF(T118=0,0,V118/T118) -> 0 | X118: =P118-U118 -> 0 | Y118: =IF(U118=0,0,X118/U118) -> 0 | Z118: =ACCT_11700_815190_NOTES -> 0 | AB118: =IF(AND(P118=0,T118=0,U118=0,Z118=0),"HIDE","") -> HIDE
A119: 11700 | B119: 700100 | C119: COMPUTER SMALL EQUIPMENT | D119: =ACCT_11700_700100_NYB_01 -> 0 | E119: =ACCT_11700_700100_NYB_02 -> 0 | F119: =ACCT_11700_700100_NYB_03 -> 0 | G119: =ACCT_11700_700100_NYB_04 -> 0 | H119: =ACCT_11700_700100_NYB_05 -> 0 | I119: =ACCT_11700_700100_NYB_06 -> 0 | J119: =ACCT_11700_700100_NYB_07 -> 0 | K119: =ACCT_11700_700100_NYB_08 -> 0 | L119: =ACCT_11700_700100_NYB_09 -> 0 | M119: =ACCT_11700_700100_NYB_10 -> 0 | N119: =ACCT_11700_700100_NYB_11 -> 0 | O119: =ACCT_11700_700100_NYB_12 -> 0 | P119: 0 | Q119: 0 | S119: 0 | T119: =ACCT_11700_700100_TOT_CY_BUD -> 0 | U119: =ACCT_11700_700100_TOT_CY_PROJ -> 0 | V119: 0 | W119: 0 | X119: 0 | Y119: 0 | Z119: =ACCT_11700_700100_NOTES -> 0 | AB119: HIDE
A120: 11700 | B120: 698070 | C120: CONVENTIONS AND SEMINARS | D120: =ACCT_11700_698070_NYB_01 -> 0 | E120: =ACCT_11700_698070_NYB_02 -> 0 | F120: =ACCT_11700_698070_NYB_03 -> 0 | G120: =ACCT_11700_698070_NYB_04 -> 0 | H120: =ACCT_11700_698070_NYB_05 -> 0 | I120: =ACCT_11700_698070_NYB_06 -> 0 | J120: =ACCT_11700_698070_NYB_07 -> 0 | K120: =ACCT_11700_698070_NYB_08 -> 0 | L120: =ACCT_11700_698070_NYB_09 -> 0 | M120: =ACCT_11700_698070_NYB_10 -> 0 | N120: =ACCT_11700_698070_NYB_11 -> 0 | O120: =ACCT_11700_698070_NYB_12 -> 0 | P120: 0 | Q120: 0 | S120: 0 | T120: =ACCT_11700_698070_TOT_CY_BUD -> 0 | U120: =ACCT_11700_698070_TOT_CY_PROJ -> 0 | V120: 0 | W120: 0 | X120: 0 | Y120: 0 | Z120: =ACCT_11700_698070_NOTES -> 0 | AB120: HIDE
A121: 11700 | B121: 698050 | C121: SUBSCRIPTIONS AND PUBLICATIONS | D121: =ACCT_11700_698050_NYB_01 -> 0 | E121: =ACCT_11700_698050_NYB_02 -> 0 | F121: =ACCT_11700_698050_NYB_03 -> 0 | G121: =ACCT_11700_698050_NYB_04 -> 0 | H121: =ACCT_11700_698050_NYB_05 -> 0 | I121: =ACCT_11700_698050_NYB_06 -> 0 | J121: =ACCT_11700_698050_NYB_07 -> 0 | K121: =ACCT_11700_698050_NYB_08 -> 0 | L121: =ACCT_11700_698050_NYB_09 -> 0 | M121: =ACCT_11700_698050_NYB_10 -> 0 | N121: =ACCT_11700_698050_NYB_11 -> 0 | O121: =ACCT_11700_698050_NYB_12 -> 0 | P121: 0 | Q121: 0 | S121: 0 | T121: =ACCT_11700_698050_TOT_CY_BUD -> 0 | U121: =ACCT_11700_698050_TOT_CY_PROJ -> 0 | V121: 0 | W121: 0 | X121: 0 | Y121: 0 | Z121: =ACCT_11700_698050_NOTES -> 0 | AB121: HIDE
A122: 11700 | B122: 698120 | C122: EMPLOYEE RELATIONS | D122: =ACCT_11700_698120_NYB_01 -> 75 | E122: =ACCT_11700_698120_NYB_02 -> 75 | F122: =ACCT_11700_698120_NYB_03 -> 100 | G122: =ACCT_11700_698120_NYB_04 -> 100 | H122: =ACCT_11700_698120_NYB_05 -> 100 | I122: =ACCT_11700_698120_NYB_06 -> 75 | J122: =ACCT_11700_698120_NYB_07 -> 75 | K122: =ACCT_11700_698120_NYB_08 -> 100 | L122: =ACCT_11700_698120_NYB_09 -> 100 | M122: =ACCT_11700_698120_NYB_10 -> 100 | N122: =ACCT_11700_698120_NYB_11 -> 100 | O122: =ACCT_11700_698120_NYB_12 -> 500 | P122: 1500 | Q122: 0.9191176471 | S122: 0.9191176471 | T122: =ACCT_11700_698120_TOT_CY_BUD -> 1500 | U122: =ACCT_11700_698120_TOT_CY_PROJ -> 1504.89 | V122: 0 | W122: 0 | X122: -4.89 | Y122: -0.003249406933 | Z122: =ACCT_11700_698120_NOTES -> no increase
A123: 11700 | B123: 730200 | C123: EQUIPMENT LEASES | D123: =ACCT_11700_730200_NYB_01 -> 0 | E123: =ACCT_11700_730200_NYB_02 -> 0 | F123: =ACCT_11700_730200_NYB_03 -> 0 | G123: =ACCT_11700_730200_NYB_04 -> 0 | H123: =ACCT_11700_730200_NYB_05 -> 0 | I123: =ACCT_11700_730200_NYB_06 -> 0 | J123: =ACCT_11700_730200_NYB_07 -> 0 | K123: =ACCT_11700_730200_NYB_08 -> 0 | L123: =ACCT_11700_730200_NYB_09 -> 0 | M123: =ACCT_11700_730200_NYB_10 -> 0 | N123: =ACCT_11700_730200_NYB_11 -> 0 | O123: =ACCT_11700_730200_NYB_12 -> 0 | P123: 0 | Q123: 0 | S123: 0 | T123: =ACCT_11700_730200_TOT_CY_BUD -> 0 | U123: =ACCT_11700_730200_TOT_CY_PROJ -> 0 | V123: 0 | W123: 0 | X123: 0 | Y123: 0 | Z123: =ACCT_11700_730200_NOTES -> 0 | AB123: HIDE
A124: 11700 | B124: 730190 | C124: PERMITS AND LICENSES | D124: =ACCT_11700_730190_NYB_01 -> 228 | E124: =ACCT_11700_730190_NYB_02 -> 250 | F124: =ACCT_11700_730190_NYB_03 -> 61 | G124: =ACCT_11700_730190_NYB_04 -> 0 | H124: =ACCT_11700_730190_NYB_05 -> 875 | I124: =ACCT_11700_730190_NYB_06 -> 0 | J124: =ACCT_11700_730190_NYB_07 -> 350 | K124: =ACCT_11700_730190_NYB_08 -> 105 | L124: =ACCT_11700_730190_NYB_09 -> 0 | M124: =ACCT_11700_730190_NYB_10 -> 0 | N124: =ACCT_11700_730190_NYB_11 -> 0 | O124: =ACCT_11700_730190_NYB_12 -> 195 | P124: 2064 | Q124: 1.264705882 | S124: 1.050245098 | T124: =ACCT_11700_730190_TOT_CY_BUD -> 1714 | U124: =ACCT_11700_730190_TOT_CY_PROJ -> 1711.36 | V124: 350 | W124: 0.2042007001 | X124: 352.64 | Y124: 0.2060583396 | Z124: =ACCT_11700_730190_NOTES -> 0
A125: 11700 | B125: 752010 | C125: INSURANCE PREMIUM EXPENSE | D125: =ACCT_11700_752010_NYB_01 -> 13096 | E125: =ACCT_11700_752010_NYB_02 -> 13096 | F125: =ACCT_11700_752010_NYB_03 -> 13096 | G125: =ACCT_11700_752010_NYB_04 -> 13096 | H125: =ACCT_11700_752010_NYB_05 -> 13096 | I125: =ACCT_11700_752010_NYB_06 -> 14314 | J125: =ACCT_11700_752010_NYB_07 -> 14314 | K125: =ACCT_11700_752010_NYB_08 -> 14314 | L125: =ACCT_11700_752010_NYB_09 -> 14314 | M125: =ACCT_11700_752010_NYB_10 -> 14314 | N125: =ACCT_11700_752010_NYB_11 -> 14314 | O125: =ACCT_11700_752010_NYB_12 -> 14314 | P125: 165678 | Q125: 101.5183824 | S125: 92.12990196 | T125: =ACCT_11700_752010_TOT_CY_BUD -> 150356 | U125: =ACCT_11700_752010_TOT_CY_PROJ -> 156903.45 | V125: 15322 | W125: 0.1019048126 | X125: 8774.55 | Y125: 0.05592324452 | Z125: =ACCT_11700_752010_NOTES -> 0
A126: 11700 | B126: 730990 | C126: OTHER EXPENSE | D126: =ACCT_11700_730990_NYB_01 -> 0 | E126: =ACCT_11700_730990_NYB_02 -> 0 | F126: =ACCT_11700_730990_NYB_03 -> 0 | G126: =ACCT_11700_730990_NYB_04 -> 0 | H126: =ACCT_11700_730990_NYB_05 -> 0 | I126: =ACCT_11700_730990_NYB_06 -> 0 | J126: =ACCT_11700_730990_NYB_07 -> 0 | K126: =ACCT_11700_730990_NYB_08 -> 0 | L126: =ACCT_11700_730990_NYB_09 -> 0 | M126: =ACCT_11700_730990_NYB_10 -> 0 | N126: =ACCT_11700_730990_NYB_11 -> 0 | O126: =ACCT_11700_730990_NYB_12 -> 0 | P126: 0 | Q126: 0 | S126: 0 | T126: =ACCT_11700_730990_TOT_CY_BUD -> 0 | U126: =ACCT_11700_730990_TOT_CY_PROJ -> 0 | V126: 0 | W126: 0 | X126: 0 | Y126: 0 | Z126: =ACCT_11700_730990_NOTES -> 0 | AB126: HIDE
A127: 11700 | B127: 664250 | C127: BUILDING MAINTENANCE | D127: =ACCT_11700_664250_NYB_01 -> 0 | E127: =ACCT_11700_664250_NYB_02 -> 0 | F127: =ACCT_11700_664250_NYB_03 -> 0 | G127: =ACCT_11700_664250_NYB_04 -> 0 | H127: =ACCT_11700_664250_NYB_05 -> 0 | I127: =ACCT_11700_664250_NYB_06 -> 0 | J127: =ACCT_11700_664250_NYB_07 -> 0 | K127: =ACCT_11700_664250_NYB_08 -> 0 | L127: =ACCT_11700_664250_NYB_09 -> 0 | M127: =ACCT_11700_664250_NYB_10 -> 0 | N127: =ACCT_11700_664250_NYB_11 -> 0 | O127: =ACCT_11700_664250_NYB_12 -> 0 | P127: =SUM(D127:O127) -> 0 | Q127: =P127/$C$7 -> 0 | S127: =T127/$C$7 -> 0 | T127: =ACCT_11700_664250_TOT_CY_BUD -> 0 | U127: =ACCT_11700_664250_TOT_CY_PROJ -> 0 | V127: =P127-T127 -> 0 | W127: =IF(T127=0,0,V127/T127) -> 0 | X127: =P127-U127 -> 0 | Y127: =IF(U127=0,0,X127/U127) -> 0 | Z127: =ACCT_11700_664250_NOTES -> 0 | AB127: =IF(AND(P127=0,T127=0,U127=0,Z127=0),"HIDE","") -> HIDE
A128: 11700 | B128: 664440 | C128: EXTERMINATION | D128: =ACCT_11700_664440_NYB_01 -> 0 | E128: =ACCT_11700_664440_NYB_02 -> 0 | F128: =ACCT_11700_664440_NYB_03 -> 0 | G128: =ACCT_11700_664440_NYB_04 -> 0 | H128: =ACCT_11700_664440_NYB_05 -> 0 | I128: =ACCT_11700_664440_NYB_06 -> 0 | J128: =ACCT_11700_664440_NYB_07 -> 0 | K128: =ACCT_11700_664440_NYB_08 -> 0 | L128: =ACCT_11700_664440_NYB_09 -> 0 | M128: =ACCT_11700_664440_NYB_10 -> 0 | N128: =ACCT_11700_664440_NYB_11 -> 0 | O128: =ACCT_11700_664440_NYB_12 -> 0 | P128: =SUM(D128:O128) -> 0 | Q128: =P128/$C$7 -> 0 | S128: =T128/$C$7 -> 0 | T128: =ACCT_11700_664440_TOT_CY_BUD -> 0 | U128: =ACCT_11700_664440_TOT_CY_PROJ -> 0 | V128: =P128-T128 -> 0 | W128: =IF(T128=0,0,V128/T128) -> 0 | X128: =P128-U128 -> 0 | Y128: =IF(U128=0,0,X128/U128) -> 0 | Z128: =ACCT_11700_664440_NOTES -> 0 | AB128: =IF(AND(P128=0,T128=0,U128=0,Z128=0),"HIDE","") -> HIDE
A129: 11700 | B129: 664550 | C129: REPAIRS & MAINTENANCE | D129: =ACCT_11700_664550_NYB_01 -> 0 | E129: =ACCT_11700_664550_NYB_02 -> 0 | F129: =ACCT_11700_664550_NYB_03 -> 0 | G129: =ACCT_11700_664550_NYB_04 -> 0 | H129: =ACCT_11700_664550_NYB_05 -> 0 | I129: =ACCT_11700_664550_NYB_06 -> 0 | J129: =ACCT_11700_664550_NYB_07 -> 0 | K129: =ACCT_11700_664550_NYB_08 -> 0 | L129: =ACCT_11700_664550_NYB_09 -> 0 | M129: =ACCT_11700_664550_NYB_10 -> 0 | N129: =ACCT_11700_664550_NYB_11 -> 0 | O129: =ACCT_11700_664550_NYB_12 -> 0 | P129: =SUM(D129:O129) -> 0 | Q129: =P129/$C$7 -> 0 | S129: =T129/$C$7 -> 0 | T129: =ACCT_11700_664550_TOT_CY_BUD -> 0 | U129: =ACCT_11700_664550_TOT_CY_PROJ -> 0 | V129: =P129-T129 -> 0 | W129: =IF(T129=0,0,V129/T129) -> 0 | X129: =P129-U129 -> 0 | Y129: =IF(U129=0,0,X129/U129) -> 0 | Z129: =ACCT_11700_664550_NOTES -> 0 | AB129: =IF(AND(P129=0,T129=0,U129=0,Z129=0),"HIDE","") -> HIDE
A130: 11700 | B130: 730060 | C130: POSTAGE | D130: =ACCT_11700_730060_NYB_01 -> 1000 | E130: =ACCT_11700_730060_NYB_02 -> 100 | F130: =ACCT_11700_730060_NYB_03 -> 200 | G130: =ACCT_11700_730060_NYB_04 -> 200 | H130: =ACCT_11700_730060_NYB_05 -> 100 | I130: =ACCT_11700_730060_NYB_06 -> 100 | J130: =ACCT_11700_730060_NYB_07 -> 300 | K130: =ACCT_11700_730060_NYB_08 -> 200 | L130: =ACCT_11700_730060_NYB_09 -> 100 | M130: =ACCT_11700_730060_NYB_10 -> 100 | N130: =ACCT_11700_730060_NYB_11 -> 100 | O130: =ACCT_11700_730060_NYB_12 -> 100 | P130: 2600 | Q130: 1.593137255 | S130: 1.470588235 | T130: =ACCT_11700_730060_TOT_CY_BUD -> 2400 | U130: =ACCT_11700_730060_TOT_CY_PROJ -> 2596.61 | V130: 200 | W130: 0.08333333333 | X130: 3.39 | Y130: 0.001305548388 | Z130: =ACCT_11700_730060_NOTES -> increase based on actuals
A131: 11700 | B131: 730130 | C131: PRINTING | D131: =ACCT_11700_730130_NYB_01 -> 100 | E131: =ACCT_11700_730130_NYB_02 -> 0 | F131: =ACCT_11700_730130_NYB_03 -> 0 | G131: =ACCT_11700_730130_NYB_04 -> 1350 | H131: =ACCT_11700_730130_NYB_05 -> 0 | I131: =ACCT_11700_730130_NYB_06 -> 0 | J131: =ACCT_11700_730130_NYB_07 -> 0 | K131: =ACCT_11700_730130_NYB_08 -> 0 | L131: =ACCT_11700_730130_NYB_09 -> 100 | M131: =ACCT_11700_730130_NYB_10 -> 0 | N131: =ACCT_11700_730130_NYB_11 -> 0 | O131: =ACCT_11700_730130_NYB_12 -> 0 | P131: 1550 | Q131: 0.949754902 | S131: 0.8884803922 | T131: =ACCT_11700_730130_TOT_CY_BUD -> 1450 | U131: =ACCT_11700_730130_TOT_CY_PROJ -> 1550.09 | V131: 100 | W131: 0.06896551724 | X131: -0.09 | Y131: -5.806114484e-05 | Z131: =ACCT_11700_730130_NOTES -> 0
A132: 11700 | B132: 600030 | C132: AUDIT FEES | D132: =ACCT_11700_600030_NYB_01 -> 558 | E132: =ACCT_11700_600030_NYB_02 -> 558 | F132: =ACCT_11700_600030_NYB_03 -> 558 | G132: =ACCT_11700_600030_NYB_04 -> 558 | H132: =ACCT_11700_600030_NYB_05 -> 558 | I132: =ACCT_11700_600030_NYB_06 -> 558 | J132: =ACCT_11700_600030_NYB_07 -> 558 | K132: =ACCT_11700_600030_NYB_08 -> 558 | L132: =ACCT_11700_600030_NYB_09 -> 558 | M132: =ACCT_11700_600030_NYB_10 -> 558 | N132: =ACCT_11700_600030_NYB_11 -> 558 | O132: =ACCT_11700_600030_NYB_12 -> 562 | P132: 6700 | Q132: 4.105392157 | S132: 4.105392157 | T132: =ACCT_11700_600030_TOT_CY_BUD -> 6700 | U132: =ACCT_11700_600030_TOT_CY_PROJ -> 6742 | V132: 0 | W132: 0 | X132: -42 | Y132: -0.006229605458 | Z132: =ACCT_11700_600030_NOTES -> 0
A133: 11700 | B133: 600010 | C133: CONSULTING FEES | D133: =ACCT_11700_600010_NYB_01 -> 0 | E133: =ACCT_11700_600010_NYB_02 -> 0 | F133: =ACCT_11700_600010_NYB_03 -> 0 | G133: =ACCT_11700_600010_NYB_04 -> 0 | H133: =ACCT_11700_600010_NYB_05 -> 0 | I133: =ACCT_11700_600010_NYB_06 -> 0 | J133: =ACCT_11700_600010_NYB_07 -> 0 | K133: =ACCT_11700_600010_NYB_08 -> 0 | L133: =ACCT_11700_600010_NYB_09 -> 0 | M133: =ACCT_11700_600010_NYB_10 -> 0 | N133: =ACCT_11700_600010_NYB_11 -> 0 | O133: =ACCT_11700_600010_NYB_12 -> 0 | P133: 0 | Q133: 0 | S133: 0 | T133: =ACCT_11700_600010_TOT_CY_BUD -> 0 | U133: =ACCT_11700_600010_TOT_CY_PROJ -> 0 | V133: 0 | W133: 0 | X133: 0 | Y133: 0 | Z133: =ACCT_11700_600010_NOTES -> 0 | AB133: HIDE
A134: 11700 | B134: 600020 | C134: LEGAL FEES | D134: =ACCT_11700_600020_NYB_01 -> 0 | E134: =ACCT_11700_600020_NYB_02 -> 0 | F134: =ACCT_11700_600020_NYB_03 -> 250 | G134: =ACCT_11700_600020_NYB_04 -> 0 | H134: =ACCT_11700_600020_NYB_05 -> 0 | I134: =ACCT_11700_600020_NYB_06 -> 0 | J134: =ACCT_11700_600020_NYB_07 -> 0 | K134: =ACCT_11700_600020_NYB_08 -> 0 | L134: =ACCT_11700_600020_NYB_09 -> 0 | M134: =ACCT_11700_600020_NYB_10 -> 250 | N134: =ACCT_11700_600020_NYB_11 -> 0 | O134: =ACCT_11700_600020_NYB_12 -> 0 | P134: 500 | Q134: 0.306372549 | S134: 0.306372549 | T134: =ACCT_11700_600020_TOT_CY_BUD -> 500 | U134: =ACCT_11700_600020_TOT_CY_PROJ -> 0 | V134: 0 | W134: 0 | X134: 500 | Y134: =IF(U134=0,0,X134/U134) -> 0 | Z134: =ACCT_11700_600020_NOTES -> 0
A135: 11700 | B135: 698030 | C135: RECRUITMENT EXPENSE | D135: =ACCT_11700_698030_NYB_01 -> 0 | E135: =ACCT_11700_698030_NYB_02 -> 0 | F135: =ACCT_11700_698030_NYB_03 -> 0 | G135: =ACCT_11700_698030_NYB_04 -> 0 | H135: =ACCT_11700_698030_NYB_05 -> 0 | I135: =ACCT_11700_698030_NYB_06 -> 0 | J135: =ACCT_11700_698030_NYB_07 -> 0 | K135: =ACCT_11700_698030_NYB_08 -> 0 | L135: =ACCT_11700_698030_NYB_09 -> 0 | M135: =ACCT_11700_698030_NYB_10 -> 0 | N135: =ACCT_11700_698030_NYB_11 -> 0 | O135: =ACCT_11700_698030_NYB_12 -> 0 | P135: 0 | Q135: 0 | S135: 0 | T135: =ACCT_11700_698030_TOT_CY_BUD -> 0 | U135: =ACCT_11700_698030_TOT_CY_PROJ -> 0 | V135: 0 | W135: 0 | X135: 0 | Y135: 0 | Z135: =ACCT_11700_698030_NOTES -> 0 | AB135: HIDE
A136: 11700 | B136: 600060 | C136: RECRUITMENT | D136: =ACCT_11700_600060_NYB_01 -> 0 | E136: =ACCT_11700_600060_NYB_02 -> 0 | F136: =ACCT_11700_600060_NYB_03 -> 0 | G136: =ACCT_11700_600060_NYB_04 -> 0 | H136: =ACCT_11700_600060_NYB_05 -> 0 | I136: =ACCT_11700_600060_NYB_06 -> 0 | J136: =ACCT_11700_600060_NYB_07 -> 0 | K136: =ACCT_11700_600060_NYB_08 -> 0 | L136: =ACCT_11700_600060_NYB_09 -> 0 | M136: =ACCT_11700_600060_NYB_10 -> 0 | N136: =ACCT_11700_600060_NYB_11 -> 0 | O136: =ACCT_11700_600060_NYB_12 -> 0 | P136: 0 | Q136: 0 | S136: 0 | T136: =ACCT_11700_600060_TOT_CY_BUD -> 0 | U136: =ACCT_11700_600060_TOT_CY_PROJ -> 0 | V136: 0 | W136: 0 | X136: 0 | Y136: 0 | Z136: =ACCT_11700_600060_NOTES -> 0 | AB136: HIDE
A137: 11700 | B137: 751010 | C137: OFFICE RENT EXPENSE | D137: =ACCT_11700_751010_NYB_01 -> 0 | E137: =ACCT_11700_751010_NYB_02 -> 0 | F137: =ACCT_11700_751010_NYB_03 -> 0 | G137: =ACCT_11700_751010_NYB_04 -> 0 | H137: =ACCT_11700_751010_NYB_05 -> 0 | I137: =ACCT_11700_751010_NYB_06 -> 0 | J137: =ACCT_11700_751010_NYB_07 -> 0 | K137: =ACCT_11700_751010_NYB_08 -> 0 | L137: =ACCT_11700_751010_NYB_09 -> 0 | M137: =ACCT_11700_751010_NYB_10 -> 0 | N137: =ACCT_11700_751010_NYB_11 -> 0 | O137: =ACCT_11700_751010_NYB_12 -> 0 | P137: 0 | Q137: 0 | S137: 0 | T137: =ACCT_11700_751010_TOT_CY_BUD -> 0 | U137: =ACCT_11700_751010_TOT_CY_PROJ -> 0 | V137: 0 | W137: 0 | X137: 0 | Y137: 0 | Z137: =ACCT_11700_751010_NOTES -> 0 | AB137: HIDE
A138: 11700 | B138: 694040 | C138: OPERATING SUPPLIES | D138: =ACCT_11700_694040_NYB_01 -> 350 | E138: =ACCT_11700_694040_NYB_02 -> 300 | F138: =ACCT_11700_694040_NYB_03 -> 300 | G138: =ACCT_11700_694040_NYB_04 -> 200 | H138: =ACCT_11700_694040_NYB_05 -> 200 | I138: =ACCT_11700_694040_NYB_06 -> 300 | J138: =ACCT_11700_694040_NYB_07 -> 300 | K138: =ACCT_11700_694040_NYB_08 -> 400 | L138: =ACCT_11700_694040_NYB_09 -> 300 | M138: =ACCT_11700_694040_NYB_10 -> 300 | N138: =ACCT_11700_694040_NYB_11 -> 250 | O138: =ACCT_11700_694040_NYB_12 -> 300 | P138: 3500 | Q138: 2.144607843 | S138: 1.669730392 | T138: =ACCT_11700_694040_TOT_CY_BUD -> 2725 | U138: =ACCT_11700_694040_TOT_CY_PROJ -> 4343.74 | V138: 775 | W138: 0.2844036697 | X138: -843.74 | Y138: -0.1942427493 | Z138: =ACCT_11700_694040_NOTES -> increase but less than projected actual due to coding changes
A139: 11700 | B139: 694030 | C139: GUEST SUPPLIES | D139: =ACCT_11700_694030_NYB_01 -> 0 | E139: =ACCT_11700_694030_NYB_02 -> 0 | F139: =ACCT_11700_694030_NYB_03 -> 0 | G139: =ACCT_11700_694030_NYB_04 -> 0 | H139: =ACCT_11700_694030_NYB_05 -> 0 | I139: =ACCT_11700_694030_NYB_06 -> 0 | J139: =ACCT_11700_694030_NYB_07 -> 0 | K139: =ACCT_11700_694030_NYB_08 -> 0 | L139: =ACCT_11700_694030_NYB_09 -> 0 | M139: =ACCT_11700_694030_NYB_10 -> 0 | N139: =ACCT_11700_694030_NYB_11 -> 0 | O139: =ACCT_11700_694030_NYB_12 -> 0 | P139: =SUM(D139:O139) -> 0 | Q139: =P139/$C$7 -> 0 | S139: =T139/$C$7 -> 0 | T139: =ACCT_11700_694030_TOT_CY_BUD -> 0 | U139: =ACCT_11700_694030_TOT_CY_PROJ -> 19.06 | V139: =P139-T139 -> 0 | W139: =IF(T139=0,0,V139/T139) -> 0 | X139: =P139-U139 -> -19.06 | Y139: =IF(U139=0,0,X139/U139) -> -1 | Z139: =ACCT_11700_694030_NOTES -> 0 | AB139: =IF(AND(P139=0,T139=0,U139=0,Z139=0),"HIDE","") -> 
A140: 11700 | B140: 730370 | C140: LAUNDRY & DRY CLEANING | D140: =ACCT_11700_730370_NYB_01 -> 0 | E140: =ACCT_11700_730370_NYB_02 -> 0 | F140: =ACCT_11700_730370_NYB_03 -> 0 | G140: =ACCT_11700_730370_NYB_04 -> 0 | H140: =ACCT_11700_730370_NYB_05 -> 0 | I140: =ACCT_11700_730370_NYB_06 -> 0 | J140: =ACCT_11700_730370_NYB_07 -> 0 | K140: =ACCT_11700_730370_NYB_08 -> 0 | L140: =ACCT_11700_730370_NYB_09 -> 0 | M140: =ACCT_11700_730370_NYB_10 -> 0 | N140: =ACCT_11700_730370_NYB_11 -> 0 | O140: =ACCT_11700_730370_NYB_12 -> 0 | P140: =SUM(D140:O140) -> 0 | Q140: =P140/$C$7 -> 0 | S140: =T140/$C$7 -> 0 | T140: =ACCT_11700_730370_TOT_CY_BUD -> 0 | U140: =ACCT_11700_730370_TOT_CY_PROJ -> 0 | V140: =P140-T140 -> 0 | W140: =IF(T140=0,0,V140/T140) -> 0 | X140: =P140-U140 -> 0 | Y140: =IF(U140=0,0,X140/U140) -> 0 | Z140: =ACCT_11700_730370_NOTES -> 0 | AB140: =IF(AND(P140=0,T140=0,U140=0,Z140=0),"HIDE","") -> HIDE
A141: 11700 | B141: 650050 | C141: MOBILE COMMUNICATIONS | D141: =ACCT_11700_650050_NYB_01 -> 0 | E141: =ACCT_11700_650050_NYB_02 -> 0 | F141: =ACCT_11700_650050_NYB_03 -> 0 | G141: =ACCT_11700_650050_NYB_04 -> 0 | H141: =ACCT_11700_650050_NYB_05 -> 0 | I141: =ACCT_11700_650050_NYB_06 -> 0 | J141: =ACCT_11700_650050_NYB_07 -> 0 | K141: =ACCT_11700_650050_NYB_08 -> 0 | L141: =ACCT_11700_650050_NYB_09 -> 0 | M141: =ACCT_11700_650050_NYB_10 -> 0 | N141: =ACCT_11700_650050_NYB_11 -> 0 | O141: =ACCT_11700_650050_NYB_12 -> 0 | P141: 0 | Q141: 0 | S141: 0 | T141: =ACCT_11700_650050_TOT_CY_BUD -> 0 | U141: =ACCT_11700_650050_TOT_CY_PROJ -> 0 | V141: 0 | W141: =IF(T141=0,0,V141/T141) -> 0 | X141: =P141-U141 -> 0 | Y141: 0 | Z141: =ACCT_11700_650050_NOTES -> 0 | AB141: HIDE
A142: 11700 | B142: 698170 | C142: TRAINING EXTERNAL | D142: =ACCT_11700_698170_NYB_01 -> 0 | E142: =ACCT_11700_698170_NYB_02 -> 0 | F142: =ACCT_11700_698170_NYB_03 -> 0 | G142: =ACCT_11700_698170_NYB_04 -> 0 | H142: =ACCT_11700_698170_NYB_05 -> 0 | I142: =ACCT_11700_698170_NYB_06 -> 0 | J142: =ACCT_11700_698170_NYB_07 -> 0 | K142: =ACCT_11700_698170_NYB_08 -> 0 | L142: =ACCT_11700_698170_NYB_09 -> 0 | M142: =ACCT_11700_698170_NYB_10 -> 0 | N142: =ACCT_11700_698170_NYB_11 -> 0 | O142: =ACCT_11700_698170_NYB_12 -> 0 | P142: 0 | Q142: 0 | S142: 0 | T142: =ACCT_11700_698170_TOT_CY_BUD -> 0 | U142: =ACCT_11700_698170_TOT_CY_PROJ -> 534 | V142: 0 | W142: 0 | X142: -534 | Y142: -1 | Z142: =ACCT_11700_698170_NOTES -> 0
A143: 11700 | B143: 664270 | C143: COMMON GROUNDS | D143: =ACCT_11700_664270_NYB_01 -> 0 | E143: =ACCT_11700_664270_NYB_02 -> 0 | F143: =ACCT_11700_664270_NYB_03 -> 0 | G143: =ACCT_11700_664270_NYB_04 -> 0 | H143: =ACCT_11700_664270_NYB_05 -> 0 | I143: =ACCT_11700_664270_NYB_06 -> 0 | J143: =ACCT_11700_664270_NYB_07 -> 0 | K143: =ACCT_11700_664270_NYB_08 -> 0 | L143: =ACCT_11700_664270_NYB_09 -> 0 | M143: =ACCT_11700_664270_NYB_10 -> 0 | N143: =ACCT_11700_664270_NYB_11 -> 0 | O143: =ACCT_11700_664270_NYB_12 -> 0 | P143: =SUM(D143:O143) -> 0 | Q143: =P143/$C$7 -> 0 | S143: =T143/$C$7 -> 0 | T143: =ACCT_11700_664270_TOT_CY_BUD -> 0 | U143: =ACCT_11700_664270_TOT_CY_PROJ -> 0 | V143: =P143-T143 -> 0 | W143: =IF(T143=0,0,V143/T143) -> 0 | X143: =P143-U143 -> 0 | Y143: =IF(U143=0,0,X143/U143) -> 0 | Z143: =ACCT_11700_664270_NOTES -> 0 | AB143: =IF(AND(P143=0,T143=0,U143=0,Z143=0),"HIDE","") -> HIDE
A144: 11700 | B144: 620210 | C144: GROUND TRANSPORTATION | D144: =ACCT_11700_620210_NYB_01 -> 0 | E144: =ACCT_11700_620210_NYB_02 -> 0 | F144: =ACCT_11700_620210_NYB_03 -> 0 | G144: =ACCT_11700_620210_NYB_04 -> 0 | H144: =ACCT_11700_620210_NYB_05 -> 0 | I144: =ACCT_11700_620210_NYB_06 -> 0 | J144: =ACCT_11700_620210_NYB_07 -> 0 | K144: =ACCT_11700_620210_NYB_08 -> 0 | L144: =ACCT_11700_620210_NYB_09 -> 0 | M144: =ACCT_11700_620210_NYB_10 -> 0 | N144: =ACCT_11700_620210_NYB_11 -> 0 | O144: =ACCT_11700_620210_NYB_12 -> 0 | P144: 0 | Q144: 0 | S144: 0 | T144: =ACCT_11700_620210_TOT_CY_BUD -> 0 | U144: =ACCT_11700_620210_TOT_CY_PROJ -> 0 | V144: 0 | W144: 0 | X144: 0 | Y144: 0 | Z144: =ACCT_11700_620210_NOTES -> 0 | AB144: HIDE
A145: 11700 | B145: 696130 | C145: PARKING COSTS | D145: =ACCT_11700_696130_NYB_01 -> 0 | E145: =ACCT_11700_696130_NYB_02 -> 0 | F145: =ACCT_11700_696130_NYB_03 -> 0 | G145: =ACCT_11700_696130_NYB_04 -> 0 | H145: =ACCT_11700_696130_NYB_05 -> 0 | I145: =ACCT_11700_696130_NYB_06 -> 0 | J145: =ACCT_11700_696130_NYB_07 -> 0 | K145: =ACCT_11700_696130_NYB_08 -> 0 | L145: =ACCT_11700_696130_NYB_09 -> 0 | M145: =ACCT_11700_696130_NYB_10 -> 0 | N145: =ACCT_11700_696130_NYB_11 -> 0 | O145: =ACCT_11700_696130_NYB_12 -> 0 | P145: =SUM(D145:O145) -> 0 | Q145: =P145/$C$7 -> 0 | S145: =T145/$C$7 -> 0 | T145: =ACCT_11700_696130_TOT_CY_BUD -> 0 | U145: =ACCT_11700_696130_TOT_CY_PROJ -> 0 | V145: =P145-T145 -> 0 | W145: =IF(T145=0,0,V145/T145) -> 0 | X145: =P145-U145 -> 0 | Y145: =IF(U145=0,0,X145/U145) -> 0 | Z145: =ACCT_11700_696130_NOTES -> 0 | AB145: =IF(AND(P145=0,T145=0,U145=0,Z145=0),"HIDE","") -> HIDE
A146: 11700 | B146: 620310 | C146: ENTERTAINMENT EXTERNAL | D146: =ACCT_11700_620310_NYB_01 -> 0 | E146: =ACCT_11700_620310_NYB_02 -> 0 | F146: =ACCT_11700_620310_NYB_03 -> 0 | G146: =ACCT_11700_620310_NYB_04 -> 0 | H146: =ACCT_11700_620310_NYB_05 -> 0 | I146: =ACCT_11700_620310_NYB_06 -> 0 | J146: =ACCT_11700_620310_NYB_07 -> 0 | K146: =ACCT_11700_620310_NYB_08 -> 0 | L146: =ACCT_11700_620310_NYB_09 -> 0 | M146: =ACCT_11700_620310_NYB_10 -> 0 | N146: =ACCT_11700_620310_NYB_11 -> 0 | O146: =ACCT_11700_620310_NYB_12 -> 0 | P146: 0 | Q146: 0 | S146: 0 | T146: =ACCT_11700_620310_TOT_CY_BUD -> 0 | U146: =ACCT_11700_620310_TOT_CY_PROJ -> 0 | V146: 0 | W146: 0 | X146: 0 | Y146: 0 | Z146: =ACCT_11700_620310_NOTES -> 0 | AB146: HIDE
A147: 11700 | B147: 620020 | C147: LODGING | D147: =ACCT_11700_620020_NYB_01 -> 0 | E147: =ACCT_11700_620020_NYB_02 -> 0 | F147: =ACCT_11700_620020_NYB_03 -> 0 | G147: =ACCT_11700_620020_NYB_04 -> 0 | H147: =ACCT_11700_620020_NYB_05 -> 500 | I147: =ACCT_11700_620020_NYB_06 -> 0 | J147: =ACCT_11700_620020_NYB_07 -> 0 | K147: =ACCT_11700_620020_NYB_08 -> 0 | L147: =ACCT_11700_620020_NYB_09 -> 0 | M147: =ACCT_11700_620020_NYB_10 -> 0 | N147: =ACCT_11700_620020_NYB_11 -> 0 | O147: =ACCT_11700_620020_NYB_12 -> 0 | P147: 500 | Q147: 0.306372549 | S147: 0 | T147: =ACCT_11700_620020_TOT_CY_BUD -> 0 | U147: =ACCT_11700_620020_TOT_CY_PROJ -> 570.39 | V147: 500 | W147: 0 | X147: -70.39 | Y147: -0.1234067918 | Z147: =ACCT_11700_620020_NOTES -> 0
A148: 11700 | B148: 620120 | C148: TRAVEL MEALS | D148: =ACCT_11700_620120_NYB_01 -> 0 | E148: =ACCT_11700_620120_NYB_02 -> 0 | F148: =ACCT_11700_620120_NYB_03 -> 0 | G148: =ACCT_11700_620120_NYB_04 -> 0 | H148: =ACCT_11700_620120_NYB_05 -> 0 | I148: =ACCT_11700_620120_NYB_06 -> 0 | J148: =ACCT_11700_620120_NYB_07 -> 0 | K148: =ACCT_11700_620120_NYB_08 -> 0 | L148: =ACCT_11700_620120_NYB_09 -> 0 | M148: =ACCT_11700_620120_NYB_10 -> 0 | N148: =ACCT_11700_620120_NYB_11 -> 0 | O148: =ACCT_11700_620120_NYB_12 -> 0 | P148: 0 | Q148: 0 | S148: 0 | T148: =ACCT_11700_620120_TOT_CY_BUD -> 0 | U148: =ACCT_11700_620120_TOT_CY_PROJ -> 20.67 | V148: 0 | W148: 0 | X148: -20.67 | Y148: -1 | Z148: =ACCT_11700_620120_NOTES -> 0
A149: 11700 | B149: 620010 | C149: AIRFARE | D149: =ACCT_11700_620010_NYB_01 -> 0 | E149: =ACCT_11700_620010_NYB_02 -> 0 | F149: =ACCT_11700_620010_NYB_03 -> 1000 | G149: =ACCT_11700_620010_NYB_04 -> 0 | H149: =ACCT_11700_620010_NYB_05 -> 0 | I149: =ACCT_11700_620010_NYB_06 -> 0 | J149: =ACCT_11700_620010_NYB_07 -> 0 | K149: =ACCT_11700_620010_NYB_08 -> 0 | L149: =ACCT_11700_620010_NYB_09 -> 0 | M149: =ACCT_11700_620010_NYB_10 -> 0 | N149: =ACCT_11700_620010_NYB_11 -> 0 | O149: =ACCT_11700_620010_NYB_12 -> 0 | P149: 1000 | Q149: 0.612745098 | S149: 0.612745098 | T149: =ACCT_11700_620010_TOT_CY_BUD -> 1000 | U149: =ACCT_11700_620010_TOT_CY_PROJ -> 0 | V149: 0 | W149: 0 | X149: 1000 | Y149: 0 | Z149: =ACCT_11700_620010_NOTES -> Conference
A150: 11700 | B150: 696010 | C150: UNIFORMS | D150: =ACCT_11700_696010_NYB_01 -> 0 | E150: =ACCT_11700_696010_NYB_02 -> 0 | F150: =ACCT_11700_696010_NYB_03 -> 500 | G150: =ACCT_11700_696010_NYB_04 -> 0 | H150: =ACCT_11700_696010_NYB_05 -> 0 | I150: =ACCT_11700_696010_NYB_06 -> 0 | J150: =ACCT_11700_696010_NYB_07 -> 500 | K150: =ACCT_11700_696010_NYB_08 -> 0 | L150: =ACCT_11700_696010_NYB_09 -> 0 | M150: =ACCT_11700_696010_NYB_10 -> 0 | N150: =ACCT_11700_696010_NYB_11 -> 0 | O150: =ACCT_11700_696010_NYB_12 -> 500 | P150: 1500 | Q150: 0.9191176471 | S150: 0.9191176471 | T150: =ACCT_11700_696010_TOT_CY_BUD -> 1500 | U150: =ACCT_11700_696010_TOT_CY_PROJ -> 1500 | V150: 0 | W150: 0 | X150: 0 | Y150: 0 | Z150: =ACCT_11700_696010_NOTES -> 0
A151: 11700 | B151: 676050 | C151: CRED CARD DISCOUNT - OTHER | D151: =ACCT_11700_676050_NYB_01 -> 4100 | E151: =ACCT_11700_676050_NYB_02 -> 5035 | F151: =ACCT_11700_676050_NYB_03 -> 1188 | G151: =ACCT_11700_676050_NYB_04 -> 428 | H151: =ACCT_11700_676050_NYB_05 -> 350 | I151: =ACCT_11700_676050_NYB_06 -> 200 | J151: =ACCT_11700_676050_NYB_07 -> 50 | K151: =ACCT_11700_676050_NYB_08 -> 0 | L151: =ACCT_11700_676050_NYB_09 -> 0 | M151: =ACCT_11700_676050_NYB_10 -> 0 | N151: =ACCT_11700_676050_NYB_11 -> 1100 | O151: =ACCT_11700_676050_NYB_12 -> 6500 | P151: 18951 | Q151: 11.61213235 | S151: 11.33578431 | T151: =ACCT_11700_676050_TOT_CY_BUD -> 18500 | U151: =ACCT_11700_676050_TOT_CY_PROJ -> 18541.01 | V151: 451 | W151: 0.02437837838 | X151: 409.99 | Y151: 0.02211260336 | Z151: =ACCT_11700_676050_NOTES -> 0
A152: 11700 | B152: 730040 | C152: MEMBER RELATIONS | D152: =ACCT_11700_730040_NYB_01 -> 400 | E152: =ACCT_11700_730040_NYB_02 -> 300 | F152: =ACCT_11700_730040_NYB_03 -> 400 | G152: =ACCT_11700_730040_NYB_04 -> 400 | H152: =ACCT_11700_730040_NYB_05 -> 300 | I152: =ACCT_11700_730040_NYB_06 -> 300 | J152: =ACCT_11700_730040_NYB_07 -> 300 | K152: =ACCT_11700_730040_NYB_08 -> 300 | L152: =ACCT_11700_730040_NYB_09 -> 400 | M152: =ACCT_11700_730040_NYB_10 -> 300 | N152: =ACCT_11700_730040_NYB_11 -> 300 | O152: =ACCT_11700_730040_NYB_12 -> 300 | P152: 4000 | Q152: 2.450980392 | S152: 2.450980392 | T152: =ACCT_11700_730040_TOT_CY_BUD -> 4000 | U152: =ACCT_11700_730040_TOT_CY_PROJ -> 4291.21 | V152: 0 | W152: 0 | X152: -291.21 | Y152: -0.06786197832 | Z152: =ACCT_11700_730040_NOTES -> 0
A153: 11700 | B153: 682090 | C153: PARTY RECEPTIONS | D153: =ACCT_11700_682090_NYB_01 -> 0 | E153: =ACCT_11700_682090_NYB_02 -> 0 | F153: =ACCT_11700_682090_NYB_03 -> 0 | G153: =ACCT_11700_682090_NYB_04 -> 0 | H153: =ACCT_11700_682090_NYB_05 -> 0 | I153: =ACCT_11700_682090_NYB_06 -> 0 | J153: =ACCT_11700_682090_NYB_07 -> 0 | K153: =ACCT_11700_682090_NYB_08 -> 0 | L153: =ACCT_11700_682090_NYB_09 -> 0 | M153: =ACCT_11700_682090_NYB_10 -> 0 | N153: =ACCT_11700_682090_NYB_11 -> 0 | O153: =ACCT_11700_682090_NYB_12 -> 0 | P153: 0 | Q153: 0 | S153: 0 | T153: =ACCT_11700_682090_TOT_CY_BUD -> 0 | U153: =ACCT_11700_682090_TOT_CY_PROJ -> 0 | V153: 0 | W153: 0 | X153: 0 | Y153: 0 | Z153: =ACCT_11700_682090_NOTES -> 0 | AB153: HIDE
A154: 11700 | B154: 650010 | C154: TELEPHONE LOCAL | D154: =ACCT_11700_650010_NYB_01 -> 0 | E154: =ACCT_11700_650010_NYB_02 -> 0 | F154: =ACCT_11700_650010_NYB_03 -> 0 | G154: =ACCT_11700_650010_NYB_04 -> 0 | H154: =ACCT_11700_650010_NYB_05 -> 0 | I154: =ACCT_11700_650010_NYB_06 -> 0 | J154: =ACCT_11700_650010_NYB_07 -> 0 | K154: =ACCT_11700_650010_NYB_08 -> 0 | L154: =ACCT_11700_650010_NYB_09 -> 0 | M154: =ACCT_11700_650010_NYB_10 -> 0 | N154: =ACCT_11700_650010_NYB_11 -> 0 | O154: =ACCT_11700_650010_NYB_12 -> 0 | P154: 0 | Q154: 0 | S154: 0 | T154: =ACCT_11700_650010_TOT_CY_BUD -> 0 | U154: =ACCT_11700_650010_TOT_CY_PROJ -> 0 | V154: 0 | W154: 0 | X154: 0 | Y154: 0 | Z154: =ACCT_11700_650010_NOTES -> 0 | AB154: HIDE
A155: 11700 | B155: 692050 | C155: OFFICE EQUIPMENT | D155: =ACCT_11700_692050_NYB_01 -> 600 | E155: =ACCT_11700_692050_NYB_02 -> 300 | F155: =ACCT_11700_692050_NYB_03 -> 200 | G155: =ACCT_11700_692050_NYB_04 -> 800 | H155: =ACCT_11700_692050_NYB_05 -> 300 | I155: =ACCT_11700_692050_NYB_06 -> 300 | J155: =ACCT_11700_692050_NYB_07 -> 400 | K155: =ACCT_11700_692050_NYB_08 -> 200 | L155: =ACCT_11700_692050_NYB_09 -> 200 | M155: =ACCT_11700_692050_NYB_10 -> 700 | N155: =ACCT_11700_692050_NYB_11 -> 400 | O155: =ACCT_11700_692050_NYB_12 -> 500 | P155: 4900 | Q155: 3.00245098 | S155: 2.941176471 | T155: =ACCT_11700_692050_TOT_CY_BUD -> 4800 | U155: =ACCT_11700_692050_TOT_CY_PROJ -> 4957.32 | V155: 100 | W155: 0.02083333333 | X155: -57.32 | Y155: -0.0115626992 | Z155: =ACCT_11700_692050_NOTES -> 0
A156: 11700 | B156: 682080 | C156: OWNERS PARTIES | D156: =ACCT_11700_682080_NYB_01 -> 0 | E156: =ACCT_11700_682080_NYB_02 -> 0 | F156: =ACCT_11700_682080_NYB_03 -> 0 | G156: =ACCT_11700_682080_NYB_04 -> 0 | H156: =ACCT_11700_682080_NYB_05 -> 0 | I156: =ACCT_11700_682080_NYB_06 -> 0 | J156: =ACCT_11700_682080_NYB_07 -> 0 | K156: =ACCT_11700_682080_NYB_08 -> 0 | L156: =ACCT_11700_682080_NYB_09 -> 0 | M156: =ACCT_11700_682080_NYB_10 -> 0 | N156: =ACCT_11700_682080_NYB_11 -> 0 | O156: =ACCT_11700_682080_NYB_12 -> 0 | P156: 0 | Q156: 0 | S156: 0 | T156: =ACCT_11700_682080_TOT_CY_BUD -> 0 | U156: =ACCT_11700_682080_TOT_CY_PROJ -> 0 | V156: 0 | W156: 0 | X156: 0 | Y156: 0 | Z156: =ACCT_11700_682080_NOTES -> 0 | AB156: HIDE
A157: 11700 | B157: 790076 | C157: RESORT SERVICES FEES EXPENSE | D157: =ACCT_11700_790076_NYB_01 -> 0 | E157: =ACCT_11700_790076_NYB_02 -> 0 | F157: =ACCT_11700_790076_NYB_03 -> 0 | G157: =ACCT_11700_790076_NYB_04 -> 0 | H157: =ACCT_11700_790076_NYB_05 -> 0 | I157: =ACCT_11700_790076_NYB_06 -> 0 | J157: =ACCT_11700_790076_NYB_07 -> 0 | K157: =ACCT_11700_790076_NYB_08 -> 0 | L157: =ACCT_11700_790076_NYB_09 -> 0 | M157: =ACCT_11700_790076_NYB_10 -> 0 | N157: =ACCT_11700_790076_NYB_11 -> 0 | O157: =ACCT_11700_790076_NYB_12 -> 0 | P157: 0 | Q157: 0 | S157: 0 | T157: =ACCT_11700_790076_TOT_CY_BUD -> 0 | U157: =ACCT_11700_790076_TOT_CY_PROJ -> 0 | V157: 0 | W157: 0 | X157: 0 | Y157: =IF(U157=0,0,X157/U157) -> 0 | Z157: =ACCT_11700_790076_NOTES -> 0 | AB157: HIDE
A158: 11700 | B158: 705010 | C158: AMENITY MEMBERSHIP FEE | D158: =ACCT_11700_705010_NYB_01 -> 0 | E158: =ACCT_11700_705010_NYB_02 -> 0 | F158: =ACCT_11700_705010_NYB_03 -> 0 | G158: =ACCT_11700_705010_NYB_04 -> 0 | H158: =ACCT_11700_705010_NYB_05 -> 0 | I158: =ACCT_11700_705010_NYB_06 -> 0 | J158: =ACCT_11700_705010_NYB_07 -> 0 | K158: =ACCT_11700_705010_NYB_08 -> 0 | L158: =ACCT_11700_705010_NYB_09 -> 0 | M158: =ACCT_11700_705010_NYB_10 -> 0 | N158: =ACCT_11700_705010_NYB_11 -> 0 | O158: =ACCT_11700_705010_NYB_12 -> 0 | P158: 0 | Q158: 0 | S158: 0 | T158: =ACCT_11700_705010_TOT_CY_BUD -> 0 | U158: =ACCT_11700_705010_TOT_CY_PROJ -> 0 | V158: 0 | W158: 0 | X158: 0 | Y158: 0 | Z158: =ACCT_11700_705010_NOTES -> 0 | AB158: HIDE
A159: 11700 | B159: 720035 | C159: OPERATIONS ALLOCATIONS OUT | D159: =ACCT_11700_720035_NYB_01 -> 0 | E159: =ACCT_11700_720035_NYB_02 -> 0 | F159: =ACCT_11700_720035_NYB_03 -> 0 | G159: =ACCT_11700_720035_NYB_04 -> 0 | H159: =ACCT_11700_720035_NYB_05 -> 0 | I159: =ACCT_11700_720035_NYB_06 -> 0 | J159: =ACCT_11700_720035_NYB_07 -> 0 | K159: =ACCT_11700_720035_NYB_08 -> 0 | L159: =ACCT_11700_720035_NYB_09 -> 0 | M159: =ACCT_11700_720035_NYB_10 -> 0 | N159: =ACCT_11700_720035_NYB_11 -> 0 | O159: =ACCT_11700_720035_NYB_12 -> 0 | P159: 0 | Q159: 0 | S159: 0 | T159: =ACCT_11700_720035_TOT_CY_BUD -> 0 | U159: =ACCT_11700_720035_TOT_CY_PROJ -> 0 | V159: 0 | W159: 0 | X159: 0 | Y159: 0 | Z159: =ACCT_11700_720035_NOTES -> 0 | AB159: HIDE
A160: 11700 | B160: 790075 | C160: HOA MANAGEMENT FEE EXPENSE | D160: =ACCT_11700_790075_NYB_01 -> 6452 | E160: =ACCT_11700_790075_NYB_02 -> 6452 | F160: =ACCT_11700_790075_NYB_03 -> 6452 | G160: =ACCT_11700_790075_NYB_04 -> 6452 | H160: =ACCT_11700_790075_NYB_05 -> 6452 | I160: =ACCT_11700_790075_NYB_06 -> 6452 | J160: =ACCT_11700_790075_NYB_07 -> 6452 | K160: =ACCT_11700_790075_NYB_08 -> 6452 | L160: =ACCT_11700_790075_NYB_09 -> 6452 | M160: =ACCT_11700_790075_NYB_10 -> 6452 | N160: =ACCT_11700_790075_NYB_11 -> 6452 | O160: =ACCT_11700_790075_NYB_12 -> 6452 | P160: 77424 | Q160: 47.44117647 | S160: 46.50735294 | T160: =ACCT_11700_790075_TOT_CY_BUD -> 75900 | U160: =ACCT_11700_790075_TOT_CY_PROJ -> 75900 | V160: 1524 | W160: 0.02007905138 | X160: 1524 | Y160: 0.02007905138 | Z160: =ACCT_11700_790075_NOTES -> 0
A161: 11700 | B161: 730645 | C161: DIVISION FEES | D161: =ACCT_11700_730645_NYB_01 -> 3264 | E161: =ACCT_11700_730645_NYB_02 -> 0 | F161: =ACCT_11700_730645_NYB_03 -> 0 | G161: =ACCT_11700_730645_NYB_04 -> 0 | H161: =ACCT_11700_730645_NYB_05 -> 0 | I161: =ACCT_11700_730645_NYB_06 -> 0 | J161: =ACCT_11700_730645_NYB_07 -> 0 | K161: =ACCT_11700_730645_NYB_08 -> 0 | L161: =ACCT_11700_730645_NYB_09 -> 0 | M161: =ACCT_11700_730645_NYB_10 -> 0 | N161: =ACCT_11700_730645_NYB_11 -> 0 | O161: =ACCT_11700_730645_NYB_12 -> 0 | P161: 3264 | Q161: 2 | S161: 2 | T161: =ACCT_11700_730645_TOT_CY_BUD -> 3264 | U161: =ACCT_11700_730645_TOT_CY_PROJ -> 3264 | V161: 0 | W161: 0 | X161: 0 | Y161: 0 | Z161: =ACCT_11700_730645_NOTES -> 0
A162: 11700 | B162: 678030 | C162: FINANCIAL SERVICES FEES | D162: =ACCT_11700_678030_NYB_01 -> 2500 | E162: =ACCT_11700_678030_NYB_02 -> 2500 | F162: =ACCT_11700_678030_NYB_03 -> 2500 | G162: =ACCT_11700_678030_NYB_04 -> 2450 | H162: =ACCT_11700_678030_NYB_05 -> 2450 | I162: =ACCT_11700_678030_NYB_06 -> 2450 | J162: =ACCT_11700_678030_NYB_07 -> 2450 | K162: =ACCT_11700_678030_NYB_08 -> 2450 | L162: =ACCT_11700_678030_NYB_09 -> 2450 | M162: =ACCT_11700_678030_NYB_10 -> 2450 | N162: =ACCT_11700_678030_NYB_11 -> 2450 | O162: =ACCT_11700_678030_NYB_12 -> 2500 | P162: 29600 | Q162: 18.1372549 | S162: 17.1997549 | T162: =ACCT_11700_678030_TOT_CY_BUD -> 28070 | U162: =ACCT_11700_678030_TOT_CY_PROJ -> 28069.02 | V162: 1530 | W162: 0.05450659067 | X162: 1530.98 | Y162: 0.05454340764 | Z162: =ACCT_11700_678030_NOTES -> 0
A163: 11700 | B163: 720490 | C163: OTHER ALLOCATIONS IN | D163: =ACCT_11700_720490_NYB_01 -> 0 | E163: =ACCT_11700_720490_NYB_02 -> 0 | F163: =ACCT_11700_720490_NYB_03 -> 0 | G163: =ACCT_11700_720490_NYB_04 -> 0 | H163: =ACCT_11700_720490_NYB_05 -> 0 | I163: =ACCT_11700_720490_NYB_06 -> 0 | J163: =ACCT_11700_720490_NYB_07 -> 0 | K163: =ACCT_11700_720490_NYB_08 -> 0 | L163: =ACCT_11700_720490_NYB_09 -> 0 | M163: =ACCT_11700_720490_NYB_10 -> 0 | N163: =ACCT_11700_720490_NYB_11 -> 0 | O163: =ACCT_11700_720490_NYB_12 -> 0 | P163: 0 | Q163: 0 | S163: 0 | T163: =ACCT_11700_720490_TOT_CY_BUD -> 0 | U163: =ACCT_11700_720490_TOT_CY_PROJ -> 0 | V163: 0 | W163: 0 | X163: 0 | Y163: 0 | Z163: =ACCT_11700_720490_NOTES -> 0 | AB163: HIDE
A164: 11700 | B164: 720040 | C164: HGV BANKING ALLOCATION | D164: =ACCT_11700_720040_NYB_01 -> 0 | E164: =ACCT_11700_720040_NYB_02 -> 0 | F164: =ACCT_11700_720040_NYB_03 -> 0 | G164: =ACCT_11700_720040_NYB_04 -> 0 | H164: =ACCT_11700_720040_NYB_05 -> 0 | I164: =ACCT_11700_720040_NYB_06 -> 0 | J164: =ACCT_11700_720040_NYB_07 -> 0 | K164: =ACCT_11700_720040_NYB_08 -> 0 | L164: =ACCT_11700_720040_NYB_09 -> 0 | M164: =ACCT_11700_720040_NYB_10 -> 0 | N164: =ACCT_11700_720040_NYB_11 -> 0 | O164: =ACCT_11700_720040_NYB_12 -> 0 | P164: =SUM(D164:O164) -> 0 | Q164: =P164/$C$7 -> 0 | S164: =T164/$C$7 -> 0 | T164: =ACCT_11700_720040_TOT_CY_BUD -> 0 | U164: =ACCT_11700_720040_TOT_CY_PROJ -> 0 | V164: =P164-T164 -> 0 | W164: =IF(T164=0,0,V164/T164) -> 0 | X164: =P164-U164 -> 0 | Y164: =IF(U164=0,0,X164/U164) -> 0 | Z164: =ACCT_11700_720040_NOTES -> 0 | AB164: =IF(AND(P164=0,T164=0,U164=0,Z164=0),"HIDE","") -> HIDE
A165: 11700 | B165: 642050 | C165: DIRECT MAIL | D165: =ACCT_11700_642050_NYB_01 -> 1100 | E165: =ACCT_11700_642050_NYB_02 -> 0 | F165: =ACCT_11700_642050_NYB_03 -> 0 | G165: =ACCT_11700_642050_NYB_04 -> 0 | H165: =ACCT_11700_642050_NYB_05 -> 30 | I165: =ACCT_11700_642050_NYB_06 -> 30 | J165: =ACCT_11700_642050_NYB_07 -> 0 | K165: =ACCT_11700_642050_NYB_08 -> 0 | L165: =ACCT_11700_642050_NYB_09 -> 0 | M165: =ACCT_11700_642050_NYB_10 -> 1100 | N165: =ACCT_11700_642050_NYB_11 -> 0 | O165: =ACCT_11700_642050_NYB_12 -> 700 | P165: 2960 | Q165: 1.81372549 | S165: 1.807598039 | T165: =ACCT_11700_642050_TOT_CY_BUD -> 2950 | U165: =ACCT_11700_642050_TOT_CY_PROJ -> 2942.85 | V165: 10 | W165: 0.003389830508 | X165: 17.15 | Y165: 0.005827684048 | Z165: =ACCT_11700_642050_NOTES -> 0
A166: 11700 | B166: 682070 | C166: OWNERS COFFEE | D166: =ACCT_11700_682070_NYB_01 -> 0 | E166: =ACCT_11700_682070_NYB_02 -> 0 | F166: =ACCT_11700_682070_NYB_03 -> 0 | G166: =ACCT_11700_682070_NYB_04 -> 0 | H166: =ACCT_11700_682070_NYB_05 -> 0 | I166: =ACCT_11700_682070_NYB_06 -> 0 | J166: =ACCT_11700_682070_NYB_07 -> 0 | K166: =ACCT_11700_682070_NYB_08 -> 0 | L166: =ACCT_11700_682070_NYB_09 -> 0 | M166: =ACCT_11700_682070_NYB_10 -> 0 | N166: =ACCT_11700_682070_NYB_11 -> 0 | O166: =ACCT_11700_682070_NYB_12 -> 0 | P166: 0 | Q166: 0 | S166: 0 | T166: =ACCT_11700_682070_TOT_CY_BUD -> 0 | U166: =ACCT_11700_682070_TOT_CY_PROJ -> 0 | V166: 0 | W166: 0 | X166: 0 | Y166: 0 | Z166: =ACCT_11700_682070_NOTES -> 0 | AB166: HIDE
A167: 11700 | B167: 730610 | C167: BOARD OF DIRECTORS | D167: =ACCT_11700_730610_NYB_01 -> 1500 | E167: =ACCT_11700_730610_NYB_02 -> 2000 | F167: =ACCT_11700_730610_NYB_03 -> 0 | G167: =ACCT_11700_730610_NYB_04 -> 0 | H167: =ACCT_11700_730610_NYB_05 -> 0 | I167: =ACCT_11700_730610_NYB_06 -> 0 | J167: =ACCT_11700_730610_NYB_07 -> 0 | K167: =ACCT_11700_730610_NYB_08 -> 0 | L167: =ACCT_11700_730610_NYB_09 -> 0 | M167: =ACCT_11700_730610_NYB_10 -> 0 | N167: =ACCT_11700_730610_NYB_11 -> 5500 | O167: =ACCT_11700_730610_NYB_12 -> 0 | P167: 9000 | Q167: 5.514705882 | S167: 5.514705882 | T167: =ACCT_11700_730610_TOT_CY_BUD -> 9000 | U167: =ACCT_11700_730610_TOT_CY_PROJ -> 9004.08 | V167: 0 | W167: 0 | X167: -4.08 | Y167: -0.0004531279153 | Z167: =ACCT_11700_730610_NOTES -> 0
A168: 11700 | B168: 770040 | C168: NONRECURRING BELOW EBITDA EXP | D168: =ACCT_11700_770040_NYB_01 -> 0 | E168: =ACCT_11700_770040_NYB_02 -> 0 | F168: =ACCT_11700_770040_NYB_03 -> 0 | G168: =ACCT_11700_770040_NYB_04 -> 0 | H168: =ACCT_11700_770040_NYB_05 -> 0 | I168: =ACCT_11700_770040_NYB_06 -> 0 | J168: =ACCT_11700_770040_NYB_07 -> 0 | K168: =ACCT_11700_770040_NYB_08 -> 0 | L168: =ACCT_11700_770040_NYB_09 -> 0 | M168: =ACCT_11700_770040_NYB_10 -> 0 | N168: =ACCT_11700_770040_NYB_11 -> 0 | O168: =ACCT_11700_770040_NYB_12 -> 0 | P168: 0 | Q168: 0 | S168: 0 | T168: =ACCT_11700_770040_TOT_CY_BUD -> 0 | U168: =ACCT_11700_770040_TOT_CY_PROJ -> 0 | V168: 0 | W168: 0 | X168: 0 | Y168: 0 | Z168: =ACCT_11700_770040_NOTES -> 0 | AB168: HIDE
A169: 11700 | B169: 705060 | C169: BOARD AUTHORIZED PROJECT | D169: =ACCT_11700_705060_NYB_01 -> 0 | E169: =ACCT_11700_705060_NYB_02 -> 0 | F169: =ACCT_11700_705060_NYB_03 -> 0 | G169: =ACCT_11700_705060_NYB_04 -> 0 | H169: =ACCT_11700_705060_NYB_05 -> 0 | I169: =ACCT_11700_705060_NYB_06 -> 0 | J169: =ACCT_11700_705060_NYB_07 -> 0 | K169: =ACCT_11700_705060_NYB_08 -> 0 | L169: =ACCT_11700_705060_NYB_09 -> 0 | M169: =ACCT_11700_705060_NYB_10 -> 0 | N169: =ACCT_11700_705060_NYB_11 -> 0 | O169: =ACCT_11700_705060_NYB_12 -> 0 | P169: 0 | Q169: 0 | S169: 0 | T169: =ACCT_11700_705060_TOT_CY_BUD -> 0 | U169: =ACCT_11700_705060_TOT_CY_PROJ -> 0 | V169: 0 | W169: 0 | X169: 0 | Y169: =IF(U169=0,0,X169/U169) -> 0 | Z169: =ACCT_11700_705060_NOTES -> 0 | AB169: HIDE
C170: GENERAL & ADMINISTRATIVE TOTAL | D170: =SUM(D99:D169) -> 49636 | E170: 45123 | F170: 41366 | G170: 40545 | H170: 48015 | I170: 38989 | J170: 39893 | K170: 38398 | L170: 39996 | M170: 40965 | N170: 53931 | O170: 47360 | P170: 524217 | Q170: 321.2113971 | S170: 302.9185049 | T170: =SUM(T99:T169) -> 494363 | U170: =SUM(U99:U169) -> 502648.51 | V170: =P170-T170 -> 29854 | W170: 0.0603888236 | X170: 21568.49 | Y170: =IF(U170=0,0,X170/U170) -> 0.04290968653
C171: ACTIVITIES
A172: 11262 | B172: 458230 | C172: ACTIVITIES REVENE | D172: =-ACCT_11262_458230_NYB_01 -> 0 | E172: =-ACCT_11262_458230_NYB_02 -> 0 | F172: =-ACCT_11262_458230_NYB_03 -> 0 | G172: =-ACCT_11262_458230_NYB_04 -> 0 | H172: =-ACCT_11262_458230_NYB_05 -> 0 | I172: =-ACCT_11262_458230_NYB_06 -> 0 | J172: =-ACCT_11262_458230_NYB_07 -> 0 | K172: =-ACCT_11262_458230_NYB_08 -> 0 | L172: =-ACCT_11262_458230_NYB_09 -> 0 | M172: =-ACCT_11262_458230_NYB_10 -> 0 | N172: =-ACCT_11262_458230_NYB_11 -> 0 | O172: =-ACCT_11262_458230_NYB_12 -> 0 | P172: =SUM(D172:O172) -> 0 | Q172: =P172/$C$7 -> 0 | S172: =T172/$C$7 -> 0 | T172: =-ACCT_11262_458230_TOT_CY_BUD -> 0 | U172: =-ACCT_11262_458230_TOT_CY_PROJ -> 0 | V172: =P172-T172 -> 0 | W172: =IF(T172=0,0,V172/T172) -> 0 | X172: =P172-U172 -> 0 | Y172: =IF(U172=0,0,X172/U172) -> 0 | Z172: =ACCT_11262_458230_NOTES -> 0 | AB172: =IF(AND(P172=0,T172=0,U172=0,Z172=0),"HIDE","") -> HIDE
A173: 11262 | B173: 438250 | C173: IN-HOUSE MOVIES | D173: =-ACCT_11262_438250_NYB_01 -> 0 | E173: =-ACCT_11262_438250_NYB_02 -> 0 | F173: =-ACCT_11262_438250_NYB_03 -> 0 | G173: =-ACCT_11262_438250_NYB_04 -> 0 | H173: =-ACCT_11262_438250_NYB_05 -> 0 | I173: =-ACCT_11262_438250_NYB_06 -> 0 | J173: =-ACCT_11262_438250_NYB_07 -> 0 | K173: =-ACCT_11262_438250_NYB_08 -> 0 | L173: =-ACCT_11262_438250_NYB_09 -> 0 | M173: =-ACCT_11262_438250_NYB_10 -> 0 | N173: =-ACCT_11262_438250_NYB_11 -> 0 | O173: =-ACCT_11262_438250_NYB_12 -> 0 | P173: 0 | Q173: 0 | S173: 0 | T173: =-ACCT_11262_438250_TOT_CY_BUD -> 0 | U173: =-ACCT_11262_438250_TOT_CY_PROJ -> 0 | V173: 0 | W173: 0 | X173: 0 | Y173: =IF(U173=0,0,X173/U173) -> 0 | Z173: =ACCT_11262_438250_NOTES -> 0 | AB173: HIDE
A174: 11262 | B174: 458390 | C174: BOAT FEE | D174: =-ACCT_11262_458390_NYB_01 -> 0 | E174: =-ACCT_11262_458390_NYB_02 -> 0 | F174: =-ACCT_11262_458390_NYB_03 -> 0 | G174: =-ACCT_11262_458390_NYB_04 -> 0 | H174: =-ACCT_11262_458390_NYB_05 -> 0 | I174: =-ACCT_11262_458390_NYB_06 -> 0 | J174: =-ACCT_11262_458390_NYB_07 -> 0 | K174: =-ACCT_11262_458390_NYB_08 -> 0 | L174: =-ACCT_11262_458390_NYB_09 -> 0 | M174: =-ACCT_11262_458390_NYB_10 -> 0 | N174: =-ACCT_11262_458390_NYB_11 -> 0 | O174: =-ACCT_11262_458390_NYB_12 -> 0 | P174: 0 | Q174: 0 | S174: 0 | T174: =-ACCT_11262_458390_TOT_CY_BUD -> 0 | U174: =-ACCT_11262_458390_TOT_CY_PROJ -> 0 | V174: 0 | W174: 0 | X174: 0 | Y174: 0 | Z174: =ACCT_11262_458390_NOTES -> 0 | AB174: HIDE
A175: 11262 | B175: 555020 | C175: PERFORMANCE AWARDS | D175: =ACCT_11262_555020_NYB_01 -> 0 | E175: =ACCT_11262_555020_NYB_02 -> 0 | F175: =ACCT_11262_555020_NYB_03 -> 0 | G175: =ACCT_11262_555020_NYB_04 -> 0 | H175: =ACCT_11262_555020_NYB_05 -> 0 | I175: =ACCT_11262_555020_NYB_06 -> 0 | J175: =ACCT_11262_555020_NYB_07 -> 0 | K175: =ACCT_11262_555020_NYB_08 -> 0 | L175: =ACCT_11262_555020_NYB_09 -> 0 | M175: =ACCT_11262_555020_NYB_10 -> 0 | N175: =ACCT_11262_555020_NYB_11 -> 0 | O175: =ACCT_11262_555020_NYB_12 -> 0 | P175: 0 | Q175: 0 | S175: 0 | T175: =ACCT_11262_555020_TOT_CY_BUD -> 0 | U175: =ACCT_11262_555020_TOT_CY_PROJ -> 0 | V175: 0 | W175: 0 | X175: 0 | Y175: 0 | Z175: =ACCT_11262_555020_NOTES -> 0 | AB175: HIDE
A176: 11262 | B176: 541002 | C176: SALARIED MANAGER | D176: =ACCT_11262_541002_NYB_01 -> 0 | E176: =ACCT_11262_541002_NYB_02 -> 0 | F176: =ACCT_11262_541002_NYB_03 -> 0 | G176: =ACCT_11262_541002_NYB_04 -> 0 | H176: =ACCT_11262_541002_NYB_05 -> 0 | I176: =ACCT_11262_541002_NYB_06 -> 0 | J176: =ACCT_11262_541002_NYB_07 -> 0 | K176: =ACCT_11262_541002_NYB_08 -> 0 | L176: =ACCT_11262_541002_NYB_09 -> 0 | M176: =ACCT_11262_541002_NYB_10 -> 0 | N176: =ACCT_11262_541002_NYB_11 -> 0 | O176: =ACCT_11262_541002_NYB_12 -> 0 | P176: 0 | Q176: 0 | S176: 0 | T176: =ACCT_11262_541002_TOT_CY_BUD -> 0 | U176: =ACCT_11262_541002_TOT_CY_PROJ -> 0 | V176: 0 | W176: 0 | X176: 0 | Y176: 0 | Z176: =ACCT_11262_541002_NOTES -> 0 | AB176: HIDE
A177: 11262 | B177: 541003 | C177: SALARIED NON-MANAGER | D177: =ACCT_11262_541003_NYB_01 -> 0 | E177: =ACCT_11262_541003_NYB_02 -> 0 | F177: =ACCT_11262_541003_NYB_03 -> 0 | G177: =ACCT_11262_541003_NYB_04 -> 0 | H177: =ACCT_11262_541003_NYB_05 -> 0 | I177: =ACCT_11262_541003_NYB_06 -> 0 | J177: =ACCT_11262_541003_NYB_07 -> 0 | K177: =ACCT_11262_541003_NYB_08 -> 0 | L177: =ACCT_11262_541003_NYB_09 -> 0 | M177: =ACCT_11262_541003_NYB_10 -> 0 | N177: =ACCT_11262_541003_NYB_11 -> 0 | O177: =ACCT_11262_541003_NYB_12 -> 0 | P177: 0 | Q177: 0 | S177: 0 | T177: =ACCT_11262_541003_TOT_CY_BUD -> 0 | U177: =ACCT_11262_541003_TOT_CY_PROJ -> 0 | V177: 0 | W177: 0 | X177: 0 | Y177: 0 | Z177: =ACCT_11262_541003_NOTES -> 0 | AB177: HIDE
A178: 11262 | B178: 561260 | C178: WORKERS COMPENSATION EXP | D178: =ACCT_11262_561260_NYB_01 -> 0 | E178: =ACCT_11262_561260_NYB_02 -> 0 | F178: =ACCT_11262_561260_NYB_03 -> 0 | G178: =ACCT_11262_561260_NYB_04 -> 0 | H178: =ACCT_11262_561260_NYB_05 -> 0 | I178: =ACCT_11262_561260_NYB_06 -> 0 | J178: =ACCT_11262_561260_NYB_07 -> 0 | K178: =ACCT_11262_561260_NYB_08 -> 0 | L178: =ACCT_11262_561260_NYB_09 -> 0 | M178: =ACCT_11262_561260_NYB_10 -> 0 | N178: =ACCT_11262_561260_NYB_11 -> 0 | O178: =ACCT_11262_561260_NYB_12 -> 0 | P178: 0 | Q178: 0 | S178: 0 | T178: =ACCT_11262_561260_TOT_CY_BUD -> 0 | U178: =ACCT_11262_561260_TOT_CY_PROJ -> 0 | V178: 0 | W178: 0 | X178: 0 | Y178: 0 | Z178: =ACCT_11262_561260_NOTES -> 0 | AB178: HIDE
A179: 11262 | B179: 542030 | C179: HOURLY OTHER | D179: =ACCT_11262_542030_NYB_01 -> 0 | E179: =ACCT_11262_542030_NYB_02 -> 0 | F179: =ACCT_11262_542030_NYB_03 -> 0 | G179: =ACCT_11262_542030_NYB_04 -> 0 | H179: =ACCT_11262_542030_NYB_05 -> 0 | I179: =ACCT_11262_542030_NYB_06 -> 0 | J179: =ACCT_11262_542030_NYB_07 -> 0 | K179: =ACCT_11262_542030_NYB_08 -> 0 | L179: =ACCT_11262_542030_NYB_09 -> 0 | M179: =ACCT_11262_542030_NYB_10 -> 0 | N179: =ACCT_11262_542030_NYB_11 -> 0 | O179: =ACCT_11262_542030_NYB_12 -> 0 | P179: 0 | Q179: 0 | S179: 0 | T179: =ACCT_11262_542030_TOT_CY_BUD -> 0 | U179: =ACCT_11262_542030_TOT_CY_PROJ -> 0 | V179: 0 | W179: 0 | X179: 0 | Y179: 0 | Z179: =ACCT_11262_542030_NOTES -> 0 | AB179: HIDE
A180: 11262 | B180: 543030 | C180: OT HOURLY OTHER | D180: =ACCT_11262_543030_NYB_01 -> 0 | E180: =ACCT_11262_543030_NYB_02 -> 0 | F180: =ACCT_11262_543030_NYB_03 -> 0 | G180: =ACCT_11262_543030_NYB_04 -> 0 | H180: =ACCT_11262_543030_NYB_05 -> 0 | I180: =ACCT_11262_543030_NYB_06 -> 0 | J180: =ACCT_11262_543030_NYB_07 -> 0 | K180: =ACCT_11262_543030_NYB_08 -> 0 | L180: =ACCT_11262_543030_NYB_09 -> 0 | M180: =ACCT_11262_543030_NYB_10 -> 0 | N180: =ACCT_11262_543030_NYB_11 -> 0 | O180: =ACCT_11262_543030_NYB_12 -> 0 | P180: 0 | Q180: 0 | S180: 0 | T180: =ACCT_11262_543030_TOT_CY_BUD -> 0 | U180: =ACCT_11262_543030_TOT_CY_PROJ -> 0 | V180: 0 | W180: 0 | X180: 0 | Y180: 0 | Z180: =ACCT_11262_543030_NOTES -> 0 | AB180: HIDE
A181: 11262 | B181: 561240 | C181: PAID TIME OFF | D181: =ACCT_11262_561240_NYB_01 -> 0 | E181: =ACCT_11262_561240_NYB_02 -> 0 | F181: =ACCT_11262_561240_NYB_03 -> 0 | G181: =ACCT_11262_561240_NYB_04 -> 0 | H181: =ACCT_11262_561240_NYB_05 -> 0 | I181: =ACCT_11262_561240_NYB_06 -> 0 | J181: =ACCT_11262_561240_NYB_07 -> 0 | K181: =ACCT_11262_561240_NYB_08 -> 0 | L181: =ACCT_11262_561240_NYB_09 -> 0 | M181: =ACCT_11262_561240_NYB_10 -> 0 | N181: =ACCT_11262_561240_NYB_11 -> 0 | O181: =ACCT_11262_561240_NYB_12 -> 0 | P181: 0 | Q181: 0 | S181: 0 | T181: =ACCT_11262_561240_TOT_CY_BUD -> 0 | U181: =ACCT_11262_561240_TOT_CY_PROJ -> 0 | V181: 0 | W181: 0 | X181: 0 | Y181: 0 | Z181: =ACCT_11262_561240_NOTES -> 0 | AB181: HIDE
A182: 11262 | B182: 555070 | C182: OTHER INCENTIVE COMPENSATION EXP | D182: =ACCT_11262_555070_NYB_01 -> 0 | E182: =ACCT_11262_555070_NYB_02 -> 0 | F182: =ACCT_11262_555070_NYB_03 -> 0 | G182: =ACCT_11262_555070_NYB_04 -> 0 | H182: =ACCT_11262_555070_NYB_05 -> 0 | I182: =ACCT_11262_555070_NYB_06 -> 0 | J182: =ACCT_11262_555070_NYB_07 -> 0 | K182: =ACCT_11262_555070_NYB_08 -> 0 | L182: =ACCT_11262_555070_NYB_09 -> 0 | M182: =ACCT_11262_555070_NYB_10 -> 0 | N182: =ACCT_11262_555070_NYB_11 -> 0 | O182: =ACCT_11262_555070_NYB_12 -> 0 | P182: 0 | Q182: 0 | S182: 0 | T182: =ACCT_11262_555070_TOT_CY_BUD -> 0 | U182: =ACCT_11262_555070_TOT_CY_PROJ -> 0 | V182: 0 | W182: 0 | X182: 0 | Y182: 0 | Z182: =ACCT_11262_555070_NOTES -> 0 | AB182: HIDE
A183: 11262 | B183: 561020 | C183: PENSION DEFINED CONTRIBUTION | D183: =ACCT_11262_561020_NYB_01 -> 0 | E183: =ACCT_11262_561020_NYB_02 -> 0 | F183: =ACCT_11262_561020_NYB_03 -> 0 | G183: =ACCT_11262_561020_NYB_04 -> 0 | H183: =ACCT_11262_561020_NYB_05 -> 0 | I183: =ACCT_11262_561020_NYB_06 -> 0 | J183: =ACCT_11262_561020_NYB_07 -> 0 | K183: =ACCT_11262_561020_NYB_08 -> 0 | L183: =ACCT_11262_561020_NYB_09 -> 0 | M183: =ACCT_11262_561020_NYB_10 -> 0 | N183: =ACCT_11262_561020_NYB_11 -> 0 | O183: =ACCT_11262_561020_NYB_12 -> 0 | P183: 0 | Q183: 0 | S183: 0 | T183: =ACCT_11262_561020_TOT_CY_BUD -> 0 | U183: =ACCT_11262_561020_TOT_CY_PROJ -> 0 | V183: 0 | W183: 0 | X183: =P183-U183 -> 0 | Y183: =IF(U183=0,0,X183/U183) -> 0 | Z183: =ACCT_11262_561020_NOTES -> 0 | AB183: HIDE
A184: 11262 | B184: 561010 | C184: GROUP HEALTH INSURANCE NON-UNION | D184: =ACCT_11262_561010_NYB_01 -> 0 | E184: =ACCT_11262_561010_NYB_02 -> 0 | F184: =ACCT_11262_561010_NYB_03 -> 0 | G184: =ACCT_11262_561010_NYB_04 -> 0 | H184: =ACCT_11262_561010_NYB_05 -> 0 | I184: =ACCT_11262_561010_NYB_06 -> 0 | J184: =ACCT_11262_561010_NYB_07 -> 0 | K184: =ACCT_11262_561010_NYB_08 -> 0 | L184: =ACCT_11262_561010_NYB_09 -> 0 | M184: =ACCT_11262_561010_NYB_10 -> 0 | N184: =ACCT_11262_561010_NYB_11 -> 0 | O184: =ACCT_11262_561010_NYB_12 -> 0 | P184: 0 | Q184: 0 | S184: 0 | T184: =ACCT_11262_561010_TOT_CY_BUD -> 0 | U184: =ACCT_11262_561010_TOT_CY_PROJ -> 0 | V184: 0 | W184: 0 | X184: 0 | Y184: 0 | Z184: =ACCT_11262_561010_NOTES -> 0 | AB184: =IF(AND(P184=0,T184=0,U184=0,Z184=0),"HIDE","") -> HIDE
A185: 11262 | B185: 561490 | C185: OTHER NON-UNION BENEFIT EXP | D185: =ACCT_11262_561490_NYB_01 -> 0 | E185: =ACCT_11262_561490_NYB_02 -> 0 | F185: =ACCT_11262_561490_NYB_03 -> 0 | G185: =ACCT_11262_561490_NYB_04 -> 0 | H185: =ACCT_11262_561490_NYB_05 -> 0 | I185: =ACCT_11262_561490_NYB_06 -> 0 | J185: =ACCT_11262_561490_NYB_07 -> 0 | K185: =ACCT_11262_561490_NYB_08 -> 0 | L185: =ACCT_11262_561490_NYB_09 -> 0 | M185: =ACCT_11262_561490_NYB_10 -> 0 | N185: =ACCT_11262_561490_NYB_11 -> 0 | O185: =ACCT_11262_561490_NYB_12 -> 0 | P185: 0 | Q185: 0 | S185: 0 | T185: =ACCT_11262_561490_TOT_CY_BUD -> 0 | U185: =ACCT_11262_561490_TOT_CY_PROJ -> 0 | V185: 0 | W185: 0 | X185: 0 | Y185: 0 | Z185: =ACCT_11262_561490_NOTES -> 0 | AB185: =IF(AND(P185=0,T185=0,U185=0,Z185=0),"HIDE","") -> HIDE
A186: 11262 | B186: 565010 | C186: SOCIAL SECURITY TAX EXPENSE | D186: =ACCT_11262_565010_NYB_01 -> 0 | E186: =ACCT_11262_565010_NYB_02 -> 0 | F186: =ACCT_11262_565010_NYB_03 -> 0 | G186: =ACCT_11262_565010_NYB_04 -> 0 | H186: =ACCT_11262_565010_NYB_05 -> 0 | I186: =ACCT_11262_565010_NYB_06 -> 0 | J186: =ACCT_11262_565010_NYB_07 -> 0 | K186: =ACCT_11262_565010_NYB_08 -> 0 | L186: =ACCT_11262_565010_NYB_09 -> 0 | M186: =ACCT_11262_565010_NYB_10 -> 0 | N186: =ACCT_11262_565010_NYB_11 -> 0 | O186: =ACCT_11262_565010_NYB_12 -> 0 | P186: 0 | Q186: 0 | S186: 0 | T186: =ACCT_11262_565010_TOT_CY_BUD -> 0 | U186: =ACCT_11262_565010_TOT_CY_PROJ -> 0 | V186: 0 | W186: 0 | X186: =P186-U186 -> 0 | Y186: =IF(U186=0,0,X186/U186) -> 0 | Z186: =ACCT_11262_565010_NOTES -> 0 | AB186: =IF(AND(P186=0,T186=0,U186=0,Z186=0),"HIDE","") -> HIDE
A187: 11262 | B187: 565040 | C187: STATE UNEMPLOYMENT TAX | D187: =ACCT_11262_565040_NYB_01 -> 0 | E187: =ACCT_11262_565040_NYB_02 -> 0 | F187: =ACCT_11262_565040_NYB_03 -> 0 | G187: =ACCT_11262_565040_NYB_04 -> 0 | H187: =ACCT_11262_565040_NYB_05 -> 0 | I187: =ACCT_11262_565040_NYB_06 -> 0 | J187: =ACCT_11262_565040_NYB_07 -> 0 | K187: =ACCT_11262_565040_NYB_08 -> 0 | L187: =ACCT_11262_565040_NYB_09 -> 0 | M187: =ACCT_11262_565040_NYB_10 -> 0 | N187: =ACCT_11262_565040_NYB_11 -> 0 | O187: =ACCT_11262_565040_NYB_12 -> 0 | P187: =SUM(D187:O187) -> 0 | Q187: =P187/$C$7 -> 0 | S187: =T187/$C$7 -> 0 | T187: =ACCT_11262_565040_TOT_CY_BUD -> 0 | U187: =ACCT_11262_565040_TOT_CY_PROJ -> 0 | V187: =P187-T187 -> 0 | W187: =IF(T187=0,0,V187/T187) -> 0 | X187: =P187-U187 -> 0 | Y187: =IF(U187=0,0,X187/U187) -> 0 | Z187: =ACCT_11262_565040_NOTES -> 0 | AB187: =IF(AND(P187=0,T187=0,U187=0,Z187=0),"HIDE","") -> HIDE
A188: 11262 | B188: 515990 | C188: COS OTHER | D188: =ACCT_11262_515990_NYB_01 -> 0 | E188: =ACCT_11262_515990_NYB_02 -> 0 | F188: =ACCT_11262_515990_NYB_03 -> 0 | G188: =ACCT_11262_515990_NYB_04 -> 0 | H188: =ACCT_11262_515990_NYB_05 -> 0 | I188: =ACCT_11262_515990_NYB_06 -> 0 | J188: =ACCT_11262_515990_NYB_07 -> 0 | K188: =ACCT_11262_515990_NYB_08 -> 0 | L188: =ACCT_11262_515990_NYB_09 -> 0 | M188: =ACCT_11262_515990_NYB_10 -> 0 | N188: =ACCT_11262_515990_NYB_11 -> 0 | O188: =ACCT_11262_515990_NYB_12 -> 0 | P188: 0 | Q188: 0 | S188: 0 | T188: =ACCT_11262_515990_TOT_CY_BUD -> 0 | U188: =ACCT_11262_515990_TOT_CY_PROJ -> 0 | V188: 0 | W188: 0 | X188: 0 | Y188: 0 | Z188: =ACCT_11262_515990_NOTES -> 0 | AB188: =IF(AND(P188=0,T188=0,U188=0,Z188=0),"HIDE","") -> HIDE
A189: 11262 | B189: 694190 | C189: ACTIVITIES SUPPLIES | D189: =ACCT_11262_694190_NYB_01 -> 325 | E189: =ACCT_11262_694190_NYB_02 -> 325 | F189: =ACCT_11262_694190_NYB_03 -> 325 | G189: =ACCT_11262_694190_NYB_04 -> 325 | H189: =ACCT_11262_694190_NYB_05 -> 325 | I189: =ACCT_11262_694190_NYB_06 -> 325 | J189: =ACCT_11262_694190_NYB_07 -> 325 | K189: =ACCT_11262_694190_NYB_08 -> 325 | L189: =ACCT_11262_694190_NYB_09 -> 325 | M189: =ACCT_11262_694190_NYB_10 -> 325 | N189: =ACCT_11262_694190_NYB_11 -> 325 | O189: =ACCT_11262_694190_NYB_12 -> 325 | P189: 3900 | Q189: 2.389705882 | S189: 2.389705882 | T189: =ACCT_11262_694190_TOT_CY_BUD -> 3900 | U189: =ACCT_11262_694190_TOT_CY_PROJ -> 3899.97 | V189: 0 | W189: 0 | X189: 0.03 | Y189: 7.692366864e-06 | Z189: =ACCT_11262_694190_NOTES -> no increase
A190: 11262 | B190: 682080 | C190: OWNERS PARTIES | D190: =ACCT_11262_682080_NYB_01 -> 0 | E190: =ACCT_11262_682080_NYB_02 -> 0 | F190: =ACCT_11262_682080_NYB_03 -> 0 | G190: =ACCT_11262_682080_NYB_04 -> 0 | H190: =ACCT_11262_682080_NYB_05 -> 0 | I190: =ACCT_11262_682080_NYB_06 -> 0 | J190: =ACCT_11262_682080_NYB_07 -> 0 | K190: =ACCT_11262_682080_NYB_08 -> 0 | L190: =ACCT_11262_682080_NYB_09 -> 0 | M190: =ACCT_11262_682080_NYB_10 -> 0 | N190: =ACCT_11262_682080_NYB_11 -> 0 | O190: =ACCT_11262_682080_NYB_12 -> 0 | P190: 0 | Q190: 0 | S190: 0 | T190: =ACCT_11262_682080_TOT_CY_BUD -> 0 | U190: =ACCT_11262_682080_TOT_CY_PROJ -> 0 | V190: 0 | W190: 0 | X190: 0 | Y190: 0 | Z190: =ACCT_11262_682080_NOTES -> 0 | AB190: HIDE
A191: 11262 | B191: 515140 | C191: COS IN-HOUSE MOVIES | D191: =ACCT_11262_515140_NYB_01 -> 0 | E191: =ACCT_11262_515140_NYB_02 -> 0 | F191: =ACCT_11262_515140_NYB_03 -> 0 | G191: =ACCT_11262_515140_NYB_04 -> 0 | H191: =ACCT_11262_515140_NYB_05 -> 0 | I191: =ACCT_11262_515140_NYB_06 -> 0 | J191: =ACCT_11262_515140_NYB_07 -> 0 | K191: =ACCT_11262_515140_NYB_08 -> 0 | L191: =ACCT_11262_515140_NYB_09 -> 0 | M191: =ACCT_11262_515140_NYB_10 -> 0 | N191: =ACCT_11262_515140_NYB_11 -> 0 | O191: =ACCT_11262_515140_NYB_12 -> 0 | P191: 0 | Q191: 0 | S191: 0 | T191: =ACCT_11262_515140_TOT_CY_BUD -> 0 | U191: =ACCT_11262_515140_TOT_CY_PROJ -> 0 | V191: 0 | W191: 0 | X191: 0 | Y191: 0 | Z191: =ACCT_11262_515140_NOTES -> 0 | AB191: HIDE
A192: 11262 | B192: 620010 | C192: AIRFARE | D192: =ACCT_11262_620010_NYB_01 -> 0 | E192: =ACCT_11262_620010_NYB_02 -> 0 | F192: =ACCT_11262_620010_NYB_03 -> 0 | G192: =ACCT_11262_620010_NYB_04 -> 0 | H192: =ACCT_11262_620010_NYB_05 -> 0 | I192: =ACCT_11262_620010_NYB_06 -> 0 | J192: =ACCT_11262_620010_NYB_07 -> 0 | K192: =ACCT_11262_620010_NYB_08 -> 0 | L192: =ACCT_11262_620010_NYB_09 -> 0 | M192: =ACCT_11262_620010_NYB_10 -> 0 | N192: =ACCT_11262_620010_NYB_11 -> 0 | O192: =ACCT_11262_620010_NYB_12 -> 0 | P192: =SUM(D192:O192) -> 0 | Q192: =P192/$C$7 -> 0 | S192: =T192/$C$7 -> 0 | T192: =ACCT_11262_620010_TOT_CY_BUD -> 0 | U192: =ACCT_11262_620010_TOT_CY_PROJ -> 0 | V192: =P192-T192 -> 0 | W192: =IF(T192=0,0,V192/T192) -> 0 | X192: =P192-U192 -> 0 | Y192: =IF(U192=0,0,X192/U192) -> 0 | Z192: =ACCT_11262_620010_NOTES -> 0 | AB192: =IF(AND(P192=0,T192=0,U192=0,Z192=0),"HIDE","") -> HIDE
A193: 11262 | B193: 620210 | C193: GROUND TRANSPORTATION | D193: =ACCT_11262_620210_NYB_01 -> 0 | E193: =ACCT_11262_620210_NYB_02 -> 0 | F193: =ACCT_11262_620210_NYB_03 -> 0 | G193: =ACCT_11262_620210_NYB_04 -> 0 | H193: =ACCT_11262_620210_NYB_05 -> 0 | I193: =ACCT_11262_620210_NYB_06 -> 0 | J193: =ACCT_11262_620210_NYB_07 -> 0 | K193: =ACCT_11262_620210_NYB_08 -> 0 | L193: =ACCT_11262_620210_NYB_09 -> 0 | M193: =ACCT_11262_620210_NYB_10 -> 0 | N193: =ACCT_11262_620210_NYB_11 -> 0 | O193: =ACCT_11262_620210_NYB_12 -> 0 | P193: =SUM(D193:O193) -> 0 | Q193: =P193/$C$7 -> 0 | S193: =T193/$C$7 -> 0 | T193: =ACCT_11262_620210_TOT_CY_BUD -> 0 | U193: =ACCT_11262_620210_TOT_CY_PROJ -> 0 | V193: =P193-T193 -> 0 | W193: =IF(T193=0,0,V193/T193) -> 0 | X193: =P193-U193 -> 0 | Y193: =IF(U193=0,0,X193/U193) -> 0 | Z193: =ACCT_11262_620210_NOTES -> 0 | AB193: =IF(AND(P193=0,T193=0,U193=0,Z193=0),"HIDE","") -> HIDE
A194: 11262 | B194: 515120 | C194: COS EQUIP RENT | D194: =ACCT_11262_515120_NYB_01 -> 0 | E194: =ACCT_11262_515120_NYB_02 -> 0 | F194: =ACCT_11262_515120_NYB_03 -> 0 | G194: =ACCT_11262_515120_NYB_04 -> 0 | H194: =ACCT_11262_515120_NYB_05 -> 0 | I194: =ACCT_11262_515120_NYB_06 -> 0 | J194: =ACCT_11262_515120_NYB_07 -> 0 | K194: =ACCT_11262_515120_NYB_08 -> 0 | L194: =ACCT_11262_515120_NYB_09 -> 0 | M194: =ACCT_11262_515120_NYB_10 -> 0 | N194: =ACCT_11262_515120_NYB_11 -> 0 | O194: =ACCT_11262_515120_NYB_12 -> 0 | P194: 0 | Q194: 0 | S194: 0 | T194: =ACCT_11262_515120_TOT_CY_BUD -> 0 | U194: =ACCT_11262_515120_TOT_CY_PROJ -> 0 | V194: 0 | W194: 0 | X194: 0 | Y194: 0 | Z194: =ACCT_11262_515120_NOTES -> 0 | AB194: HIDE
A195: 11262 | B195: 664300 | C195: FITNESS EQUIPMENT | D195: =ACCT_11262_664300_NYB_01 -> 0 | E195: =ACCT_11262_664300_NYB_02 -> 0 | F195: =ACCT_11262_664300_NYB_03 -> 0 | G195: =ACCT_11262_664300_NYB_04 -> 0 | H195: =ACCT_11262_664300_NYB_05 -> 0 | I195: =ACCT_11262_664300_NYB_06 -> 0 | J195: =ACCT_11262_664300_NYB_07 -> 0 | K195: =ACCT_11262_664300_NYB_08 -> 0 | L195: =ACCT_11262_664300_NYB_09 -> 0 | M195: =ACCT_11262_664300_NYB_10 -> 0 | N195: =ACCT_11262_664300_NYB_11 -> 0 | O195: =ACCT_11262_664300_NYB_12 -> 0 | P195: =SUM(D195:O195) -> 0 | Q195: =P195/$C$7 -> 0 | S195: =T195/$C$7 -> 0 | T195: =ACCT_11262_664300_TOT_CY_BUD -> 0 | U195: =ACCT_11262_664300_TOT_CY_PROJ -> 0 | V195: =P195-T195 -> 0 | W195: =IF(T195=0,0,V195/T195) -> 0 | X195: =P195-U195 -> 0 | Y195: =IF(U195=0,0,X195/U195) -> 0 | Z195: =ACCT_11262_664300_NOTES -> 0 | AB195: =IF(AND(P195=0,T195=0,U195=0,Z195=0),"HIDE","") -> HIDE
A196: 11262 | B196: 663150 | C196: RECREATION CONTRACTS | D196: =ACCT_11262_663150_NYB_01 -> 0 | E196: =ACCT_11262_663150_NYB_02 -> 0 | F196: =ACCT_11262_663150_NYB_03 -> 0 | G196: =ACCT_11262_663150_NYB_04 -> 0 | H196: =ACCT_11262_663150_NYB_05 -> 0 | I196: =ACCT_11262_663150_NYB_06 -> 0 | J196: =ACCT_11262_663150_NYB_07 -> 0 | K196: =ACCT_11262_663150_NYB_08 -> 0 | L196: =ACCT_11262_663150_NYB_09 -> 0 | M196: =ACCT_11262_663150_NYB_10 -> 0 | N196: =ACCT_11262_663150_NYB_11 -> 0 | O196: =ACCT_11262_663150_NYB_12 -> 0 | P196: 0 | Q196: 0 | S196: 0 | T196: =ACCT_11262_663150_TOT_CY_BUD -> 0 | U196: =ACCT_11262_663150_TOT_CY_PROJ -> 0 | V196: 0 | W196: 0 | X196: 0 | Y196: 0 | Z196: =ACCT_11262_663150_NOTES -> 0 | AB196: HIDE
A197: 11262 | B197: 730280 | C197: BOAT MAINTENANCE | D197: =ACCT_11262_730280_NYB_01 -> 0 | E197: =ACCT_11262_730280_NYB_02 -> 0 | F197: =ACCT_11262_730280_NYB_03 -> 0 | G197: =ACCT_11262_730280_NYB_04 -> 0 | H197: =ACCT_11262_730280_NYB_05 -> 0 | I197: =ACCT_11262_730280_NYB_06 -> 0 | J197: =ACCT_11262_730280_NYB_07 -> 0 | K197: =ACCT_11262_730280_NYB_08 -> 0 | L197: =ACCT_11262_730280_NYB_09 -> 0 | M197: =ACCT_11262_730280_NYB_10 -> 0 | N197: =ACCT_11262_730280_NYB_11 -> 0 | O197: =ACCT_11262_730280_NYB_12 -> 0 | P197: 0 | Q197: 0 | S197: 0 | T197: =ACCT_11262_730280_TOT_CY_BUD -> 0 | U197: =ACCT_11262_730280_TOT_CY_PROJ -> 0 | V197: 0 | W197: 0 | X197: 0 | Y197: =IF(U197=0,0,X197/U197) -> 0 | Z197: =ACCT_11262_730280_NOTES -> 0 | AB197: HIDE
C198: ACTIVITIES TOTAL | D198: =SUM(D172:D197) -> 325 | E198: =SUM(E172:E197) -> 325 | F198: 325 | G198: 325 | H198: 325 | I198: 325 | J198: 325 | K198: 325 | L198: 325 | M198: 325 | N198: 325 | O198: 325 | P198: 3900 | Q198: 2.389705882 | S198: 2.389705882 | T198: =SUM(T172:T197) -> 3900 | U198: =SUM(U172:U197) -> 3899.97 | V198: =P198-T198 -> 0 | W198: 0 | X198: 0.03 | Y198: =IF(U198=0,0,X198/U198) -> 7.692366864e-06
C199: SECURITY SERVICES
A200: 11715 | B200: 555020 | C200: PERFORMANCE AWARDS | D200: =ACCT_11715_555020_NYB_01 -> 0 | E200: =ACCT_11715_555020_NYB_02 -> 0 | F200: =ACCT_11715_555020_NYB_03 -> 0 | G200: =ACCT_11715_555020_NYB_04 -> 0 | H200: =ACCT_11715_555020_NYB_05 -> 0 | I200: =ACCT_11715_555020_NYB_06 -> 0 | J200: =ACCT_11715_555020_NYB_07 -> 0 | K200: =ACCT_11715_555020_NYB_08 -> 0 | L200: =ACCT_11715_555020_NYB_09 -> 0 | M200: =ACCT_11715_555020_NYB_10 -> 0 | N200: =ACCT_11715_555020_NYB_11 -> 0 | O200: =ACCT_11715_555020_NYB_12 -> 0 | P200: =SUM(D200:O200) -> 0 | Q200: =P200/$C$7 -> 0 | S200: =T200/$C$7 -> 0 | T200: =ACCT_11715_555020_TOT_CY_BUD -> 0 | U200: =ACCT_11715_555020_TOT_CY_PROJ -> 0 | V200: =P200-T200 -> 0 | W200: =IF(T200=0,0,V200/T200) -> 0 | X200: =P200-U200 -> 0 | Y200: =IF(U200=0,0,X200/U200) -> 0 | Z200: =ACCT_11715_555020_NOTES -> 0 | AB200: =IF(AND(P200=0,T200=0,U200=0,Z200=0),"HIDE","") -> HIDE
A201: 11715 | B201: 541002 | C201: SALARIED MANAGER | D201: =ACCT_11715_541002_NYB_01 -> 0 | E201: =ACCT_11715_541002_NYB_02 -> 0 | F201: =ACCT_11715_541002_NYB_03 -> 0 | G201: =ACCT_11715_541002_NYB_04 -> 0 | H201: =ACCT_11715_541002_NYB_05 -> 0 | I201: =ACCT_11715_541002_NYB_06 -> 0 | J201: =ACCT_11715_541002_NYB_07 -> 0 | K201: =ACCT_11715_541002_NYB_08 -> 0 | L201: =ACCT_11715_541002_NYB_09 -> 0 | M201: =ACCT_11715_541002_NYB_10 -> 0 | N201: =ACCT_11715_541002_NYB_11 -> 0 | O201: =ACCT_11715_541002_NYB_12 -> 0 | P201: 0 | Q201: 0 | S201: 0 | T201: =ACCT_11715_541002_TOT_CY_BUD -> 0 | U201: =ACCT_11715_541002_TOT_CY_PROJ -> 0 | V201: 0 | W201: 0 | X201: 0 | Y201: =IF(U201=0,0,X201/U201) -> 0 | Z201: =ACCT_11715_541002_NOTES -> 0 | AB201: HIDE
A202: 11715 | B202: 541003 | C202: SALARIED NON-MANAGER | D202: =ACCT_11715_541003_NYB_01 -> 0 | E202: =ACCT_11715_541003_NYB_02 -> 0 | F202: =ACCT_11715_541003_NYB_03 -> 0 | G202: =ACCT_11715_541003_NYB_04 -> 0 | H202: =ACCT_11715_541003_NYB_05 -> 0 | I202: =ACCT_11715_541003_NYB_06 -> 0 | J202: =ACCT_11715_541003_NYB_07 -> 0 | K202: =ACCT_11715_541003_NYB_08 -> 0 | L202: =ACCT_11715_541003_NYB_09 -> 0 | M202: =ACCT_11715_541003_NYB_10 -> 0 | N202: =ACCT_11715_541003_NYB_11 -> 0 | O202: =ACCT_11715_541003_NYB_12 -> 0 | P202: 0 | Q202: 0 | S202: 0 | T202: =ACCT_11715_541003_TOT_CY_BUD -> 0 | U202: =ACCT_11715_541003_TOT_CY_PROJ -> 0 | V202: 0 | W202: 0 | X202: 0 | Y202: 0 | Z202: =ACCT_11715_541003_NOTES -> 0 | AB202: HIDE
A203: 11715 | B203: 561260 | C203: WORKERS COMPENSATION EXP | D203: =ACCT_11715_561260_NYB_01 -> 0 | E203: =ACCT_11715_561260_NYB_02 -> 0 | F203: =ACCT_11715_561260_NYB_03 -> 0 | G203: =ACCT_11715_561260_NYB_04 -> 0 | H203: =ACCT_11715_561260_NYB_05 -> 0 | I203: =ACCT_11715_561260_NYB_06 -> 0 | J203: =ACCT_11715_561260_NYB_07 -> 0 | K203: =ACCT_11715_561260_NYB_08 -> 0 | L203: =ACCT_11715_561260_NYB_09 -> 0 | M203: =ACCT_11715_561260_NYB_10 -> 0 | N203: =ACCT_11715_561260_NYB_11 -> 0 | O203: =ACCT_11715_561260_NYB_12 -> 0 | P203: 0 | Q203: 0 | S203: 0.3676470588 | T203: =ACCT_11715_561260_TOT_CY_BUD -> 600 | U203: =ACCT_11715_561260_TOT_CY_PROJ -> 245.12 | V203: -600 | W203: -1 | X203: -245.12 | Y203: -1 | Z203: =ACCT_11715_561260_NOTES -> based on actuals
A204: 11715 | B204: 542030 | C204: HOURLY OTHER | D204: =ACCT_11715_542030_NYB_01 -> 0 | E204: =ACCT_11715_542030_NYB_02 -> 0 | F204: =ACCT_11715_542030_NYB_03 -> 0 | G204: =ACCT_11715_542030_NYB_04 -> 0 | H204: =ACCT_11715_542030_NYB_05 -> 0 | I204: =ACCT_11715_542030_NYB_06 -> 0 | J204: =ACCT_11715_542030_NYB_07 -> 0 | K204: =ACCT_11715_542030_NYB_08 -> 0 | L204: =ACCT_11715_542030_NYB_09 -> 0 | M204: =ACCT_11715_542030_NYB_10 -> 0 | N204: =ACCT_11715_542030_NYB_11 -> 0 | O204: =ACCT_11715_542030_NYB_12 -> 0 | P204: 0 | Q204: 0 | S204: 4.196078431 | T204: =ACCT_11715_542030_TOT_CY_BUD -> 6848 | U204: =ACCT_11715_542030_TOT_CY_PROJ -> 0 | V204: -6848 | W204: -1 | X204: 0 | Y204: 0 | Z204: =ACCT_11715_542030_NOTES -> 0
... 158 more rows

Sheet MASTER SHEET SUMMARY (hidden)
C1: Hilton Grand Vacations Management, LLC. | I1: Hilton Grand Vacations Company
C2: =Layout!J4 -> Club Regency of Marco Island Condominium Association, Inc | I2: =Layout!J4 -> Club Regency of Marco Island Condominium Association, Inc
C3: =Layout!J5 -> ANNUAL BUDGET FOR THE PERIOD | I3: =Layout!J5 -> ANNUAL BUDGET FOR THE PERIOD
C4: =Layout!J6 -> JANUARY 1, 2018 THROUGH DECEMBER 31, 2018 | I4: =Layout!J6 -> JANUARY 1, 2018 THROUGH DECEMBER 31, 2018
C7: =Layout!D6 -> 1632 | D7: (unit/weeks) | P7: =NV_YEAR4+1 -> 2018 | Q7: =NV_YEAR4+1 -> 2018 | S7: =NV_YEAR4 -> 2017 | T7: =NV_YEAR4 -> 2017 | U7: =NV_YEAR4 -> 2017 | V7: Variance $ | W7: Variance % | X7: Variance $ | Y7: Variance %
P8: Annual | Q8: Per Unit/ | S8: Per Unit/ | T8: Annual | U8: Proj. Actuals | V8: =NV_YEAR4+1&" VS "&NV_YEAR4 -> 2018 VS 2017 | W8: =NV_YEAR4+1&" VS "&NV_YEAR4 -> 2018 VS 2017 | X8: =NV_YEAR4+1&" Budget VS "&NV_YEAR4&" YE Proj" -> 2018 Budget VS 2017 YE Proj | Y8: =NV_YEAR4+1&" Budget VS "&NV_YEAR4&" YE Proj" -> 2018 Budget VS 2017 YE Proj
A9: DEPT | B9: ACCT NO | C9: Description | D9: Jan | E9: Feb | F9: Mar | G9: Apr | H9: May | I9: Jun | J9: Jul | K9: Aug | L9: Sep | M9: Oct | N9: Nov | O9: Dec | P9: Budget | Q9: Week | S9: Week | T9: Budget | U9: For Year End | V9: Budget | W9: Week
C10: OPERATING REVENUE
A11: 19800 | B11: 458010 | C11: ASSOCIATION FEES | D11: =((+$P$324-SUM($P12:$P34))/12) -> 95537.75 | E11: 95537.75 | F11: 95537.75 | G11: 95537.75 | H11: 95537.75 | I11: 95537.75 | J11: 95537.75 | K11: 95537.75 | L11: 95537.75 | M11: 95537.75 | N11: 95537.75 | O11: 95537.75 | P11: =SUM(D11:O11) -> 1146453 | Q11: =P11/$C$7 -> 702.4834559 | S11: =T11/$C$7 -> 680.1746324 | T11: =ACCT_19800_458010_TOT_CY_BUD -> 1110045 | U11: =ACCT_19800_458010_TOT_CY_PROJ -> 1110046.25 | V11: =P11-T11 -> 36408 | W11: =IF(T11=0,0,V11/T11) -> 0.03279867032 | X11: =P11-U11 -> 36406.75 | Y11: =IF(U11=0,0,X11/U11) -> 0.03279750731 | AA11: =IF(AND(P11=0,T11=0,U11=0),"HIDE","") -> 
A12: 19800 | B12: 458030 | C12: SPECIAL ASSESSMENT REVENUE | D12: =ACCT_19800_458030_NYB_01 -> 0 | E12: =ACCT_19800_458030_NYB_02 -> 0 | F12: =ACCT_19800_458030_NYB_03 -> 0 | G12: =ACCT_19800_458030_NYB_04 -> 0 | H12: =ACCT_19800_458030_NYB_05 -> 0 | I12: =ACCT_19800_458030_NYB_06 -> 0 | J12: =ACCT_19800_458030_NYB_07 -> 0 | K12: =ACCT_19800_458030_NYB_08 -> 0 | L12: =ACCT_19800_458030_NYB_09 -> 0 | M12: =ACCT_19800_458030_NYB_10 -> 0 | N12: =ACCT_19800_458030_NYB_11 -> 0 | O12: =ACCT_19800_458030_NYB_12 -> 0 | P12: =SUM(D12:O12) -> 0 | Q12: =P12/$C$7 -> 0 | S12: =T12/$C$7 -> 0 | T12: =ACCT_19800_458030_TOT_CY_BUD -> 0 | U12: =ACCT_19800_458030_TOT_CY_PROJ -> 0 | V12: =P12-T12 -> 0 | W12: =IF(T12=0,0,V12/T12) -> 0 | X12: =P12-U12 -> 0 | Y12: =IF(U12=0,0,X12/U12) -> 0 | AA12: =IF(AND(P12=0,T12=0,U12=0),"HIDE","") -> HIDE
A13: 19800 | B13: 444230 | C13: OTHER REAL ESTATE REVENUE | D13: =ACCT_19800_444230_NYB_01 -> 0 | E13: =ACCT_19800_444230_NYB_02 -> 0 | F13: =ACCT_19800_444230_NYB_03 -> 0 | G13: =ACCT_19800_444230_NYB_04 -> 0 | H13: =ACCT_19800_444230_NYB_05 -> 0 | I13: =ACCT_19800_444230_NYB_06 -> 0 | J13: =ACCT_19800_444230_NYB_07 -> 0 | K13: =ACCT_19800_444230_NYB_08 -> 0 | L13: =ACCT_19800_444230_NYB_09 -> 0 | M13: =ACCT_19800_444230_NYB_10 -> 0 | N13: =ACCT_19800_444230_NYB_11 -> 0 | O13: =ACCT_19800_444230_NYB_12 -> 0 | P13: =SUM(D13:O13) -> 0 | Q13: =P13/$C$7 -> 0 | S13: =T13/$C$7 -> 0 | T13: =ACCT_19800_444230_TOT_CY_BUD -> 0 | U13: =ACCT_19800_444230_TOT_CY_PROJ -> 0 | V13: =P13-T13 -> 0 | W13: =IF(T13=0,0,V13/T13) -> 0 | X13: =P13-U13 -> 0 | Y13: =IF(U13=0,0,X13/U13) -> 0 | AA13: =IF(AND(P13=0,T13=0,U13=0),"HIDE","") -> HIDE
A14: 19800 | B14: 458060 | C14: REAL ESTATE TAX FEE | D14: =ACCT_19800_458060_NYB_01 -> 0 | E14: =ACCT_19800_458060_NYB_02 -> 0 | F14: =ACCT_19800_458060_NYB_03 -> 0 | G14: =ACCT_19800_458060_NYB_04 -> 0 | H14: =ACCT_19800_458060_NYB_05 -> 0 | I14: =ACCT_19800_458060_NYB_06 -> 0 | J14: =ACCT_19800_458060_NYB_07 -> 0 | K14: =ACCT_19800_458060_NYB_08 -> 0 | L14: =ACCT_19800_458060_NYB_09 -> 0 | M14: =ACCT_19800_458060_NYB_10 -> 0 | N14: =ACCT_19800_458060_NYB_11 -> 0 | O14: =ACCT_19800_458060_NYB_12 -> 0 | P14: 0 | Q14: 0 | S14: 0 | T14: =ACCT_19800_458060_TOT_CY_BUD -> 0 | U14: =ACCT_19800_458060_TOT_CY_PROJ -> 0 | V14: 0 | W14: 0 | X14: 0 | Y14: 0 | AA14: HIDE
A15: 19800 | B15: 458080 | C15: LATE FEE INCOME | D15: =ACCT_19800_458080_NYB_01 -> 0 | E15: =ACCT_19800_458080_NYB_02 -> 575 | F15: =ACCT_19800_458080_NYB_03 -> 1800 | G15: =ACCT_19800_458080_NYB_04 -> 900 | H15: =ACCT_19800_458080_NYB_05 -> 800 | I15: =ACCT_19800_458080_NYB_06 -> 300 | J15: =ACCT_19800_458080_NYB_07 -> 100 | K15: =ACCT_19800_458080_NYB_08 -> 300 | L15: =ACCT_19800_458080_NYB_09 -> 200 | M15: =ACCT_19800_458080_NYB_10 -> 25 | N15: =ACCT_19800_458080_NYB_11 -> 25 | O15: =ACCT_19800_458080_NYB_12 -> 25 | P15: 5050 | Q15: 3.094362745 | S15: 4.6875 | T15: =ACCT_19800_458080_TOT_CY_BUD -> 7650 | U15: =ACCT_19800_458080_TOT_CY_PROJ -> 5042.03 | V15: -2600 | W15: -0.339869281 | X15: 7.97 | Y15: 0.00158071253
A16: 19800 | B16: 458090 | C16: NSF INCOME | D16: =ACCT_19800_458090_NYB_01 -> 0 | E16: =ACCT_19800_458090_NYB_02 -> 0 | F16: =ACCT_19800_458090_NYB_03 -> 0 | G16: =ACCT_19800_458090_NYB_04 -> 0 | H16: =ACCT_19800_458090_NYB_05 -> 0 | I16: =ACCT_19800_458090_NYB_06 -> 0 | J16: =ACCT_19800_458090_NYB_07 -> 0 | K16: =ACCT_19800_458090_NYB_08 -> 0 | L16: =ACCT_19800_458090_NYB_09 -> 0 | M16: =ACCT_19800_458090_NYB_10 -> 0 | N16: =ACCT_19800_458090_NYB_11 -> 0 | O16: =ACCT_19800_458090_NYB_12 -> 0 | P16: 0 | Q16: 0 | S16: 0 | T16: =ACCT_19800_458090_TOT_CY_BUD -> 0 | U16: =ACCT_19800_458090_TOT_CY_PROJ -> 0 | V16: 0 | W16: 0 | X16: 0 | Y16: 0 | AA16: HIDE
A17: 19800 | B17: 458100 | C17: INTEREST INCOME | D17: =ACCT_19800_458100_NYB_01 -> 0 | E17: =ACCT_19800_458100_NYB_02 -> 0 | F17: =ACCT_19800_458100_NYB_03 -> 0 | G17: =ACCT_19800_458100_NYB_04 -> 0 | H17: =ACCT_19800_458100_NYB_05 -> 0 | I17: =ACCT_19800_458100_NYB_06 -> 0 | J17: =ACCT_19800_458100_NYB_07 -> 0 | K17: =ACCT_19800_458100_NYB_08 -> 0 | L17: =ACCT_19800_458100_NYB_09 -> 0 | M17: =ACCT_19800_458100_NYB_10 -> 0 | N17: =ACCT_19800_458100_NYB_11 -> 0 | O17: =ACCT_19800_458100_NYB_12 -> 0 | P17: 0 | Q17: 0 | S17: 0 | T17: =ACCT_19800_458100_TOT_CY_BUD -> 0 | U17: =ACCT_19800_458100_TOT_CY_PROJ -> 1932.57 | V17: 0 | W17: 0 | X17: -1932.57 | Y17: -1
A18: 19800 | B18: 458110 | C18: DIVIDEND INCOME | D18: =ACCT_19800_458110_NYB_01 -> 0 | E18: =ACCT_19800_458110_NYB_02 -> 0 | F18: =ACCT_19800_458110_NYB_03 -> 0 | G18: =ACCT_19800_458110_NYB_04 -> 0 | H18: =ACCT_19800_458110_NYB_05 -> 0 | I18: =ACCT_19800_458110_NYB_06 -> 0 | J18: =ACCT_19800_458110_NYB_07 -> 0 | K18: =ACCT_19800_458110_NYB_08 -> 0 | L18: =ACCT_19800_458110_NYB_09 -> 0 | M18: =ACCT_19800_458110_NYB_10 -> 0 | N18: =ACCT_19800_458110_NYB_11 -> 0 | O18: =ACCT_19800_458110_NYB_12 -> 0 | P18: 0 | Q18: 0 | S18: 0 | T18: =ACCT_19800_458110_TOT_CY_BUD -> 0 | U18: =ACCT_19800_458110_TOT_CY_PROJ -> 0 | V18: 0 | W18: 0 | X18: 0 | Y18: 0 | AA18: HIDE
A19: 19800 | B19: 458150 | C19: SUPPORT AREA 1 OFFICE | D19: =ACCT_19800_458150_NYB_01 -> 0 | E19: =ACCT_19800_458150_NYB_02 -> 0 | F19: =ACCT_19800_458150_NYB_03 -> 0 | G19: =ACCT_19800_458150_NYB_04 -> 0 | H19: =ACCT_19800_458150_NYB_05 -> 0 | I19: =ACCT_19800_458150_NYB_06 -> 0 | J19: =ACCT_19800_458150_NYB_07 -> 0 | K19: =ACCT_19800_458150_NYB_08 -> 0 | L19: =ACCT_19800_458150_NYB_09 -> 0 | M19: =ACCT_19800_458150_NYB_10 -> 0 | N19: =ACCT_19800_458150_NYB_11 -> 0 | O19: =ACCT_19800_458150_NYB_12 -> 0 | P19: 0 | Q19: 0 | S19: 0 | T19: =ACCT_19800_458150_TOT_CY_BUD -> 0 | U19: =ACCT_19800_458150_TOT_CY_PROJ -> 0 | V19: 0 | W19: 0 | X19: 0 | Y19: 0 | AA19: HIDE
A20: 19800 | B20: 458140 | C20: SALES RENT INCOME | D20: =ACCT_19800_458140_NYB_01 -> 710 | E20: =ACCT_19800_458140_NYB_02 -> 710 | F20: =ACCT_19800_458140_NYB_03 -> 710 | G20: =ACCT_19800_458140_NYB_04 -> 710 | H20: =ACCT_19800_458140_NYB_05 -> 710 | I20: =ACCT_19800_458140_NYB_06 -> 710 | J20: =ACCT_19800_458140_NYB_07 -> 710 | K20: =ACCT_19800_458140_NYB_08 -> 710 | L20: =ACCT_19800_458140_NYB_09 -> 710 | M20: =ACCT_19800_458140_NYB_10 -> 710 | N20: =ACCT_19800_458140_NYB_11 -> 710 | O20: =ACCT_19800_458140_NYB_12 -> 710 | P20: 8520 | Q20: 5.220588235 | S20: 5.220588235 | T20: =ACCT_19800_458140_TOT_CY_BUD -> 8520 | U20: =ACCT_19800_458140_TOT_CY_PROJ -> 5422 | V20: 0 | W20: 0 | X20: 3098 | Y20: 0.5713758761
A21: 19800 | B21: 458160 | C21: SUPPORT AREA 2 RETAIL | D21: =ACCT_19800_458160_NYB_01 -> 0 | E21: =ACCT_19800_458160_NYB_02 -> 0 | F21: =ACCT_19800_458160_NYB_03 -> 0 | G21: =ACCT_19800_458160_NYB_04 -> 0 | H21: =ACCT_19800_458160_NYB_05 -> 0 | I21: =ACCT_19800_458160_NYB_06 -> 0 | J21: =ACCT_19800_458160_NYB_07 -> 0 | K21: =ACCT_19800_458160_NYB_08 -> 0 | L21: =ACCT_19800_458160_NYB_09 -> 0 | M21: =ACCT_19800_458160_NYB_10 -> 0 | N21: =ACCT_19800_458160_NYB_11 -> 0 | O21: =ACCT_19800_458160_NYB_12 -> 0 | P21: =SUM(D21:O21) -> 0 | Q21: =P21/$C$7 -> 0 | S21: =T21/$C$7 -> 0 | T21: =ACCT_19800_458160_TOT_CY_BUD -> 0 | U21: =ACCT_19800_458160_TOT_CY_PROJ -> 0 | V21: =P21-T21 -> 0 | W21: =IF(T21=0,0,V21/T21) -> 0 | X21: =P21-U21 -> 0 | Y21: =IF(U21=0,0,X21/U21) -> 0 | AA21: =IF(AND(P21=0,T21=0,U21=0),"HIDE","") -> HIDE
A22: 19800 | B22: 458170 | C22: SUPPORT AREA 3 POOL BAR | D22: =ACCT_19800_458170_NYB_01 -> 0 | E22: =ACCT_19800_458170_NYB_02 -> 0 | F22: =ACCT_19800_458170_NYB_03 -> 0 | G22: =ACCT_19800_458170_NYB_04 -> 0 | H22: =ACCT_19800_458170_NYB_05 -> 0 | I22: =ACCT_19800_458170_NYB_06 -> 0 | J22: =ACCT_19800_458170_NYB_07 -> 0 | K22: =ACCT_19800_458170_NYB_08 -> 0 | L22: =ACCT_19800_458170_NYB_09 -> 0 | M22: =ACCT_19800_458170_NYB_10 -> 0 | N22: =ACCT_19800_458170_NYB_11 -> 0 | O22: =ACCT_19800_458170_NYB_12 -> 0 | P22: =SUM(D22:O22) -> 0 | Q22: =P22/$C$7 -> 0 | S22: =T22/$C$7 -> 0 | T22: =ACCT_19800_458170_TOT_CY_BUD -> 0 | U22: =ACCT_19800_458170_TOT_CY_PROJ -> 0 | V22: =P22-T22 -> 0 | W22: =IF(T22=0,0,V22/T22) -> 0 | X22: =P22-U22 -> 0 | Y22: =IF(U22=0,0,X22/U22) -> 0 | AA22: =IF(AND(P22=0,T22=0,U22=0),"HIDE","") -> HIDE
A23: 19800 | B23: 458180 | C23: SUPPORT AREA 4 LOBBY BAR | D23: =ACCT_19800_458180_NYB_01 -> 0 | E23: =ACCT_19800_458180_NYB_02 -> 0 | F23: =ACCT_19800_458180_NYB_03 -> 0 | G23: =ACCT_19800_458180_NYB_04 -> 0 | H23: =ACCT_19800_458180_NYB_05 -> 0 | I23: =ACCT_19800_458180_NYB_06 -> 0 | J23: =ACCT_19800_458180_NYB_07 -> 0 | K23: =ACCT_19800_458180_NYB_08 -> 0 | L23: =ACCT_19800_458180_NYB_09 -> 0 | M23: =ACCT_19800_458180_NYB_10 -> 0 | N23: =ACCT_19800_458180_NYB_11 -> 0 | O23: =ACCT_19800_458180_NYB_12 -> 0 | P23: =SUM(D23:O23) -> 0 | Q23: =P23/$C$7 -> 0 | S23: =T23/$C$7 -> 0 | T23: =ACCT_19800_458180_TOT_CY_BUD -> 0 | U23: =ACCT_19800_458180_TOT_CY_PROJ -> 0 | V23: =P23-T23 -> 0 | W23: =IF(T23=0,0,V23/T23) -> 0 | X23: =P23-U23 -> 0 | Y23: =IF(U23=0,0,X23/U23) -> 0 | AA23: =IF(AND(P23=0,T23=0,U23=0),"HIDE","") -> HIDE
A24: 19800 | B24: 458190 | C24: SUPPORT AREA 5 DELI | D24: =ACCT_19800_458190_NYB_01 -> 0 | E24: =ACCT_19800_458190_NYB_02 -> 0 | F24: =ACCT_19800_458190_NYB_03 -> 0 | G24: =ACCT_19800_458190_NYB_04 -> 0 | H24: =ACCT_19800_458190_NYB_05 -> 0 | I24: =ACCT_19800_458190_NYB_06 -> 0 | J24: =ACCT_19800_458190_NYB_07 -> 0 | K24: =ACCT_19800_458190_NYB_08 -> 0 | L24: =ACCT_19800_458190_NYB_09 -> 0 | M24: =ACCT_19800_458190_NYB_10 -> 0 | N24: =ACCT_19800_458190_NYB_11 -> 0 | O24: =ACCT_19800_458190_NYB_12 -> 0 | P24: =SUM(D24:O24) -> 0 | Q24: =P24/$C$7 -> 0 | S24: =T24/$C$7 -> 0 | T24: =ACCT_19800_458190_TOT_CY_BUD -> 0 | U24: =ACCT_19800_458190_TOT_CY_PROJ -> 0 | V24: =P24-T24 -> 0 | W24: =IF(T24=0,0,V24/T24) -> 0 | X24: =P24-U24 -> 0 | Y24: =IF(U24=0,0,X24/U24) -> 0 | AA24: =IF(AND(P24=0,T24=0,U24=0),"HIDE","") -> HIDE
A25: 19800 | B25: 458200 | C25: VENDING INCOME | D25: =ACCT_19800_458200_NYB_01 -> 0 | E25: =ACCT_19800_458200_NYB_02 -> 0 | F25: =ACCT_19800_458200_NYB_03 -> 200 | G25: =ACCT_19800_458200_NYB_04 -> 0 | H25: =ACCT_19800_458200_NYB_05 -> 200 | I25: =ACCT_19800_458200_NYB_06 -> 0 | J25: =ACCT_19800_458200_NYB_07 -> 0 | K25: =ACCT_19800_458200_NYB_08 -> 200 | L25: =ACCT_19800_458200_NYB_09 -> 0 | M25: =ACCT_19800_458200_NYB_10 -> 200 | N25: =ACCT_19800_458200_NYB_11 -> 0 | O25: =ACCT_19800_458200_NYB_12 -> 200 | P25: 1000 | Q25: 0.612745098 | S25: 0.612745098 | T25: =ACCT_19800_458200_TOT_CY_BUD -> 1000 | U25: =ACCT_19800_458200_TOT_CY_PROJ -> 0 | V25: 0 | W25: 0 | X25: 1000 | Y25: 0
A26: 19800 | B26: 458210 | C26: CONCESSION INCOME | D26: =ACCT_19800_458210_NYB_01 -> 1133 | E26: =ACCT_19800_458210_NYB_02 -> 1133 | F26: =ACCT_19800_458210_NYB_03 -> 1133 | G26: =ACCT_19800_458210_NYB_04 -> 1133 | H26: =ACCT_19800_458210_NYB_05 -> 1133 | I26: =ACCT_19800_458210_NYB_06 -> 1133 | J26: =ACCT_19800_458210_NYB_07 -> 1133 | K26: =ACCT_19800_458210_NYB_08 -> 1133 | L26: =ACCT_19800_458210_NYB_09 -> 1133 | M26: =ACCT_19800_458210_NYB_10 -> 1133 | N26: =ACCT_19800_458210_NYB_11 -> 1133 | O26: =ACCT_19800_458210_NYB_12 -> 1133 | P26: 13596 | Q26: 8.330882353 | S26: 8.088235294 | T26: =ACCT_19800_458210_TOT_CY_BUD -> 13200 | U26: =ACCT_19800_458210_TOT_CY_PROJ -> 13893.37 | V26: 396 | W26: 0.03 | X26: -297.37 | Y26: -0.0214037343
A27: 19800 | B27: 458380 | C27: WEEK 53 INCOME | D27: =ACCT_19800_458380_NYB_01 -> 0 | E27: =ACCT_19800_458380_NYB_02 -> 0 | F27: =ACCT_19800_458380_NYB_03 -> 0 | G27: =ACCT_19800_458380_NYB_04 -> 0 | H27: =ACCT_19800_458380_NYB_05 -> 0 | I27: =ACCT_19800_458380_NYB_06 -> 0 | J27: =ACCT_19800_458380_NYB_07 -> 0 | K27: =ACCT_19800_458380_NYB_08 -> 0 | L27: =ACCT_19800_458380_NYB_09 -> 0 | M27: =ACCT_19800_458380_NYB_10 -> 0 | N27: =ACCT_19800_458380_NYB_11 -> 0 | O27: =ACCT_19800_458380_NYB_12 -> 0 | P27: 0 | Q27: 0 | S27: 0 | T27: =ACCT_19800_458380_TOT_CY_BUD -> 0 | U27: =ACCT_19800_458380_TOT_CY_PROJ -> 0 | V27: 0 | W27: 0 | X27: 0 | Y27: 0 | AA27: HIDE
A28: 19800 | B28: 458230 | C28: ACTIVITIES REVENUE | D28: =ACCT_19800_458230_NYB_01 -> 0 | E28: =ACCT_19800_458230_NYB_02 -> 0 | F28: =ACCT_19800_458230_NYB_03 -> 0 | G28: =ACCT_19800_458230_NYB_04 -> 0 | H28: =ACCT_19800_458230_NYB_05 -> 0 | I28: =ACCT_19800_458230_NYB_06 -> 0 | J28: =ACCT_19800_458230_NYB_07 -> 0 | K28: =ACCT_19800_458230_NYB_08 -> 0 | L28: =ACCT_19800_458230_NYB_09 -> 0 | M28: =ACCT_19800_458230_NYB_10 -> 0 | N28: =ACCT_19800_458230_NYB_11 -> 0 | O28: =ACCT_19800_458230_NYB_12 -> 0 | P28: 0 | Q28: 0 | S28: 0 | T28: =ACCT_19800_458230_TOT_CY_BUD -> 0 | U28: =ACCT_19800_458230_TOT_CY_PROJ -> 0 | V28: 0 | W28: 0 | X28: 0 | Y28: 0 | AA28: HIDE
A29: 19800 | B29: 458240 | C29: SUBSIDY INCOME | D29: =ACCT_19800_458240_NYB_01 -> 0 | E29: =ACCT_19800_458240_NYB_02 -> 0 | F29: =ACCT_19800_458240_NYB_03 -> 0 | G29: =ACCT_19800_458240_NYB_04 -> 0 | H29: =ACCT_19800_458240_NYB_05 -> 0 | I29: =ACCT_19800_458240_NYB_06 -> 0 | J29: =ACCT_19800_458240_NYB_07 -> 0 | K29: =ACCT_19800_458240_NYB_08 -> 0 | L29: =ACCT_19800_458240_NYB_09 -> 0 | M29: =ACCT_19800_458240_NYB_10 -> 0 | N29: =ACCT_19800_458240_NYB_11 -> 0 | O29: =ACCT_19800_458240_NYB_12 -> 0 | P29: 0 | Q29: 0 | S29: 0 | T29: =ACCT_19800_458240_TOT_CY_BUD -> 0 | U29: =ACCT_19800_458240_TOT_CY_PROJ -> 0 | V29: 0 | W29: 0 | X29: 0 | Y29: 0 | AA29: HIDE
A30: 19800 | B30: 458270 | C30: FLEX RESERVATION FEES | D30: =ACCT_19800_458270_NYB_01 -> 0 | E30: =ACCT_19800_458270_NYB_02 -> 0 | F30: =ACCT_19800_458270_NYB_03 -> 0 | G30: =ACCT_19800_458270_NYB_04 -> 0 | H30: =ACCT_19800_458270_NYB_05 -> 0 | I30: =ACCT_19800_458270_NYB_06 -> 0 | J30: =ACCT_19800_458270_NYB_07 -> 0 | K30: =ACCT_19800_458270_NYB_08 -> 0 | L30: =ACCT_19800_458270_NYB_09 -> 0 | M30: =ACCT_19800_458270_NYB_10 -> 0 | N30: =ACCT_19800_458270_NYB_11 -> 0 | O30: =ACCT_19800_458270_NYB_12 -> 0 | P30: 0 | Q30: 0 | S30: 0 | T30: =ACCT_19800_458270_TOT_CY_BUD -> 0 | U30: =ACCT_19800_458270_TOT_CY_PROJ -> 0 | V30: 0 | W30: 0 | X30: 0 | Y30: 0 | AA30: HIDE
A31: 19800 | B31: 458340 | C31: SUPPORT AREA SPA | D31: =ACCT_19800_458340_NYB_01 -> 0 | E31: =ACCT_19800_458340_NYB_02 -> 0 | F31: =ACCT_19800_458340_NYB_03 -> 0 | G31: =ACCT_19800_458340_NYB_04 -> 0 | H31: =ACCT_19800_458340_NYB_05 -> 0 | I31: =ACCT_19800_458340_NYB_06 -> 0 | J31: =ACCT_19800_458340_NYB_07 -> 0 | K31: =ACCT_19800_458340_NYB_08 -> 0 | L31: =ACCT_19800_458340_NYB_09 -> 0 | M31: =ACCT_19800_458340_NYB_10 -> 0 | N31: =ACCT_19800_458340_NYB_11 -> 0 | O31: =ACCT_19800_458340_NYB_12 -> 0 | P31: 0 | Q31: 0 | S31: 0 | T31: =ACCT_19800_458340_TOT_CY_BUD -> 0 | U31: =ACCT_19800_458340_TOT_CY_PROJ -> 0 | V31: 0 | W31: 0 | X31: 0 | Y31: 0 | AA31: HIDE
A32: 19800 | B32: 458350 | C32: INSURANCE PROCEEDS | D32: =ACCT_19800_458350_NYB_01 -> 0 | E32: =ACCT_19800_458350_NYB_02 -> 0 | F32: =ACCT_19800_458350_NYB_03 -> 0 | G32: =ACCT_19800_458350_NYB_04 -> 0 | H32: =ACCT_19800_458350_NYB_05 -> 0 | I32: =ACCT_19800_458350_NYB_06 -> 0 | J32: =ACCT_19800_458350_NYB_07 -> 0 | K32: =ACCT_19800_458350_NYB_08 -> 0 | L32: =ACCT_19800_458350_NYB_09 -> 0 | M32: =ACCT_19800_458350_NYB_10 -> 0 | N32: =ACCT_19800_458350_NYB_11 -> 0 | O32: =ACCT_19800_458350_NYB_12 -> 0 | P32: 0 | Q32: 0 | S32: 0 | T32: =ACCT_19800_458350_TOT_CY_BUD -> 0 | U32: =ACCT_19800_458350_TOT_CY_PROJ -> 0 | V32: 0 | W32: 0 | X32: 0 | Y32: 0 | AA32: HIDE
A33: 19800 | B33: 438305 | C33: OTHER REVENUE NON-TAX | D33: =ACCT_19800_438305_NYB_01 -> 0 | E33: =ACCT_19800_438305_NYB_02 -> 0 | F33: =ACCT_19800_438305_NYB_03 -> 0 | G33: =ACCT_19800_438305_NYB_04 -> 0 | H33: =ACCT_19800_438305_NYB_05 -> 0 | I33: =ACCT_19800_438305_NYB_06 -> 0 | J33: =ACCT_19800_438305_NYB_07 -> 0 | K33: =ACCT_19800_438305_NYB_08 -> 0 | L33: =ACCT_19800_438305_NYB_09 -> 0 | M33: =ACCT_19800_438305_NYB_10 -> 0 | N33: =ACCT_19800_438305_NYB_11 -> 0 | O33: =ACCT_19800_438305_NYB_12 -> 0 | P33: 0 | Q33: 0 | S33: 0 | T33: =ACCT_19800_438305_TOT_CY_BUD -> 0 | U33: =ACCT_19800_438305_TOT_CY_PROJ -> 13.07 | V33: 0 | W33: 0 | X33: -13.07 | Y33: -1
A34: 19800 | B34: 452060 | C34: OTHER REVENUE - REAL ESTATE | D34: =ACCT_19800_452060_NYB_01 -> 0 | E34: =ACCT_19800_452060_NYB_02 -> 0 | F34: =ACCT_19800_452060_NYB_03 -> 0 | G34: =ACCT_19800_452060_NYB_04 -> 0 | H34: =ACCT_19800_452060_NYB_05 -> 0 | I34: =ACCT_19800_452060_NYB_06 -> 0 | J34: =ACCT_19800_452060_NYB_07 -> 0 | K34: =ACCT_19800_452060_NYB_08 -> 0 | L34: =ACCT_19800_452060_NYB_09 -> 0 | M34: =ACCT_19800_452060_NYB_10 -> 0 | N34: =ACCT_19800_452060_NYB_11 -> 0 | O34: =ACCT_19800_452060_NYB_12 -> 0 | P34: 0 | Q34: 0 | S34: 0 | T34: =ACCT_19800_452060_TOT_CY_BUD -> 0 | U34: =ACCT_19800_452060_TOT_CY_PROJ -> 0 | V34: 0 | W34: 0 | X34: 0 | Y34: 0 | AA34: HIDE
C36: TOTAL OPERATING REVENUE | D36: =SUM(D11:D34) -> 97380.75 | E36: =SUM(E11:E34) -> 97955.75 | F36: 99380.75 | G36: 98280.75 | H36: 98380.75 | I36: 97680.75 | J36: 97480.75 | K36: 97880.75 | L36: 97580.75 | M36: 97605.75 | N36: 97405.75 | O36: 97605.75 | P36: 1174619 | Q36: 719.7420343 | S36: 698.783701 | T36: =SUM(T11:T34) -> 1140415 | U36: =SUM(U11:U34) -> 1136349.29 | V36: =P36-T36 -> 34204 | W36: =IF(T36=0,0,V36/T36) -> 0.02999259042 | X36: =P36-U36 -> 38269.71 | Y36: =IF(U36=0,0,X36/U36) -> 0.03367776998
C38: HOUSEKEEPING SERVICES
A39: 11002 | B39: 458310 | C39: SECOND CLEAN REIMBURSEMENT | D39: =-ACCT_11002_458310_NYB_01 -> -1000 | E39: =-ACCT_11002_458310_NYB_02 -> -800 | F39: =-ACCT_11002_458310_NYB_03 -> -300 | G39: =-ACCT_11002_458310_NYB_04 -> -900 | H39: =-ACCT_11002_458310_NYB_05 -> -1000 | I39: =-ACCT_11002_458310_NYB_06 -> -1200 | J39: =-ACCT_11002_458310_NYB_07 -> -700 | K39: =-ACCT_11002_458310_NYB_08 -> -1500 | L39: =-ACCT_11002_458310_NYB_09 -> -300 | M39: =-ACCT_11002_458310_NYB_10 -> -500 | N39: =-ACCT_11002_458310_NYB_11 -> -900 | O39: =-ACCT_11002_458310_NYB_12 -> -1000 | P39: =SUM(D39:O39) -> -10100 | Q39: =P39/$C$7 -> -6.18872549 | S39: =T39/$C$7 -> -6.12745098 | T39: =-ACCT_11002_458310_TOT_CY_BUD -> -10000 | U39: =-ACCT_11002_458310_TOT_CY_PROJ -> -10080 | V39: =P39-T39 -> -100 | W39: =IF(T39=0,0,V39/T39) -> 0.01 | X39: =P39-U39 -> -20 | Y39: =IF(U39=0,0,X39/U39) -> 0.001984126984 | AA39: =IF(AND(P39=0,T39=0,U39=0),"HIDE","") -> 
A40: 11002 | B40: 458320 | C40: SPLIT WEEK CLEAN REIMBURSEMENT | D40: =-ACCT_11002_458320_NYB_01 -> 0 | E40: =-ACCT_11002_458320_NYB_02 -> 0 | F40: =-ACCT_11002_458320_NYB_03 -> 0 | G40: =-ACCT_11002_458320_NYB_04 -> 0 | H40: =-ACCT_11002_458320_NYB_05 -> 0 | I40: =-ACCT_11002_458320_NYB_06 -> 0 | J40: =-ACCT_11002_458320_NYB_07 -> 0 | K40: =-ACCT_11002_458320_NYB_08 -> 0 | L40: =-ACCT_11002_458320_NYB_09 -> 0 | M40: =-ACCT_11002_458320_NYB_10 -> 0 | N40: =-ACCT_11002_458320_NYB_11 -> 0 | O40: =-ACCT_11002_458320_NYB_12 -> 0 | P40: =SUM(D40:O40) -> 0 | Q40: 0 | S40: 0 | T40: =-ACCT_11002_458320_TOT_CY_BUD -> 0 | U40: =-ACCT_11002_458320_TOT_CY_PROJ -> 0 | V40: 0 | W40: 0 | X40: 0 | Y40: =IF(U40=0,0,X40/U40) -> 0 | AA40: HIDE
A41: 11002 | B41: 555020 | C41: PERFORMANCE AWARDS | D41: =ACCT_11002_555020_NYB_01 -> 0 | E41: =ACCT_11002_555020_NYB_02 -> 0 | F41: =ACCT_11002_555020_NYB_03 -> 0 | G41: =ACCT_11002_555020_NYB_04 -> 0 | H41: =ACCT_11002_555020_NYB_05 -> 0 | I41: =ACCT_11002_555020_NYB_06 -> 0 | J41: =ACCT_11002_555020_NYB_07 -> 0 | K41: =ACCT_11002_555020_NYB_08 -> 0 | L41: =ACCT_11002_555020_NYB_09 -> 0 | M41: =ACCT_11002_555020_NYB_10 -> 0 | N41: =ACCT_11002_555020_NYB_11 -> 0 | O41: =ACCT_11002_555020_NYB_12 -> 0 | P41: 0 | Q41: 0 | S41: 0 | T41: =ACCT_11002_555020_TOT_CY_BUD -> 0 | U41: =ACCT_11002_555020_TOT_CY_PROJ -> 0 | V41: 0 | W41: 0 | X41: 0 | Y41: 0 | AA41: HIDE
A42: 11002 | B42: 541002 | C42: SALARIED MANAGER | D42: =ACCT_11002_541002_NYB_01 -> 0 | E42: =ACCT_11002_541002_NYB_02 -> 0 | F42: =ACCT_11002_541002_NYB_03 -> 0 | G42: =ACCT_11002_541002_NYB_04 -> 0 | H42: =ACCT_11002_541002_NYB_05 -> 0 | I42: =ACCT_11002_541002_NYB_06 -> 0 | J42: =ACCT_11002_541002_NYB_07 -> 0 | K42: =ACCT_11002_541002_NYB_08 -> 0 | L42: =ACCT_11002_541002_NYB_09 -> 0 | M42: =ACCT_11002_541002_NYB_10 -> 0 | N42: =ACCT_11002_541002_NYB_11 -> 0 | O42: =ACCT_11002_541002_NYB_12 -> 0 | P42: 0 | Q42: 0 | S42: 0 | T42: =ACCT_11002_541002_TOT_CY_BUD -> 0 | U42: =ACCT_11002_541002_TOT_CY_PROJ -> 0 | V42: 0 | W42: 0 | X42: 0 | Y42: 0 | AA42: HIDE
A43: 11002 | B43: 541003 | C43: SALARIED NON-MANAGER | D43: =ACCT_11002_541003_NYB_01 -> 2117 | E43: =ACCT_11002_541003_NYB_02 -> 2382 | F43: =ACCT_11002_541003_NYB_03 -> 2726 | G43: =ACCT_11002_541003_NYB_04 -> 2317 | H43: =ACCT_11002_541003_NYB_05 -> 4089 | I43: =ACCT_11002_541003_NYB_06 -> 1772 | J43: =ACCT_11002_541003_NYB_07 -> 2726 | K43: =ACCT_11002_541003_NYB_08 -> 1772 | L43: =ACCT_11002_541003_NYB_09 -> 2726 | M43: =ACCT_11002_541003_NYB_10 -> 2726 | N43: =ACCT_11002_541003_NYB_11 -> 3680 | O43: =ACCT_11002_541003_NYB_12 -> 2044 | P43: 31077 | Q43: 19.04227941 | S43: 18.42034314 | T43: =ACCT_11002_541003_TOT_CY_BUD -> 30062 | U43: =ACCT_11002_541003_TOT_CY_PROJ -> 30062.17 | V43: 1015 | W43: 0.03376355532 | X43: 1014.83 | Y43: 0.03375770944
A44: 11002 | B44: 561170 | C44: PTO AND VACATION EXPENSE | D44: =ACCT_11002_561170_NYB_01 -> 0 | E44: =ACCT_11002_561170_NYB_02 -> 0 | F44: =ACCT_11002_561170_NYB_03 -> 0 | G44: =ACCT_11002_561170_NYB_04 -> 0 | H44: =ACCT_11002_561170_NYB_05 -> 0 | I44: =ACCT_11002_561170_NYB_06 -> 0 | J44: =ACCT_11002_561170_NYB_07 -> 0 | K44: =ACCT_11002_561170_NYB_08 -> 0 | L44: =ACCT_11002_561170_NYB_09 -> 0 | M44: =ACCT_11002_561170_NYB_10 -> 0 | N44: =ACCT_11002_561170_NYB_11 -> 0 | O44: =ACCT_11002_561170_NYB_12 -> 0 | P44: 0 | Q44: 0 | S44: 0 | T44: =ACCT_11002_561170_TOT_CY_BUD -> 0 | U44: =ACCT_11002_561170_TOT_CY_PROJ -> 0 | V44: 0 | W44: 0 | X44: 0 | Y44: 0 | AA44: HIDE
A45: 11002 | B45: 542030 | C45: HOURLY OTHER | D45: =ACCT_11002_542030_NYB_01 -> 3213 | E45: =ACCT_11002_542030_NYB_02 -> 3913 | F45: =ACCT_11002_542030_NYB_03 -> 3691 | G45: =ACCT_11002_542030_NYB_04 -> 4130 | H45: =ACCT_11002_542030_NYB_05 -> 5997 | I45: =ACCT_11002_542030_NYB_06 -> 4130 | J45: =ACCT_11002_542030_NYB_07 -> 1493 | K45: =ACCT_11002_542030_NYB_08 -> 4130 | L45: =ACCT_11002_542030_NYB_09 -> 4031 | M45: =ACCT_11002_542030_NYB_10 -> 4130 | N45: =ACCT_11002_542030_NYB_11 -> 5997 | O45: =ACCT_11002_542030_NYB_12 -> 3436 | P45: 48291 | Q45: 29.59007353 | S45: 28.54534314 | T45: =ACCT_11002_542030_TOT_CY_BUD -> 46586 | U45: =ACCT_11002_542030_TOT_CY_PROJ -> 42620.84 | V45: 1705 | W45: 0.03659897823 | X45: 5670.16 | Y45: 0.1330372653
A46: 11002 | B46: 543030 | C46: OT HOURLY OTHER | D46: =ACCT_11002_543030_NYB_01 -> 0 | E46: =ACCT_11002_543030_NYB_02 -> 0 | F46: =ACCT_11002_543030_NYB_03 -> 0 | G46: =ACCT_11002_543030_NYB_04 -> 0 | H46: =ACCT_11002_543030_NYB_05 -> 0 | I46: =ACCT_11002_543030_NYB_06 -> 0 | J46: =ACCT_11002_543030_NYB_07 -> 0 | K46: =ACCT_11002_543030_NYB_08 -> 0 | L46: =ACCT_11002_543030_NYB_09 -> 0 | M46: =ACCT_11002_543030_NYB_10 -> 0 | N46: =ACCT_11002_543030_NYB_11 -> 0 | O46: =ACCT_11002_543030_NYB_12 -> 0 | P46: 0 | Q46: 0 | S46: 0 | T46: =ACCT_11002_543030_TOT_CY_BUD -> 0 | U46: =ACCT_11002_543030_TOT_CY_PROJ -> 155.06 | V46: 0 | W46: 0 | X46: -155.06 | Y46: -1
A47: 11002 | B47: 561240 | C47: PAID TIME OFF | D47: =ACCT_11002_561240_NYB_01 -> 500 | E47: =ACCT_11002_561240_NYB_02 -> 500 | F47: =ACCT_11002_561240_NYB_03 -> 500 | G47: =ACCT_11002_561240_NYB_04 -> 500 | H47: =ACCT_11002_561240_NYB_05 -> 500 | I47: =ACCT_11002_561240_NYB_06 -> 500 | J47: =ACCT_11002_561240_NYB_07 -> 500 | K47: =ACCT_11002_561240_NYB_08 -> 500 | L47: =ACCT_11002_561240_NYB_09 -> 500 | M47: =ACCT_11002_561240_NYB_10 -> 500 | N47: =ACCT_11002_561240_NYB_11 -> 600 | O47: =ACCT_11002_561240_NYB_12 -> 600 | P47: 6200 | Q47: 3.799019608 | S47: 4.870710784 | T47: =ACCT_11002_561240_TOT_CY_BUD -> 7949 | U47: =ACCT_11002_561240_TOT_CY_PROJ -> 5835.35 | V47: -1749 | W47: -0.2200276764 | X47: 364.65 | Y47: 0.06248982495
A48: 11002 | B48: 561260 | C48: WORKERS COMPENSATION EXP | D48: =ACCT_11002_561260_NYB_01 -> 229 | E48: =ACCT_11002_561260_NYB_02 -> 270 | F48: =ACCT_11002_561260_NYB_03 -> 276 | G48: =ACCT_11002_561260_NYB_04 -> 277 | H48: =ACCT_11002_561260_NYB_05 -> 431 | I48: =ACCT_11002_561260_NYB_06 -> 259 | J48: =ACCT_11002_561260_NYB_07 -> 191 | K48: =ACCT_11002_561260_NYB_08 -> 256 | L48: =ACCT_11002_561260_NYB_09 -> 289 | M48: =ACCT_11002_561260_NYB_10 -> 293 | N48: =ACCT_11002_561260_NYB_11 -> 416 | O48: =ACCT_11002_561260_NYB_12 -> 240 | P48: =SUM(D48:O48) -> 3427 | Q48: =P48/$C$7 -> 2.099877451 | S48: =T48/$C$7 -> 2.992647059 | T48: =ACCT_11002_561260_TOT_CY_BUD -> 4884 | U48: =ACCT_11002_561260_TOT_CY_PROJ -> 3122.59 | V48: =P48-T48 -> -1457 | W48: =IF(T48=0,0,V48/T48) -> -0.2983210483 | X48: =P48-U48 -> 304.41 | Y48: =IF(U48=0,0,X48/U48) -> 0.0974863815 | AA48: =IF(AND(P48=0,T48=0,U48=0),"HIDE","") -> 
A49: 11002 | B49: 555070 | C49: OTHER INCENTIVE COMPENSATION EXP | D49: =ACCT_11002_555070_NYB_01 -> 0 | E49: =ACCT_11002_555070_NYB_02 -> 0 | F49: =ACCT_11002_555070_NYB_03 -> 0 | G49: =ACCT_11002_555070_NYB_04 -> 0 | H49: =ACCT_11002_555070_NYB_05 -> 0 | I49: =ACCT_11002_555070_NYB_06 -> 0 | J49: =ACCT_11002_555070_NYB_07 -> 0 | K49: =ACCT_11002_555070_NYB_08 -> 0 | L49: =ACCT_11002_555070_NYB_09 -> 0 | M49: =ACCT_11002_555070_NYB_10 -> 0 | N49: =ACCT_11002_555070_NYB_11 -> 0 | O49: =ACCT_11002_555070_NYB_12 -> 0 | P49: 0 | Q49: 0 | S49: 0 | T49: =ACCT_11002_555070_TOT_CY_BUD -> 0 | U49: =ACCT_11002_555070_TOT_CY_PROJ -> 0 | V49: 0 | W49: 0 | X49: 0 | Y49: 0 | AA49: HIDE
A50: 11002 | B50: 561020 | C50: PENSION DEFINED CONTRIBUTION | D50: =ACCT_11002_561020_NYB_01 -> 0 | E50: =ACCT_11002_561020_NYB_02 -> 0 | F50: =ACCT_11002_561020_NYB_03 -> 0 | G50: =ACCT_11002_561020_NYB_04 -> 0 | H50: =ACCT_11002_561020_NYB_05 -> 0 | I50: =ACCT_11002_561020_NYB_06 -> 0 | J50: =ACCT_11002_561020_NYB_07 -> 0 | K50: =ACCT_11002_561020_NYB_08 -> 0 | L50: =ACCT_11002_561020_NYB_09 -> 0 | M50: =ACCT_11002_561020_NYB_10 -> 0 | N50: =ACCT_11002_561020_NYB_11 -> 0 | O50: =ACCT_11002_561020_NYB_12 -> 0 | P50: =SUM(D50:O50) -> 0 | Q50: =P50/$C$7 -> 0 | S50: =T50/$C$7 -> 0 | T50: =ACCT_11002_561020_TOT_CY_BUD -> 0 | U50: =ACCT_11002_561020_TOT_CY_PROJ -> 0 | V50: =P50-T50 -> 0 | W50: =IF(T50=0,0,V50/T50) -> 0 | X50: 0 | Y50: 0 | AA50: =IF(AND(P50=0,T50=0,U50=0),"HIDE","") -> HIDE
A51: 11002 | B51: 561010 | C51: GROUP HEALTH INSURANCE NON-UNION | D51: =ACCT_11002_561010_NYB_01 -> 1101 | E51: =ACCT_11002_561010_NYB_02 -> 1101 | F51: =ACCT_11002_561010_NYB_03 -> 1134 | G51: =ACCT_11002_561010_NYB_04 -> 1134 | H51: =ACCT_11002_561010_NYB_05 -> 1500 | I51: =ACCT_11002_561010_NYB_06 -> 1101 | J51: =ACCT_11002_561010_NYB_07 -> 1101 | K51: =ACCT_11002_561010_NYB_08 -> 1101 | L51: =ACCT_11002_561010_NYB_09 -> 1101 | M51: =ACCT_11002_561010_NYB_10 -> 1101 | N51: =ACCT_11002_561010_NYB_11 -> 1500 | O51: =ACCT_11002_561010_NYB_12 -> 1101 | P51: 14076 | Q51: 8.625 | S51: 6.828431373 | T51: =ACCT_11002_561010_TOT_CY_BUD -> 11144 | U51: =ACCT_11002_561010_TOT_CY_PROJ -> 12311.5 | V51: 2932 | W51: 0.2631012204 | X51: 1764.5 | Y51: 0.143321285
A52: 11002 | B52: 561490 | C52: OTHER NON-UNION BENEFIT EXP | D52: =ACCT_11002_561490_NYB_01 -> 414 | E52: =ACCT_11002_561490_NYB_02 -> 488 | F52: =ACCT_11002_561490_NYB_03 -> 498 | G52: =ACCT_11002_561490_NYB_04 -> 500 | H52: =ACCT_11002_561490_NYB_05 -> 779 | I52: =ACCT_11002_561490_NYB_06 -> 463 | J52: =ACCT_11002_561490_NYB_07 -> 345 | K52: =ACCT_11002_561490_NYB_08 -> 463 | L52: =ACCT_11002_561490_NYB_09 -> 523 | M52: =ACCT_11002_561490_NYB_10 -> 530 | N52: =ACCT_11002_561490_NYB_11 -> 753 | O52: =ACCT_11002_561490_NYB_12 -> 434 | P52: 6190 | Q52: 3.792892157 | S52: 4.205269608 | T52: =ACCT_11002_561490_TOT_CY_BUD -> 6863 | U52: =ACCT_11002_561490_TOT_CY_PROJ -> 5801.23 | V52: -673 | W52: -0.09806207198 | X52: 388.77 | Y52: 0.06701509852
A53: 11002 | B53: 565010 | C53: SOCIAL SECURITY TAX EXPENSE | D53: =ACCT_11002_565010_NYB_01 -> 437 | E53: =ACCT_11002_565010_NYB_02 -> 515 | F53: =ACCT_11002_565010_NYB_03 -> 526 | G53: =ACCT_11002_565010_NYB_04 -> 528 | H53: =ACCT_11002_565010_NYB_05 -> 823 | I53: =ACCT_11002_565010_NYB_06 -> 489 | J53: =ACCT_11002_565010_NYB_07 -> 365 | K53: =ACCT_11002_565010_NYB_08 -> 489 | L53: =ACCT_11002_565010_NYB_09 -> 553 | M53: =ACCT_11002_565010_NYB_10 -> 560 | N53: =ACCT_11002_565010_NYB_11 -> 795 | O53: =ACCT_11002_565010_NYB_12 -> 458 | P53: =SUM(D53:O53) -> 6538 | Q53: =P53/$C$7 -> 4.006127451 | S53: =T53/$C$7 -> 3.930147059 | T53: =ACCT_11002_565010_TOT_CY_BUD -> 6414 | U53: =ACCT_11002_565010_TOT_CY_PROJ -> 5915.77 | V53: =P53-T53 -> 124 | W53: =IF(T53=0,0,V53/T53) -> 0.0193327097 | X53: 622.23 | Y53: 0.105181574 | AA53: =IF(AND(P53=0,T53=0,U53=0),"HIDE","") -> 
A54: 11002 | B54: 565040 | C54: STATE UNEMPLOYMENT TAX | D54: =ACCT_11002_565040_NYB_01 -> 37 | E54: =ACCT_11002_565040_NYB_02 -> 44 | F54: =ACCT_11002_565040_NYB_03 -> 45 | G54: =ACCT_11002_565040_NYB_04 -> 45 | H54: =ACCT_11002_565040_NYB_05 -> 70 | I54: =ACCT_11002_565040_NYB_06 -> 42 | J54: =ACCT_11002_565040_NYB_07 -> 31 | K54: =ACCT_11002_565040_NYB_08 -> 42 | L54: =ACCT_11002_565040_NYB_09 -> 47 | M54: =ACCT_11002_565040_NYB_10 -> 48 | N54: =ACCT_11002_565040_NYB_11 -> 68 | O54: =ACCT_11002_565040_NYB_12 -> 39 | P54: =SUM(D54:O54) -> 558 | Q54: =P54/$C$7 -> 0.3419117647 | S54: =T54/$C$7 -> 0.4044117647 | T54: =ACCT_11002_565040_TOT_CY_BUD -> 660 | U54: =ACCT_11002_565040_TOT_CY_PROJ -> 496.76 | V54: =P54-T54 -> -102 | W54: =IF(T54=0,0,V54/T54) -> -0.1545454545 | X54: =P54-U54 -> 61.24 | Y54: =IF(U54=0,0,X54/U54) -> 0.1232788469 | AA54: =IF(AND(P54=0,T54=0,U54=0),"HIDE","") -> 
A55: 11002 | B55: 545000 | C55: LEASED LABOR - HOTEL | D55: =ACCT_11002_545000_NYB_01 -> 0 | E55: =ACCT_11002_545000_NYB_02 -> 0 | F55: =ACCT_11002_545000_NYB_03 -> 0 | G55: =ACCT_11002_545000_NYB_04 -> 0 | H55: =ACCT_11002_545000_NYB_05 -> 0 | I55: =ACCT_11002_545000_NYB_06 -> 0 | J55: =ACCT_11002_545000_NYB_07 -> 0 | K55: =ACCT_11002_545000_NYB_08 -> 0 | L55: =ACCT_11002_545000_NYB_09 -> 0 | M55: =ACCT_11002_545000_NYB_10 -> 0 | N55: =ACCT_11002_545000_NYB_11 -> 0 | O55: =ACCT_11002_545000_NYB_12 -> 0 | P55: 0 | Q55: 0 | S55: 0 | T55: =ACCT_11002_545000_TOT_CY_BUD -> 0 | U55: =ACCT_11002_545000_TOT_CY_PROJ -> 0 | V55: 0 | W55: 0 | X55: 0 | Y55: 0 | AA55: HIDE
A56: 11002 | B56: 696010 | C56: UNIFORMS | D56: =ACCT_11002_696010_NYB_01 -> 0 | E56: =ACCT_11002_696010_NYB_02 -> 0 | F56: =ACCT_11002_696010_NYB_03 -> 0 | G56: =ACCT_11002_696010_NYB_04 -> 0 | H56: =ACCT_11002_696010_NYB_05 -> 0 | I56: =ACCT_11002_696010_NYB_06 -> 0 | J56: =ACCT_11002_696010_NYB_07 -> 0 | K56: =ACCT_11002_696010_NYB_08 -> 0 | L56: =ACCT_11002_696010_NYB_09 -> 0 | M56: =ACCT_11002_696010_NYB_10 -> 0 | N56: =ACCT_11002_696010_NYB_11 -> 0 | O56: =ACCT_11002_696010_NYB_12 -> 0 | P56: 0 | Q56: 0 | S56: 0 | T56: =ACCT_11002_696010_TOT_CY_BUD -> 0 | U56: =ACCT_11002_696010_TOT_CY_PROJ -> 0 | V56: 0 | W56: 0 | X56: 0 | Y56: 0 | AA56: HIDE
A57: 11002 | B57: 600220 | C57: CLEANING SERVICES | D57: =ACCT_11002_600220_NYB_01 -> 6200 | E57: =ACCT_11002_600220_NYB_02 -> 6200 | F57: =ACCT_11002_600220_NYB_03 -> 6400 | G57: =ACCT_11002_600220_NYB_04 -> 6200 | H57: =ACCT_11002_600220_NYB_05 -> 6200 | I57: =ACCT_11002_600220_NYB_06 -> 7200 | J57: =ACCT_11002_600220_NYB_07 -> 6700 | K57: =ACCT_11002_600220_NYB_08 -> 6700 | L57: =ACCT_11002_600220_NYB_09 -> 6700 | M57: =ACCT_11002_600220_NYB_10 -> 6700 | N57: =ACCT_11002_600220_NYB_11 -> 6200 | O57: =ACCT_11002_600220_NYB_12 -> 7000 | P57: =SUM(D57:O57) -> 78400 | Q57: =P57/$C$7 -> 48.03921569 | S57: =T57/$C$7 -> 46.56862745 | T57: =ACCT_11002_600220_TOT_CY_BUD -> 76000 | U57: =ACCT_11002_600220_TOT_CY_PROJ -> 87982.5 | V57: =P57-T57 -> 2400 | W57: =IF(T57=0,0,V57/T57) -> 0.03157894737 | X57: -9582.5 | Y57: -0.1089137044 | AA57: =IF(AND(P57=0,T57=0,U57=0),"HIDE","") -> 
A58: 11002 | B58: 694030 | C58: GUEST SUPPLIES | D58: =ACCT_11002_694030_NYB_01 -> 1500 | E58: =ACCT_11002_694030_NYB_02 -> 1500 | F58: =ACCT_11002_694030_NYB_03 -> 1500 | G58: =ACCT_11002_694030_NYB_04 -> 1500 | H58: =ACCT_11002_694030_NYB_05 -> 1500 | I58: =ACCT_11002_694030_NYB_06 -> 1500 | J58: =ACCT_11002_694030_NYB_07 -> 1500 | K58: =ACCT_11002_694030_NYB_08 -> 1500 | L58: =ACCT_11002_694030_NYB_09 -> 1500 | M58: =ACCT_11002_694030_NYB_10 -> 1500 | N58: =ACCT_11002_694030_NYB_11 -> 1500 | O58: =ACCT_11002_694030_NYB_12 -> 1500 | P58: 18000 | Q58: 11.02941176 | S58: 11.02941176 | T58: =ACCT_11002_694030_TOT_CY_BUD -> 18000 | U58: =ACCT_11002_694030_TOT_CY_PROJ -> 17579.67 | V58: 0 | W58: 0 | X58: 420.33 | Y58: 0.02391000514
A59: 11002 | B59: 694040 | C59: OPERATIONG SUPPLIES | D59: =ACCT_11002_694040_NYB_01 -> 0 | E59: =ACCT_11002_694040_NYB_02 -> 0 | F59: =ACCT_11002_694040_NYB_03 -> 0 | G59: =ACCT_11002_694040_NYB_04 -> 0 | H59: =ACCT_11002_694040_NYB_05 -> 0 | I59: =ACCT_11002_694040_NYB_06 -> 0 | J59: =ACCT_11002_694040_NYB_07 -> 0 | K59: =ACCT_11002_694040_NYB_08 -> 0 | L59: =ACCT_11002_694040_NYB_09 -> 0 | M59: =ACCT_11002_694040_NYB_10 -> 0 | N59: =ACCT_11002_694040_NYB_11 -> 0 | O59: =ACCT_11002_694040_NYB_12 -> 0 | P59: =SUM(D59:O59) -> 0 | Q59: =P59/$C$7 -> 0 | S59: =T59/$C$7 -> 0 | T59: =ACCT_11002_694040_TOT_CY_BUD -> 0 | U59: =ACCT_11002_694040_TOT_CY_PROJ -> 0 | V59: =P59-T59 -> 0 | W59: =IF(T59=0,0,V59/T59) -> 0 | X59: =P59-U59 -> 0 | Y59: =IF(U59=0,0,X59/U59) -> 0 | AA59: =IF(AND(P59=0,T59=0,U59=0),"HIDE","") -> HIDE
A60: 11002 | B60: 691040 | C60: LINEN EXPENSE | D60: =ACCT_11002_691040_NYB_01 -> 1500 | E60: =ACCT_11002_691040_NYB_02 -> 0 | F60: =ACCT_11002_691040_NYB_03 -> 0 | G60: =ACCT_11002_691040_NYB_04 -> 0 | H60: =ACCT_11002_691040_NYB_05 -> 3000 | I60: =ACCT_11002_691040_NYB_06 -> 0 | J60: =ACCT_11002_691040_NYB_07 -> 0 | K60: =ACCT_11002_691040_NYB_08 -> 15000 | L60: =ACCT_11002_691040_NYB_09 -> 3200 | M60: =ACCT_11002_691040_NYB_10 -> 0 | N60: =ACCT_11002_691040_NYB_11 -> 2500 | O60: =ACCT_11002_691040_NYB_12 -> 0 | P60: 25200 | Q60: 15.44117647 | S60: 15.44117647 | T60: =ACCT_11002_691040_TOT_CY_BUD -> 25200 | U60: =ACCT_11002_691040_TOT_CY_PROJ -> 25128.65 | V60: 0 | W60: 0 | X60: 71.35 | Y60: 0.002839388507
A61: 11002 | B61: 694010 | C61: CLEANING SUPPLIES | D61: =ACCT_11002_694010_NYB_01 -> 700 | E61: =ACCT_11002_694010_NYB_02 -> 700 | F61: =ACCT_11002_694010_NYB_03 -> 700 | G61: =ACCT_11002_694010_NYB_04 -> 700 | H61: =ACCT_11002_694010_NYB_05 -> 700 | I61: =ACCT_11002_694010_NYB_06 -> 700 | J61: =ACCT_11002_694010_NYB_07 -> 700 | K61: =ACCT_11002_694010_NYB_08 -> 700 | L61: =ACCT_11002_694010_NYB_09 -> 700 | M61: =ACCT_11002_694010_NYB_10 -> 700 | N61: =ACCT_11002_694010_NYB_11 -> 700 | O61: =ACCT_11002_694010_NYB_12 -> 700 | P61: 8400 | Q61: 5.147058824 | S61: 5.147058824 | T61: =ACCT_11002_694010_TOT_CY_BUD -> 8400 | U61: =ACCT_11002_694010_TOT_CY_PROJ -> 8219.87 | V61: 0 | W61: 0 | X61: 180.13 | Y61: 0.02191397188
A62: 11002 | B62: 730370 | C62: LAUNDRY & DRY CLEANING | D62: =ACCT_11002_730370_NYB_01 -> 0 | E62: =ACCT_11002_730370_NYB_02 -> 0 | F62: =ACCT_11002_730370_NYB_03 -> 0 | G62: =ACCT_11002_730370_NYB_04 -> 0 | H62: =ACCT_11002_730370_NYB_05 -> 0 | I62: =ACCT_11002_730370_NYB_06 -> 0 | J62: =ACCT_11002_730370_NYB_07 -> 0 | K62: =ACCT_11002_730370_NYB_08 -> 0 | L62: =ACCT_11002_730370_NYB_09 -> 0 | M62: =ACCT_11002_730370_NYB_10 -> 0 | N62: =ACCT_11002_730370_NYB_11 -> 0 | O62: =ACCT_11002_730370_NYB_12 -> 0 | P62: 0 | Q62: 0 | S62: 0 | T62: =ACCT_11002_730370_TOT_CY_BUD -> 0 | U62: =ACCT_11002_730370_TOT_CY_PROJ -> 0 | V62: 0 | W62: 0 | X62: 0 | Y62: 0 | AA62: HIDE
A63: 11002 | B63: 600200 | C63: CONTRACT SERVICES | D63: =ACCT_11002_600200_NYB_01 -> 0 | E63: =ACCT_11002_600200_NYB_02 -> 0 | F63: =ACCT_11002_600200_NYB_03 -> 0 | G63: =ACCT_11002_600200_NYB_04 -> 0 | H63: =ACCT_11002_600200_NYB_05 -> 0 | I63: =ACCT_11002_600200_NYB_06 -> 0 | J63: =ACCT_11002_600200_NYB_07 -> 0 | K63: =ACCT_11002_600200_NYB_08 -> 0 | L63: =ACCT_11002_600200_NYB_09 -> 0 | M63: =ACCT_11002_600200_NYB_10 -> 0 | N63: =ACCT_11002_600200_NYB_11 -> 0 | O63: =ACCT_11002_600200_NYB_12 -> 0 | P63: =SUM(D63:O63) -> 0 | Q63: =P63/$C$7 -> 0 | S63: =T63/$C$7 -> 0 | T63: =ACCT_11002_600200_TOT_CY_BUD -> 0 | U63: =ACCT_11002_600200_TOT_CY_PROJ -> 0 | V63: =P63-T63 -> 0 | W63: =IF(T63=0,0,V63/T63) -> 0 | X63: =P63-U63 -> 0 | Y63: =IF(U63=0,0,X63/U63) -> 0 | AA63: =IF(AND(P63=0,T63=0,U63=0),"HIDE","") -> HIDE
A64: 11002 | B64: 600210 | C64: CONTRACT SERVICES MAINTENANCE | D64: =ACCT_11002_600210_NYB_01 -> 0 | E64: =ACCT_11002_600210_NYB_02 -> 0 | F64: =ACCT_11002_600210_NYB_03 -> 0 | G64: =ACCT_11002_600210_NYB_04 -> 0 | H64: =ACCT_11002_600210_NYB_05 -> 0 | I64: =ACCT_11002_600210_NYB_06 -> 0 | J64: =ACCT_11002_600210_NYB_07 -> 0 | K64: =ACCT_11002_600210_NYB_08 -> 0 | L64: =ACCT_11002_600210_NYB_09 -> 0 | M64: =ACCT_11002_600210_NYB_10 -> 0 | N64: =ACCT_11002_600210_NYB_11 -> 0 | O64: =ACCT_11002_600210_NYB_12 -> 0 | P64: 0 | Q64: 0 | S64: 0 | T64: =ACCT_11002_600210_TOT_CY_BUD -> 0 | U64: =ACCT_11002_600210_TOT_CY_PROJ -> 0 | V64: 0 | W64: 0 | X64: 0 | Y64: 0 | AA64: HIDE
A65: 11002 | B65: 664120 | C65: BUILDING SUPPLIES | D65: =ACCT_11002_664120_NYB_01 -> 0 | E65: =ACCT_11002_664120_NYB_02 -> 0 | F65: =ACCT_11002_664120_NYB_03 -> 0 | G65: =ACCT_11002_664120_NYB_04 -> 0 | H65: =ACCT_11002_664120_NYB_05 -> 0 | I65: =ACCT_11002_664120_NYB_06 -> 0 | J65: =ACCT_11002_664120_NYB_07 -> 0 | K65: =ACCT_11002_664120_NYB_08 -> 0 | L65: =ACCT_11002_664120_NYB_09 -> 0 | M65: =ACCT_11002_664120_NYB_10 -> 0 | N65: =ACCT_11002_664120_NYB_11 -> 0 | O65: =ACCT_11002_664120_NYB_12 -> 0 | P65: 0 | Q65: 0 | S65: 0 | T65: =ACCT_11002_664120_TOT_CY_BUD -> 0 | U65: =ACCT_11002_664120_TOT_CY_PROJ -> 0 | V65: 0 | W65: 0 | X65: 0 | Y65: 0 | AA65: HIDE
A66: 11002 | B66: 664250 | C66: BUILDING MAINTENANCE | D66: =ACCT_11002_664250_NYB_01 -> 0 | E66: =ACCT_11002_664250_NYB_02 -> 0 | F66: =ACCT_11002_664250_NYB_03 -> 0 | G66: =ACCT_11002_664250_NYB_04 -> 0 | H66: =ACCT_11002_664250_NYB_05 -> 0 | I66: =ACCT_11002_664250_NYB_06 -> 0 | J66: =ACCT_11002_664250_NYB_07 -> 0 | K66: =ACCT_11002_664250_NYB_08 -> 0 | L66: =ACCT_11002_664250_NYB_09 -> 0 | M66: =ACCT_11002_664250_NYB_10 -> 0 | N66: =ACCT_11002_664250_NYB_11 -> 0 | O66: =ACCT_11002_664250_NYB_12 -> 0 | P66: =SUM(D66:O66) -> 0 | Q66: =P66/$C$7 -> 0 | S66: =T66/$C$7 -> 0 | T66: =ACCT_11002_664250_TOT_CY_BUD -> 0 | U66: =ACCT_11002_664250_TOT_CY_PROJ -> 0 | V66: =P66-T66 -> 0 | W66: =IF(T66=0,0,V66/T66) -> 0 | X66: =P66-U66 -> 0 | Y66: =IF(U66=0,0,X66/U66) -> 0 | AA66: =IF(AND(P66=0,T66=0,U66=0),"HIDE","") -> HIDE
A67: 11002 | B67: 692030 | C67: HOUSEWARES REPLACEMENTS | D67: =ACCT_11002_692030_NYB_01 -> 630 | E67: =ACCT_11002_692030_NYB_02 -> 630 | F67: =ACCT_11002_692030_NYB_03 -> 630 | G67: =ACCT_11002_692030_NYB_04 -> 630 | H67: =ACCT_11002_692030_NYB_05 -> 630 | I67: =ACCT_11002_692030_NYB_06 -> 630 | J67: =ACCT_11002_692030_NYB_07 -> 630 | K67: =ACCT_11002_692030_NYB_08 -> 630 | L67: =ACCT_11002_692030_NYB_09 -> 630 | M67: =ACCT_11002_692030_NYB_10 -> 630 | N67: =ACCT_11002_692030_NYB_11 -> 630 | O67: =ACCT_11002_692030_NYB_12 -> 630 | P67: 7560 | Q67: 4.632352941 | S67: 4.632352941 | T67: =ACCT_11002_692030_TOT_CY_BUD -> 7560 | U67: =ACCT_11002_692030_TOT_CY_PROJ -> 7557.3 | V67: 0 | W67: 0 | X67: 2.7 | Y67: 0.0003572704537
A68: 11002 | B68: 664260 | C68: CARPET FURNITURE CLEANING | D68: =ACCT_11002_664260_NYB_01 -> 0 | E68: =ACCT_11002_664260_NYB_02 -> 0 | F68: =ACCT_11002_664260_NYB_03 -> 0 | G68: =ACCT_11002_664260_NYB_04 -> 0 | H68: =ACCT_11002_664260_NYB_05 -> 500 | I68: =ACCT_11002_664260_NYB_06 -> 0 | J68: =ACCT_11002_664260_NYB_07 -> 0 | K68: =ACCT_11002_664260_NYB_08 -> 0 | L68: =ACCT_11002_664260_NYB_09 -> 3000 | M68: =ACCT_11002_664260_NYB_10 -> 0 | N68: =ACCT_11002_664260_NYB_11 -> 0 | O68: =ACCT_11002_664260_NYB_12 -> 0 | P68: 3500 | Q68: 2.144607843 | S68: 2.144607843 | T68: =ACCT_11002_664260_TOT_CY_BUD -> 3500 | U68: =ACCT_11002_664260_TOT_CY_PROJ -> 3500 | V68: 0 | W68: 0 | X68: 0 | Y68: 0
A69: 11002 | B69: 705060 | C69: BOARD AUTHORIZED PROJECT | D69: =ACCT_11002_705060_NYB_01 -> 0 | E69: =ACCT_11002_705060_NYB_02 -> 0 | F69: =ACCT_11002_705060_NYB_03 -> 0 | G69: =ACCT_11002_705060_NYB_04 -> 0 | H69: =ACCT_11002_705060_NYB_05 -> 0 | I69: =ACCT_11002_705060_NYB_06 -> 0 | J69: =ACCT_11002_705060_NYB_07 -> 0 | K69: =ACCT_11002_705060_NYB_08 -> 0 | L69: =ACCT_11002_705060_NYB_09 -> 0 | M69: =ACCT_11002_705060_NYB_10 -> 0 | N69: =ACCT_11002_705060_NYB_11 -> 0 | O69: =ACCT_11002_705060_NYB_12 -> 0 | P69: =SUM(D69:O69) -> 0 | Q69: =P69/$C$7 -> 0 | S69: =T69/$C$7 -> 0 | T69: =ACCT_11002_705060_TOT_CY_BUD -> 0 | U69: =ACCT_11002_705060_TOT_CY_PROJ -> 0 | V69: =P69-T69 -> 0 | W69: =IF(T69=0,0,V69/T69) -> 0 | X69: =P69-U69 -> 0 | Y69: =IF(U69=0,0,X69/U69) -> 0 | AA69: =IF(AND(P69=0,T69=0,U69=0),"HIDE","") -> HIDE
A70: 11002 | B70: 730150 | C70: DRAPE BEDSPREAD CLEANING | D70: =ACCT_11002_730150_NYB_01 -> 0 | E70: =ACCT_11002_730150_NYB_02 -> 0 | F70: =ACCT_11002_730150_NYB_03 -> 0 | G70: =ACCT_11002_730150_NYB_04 -> 0 | H70: =ACCT_11002_730150_NYB_05 -> 0 | I70: =ACCT_11002_730150_NYB_06 -> 0 | J70: =ACCT_11002_730150_NYB_07 -> 0 | K70: =ACCT_11002_730150_NYB_08 -> 0 | L70: =ACCT_11002_730150_NYB_09 -> 0 | M70: =ACCT_11002_730150_NYB_10 -> 0 | N70: =ACCT_11002_730150_NYB_11 -> 0 | O70: =ACCT_11002_730150_NYB_12 -> 0 | P70: 0 | Q70: 0 | S70: 0 | T70: =ACCT_11002_730150_TOT_CY_BUD -> 0 | U70: =ACCT_11002_730150_TOT_CY_PROJ -> 0 | V70: 0 | W70: 0 | X70: 0 | Y70: 0 | AA70: HIDE
C71: HOUSEKEEPING SERVICES | D71: =SUM(D39:D70) -> 17578 | E71: =SUM(E39:E70) -> 17443 | F71: 18326 | G71: 17561 | H71: 25719 | I71: 17586 | J71: 15582 | K71: 31783 | L71: 25200 | M71: 18918 | N71: 24439 | O71: 17182 | P71: 247317 | Q71: 151.5422794 | S71: 149.0330882 | T71: =SUM(T39:T70) -> 243222 | U71: =SUM(U39:U70) -> 246209.26 | V71: =P71-T71 -> 4095 | W71: =IF(T71=0,0,V71/T71) -> 0.01683647039 | X71: 1107.74 | Y71: 0.0044991809
C72: TELEPHONE
A73: 11201 | B73: 458120 | C73: LONG DISTANCE | D73: =-ACCT_11201_458120_NYB_01 -> 0 | E73: =-ACCT_11201_458120_NYB_02 -> 0 | F73: =-ACCT_11201_458120_NYB_03 -> 0 | G73: =-ACCT_11201_458120_NYB_04 -> 0 | H73: =-ACCT_11201_458120_NYB_05 -> 0 | I73: =-ACCT_11201_458120_NYB_06 -> 0 | J73: =-ACCT_11201_458120_NYB_07 -> 0 | K73: =-ACCT_11201_458120_NYB_08 -> 0 | L73: =-ACCT_11201_458120_NYB_09 -> 0 | M73: =-ACCT_11201_458120_NYB_10 -> 0 | N73: =-ACCT_11201_458120_NYB_11 -> 0 | O73: =-ACCT_11201_458120_NYB_12 -> 0 | P73: =SUM(D73:O73) -> 0 | Q73: =P73/$C$7 -> 0 | S73: =T73/$C$7 -> 0 | T73: =-ACCT_11201_458120_TOT_CY_BUD -> 0 | U73: =-ACCT_11201_458120_TOT_CY_PROJ -> 0 | V73: =P73-T73 -> 0 | W73: =IF(T73=0,0,V73/T73) -> 0 | X73: 0 | Y73: =IF(U73=0,0,X73/U73) -> 0 | AA73: =IF(AND(P73=0,T73=0,U73=0),"HIDE","") -> HIDE
A74: 11201 | B74: 650010 | C74: TELEPHONE LOCAL | D74: =ACCT_11201_650010_NYB_01 -> 850 | E74: =ACCT_11201_650010_NYB_02 -> 850 | F74: =ACCT_11201_650010_NYB_03 -> 850 | G74: =ACCT_11201_650010_NYB_04 -> 850 | H74: =ACCT_11201_650010_NYB_05 -> 850 | I74: =ACCT_11201_650010_NYB_06 -> 850 | J74: =ACCT_11201_650010_NYB_07 -> 850 | K74: =ACCT_11201_650010_NYB_08 -> 850 | L74: =ACCT_11201_650010_NYB_09 -> 850 | M74: =ACCT_11201_650010_NYB_10 -> 850 | N74: =ACCT_11201_650010_NYB_11 -> 850 | O74: =ACCT_11201_650010_NYB_12 -> 850 | P74: =SUM(D74:O74) -> 10200 | Q74: =P74/$C$7 -> 6.25 | S74: =T74/$C$7 -> 10.78431373 | T74: =ACCT_11201_650010_TOT_CY_BUD -> 17600 | U74: =ACCT_11201_650010_TOT_CY_PROJ -> 10192.46 | V74: =P74-T74 -> -7400 | W74: =IF(T74=0,0,V74/T74) -> -0.4204545455 | X74: 7.54 | Y74: =IF(U74=0,0,X74/U74) -> 0.0007397625303 | AA74: =IF(AND(P74=0,T74=0,U74=0),"HIDE","") -> 
A75: 11201 | B75: 664550 | C75: REPAIRS & MAINTENANCE | D75: =ACCT_11201_664550_NYB_01 -> 0 | E75: =ACCT_11201_664550_NYB_02 -> 0 | F75: =ACCT_11201_664550_NYB_03 -> 0 | G75: =ACCT_11201_664550_NYB_04 -> 0 | H75: =ACCT_11201_664550_NYB_05 -> 0 | I75: =ACCT_11201_664550_NYB_06 -> 0 | J75: =ACCT_11201_664550_NYB_07 -> 0 | K75: =ACCT_11201_664550_NYB_08 -> 0 | L75: =ACCT_11201_664550_NYB_09 -> 0 | M75: =ACCT_11201_664550_NYB_10 -> 0 | N75: =ACCT_11201_664550_NYB_11 -> 0 | O75: =ACCT_11201_664550_NYB_12 -> 0 | P75: =SUM(D75:O75) -> 0 | Q75: =P75/$C$7 -> 0 | S75: =T75/$C$7 -> 0 | T75: =ACCT_11201_664550_TOT_CY_BUD -> 0 | U75: =ACCT_11201_664550_TOT_CY_PROJ -> 0 | V75: =P75-T75 -> 0 | W75: =IF(T75=0,0,V75/T75) -> 0 | X75: 0 | Y75: 0 | AA75: =IF(AND(P75=0,T75=0,U75=0),"HIDE","") -> HIDE
C76: TELEPHONE | D76: =SUM(D73:D75) -> 850 | E76: =SUM(E73:E75) -> 850 | F76: 850 | G76: 850 | H76: 850 | I76: 850 | J76: 850 | K76: 850 | L76: 850 | M76: 850 | N76: 850 | O76: 850 | P76: 10200 | Q76: =P76/$C$7 -> 6.25 | S76: =T76/$C$7 -> 10.78431373 | T76: =SUM(T73:T75) -> 17600 | U76: =SUM(U73:U75) -> 10192.46 | V76: =P76-T76 -> -7400 | W76: =IF(T76=0,0,V76/T76) -> -0.4204545455 | X76: 7.54 | Y76: 0.0007397625303 | AA76: =IF(AND(P76=0,T76=0,U76=0),"HIDE","") -> 
C77: PARKING
A78: 11202 | B78: 435020 | C78: VALET PARKING | D78: =-ACCT_11202_435020_NYB_01 -> 0 | E78: =-ACCT_11202_435020_NYB_02 -> 0 | F78: =-ACCT_11202_435020_NYB_03 -> 0 | G78: =-ACCT_11202_435020_NYB_04 -> 0 | H78: =-ACCT_11202_435020_NYB_05 -> 0 | I78: =-ACCT_11202_435020_NYB_06 -> 0 | J78: =-ACCT_11202_435020_NYB_07 -> 0 | K78: =-ACCT_11202_435020_NYB_08 -> 0 | L78: =-ACCT_11202_435020_NYB_09 -> 0 | M78: =-ACCT_11202_435020_NYB_10 -> 0 | N78: =-ACCT_11202_435020_NYB_11 -> 0 | O78: =-ACCT_11202_435020_NYB_12 -> 0 | P78: =SUM(D78:O78) -> 0 | Q78: =P78/$C$7 -> 0 | S78: =T78/$C$7 -> 0 | T78: =-ACCT_11202_435020_TOT_CY_BUD -> 0 | U78: =-ACCT_11202_435020_TOT_CY_PROJ -> 0 | V78: =P78-T78 -> 0 | W78: =IF(T78=0,0,V78/T78) -> 0 | X78: 0 | Y78: =IF(U78=0,0,X78/U78) -> 0 | AA78: =IF(AND(P78=0,T78=0,U78=0),"HIDE","") -> HIDE
A79: 11202 | B79: 600200 | C79: CONTRACT SERVICES | D79: =ACCT_11202_600200_NYB_01 -> 0 | E79: =ACCT_11202_600200_NYB_02 -> 0 | F79: =ACCT_11202_600200_NYB_03 -> 0 | G79: =ACCT_11202_600200_NYB_04 -> 0 | H79: =ACCT_11202_600200_NYB_05 -> 0 | I79: =ACCT_11202_600200_NYB_06 -> 0 | J79: =ACCT_11202_600200_NYB_07 -> 0 | K79: =ACCT_11202_600200_NYB_08 -> 0 | L79: =ACCT_11202_600200_NYB_09 -> 0 | M79: =ACCT_11202_600200_NYB_10 -> 0 | N79: =ACCT_11202_600200_NYB_11 -> 0 | O79: =ACCT_11202_600200_NYB_12 -> 0 | P79: =SUM(D79:O79) -> 0 | Q79: =P79/$C$7 -> 0 | S79: =T79/$C$7 -> 0 | T79: =ACCT_11202_600200_TOT_CY_BUD -> 0 | U79: =ACCT_11202_600200_TOT_CY_PROJ -> 0 | V79: =P79-T79 -> 0 | W79: =IF(T79=0,0,V79/T79) -> 0 | X79: 0 | Y79: =IF(U79=0,0,X79/U79) -> 0 | AA79: =IF(AND(P79=0,T79=0,U79=0),"HIDE","") -> HIDE
C80: PARKING | D80: =SUM(D78:D79) -> 0 | E80: 0 | F80: 0 | G80: 0 | H80: 0 | I80: 0 | J80: 0 | K80: 0 | L80: 0 | M80: 0 | N80: 0 | O80: 0 | P80: 0 | Q80: =P80/$C$7 -> 0 | S80: =T80/$C$7 -> 0 | T80: =SUM(T78:T79) -> 0 | U80: =SUM(U78:U79) -> 0 | V80: =P80-T80 -> 0 | W80: =IF(T80=0,0,V80/T80) -> 0 | X80: 0 | Y80: =IF(U80=0,0,X80/U80) -> 0 | AA80: =IF(AND(P80=0,T80=0,U80=0),"HIDE","") -> HIDE
C81: FRONT DESK
A82: 11003 | B82: 555020 | C82: PERFORMANCE AWARDS | D82: =ACCT_11003_555020_NYB_01 -> 0 | E82: =ACCT_11003_555020_NYB_02 -> 0 | F82: =ACCT_11003_555020_NYB_03 -> 0 | G82: =ACCT_11003_555020_NYB_04 -> 0 | H82: =ACCT_11003_555020_NYB_05 -> 0 | I82: =ACCT_11003_555020_NYB_06 -> 0 | J82: =ACCT_11003_555020_NYB_07 -> 0 | K82: =ACCT_11003_555020_NYB_08 -> 0 | L82: =ACCT_11003_555020_NYB_09 -> 0 | M82: =ACCT_11003_555020_NYB_10 -> 0 | N82: =ACCT_11003_555020_NYB_11 -> 0 | O82: =ACCT_11003_555020_NYB_12 -> 0 | P82: =SUM(D82:O82) -> 0 | Q82: =P82/$C$7 -> 0 | S82: =T82/$C$7 -> 0 | T82: =ACCT_11003_555020_TOT_CY_BUD -> 0 | U82: =ACCT_11003_555020_TOT_CY_PROJ -> 0 | V82: =P82-T82 -> 0 | W82: =IF(T82=0,0,V82/T82) -> 0 | X82: 0 | Y82: =IF(U82=0,0,X82/U82) -> 0 | AA82: =IF(AND(P82=0,T82=0,U82=0),"HIDE","") -> HIDE
A83: 11003 | B83: 541002 | C83: SALARIED MANAGER | D83: =ACCT_11003_541002_NYB_01 -> 0 | E83: =ACCT_11003_541002_NYB_02 -> 0 | F83: =ACCT_11003_541002_NYB_03 -> 0 | G83: =ACCT_11003_541002_NYB_04 -> 0 | H83: =ACCT_11003_541002_NYB_05 -> 0 | I83: =ACCT_11003_541002_NYB_06 -> 0 | J83: =ACCT_11003_541002_NYB_07 -> 0 | K83: =ACCT_11003_541002_NYB_08 -> 0 | L83: =ACCT_11003_541002_NYB_09 -> 0 | M83: =ACCT_11003_541002_NYB_10 -> 0 | N83: =ACCT_11003_541002_NYB_11 -> 0 | O83: =ACCT_11003_541002_NYB_12 -> 0 | P83: =SUM(D83:O83) -> 0 | Q83: 0 | S83: 0 | T83: =ACCT_11003_541002_TOT_CY_BUD -> 0 | U83: =ACCT_11003_541002_TOT_CY_PROJ -> 0 | V83: 0 | W83: 0 | X83: 0 | Y83: =IF(U83=0,0,X83/U83) -> 0 | AA83: HIDE
A84: 11003 | B84: 541003 | C84: SALARIED NON-MANAGER | D84: =ACCT_11003_541003_NYB_01 -> 0 | E84: =ACCT_11003_541003_NYB_02 -> 0 | F84: =ACCT_11003_541003_NYB_03 -> 0 | G84: =ACCT_11003_541003_NYB_04 -> 0 | H84: =ACCT_11003_541003_NYB_05 -> 0 | I84: =ACCT_11003_541003_NYB_06 -> 0 | J84: =ACCT_11003_541003_NYB_07 -> 0 | K84: =ACCT_11003_541003_NYB_08 -> 0 | L84: =ACCT_11003_541003_NYB_09 -> 0 | M84: =ACCT_11003_541003_NYB_10 -> 0 | N84: =ACCT_11003_541003_NYB_11 -> 0 | O84: =ACCT_11003_541003_NYB_12 -> 0 | P84: 0 | Q84: 0 | S84: 0 | T84: =ACCT_11003_541003_TOT_CY_BUD -> 0 | U84: =ACCT_11003_541003_TOT_CY_PROJ -> 0 | V84: 0 | W84: 0 | X84: 0 | Y84: 0 | AA84: HIDE
A85: 11003 | B85: 561170 | C85: PTO AND VACATION EXPENSE | D85: =ACCT_11003_561170_NYB_01 -> 0 | E85: =ACCT_11003_561170_NYB_02 -> 0 | F85: =ACCT_11003_561170_NYB_03 -> 0 | G85: =ACCT_11003_561170_NYB_04 -> 0 | H85: =ACCT_11003_561170_NYB_05 -> 0 | I85: =ACCT_11003_561170_NYB_06 -> 0 | J85: =ACCT_11003_561170_NYB_07 -> 0 | K85: =ACCT_11003_561170_NYB_08 -> 0 | L85: =ACCT_11003_561170_NYB_09 -> 0 | M85: =ACCT_11003_561170_NYB_10 -> 0 | N85: =ACCT_11003_561170_NYB_11 -> 0 | O85: =ACCT_11003_561170_NYB_12 -> 0 | P85: 0 | Q85: 0 | S85: 0 | T85: =ACCT_11003_561170_TOT_CY_BUD -> 0 | U85: =ACCT_11003_561170_TOT_CY_PROJ -> 0 | V85: 0 | W85: 0 | X85: 0 | Y85: 0 | AA85: HIDE
A86: 11003 | B86: 542030 | C86: HOURLY OTHER | D86: =ACCT_11003_542030_NYB_01 -> 0 | E86: =ACCT_11003_542030_NYB_02 -> 0 | F86: =ACCT_11003_542030_NYB_03 -> 0 | G86: =ACCT_11003_542030_NYB_04 -> 0 | H86: =ACCT_11003_542030_NYB_05 -> 0 | I86: =ACCT_11003_542030_NYB_06 -> 0 | J86: =ACCT_11003_542030_NYB_07 -> 0 | K86: =ACCT_11003_542030_NYB_08 -> 0 | L86: =ACCT_11003_542030_NYB_09 -> 0 | M86: =ACCT_11003_542030_NYB_10 -> 0 | N86: =ACCT_11003_542030_NYB_11 -> 0 | O86: =ACCT_11003_542030_NYB_12 -> 0 | P86: 0 | Q86: 0 | S86: 0 | T86: =ACCT_11003_542030_TOT_CY_BUD -> 0 | U86: =ACCT_11003_542030_TOT_CY_PROJ -> 0 | V86: 0 | W86: 0 | X86: 0 | Y86: 0 | AA86: HIDE
A87: 11003 | B87: 543030 | C87: OT HOURLY OTHER | D87: =ACCT_11003_543030_NYB_01 -> 0 | E87: =ACCT_11003_543030_NYB_02 -> 0 | F87: =ACCT_11003_543030_NYB_03 -> 0 | G87: =ACCT_11003_543030_NYB_04 -> 0 | H87: =ACCT_11003_543030_NYB_05 -> 0 | I87: =ACCT_11003_543030_NYB_06 -> 0 | J87: =ACCT_11003_543030_NYB_07 -> 0 | K87: =ACCT_11003_543030_NYB_08 -> 0 | L87: =ACCT_11003_543030_NYB_09 -> 0 | M87: =ACCT_11003_543030_NYB_10 -> 0 | N87: =ACCT_11003_543030_NYB_11 -> 0 | O87: =ACCT_11003_543030_NYB_12 -> 0 | P87: 0 | Q87: 0 | S87: 0 | T87: =ACCT_11003_543030_TOT_CY_BUD -> 0 | U87: =ACCT_11003_543030_TOT_CY_PROJ -> 0 | V87: 0 | W87: 0 | X87: 0 | Y87: 0 | AA87: HIDE
A88: 11003 | B88: 561240 | C88: PAID TIME OFF | D88: =ACCT_11003_561240_NYB_01 -> 0 | E88: =ACCT_11003_561240_NYB_02 -> 0 | F88: =ACCT_11003_561240_NYB_03 -> 0 | G88: =ACCT_11003_561240_NYB_04 -> 0 | H88: =ACCT_11003_561240_NYB_05 -> 0 | I88: =ACCT_11003_561240_NYB_06 -> 0 | J88: =ACCT_11003_561240_NYB_07 -> 0 | K88: =ACCT_11003_561240_NYB_08 -> 0 | L88: =ACCT_11003_561240_NYB_09 -> 0 | M88: =ACCT_11003_561240_NYB_10 -> 0 | N88: =ACCT_11003_561240_NYB_11 -> 0 | O88: =ACCT_11003_561240_NYB_12 -> 0 | P88: 0 | Q88: 0 | S88: 0 | T88: =ACCT_11003_561240_TOT_CY_BUD -> 0 | U88: =ACCT_11003_561240_TOT_CY_PROJ -> 0 | V88: 0 | W88: 0 | X88: 0 | Y88: 0 | AA88: HIDE
A89: 11003 | B89: 561260 | C89: WORKERS COMPENSATION EXP | D89: =ACCT_11003_561260_NYB_01 -> 0 | E89: =ACCT_11003_561260_NYB_02 -> 0 | F89: =ACCT_11003_561260_NYB_03 -> 0 | G89: =ACCT_11003_561260_NYB_04 -> 0 | H89: =ACCT_11003_561260_NYB_05 -> 0 | I89: =ACCT_11003_561260_NYB_06 -> 0 | J89: =ACCT_11003_561260_NYB_07 -> 0 | K89: =ACCT_11003_561260_NYB_08 -> 0 | L89: =ACCT_11003_561260_NYB_09 -> 0 | M89: =ACCT_11003_561260_NYB_10 -> 0 | N89: =ACCT_11003_561260_NYB_11 -> 0 | O89: =ACCT_11003_561260_NYB_12 -> 0 | P89: =SUM(D89:O89) -> 0 | Q89: =P89/$C$7 -> 0 | S89: =T89/$C$7 -> 0 | T89: =ACCT_11003_561260_TOT_CY_BUD -> 0 | U89: =ACCT_11003_561260_TOT_CY_PROJ -> 0 | V89: =P89-T89 -> 0 | W89: =IF(T89=0,0,V89/T89) -> 0 | X89: =P89-U89 -> 0 | Y89: =IF(U89=0,0,X89/U89) -> 0 | AA89: =IF(AND(P89=0,T89=0,U89=0),"HIDE","") -> HIDE
A90: 11003 | B90: 555070 | C90: OTHER INCENTIVE COMPENSATION EXP | D90: =ACCT_11003_555070_NYB_01 -> 0 | E90: =ACCT_11003_555070_NYB_02 -> 0 | F90: =ACCT_11003_555070_NYB_03 -> 0 | G90: =ACCT_11003_555070_NYB_04 -> 0 | H90: =ACCT_11003_555070_NYB_05 -> 0 | I90: =ACCT_11003_555070_NYB_06 -> 0 | J90: =ACCT_11003_555070_NYB_07 -> 0 | K90: =ACCT_11003_555070_NYB_08 -> 0 | L90: =ACCT_11003_555070_NYB_09 -> 0 | M90: =ACCT_11003_555070_NYB_10 -> 0 | N90: =ACCT_11003_555070_NYB_11 -> 0 | O90: =ACCT_11003_555070_NYB_12 -> 0 | P90: 0 | Q90: 0 | S90: 0 | T90: =ACCT_11003_555070_TOT_CY_BUD -> 0 | U90: =ACCT_11003_555070_TOT_CY_PROJ -> 0 | V90: 0 | W90: 0 | X90: 0 | Y90: 0 | AA90: HIDE
A91: 11003 | B91: 561020 | C91: PENSION DEFINED CONTRIBUTION | D91: =ACCT_11003_561020_NYB_01 -> 0 | E91: =ACCT_11003_561020_NYB_02 -> 0 | F91: =ACCT_11003_561020_NYB_03 -> 0 | G91: =ACCT_11003_561020_NYB_04 -> 0 | H91: =ACCT_11003_561020_NYB_05 -> 0 | I91: =ACCT_11003_561020_NYB_06 -> 0 | J91: =ACCT_11003_561020_NYB_07 -> 0 | K91: =ACCT_11003_561020_NYB_08 -> 0 | L91: =ACCT_11003_561020_NYB_09 -> 0 | M91: =ACCT_11003_561020_NYB_10 -> 0 | N91: =ACCT_11003_561020_NYB_11 -> 0 | O91: =ACCT_11003_561020_NYB_12 -> 0 | P91: 0 | Q91: 0 | S91: 0 | T91: =ACCT_11003_561020_TOT_CY_BUD -> 0 | U91: =ACCT_11003_561020_TOT_CY_PROJ -> 0 | V91: 0 | W91: 0 | X91: 0 | Y91: 0 | AA91: HIDE
A92: 11003 | B92: 561010 | C92: GROUP HEALTH INSURANCE NON-UNION | D92: =ACCT_11003_561010_NYB_01 -> 0 | E92: =ACCT_11003_561010_NYB_02 -> 0 | F92: =ACCT_11003_561010_NYB_03 -> 0 | G92: =ACCT_11003_561010_NYB_04 -> 0 | H92: =ACCT_11003_561010_NYB_05 -> 0 | I92: =ACCT_11003_561010_NYB_06 -> 0 | J92: =ACCT_11003_561010_NYB_07 -> 0 | K92: =ACCT_11003_561010_NYB_08 -> 0 | L92: =ACCT_11003_561010_NYB_09 -> 0 | M92: =ACCT_11003_561010_NYB_10 -> 0 | N92: =ACCT_11003_561010_NYB_11 -> 0 | O92: =ACCT_11003_561010_NYB_12 -> 0 | P92: 0 | Q92: 0 | S92: 0 | T92: =ACCT_11003_561010_TOT_CY_BUD -> 0 | U92: =ACCT_11003_561010_TOT_CY_PROJ -> 0 | V92: 0 | W92: 0 | X92: 0 | Y92: 0 | AA92: HIDE
A93: 11003 | B93: 561490 | C93: OTHER NON-UNION BENEFIT EXP | D93: =ACCT_11003_561490_NYB_01 -> 0 | E93: =ACCT_11003_561490_NYB_02 -> 0 | F93: =ACCT_11003_561490_NYB_03 -> 0 | G93: =ACCT_11003_561490_NYB_04 -> 0 | H93: =ACCT_11003_561490_NYB_05 -> 0 | I93: =ACCT_11003_561490_NYB_06 -> 0 | J93: =ACCT_11003_561490_NYB_07 -> 0 | K93: =ACCT_11003_561490_NYB_08 -> 0 | L93: =ACCT_11003_561490_NYB_09 -> 0 | M93: =ACCT_11003_561490_NYB_10 -> 0 | N93: =ACCT_11003_561490_NYB_11 -> 0 | O93: =ACCT_11003_561490_NYB_12 -> 0 | P93: 0 | Q93: 0 | S93: 0 | T93: =ACCT_11003_561490_TOT_CY_BUD -> 0 | U93: =ACCT_11003_561490_TOT_CY_PROJ -> 0 | V93: 0 | W93: 0 | X93: 0 | Y93: 0 | AA93: HIDE
A94: 11003 | B94: 565010 | C94: SOCIAL SECURITY TAX EXPENSE | D94: =ACCT_11003_565010_NYB_01 -> 0 | E94: =ACCT_11003_565010_NYB_02 -> 0 | F94: =ACCT_11003_565010_NYB_03 -> 0 | G94: =ACCT_11003_565010_NYB_04 -> 0 | H94: =ACCT_11003_565010_NYB_05 -> 0 | I94: =ACCT_11003_565010_NYB_06 -> 0 | J94: =ACCT_11003_565010_NYB_07 -> 0 | K94: =ACCT_11003_565010_NYB_08 -> 0 | L94: =ACCT_11003_565010_NYB_09 -> 0 | M94: =ACCT_11003_565010_NYB_10 -> 0 | N94: =ACCT_11003_565010_NYB_11 -> 0 | O94: =ACCT_11003_565010_NYB_12 -> 0 | P94: 0 | Q94: 0 | S94: 0 | T94: =ACCT_11003_565010_TOT_CY_BUD -> 0 | U94: =ACCT_11003_565010_TOT_CY_PROJ -> 0 | V94: 0 | W94: 0 | X94: 0 | Y94: 0 | AA94: HIDE
A95: 11003 | B95: 565040 | C95: STATE UNEMPLOYMENT TAX | D95: =ACCT_11003_565040_NYB_01 -> 0 | E95: =ACCT_11003_565040_NYB_02 -> 0 | F95: =ACCT_11003_565040_NYB_03 -> 0 | G95: =ACCT_11003_565040_NYB_04 -> 0 | H95: =ACCT_11003_565040_NYB_05 -> 0 | I95: =ACCT_11003_565040_NYB_06 -> 0 | J95: =ACCT_11003_565040_NYB_07 -> 0 | K95: =ACCT_11003_565040_NYB_08 -> 0 | L95: =ACCT_11003_565040_NYB_09 -> 0 | M95: =ACCT_11003_565040_NYB_10 -> 0 | N95: =ACCT_11003_565040_NYB_11 -> 0 | O95: =ACCT_11003_565040_NYB_12 -> 0 | P95: =SUM(D95:O95) -> 0 | Q95: =P95/$C$7 -> 0 | S95: =T95/$C$7 -> 0 | T95: =ACCT_11003_565040_TOT_CY_BUD -> 0 | U95: =ACCT_11003_565040_TOT_CY_PROJ -> 0 | V95: =P95-T95 -> 0 | W95: =IF(T95=0,0,V95/T95) -> 0 | X95: 0 | Y95: 0 | AA95: =IF(AND(P95=0,T95=0,U95=0),"HIDE","") -> HIDE
A96: 11003 | B96: 696010 | C96: UNIFORMS | D96: =ACCT_11003_696010_NYB_01 -> 0 | E96: =ACCT_11003_696010_NYB_02 -> 0 | F96: =ACCT_11003_696010_NYB_03 -> 0 | G96: =ACCT_11003_696010_NYB_04 -> 0 | H96: =ACCT_11003_696010_NYB_05 -> 0 | I96: =ACCT_11003_696010_NYB_06 -> 0 | J96: =ACCT_11003_696010_NYB_07 -> 0 | K96: =ACCT_11003_696010_NYB_08 -> 0 | L96: =ACCT_11003_696010_NYB_09 -> 0 | M96: =ACCT_11003_696010_NYB_10 -> 0 | N96: =ACCT_11003_696010_NYB_11 -> 0 | O96: =ACCT_11003_696010_NYB_12 -> 0 | P96: 0 | Q96: 0 | S96: 0 | T96: =ACCT_11003_696010_TOT_CY_BUD -> 0 | U96: =ACCT_11003_696010_TOT_CY_PROJ -> 0 | V96: 0 | W96: 0 | X96: 0 | Y96: 0 | AA96: HIDE
C97: FRONT DESK | D97: =SUM(D82:D96) -> 0 | E97: =SUM(E82:E96) -> 0 | F97: 0 | G97: 0 | H97: 0 | I97: 0 | J97: 0 | K97: 0 | L97: 0 | M97: 0 | N97: 0 | O97: 0 | P97: 0 | Q97: 0 | S97: 0 | T97: =SUM(T82:T96) -> 0 | U97: =SUM(U82:U96) -> 0 | V97: =P97-T97 -> 0 | W97: =IF(T97=0,0,V97/T97) -> 0 | X97: 0 | Y97: 0 | AA97: HIDE
C98: GENERAL & ADMINISTRATIVE
A99: 11700 | B99: 431100 | C99: FAXES TELEX CABLE | D99: =-ACCT_11700_431100_NYB_01 -> 0 | E99: =-ACCT_11700_431100_NYB_02 -> 0 | F99: =-ACCT_11700_431100_NYB_03 -> 0 | G99: =-ACCT_11700_431100_NYB_04 -> 0 | H99: =-ACCT_11700_431100_NYB_05 -> 0 | I99: =-ACCT_11700_431100_NYB_06 -> 0 | J99: =-ACCT_11700_431100_NYB_07 -> 0 | K99: =-ACCT_11700_431100_NYB_08 -> 0 | L99: =-ACCT_11700_431100_NYB_09 -> 0 | M99: =-ACCT_11700_431100_NYB_10 -> 0 | N99: =-ACCT_11700_431100_NYB_11 -> 0 | O99: =-ACCT_11700_431100_NYB_12 -> 0 | P99: =SUM(D99:O99) -> 0 | Q99: =P99/$C$7 -> 0 | S99: =T99/$C$7 -> 0 | T99: =-ACCT_11700_431100_TOT_CY_BUD -> 0 | U99: =-ACCT_11700_431100_TOT_CY_PROJ -> 0 | V99: =P99-T99 -> 0 | W99: =IF(T99=0,0,V99/T99) -> 0 | X99: 0 | Y99: =IF(U99=0,0,X99/U99) -> 0 | AA99: =IF(AND(P99=0,T99=0,U99=0),"HIDE","") -> HIDE
A100: 11700 | B100: 452060 | C100: OTHER REVENUE - REAL ESTATE | D100: =-ACCT_11700_452060_NYB_01 -> 0 | E100: =-ACCT_11700_452060_NYB_02 -> 0 | F100: =-ACCT_11700_452060_NYB_03 -> 0 | G100: =-ACCT_11700_452060_NYB_04 -> 0 | H100: =-ACCT_11700_452060_NYB_05 -> 0 | I100: =-ACCT_11700_452060_NYB_06 -> 0 | J100: =-ACCT_11700_452060_NYB_07 -> 0 | K100: =-ACCT_11700_452060_NYB_08 -> 0 | L100: =-ACCT_11700_452060_NYB_09 -> 0 | M100: =-ACCT_11700_452060_NYB_10 -> 0 | N100: =-ACCT_11700_452060_NYB_11 -> 0 | O100: =-ACCT_11700_452060_NYB_12 -> 0 | P100: =SUM(D100:O100) -> 0 | Q100: =P100/$C$7 -> 0 | S100: =T100/$C$7 -> 0 | T100: =-ACCT_11700_452060_TOT_CY_BUD -> 0 | U100: =-ACCT_11700_452060_TOT_CY_PROJ -> 0 | V100: =P100-T100 -> 0 | W100: =IF(T100=0,0,V100/T100) -> 0 | X100: =P100-U100 -> 0 | Y100: =IF(U100=0,0,X100/U100) -> 0 | AA100: =IF(AND(P100=0,T100=0,U100=0),"HIDE","") -> HIDE
A101: 11700 | B101: 555020 | C101: PERFORMANCE AWARDS | D101: =ACCT_11700_555020_NYB_01 -> 0 | E101: =ACCT_11700_555020_NYB_02 -> 0 | F101: =ACCT_11700_555020_NYB_03 -> 0 | G101: =ACCT_11700_555020_NYB_04 -> 0 | H101: =ACCT_11700_555020_NYB_05 -> 0 | I101: =ACCT_11700_555020_NYB_06 -> 0 | J101: =ACCT_11700_555020_NYB_07 -> 0 | K101: =ACCT_11700_555020_NYB_08 -> 0 | L101: =ACCT_11700_555020_NYB_09 -> 0 | M101: =ACCT_11700_555020_NYB_10 -> 0 | N101: =ACCT_11700_555020_NYB_11 -> 0 | O101: =ACCT_11700_555020_NYB_12 -> 0 | P101: 0 | Q101: 0 | S101: 0 | T101: =ACCT_11700_555020_TOT_CY_BUD -> 0 | U101: =ACCT_11700_555020_TOT_CY_PROJ -> 0 | V101: 0 | W101: 0 | X101: 0 | Y101: =IF(U101=0,0,X101/U101) -> 0 | AA101: HIDE
A102: 11700 | B102: 541002 | C102: SALARIED MANAGER | D102: =ACCT_11700_541002_NYB_01 -> 4289 | E102: =ACCT_11700_541002_NYB_02 -> 4514 | F102: =ACCT_11700_541002_NYB_03 -> 4185 | G102: =ACCT_11700_541002_NYB_04 -> 4882 | H102: =ACCT_11700_541002_NYB_05 -> 7556 | I102: =ACCT_11700_541002_NYB_06 -> 4417 | J102: =ACCT_11700_541002_NYB_07 -> 4185 | K102: =ACCT_11700_541002_NYB_08 -> 4185 | L102: =ACCT_11700_541002_NYB_09 -> 4882 | M102: =ACCT_11700_541002_NYB_10 -> 4417 | N102: =ACCT_11700_541002_NYB_11 -> 7556 | O102: =ACCT_11700_541002_NYB_12 -> 4185 | P102: 59253 | Q102: 36.30698529 | S102: 33.46139706 | T102: =ACCT_11700_541002_TOT_CY_BUD -> 54609 | U102: =ACCT_11700_541002_TOT_CY_PROJ -> 55911.63 | V102: 4644 | W102: 0.08504092732 | X102: 3341.37 | Y102: 0.05976162741
A103: 11700 | B103: 541003 | C103: SALARIED NON-MANAGER | D103: =ACCT_11700_541003_NYB_01 -> 0 | E103: =ACCT_11700_541003_NYB_02 -> 0 | F103: =ACCT_11700_541003_NYB_03 -> 0 | G103: =ACCT_11700_541003_NYB_04 -> 0 | H103: =ACCT_11700_541003_NYB_05 -> 0 | I103: =ACCT_11700_541003_NYB_06 -> 0 | J103: =ACCT_11700_541003_NYB_07 -> 0 | K103: =ACCT_11700_541003_NYB_08 -> 0 | L103: =ACCT_11700_541003_NYB_09 -> 0 | M103: =ACCT_11700_541003_NYB_10 -> 0 | N103: =ACCT_11700_541003_NYB_11 -> 0 | O103: =ACCT_11700_541003_NYB_12 -> 0 | P103: 0 | Q103: 0 | S103: 0 | T103: =ACCT_11700_541003_TOT_CY_BUD -> 0 | U103: =ACCT_11700_541003_TOT_CY_PROJ -> 0 | V103: 0 | W103: 0 | X103: 0 | Y103: 0 | AA103: HIDE
A104: 11700 | B104: 542305 | C104: WAGES MINIMUM DRAW | D104: =ACCT_11700_542305_NYB_01 -> 0 | E104: =ACCT_11700_542305_NYB_02 -> 0 | F104: =ACCT_11700_542305_NYB_03 -> 0 | G104: =ACCT_11700_542305_NYB_04 -> 0 | H104: =ACCT_11700_542305_NYB_05 -> 0 | I104: =ACCT_11700_542305_NYB_06 -> 0 | J104: =ACCT_11700_542305_NYB_07 -> 0 | K104: =ACCT_11700_542305_NYB_08 -> 0 | L104: =ACCT_11700_542305_NYB_09 -> 0 | M104: =ACCT_11700_542305_NYB_10 -> 0 | N104: =ACCT_11700_542305_NYB_11 -> 0 | O104: =ACCT_11700_542305_NYB_12 -> 0 | P104: 0 | Q104: 0 | S104: 0 | T104: =ACCT_11700_542305_TOT_CY_BUD -> 0 | U104: =ACCT_11700_542305_TOT_CY_PROJ -> 0 | V104: 0 | W104: 0 | X104: 0 | Y104: 0 | AA104: HIDE
A105: 11700 | B105: 542030 | C105: HOURLY OTHER | D105: =ACCT_11700_542030_NYB_01 -> 4609 | E105: =ACCT_11700_542030_NYB_02 -> 4434 | F105: =ACCT_11700_542030_NYB_03 -> 4979 | G105: =ACCT_11700_542030_NYB_04 -> 4600 | H105: =ACCT_11700_542030_NYB_05 -> 7205 | I105: =ACCT_11700_542030_NYB_06 -> 4400 | J105: =ACCT_11700_542030_NYB_07 -> 4568 | K105: =ACCT_11700_542030_NYB_08 -> 4104 | L105: =ACCT_11700_542030_NYB_09 -> 4863 | M105: =ACCT_11700_542030_NYB_10 -> 4748 | N105: =ACCT_11700_542030_NYB_11 -> 7089 | O105: =ACCT_11700_542030_NYB_12 -> 4452 | P105: 60051 | Q105: 36.79595588 | S105: 35.12990196 | T105: =ACCT_11700_542030_TOT_CY_BUD -> 57332 | U105: =ACCT_11700_542030_TOT_CY_PROJ -> 57371.19 | V105: 2719 | W105: 0.04742552152 | X105: 2679.81 | Y105: 0.04671002989
A106: 11700 | B106: 543030 | C106: OT HOURLY OTHER | D106: =ACCT_11700_543030_NYB_01 -> 0 | E106: =ACCT_11700_543030_NYB_02 -> 0 | F106: =ACCT_11700_543030_NYB_03 -> 0 | G106: =ACCT_11700_543030_NYB_04 -> 0 | H106: =ACCT_11700_543030_NYB_05 -> 0 | I106: =ACCT_11700_543030_NYB_06 -> 0 | J106: =ACCT_11700_543030_NYB_07 -> 0 | K106: =ACCT_11700_543030_NYB_08 -> 0 | L106: =ACCT_11700_543030_NYB_09 -> 0 | M106: =ACCT_11700_543030_NYB_10 -> 0 | N106: =ACCT_11700_543030_NYB_11 -> 0 | O106: =ACCT_11700_543030_NYB_12 -> 0 | P106: 0 | Q106: 0 | S106: 0 | T106: =ACCT_11700_543030_TOT_CY_BUD -> 0 | U106: =ACCT_11700_543030_TOT_CY_PROJ -> 0 | V106: 0 | W106: 0 | X106: 0 | Y106: 0 | AA106: HIDE
A107: 11700 | B107: 561240 | C107: PAID TIME OFF | D107: =ACCT_11700_561240_NYB_01 -> 945 | E107: =ACCT_11700_561240_NYB_02 -> 945 | F107: =ACCT_11700_561240_NYB_03 -> 973 | G107: =ACCT_11700_561240_NYB_04 -> 973 | H107: =ACCT_11700_561240_NYB_05 -> 1460 | I107: =ACCT_11700_561240_NYB_06 -> 973 | J107: =ACCT_11700_561240_NYB_07 -> 973 | K107: =ACCT_11700_561240_NYB_08 -> 973 | L107: =ACCT_11700_561240_NYB_09 -> 973 | M107: =ACCT_11700_561240_NYB_10 -> 973 | N107: =ACCT_11700_561240_NYB_11 -> 1460 | O107: =ACCT_11700_561240_NYB_12 -> 973 | P107: 12594 | Q107: 7.716911765 | S107: 7.81004902 | T107: =ACCT_11700_561240_TOT_CY_BUD -> 12746 | U107: =ACCT_11700_561240_TOT_CY_PROJ -> 11570.8 | V107: -152 | W107: -0.0119253099 | X107: 1023.2 | Y107: 0.08842949494
A108: 11700 | B108: 561260 | C108: WORKERS COMPENSATION EXP | D108: =ACCT_11700_561260_NYB_01 -> 287 | E108: =ACCT_11700_561260_NYB_02 -> 289 | F108: =ACCT_11700_561260_NYB_03 -> 296 | G108: =ACCT_11700_561260_NYB_04 -> 305 | H108: =ACCT_11700_561260_NYB_05 -> 474 | I108: =ACCT_11700_561260_NYB_06 -> 286 | J108: =ACCT_11700_561260_NYB_07 -> 284 | K108: =ACCT_11700_561260_NYB_08 -> 270 | L108: =ACCT_11700_561260_NYB_09 -> 313 | M108: =ACCT_11700_561260_NYB_10 -> 296 | N108: =ACCT_11700_561260_NYB_11 -> 470 | O108: =ACCT_11700_561260_NYB_12 -> 281 | P108: =SUM(D108:O108) -> 3851 | Q108: =P108/$C$7 -> 2.359681373 | S108: =T108/$C$7 -> 3.441176471 | T108: =ACCT_11700_561260_TOT_CY_BUD -> 5616 | U108: =ACCT_11700_561260_TOT_CY_PROJ -> 4042.09 | V108: =P108-T108 -> -1765 | W108: =IF(T108=0,0,V108/T108) -> -0.3142806268 | X108: =P108-U108 -> -191.09 | Y108: =IF(U108=0,0,X108/U108) -> -0.0472750483 | AA108: =IF(AND(P108=0,T108=0,U108=0),"HIDE","") -> 
A109: 11700 | B109: 561170 | C109: PTO AND VACATION EXPENSE | D109: =ACCT_11700_561170_NYB_01 -> 0 | E109: =ACCT_11700_561170_NYB_02 -> 0 | F109: =ACCT_11700_561170_NYB_03 -> 0 | G109: =ACCT_11700_561170_NYB_04 -> 0 | H109: =ACCT_11700_561170_NYB_05 -> 0 | I109: =ACCT_11700_561170_NYB_06 -> 0 | J109: =ACCT_11700_561170_NYB_07 -> 0 | K109: =ACCT_11700_561170_NYB_08 -> 0 | L109: =ACCT_11700_561170_NYB_09 -> 0 | M109: =ACCT_11700_561170_NYB_10 -> 0 | N109: =ACCT_11700_561170_NYB_11 -> 0 | O109: =ACCT_11700_561170_NYB_12 -> 0 | P109: =SUM(D109:O109) -> 0 | Q109: =P109/$C$7 -> 0 | S109: =T109/$C$7 -> 0 | T109: =ACCT_11700_561170_TOT_CY_BUD -> 0 | U109: =ACCT_11700_561170_TOT_CY_PROJ -> 0 | V109: =P109-T109 -> 0 | W109: =IF(T109=0,0,V109/T109) -> 0 | X109: =P109-U109 -> 0 | Y109: =IF(U109=0,0,X109/U109) -> 0 | AA109: =IF(AND(P109=0,T109=0,U109=0),"HIDE","") -> HIDE
A110: 11700 | B110: 555070 | C110: OTHER INCENTIVE COMPENSATION EXP | D110: =ACCT_11700_555070_NYB_01 -> 0 | E110: =ACCT_11700_555070_NYB_02 -> 0 | F110: =ACCT_11700_555070_NYB_03 -> 0 | G110: =ACCT_11700_555070_NYB_04 -> 0 | H110: =ACCT_11700_555070_NYB_05 -> 0 | I110: =ACCT_11700_555070_NYB_06 -> 0 | J110: =ACCT_11700_555070_NYB_07 -> 0 | K110: =ACCT_11700_555070_NYB_08 -> 0 | L110: =ACCT_11700_555070_NYB_09 -> 0 | M110: =ACCT_11700_555070_NYB_10 -> 0 | N110: =ACCT_11700_555070_NYB_11 -> 0 | O110: =ACCT_11700_555070_NYB_12 -> 0 | P110: 0 | Q110: 0 | S110: 0 | T110: =ACCT_11700_555070_TOT_CY_BUD -> 0 | U110: =ACCT_11700_555070_TOT_CY_PROJ -> 0 | V110: 0 | W110: 0 | X110: 0 | Y110: 0 | AA110: HIDE
A111: 11700 | B111: 561020 | C111: PENSION DEFINED CONTRIBUTION | D111: =ACCT_11700_561020_NYB_01 -> 152 | E111: =ACCT_11700_561020_NYB_02 -> 152 | F111: =ACCT_11700_561020_NYB_03 -> 156 | G111: =ACCT_11700_561020_NYB_04 -> 161 | H111: =ACCT_11700_561020_NYB_05 -> 250 | I111: =ACCT_11700_561020_NYB_06 -> 151 | J111: =ACCT_11700_561020_NYB_07 -> 150 | K111: =ACCT_11700_561020_NYB_08 -> 143 | L111: =ACCT_11700_561020_NYB_09 -> 165 | M111: =ACCT_11700_561020_NYB_10 -> 156 | N111: =ACCT_11700_561020_NYB_11 -> 248 | O111: =ACCT_11700_561020_NYB_12 -> 148 | P111: 2032 | Q111: 1.245098039 | S111: 1.529411765 | T111: =ACCT_11700_561020_TOT_CY_BUD -> 2496 | U111: =ACCT_11700_561020_TOT_CY_PROJ -> 1930.11 | V111: -464 | W111: -0.1858974359 | X111: 101.89 | Y111: 0.05278973737
A112: 11700 | B112: 561010 | C112: GROUP HEALTH INSURANCE NON-UNION | D112: =ACCT_11700_561010_NYB_01 -> 1994 | E112: =ACCT_11700_561010_NYB_02 -> 1994 | F112: =ACCT_11700_561010_NYB_03 -> 2054 | G112: =ACCT_11700_561010_NYB_04 -> 2053 | H112: =ACCT_11700_561010_NYB_05 -> 3080 | I112: =ACCT_11700_561010_NYB_06 -> 2053 | J112: =ACCT_11700_561010_NYB_07 -> 2053 | K112: =ACCT_11700_561010_NYB_08 -> 2053 | L112: =ACCT_11700_561010_NYB_09 -> 2053 | M112: =ACCT_11700_561010_NYB_10 -> 2053 | N112: =ACCT_11700_561010_NYB_11 -> 3080 | O112: =ACCT_11700_561010_NYB_12 -> 2053 | P112: 26573 | Q112: 16.28247549 | S112: 14.09068627 | T112: =ACCT_11700_561010_TOT_CY_BUD -> 22996 | U112: =ACCT_11700_561010_TOT_CY_PROJ -> 24879 | V112: 3577 | W112: 0.1555487911 | X112: =P112-U112 -> 1694 | Y112: 0.06808955344
A113: 11700 | B113: 561490 | C113: OTHER NON-UNION BENEFIT EXP | D113: =ACCT_11700_561490_NYB_01 -> 600 | E113: =ACCT_11700_561490_NYB_02 -> 603 | F113: =ACCT_11700_561490_NYB_03 -> 618 | G113: =ACCT_11700_561490_NYB_04 -> 637 | H113: =ACCT_11700_561490_NYB_05 -> 988 | I113: =ACCT_11700_561490_NYB_06 -> 597 | J113: =ACCT_11700_561490_NYB_07 -> 593 | K113: =ACCT_11700_561490_NYB_08 -> 564 | L113: =ACCT_11700_561490_NYB_09 -> 653 | M113: =ACCT_11700_561490_NYB_10 -> 618 | N113: =ACCT_11700_561490_NYB_11 -> 981 | O113: =ACCT_11700_561490_NYB_12 -> 586 | P113: 8038 | Q113: 4.925245098 | S113: 5.345588235 | T113: =ACCT_11700_561490_TOT_CY_BUD -> 8724 | U113: =ACCT_11700_561490_TOT_CY_PROJ -> 7929.28 | V113: -686 | W113: -0.07863365429 | X113: 108.72 | Y113: 0.01371120707
A114: 11700 | B114: 565010 | C114: SOCIAL SECURITY TAX EXPENSE | D114: =ACCT_11700_565010_NYB_01 -> 733 | E114: =ACCT_11700_565010_NYB_02 -> 737 | F114: =ACCT_11700_565010_NYB_03 -> 755 | G114: =ACCT_11700_565010_NYB_04 -> 779 | H114: =ACCT_11700_565010_NYB_05 -> 1208 | I114: =ACCT_11700_565010_NYB_06 -> 729 | J114: =ACCT_11700_565010_NYB_07 -> 724 | K114: =ACCT_11700_565010_NYB_08 -> 690 | L114: =ACCT_11700_565010_NYB_09 -> 798 | M114: =ACCT_11700_565010_NYB_10 -> 755 | N114: =ACCT_11700_565010_NYB_11 -> 1200 | O114: =ACCT_11700_565010_NYB_12 -> 716 | P114: 9824 | Q114: 6.019607843 | S114: 5.382352941 | T114: =ACCT_11700_565010_TOT_CY_BUD -> 8784 | U114: =ACCT_11700_565010_TOT_CY_PROJ -> 9336.27 | V114: 1040 | W114: 0.1183970856 | X114: 487.73 | Y114: 0.05224034866
A115: 11700 | B115: 565040 | C115: STATE UNEMPLOYMENT TAX | D115: =ACCT_11700_565040_NYB_01 -> 29 | E115: =ACCT_11700_565040_NYB_02 -> 29 | F115: =ACCT_11700_565040_NYB_03 -> 30 | G115: =ACCT_11700_565040_NYB_04 -> 31 | H115: =ACCT_11700_565040_NYB_05 -> 48 | I115: =ACCT_11700_565040_NYB_06 -> 29 | J115: =ACCT_11700_565040_NYB_07 -> 29 | K115: =ACCT_11700_565040_NYB_08 -> 27 | L115: =ACCT_11700_565040_NYB_09 -> 32 | M115: =ACCT_11700_565040_NYB_10 -> 30 | N115: =ACCT_11700_565040_NYB_11 -> 48 | O115: =ACCT_11700_565040_NYB_12 -> 28 | P115: =SUM(D115:O115) -> 390 | Q115: =P115/$C$7 -> 0.2389705882 | S115: =T115/$C$7 -> 0.4264705882 | T115: =ACCT_11700_565040_TOT_CY_BUD -> 696 | U115: =ACCT_11700_565040_TOT_CY_PROJ -> 374.55 | V115: =P115-T115 -> -306 | W115: =IF(T115=0,0,V115/T115) -> -0.4396551724 | X115: =P115-U115 -> 15.45 | Y115: =IF(U115=0,0,X115/U115) -> 0.0412494994 | AA115: =IF(AND(P115=0,T115=0,U115=0),"HIDE","") -> 
A116: 11700 | B116: 730310 | C116: BAD DEBT WRITE-OFF | D116: =ACCT_11700_730310_NYB_01 -> 0 | E116: =ACCT_11700_730310_NYB_02 -> 0 | F116: =ACCT_11700_730310_NYB_03 -> 0 | G116: =ACCT_11700_730310_NYB_04 -> 0 | H116: =ACCT_11700_730310_NYB_05 -> 0 | I116: =ACCT_11700_730310_NYB_06 -> 0 | J116: =ACCT_11700_730310_NYB_07 -> 0 | K116: =ACCT_11700_730310_NYB_08 -> 0 | L116: =ACCT_11700_730310_NYB_09 -> 0 | M116: =ACCT_11700_730310_NYB_10 -> 0 | N116: =ACCT_11700_730310_NYB_11 -> 0 | O116: =ACCT_11700_730310_NYB_12 -> 0 | P116: 0 | Q116: 0 | S116: 0 | T116: =ACCT_11700_730310_TOT_CY_BUD -> 0 | U116: =ACCT_11700_730310_TOT_CY_PROJ -> 0.03 | V116: 0 | W116: 0 | X116: -0.03 | Y116: -1
A117: 11700 | B117: 676090 | C117: BANK FEES | D117: =ACCT_11700_676090_NYB_01 -> 675 | E117: =ACCT_11700_676090_NYB_02 -> 460 | F117: =ACCT_11700_676090_NYB_03 -> 515 | G117: =ACCT_11700_676090_NYB_04 -> 90 | H117: =ACCT_11700_676090_NYB_05 -> 435 | I117: =ACCT_11700_676090_NYB_06 -> 275 | J117: =ACCT_11700_676090_NYB_07 -> 285 | K117: =ACCT_11700_676090_NYB_08 -> 310 | L117: =ACCT_11700_676090_NYB_09 -> 290 | M117: =ACCT_11700_676090_NYB_10 -> 295 | N117: =ACCT_11700_676090_NYB_11 -> 275 | O117: =ACCT_11700_676090_NYB_12 -> 515 | P117: 4420 | Q117: 2.708333333 | S117: 2.472426471 | T117: =ACCT_11700_676090_TOT_CY_BUD -> 4035 | U117: =ACCT_11700_676090_TOT_CY_PROJ -> 4337.81 | V117: 385 | W117: 0.09541511772 | X117: 82.19 | Y117: 0.01894734901
A118: 11700 | B118: 815190 | C118: INTEREST EXPENSE THIRD-PARTY | D118: =ACCT_11700_815190_NYB_01 -> 0 | E118: =ACCT_11700_815190_NYB_02 -> 0 | F118: =ACCT_11700_815190_NYB_03 -> 0 | G118: =ACCT_11700_815190_NYB_04 -> 0 | H118: =ACCT_11700_815190_NYB_05 -> 0 | I118: =ACCT_11700_815190_NYB_06 -> 0 | J118: =ACCT_11700_815190_NYB_07 -> 0 | K118: =ACCT_11700_815190_NYB_08 -> 0 | L118: =ACCT_11700_815190_NYB_09 -> 0 | M118: =ACCT_11700_815190_NYB_10 -> 0 | N118: =ACCT_11700_815190_NYB_11 -> 0 | O118: =ACCT_11700_815190_NYB_12 -> 0 | P118: =SUM(D118:O118) -> 0 | Q118: =P118/$C$7 -> 0 | S118: =T118/$C$7 -> 0 | T118: =ACCT_11700_815190_TOT_CY_BUD -> 0 | U118: =ACCT_11700_815190_TOT_CY_PROJ -> 0 | V118: =P118-T118 -> 0 | W118: =IF(T118=0,0,V118/T118) -> 0 | X118: =P118-U118 -> 0 | Y118: =IF(U118=0,0,X118/U118) -> 0 | AA118: =IF(AND(P118=0,T118=0,U118=0),"HIDE","") -> HIDE
A119: 11700 | B119: 700100 | C119: COMPUTER SMALL EQUIPMENT | D119: =ACCT_11700_700100_NYB_01 -> 0 | E119: =ACCT_11700_700100_NYB_02 -> 0 | F119: =ACCT_11700_700100_NYB_03 -> 0 | G119: =ACCT_11700_700100_NYB_04 -> 0 | H119: =ACCT_11700_700100_NYB_05 -> 0 | I119: =ACCT_11700_700100_NYB_06 -> 0 | J119: =ACCT_11700_700100_NYB_07 -> 0 | K119: =ACCT_11700_700100_NYB_08 -> 0 | L119: =ACCT_11700_700100_NYB_09 -> 0 | M119: =ACCT_11700_700100_NYB_10 -> 0 | N119: =ACCT_11700_700100_NYB_11 -> 0 | O119: =ACCT_11700_700100_NYB_12 -> 0 | P119: 0 | Q119: 0 | S119: 0 | T119: =ACCT_11700_700100_TOT_CY_BUD -> 0 | U119: =ACCT_11700_700100_TOT_CY_PROJ -> 0 | V119: 0 | W119: 0 | X119: 0 | Y119: 0 | AA119: HIDE
A120: 11700 | B120: 698070 | C120: CONVENTIONS AND SEMINARS | D120: =ACCT_11700_698070_NYB_01 -> 0 | E120: =ACCT_11700_698070_NYB_02 -> 0 | F120: =ACCT_11700_698070_NYB_03 -> 0 | G120: =ACCT_11700_698070_NYB_04 -> 0 | H120: =ACCT_11700_698070_NYB_05 -> 0 | I120: =ACCT_11700_698070_NYB_06 -> 0 | J120: =ACCT_11700_698070_NYB_07 -> 0 | K120: =ACCT_11700_698070_NYB_08 -> 0 | L120: =ACCT_11700_698070_NYB_09 -> 0 | M120: =ACCT_11700_698070_NYB_10 -> 0 | N120: =ACCT_11700_698070_NYB_11 -> 0 | O120: =ACCT_11700_698070_NYB_12 -> 0 | P120: 0 | Q120: 0 | S120: 0 | T120: =ACCT_11700_698070_TOT_CY_BUD -> 0 | U120: =ACCT_11700_698070_TOT_CY_PROJ -> 0 | V120: 0 | W120: 0 | X120: 0 | Y120: 0 | AA120: HIDE
A121: 11700 | B121: 698050 | C121: SUBSCRIPTIONS AND PUBLICATIONS | D121: =ACCT_11700_698050_NYB_01 -> 0 | E121: =ACCT_11700_698050_NYB_02 -> 0 | F121: =ACCT_11700_698050_NYB_03 -> 0 | G121: =ACCT_11700_698050_NYB_04 -> 0 | H121: =ACCT_11700_698050_NYB_05 -> 0 | I121: =ACCT_11700_698050_NYB_06 -> 0 | J121: =ACCT_11700_698050_NYB_07 -> 0 | K121: =ACCT_11700_698050_NYB_08 -> 0 | L121: =ACCT_11700_698050_NYB_09 -> 0 | M121: =ACCT_11700_698050_NYB_10 -> 0 | N121: =ACCT_11700_698050_NYB_11 -> 0 | O121: =ACCT_11700_698050_NYB_12 -> 0 | P121: 0 | Q121: 0 | S121: 0 | T121: =ACCT_11700_698050_TOT_CY_BUD -> 0 | U121: =ACCT_11700_698050_TOT_CY_PROJ -> 0 | V121: 0 | W121: 0 | X121: 0 | Y121: 0 | AA121: HIDE
A122: 11700 | B122: 698120 | C122: EMPLOYEE RELATIONS | D122: =ACCT_11700_698120_NYB_01 -> 75 | E122: =ACCT_11700_698120_NYB_02 -> 75 | F122: =ACCT_11700_698120_NYB_03 -> 100 | G122: =ACCT_11700_698120_NYB_04 -> 100 | H122: =ACCT_11700_698120_NYB_05 -> 100 | I122: =ACCT_11700_698120_NYB_06 -> 75 | J122: =ACCT_11700_698120_NYB_07 -> 75 | K122: =ACCT_11700_698120_NYB_08 -> 100 | L122: =ACCT_11700_698120_NYB_09 -> 100 | M122: =ACCT_11700_698120_NYB_10 -> 100 | N122: =ACCT_11700_698120_NYB_11 -> 100 | O122: =ACCT_11700_698120_NYB_12 -> 500 | P122: 1500 | Q122: 0.9191176471 | S122: 0.9191176471 | T122: =ACCT_11700_698120_TOT_CY_BUD -> 1500 | U122: =ACCT_11700_698120_TOT_CY_PROJ -> 1504.89 | V122: 0 | W122: 0 | X122: -4.89 | Y122: -0.003249406933
A123: 11700 | B123: 730200 | C123: EQUIPMENT LEASES | D123: =ACCT_11700_730200_NYB_01 -> 0 | E123: =ACCT_11700_730200_NYB_02 -> 0 | F123: =ACCT_11700_730200_NYB_03 -> 0 | G123: =ACCT_11700_730200_NYB_04 -> 0 | H123: =ACCT_11700_730200_NYB_05 -> 0 | I123: =ACCT_11700_730200_NYB_06 -> 0 | J123: =ACCT_11700_730200_NYB_07 -> 0 | K123: =ACCT_11700_730200_NYB_08 -> 0 | L123: =ACCT_11700_730200_NYB_09 -> 0 | M123: =ACCT_11700_730200_NYB_10 -> 0 | N123: =ACCT_11700_730200_NYB_11 -> 0 | O123: =ACCT_11700_730200_NYB_12 -> 0 | P123: 0 | Q123: 0 | S123: 0 | T123: =ACCT_11700_730200_TOT_CY_BUD -> 0 | U123: =ACCT_11700_730200_TOT_CY_PROJ -> 0 | V123: 0 | W123: 0 | X123: 0 | Y123: 0 | AA123: HIDE
A124: 11700 | B124: 730190 | C124: PERMITS AND LICENSES | D124: =ACCT_11700_730190_NYB_01 -> 228 | E124: =ACCT_11700_730190_NYB_02 -> 250 | F124: =ACCT_11700_730190_NYB_03 -> 61 | G124: =ACCT_11700_730190_NYB_04 -> 0 | H124: =ACCT_11700_730190_NYB_05 -> 875 | I124: =ACCT_11700_730190_NYB_06 -> 0 | J124: =ACCT_11700_730190_NYB_07 -> 350 | K124: =ACCT_11700_730190_NYB_08 -> 105 | L124: =ACCT_11700_730190_NYB_09 -> 0 | M124: =ACCT_11700_730190_NYB_10 -> 0 | N124: =ACCT_11700_730190_NYB_11 -> 0 | O124: =ACCT_11700_730190_NYB_12 -> 195 | P124: 2064 | Q124: 1.264705882 | S124: 1.050245098 | T124: =ACCT_11700_730190_TOT_CY_BUD -> 1714 | U124: =ACCT_11700_730190_TOT_CY_PROJ -> 1711.36 | V124: 350 | W124: 0.2042007001 | X124: 352.64 | Y124: 0.2060583396
A125: 11700 | B125: 752010 | C125: INSURANCE PREMIUM EXPENSE | D125: =ACCT_11700_752010_NYB_01 -> 13096 | E125: =ACCT_11700_752010_NYB_02 -> 13096 | F125: =ACCT_11700_752010_NYB_03 -> 13096 | G125: =ACCT_11700_752010_NYB_04 -> 13096 | H125: =ACCT_11700_752010_NYB_05 -> 13096 | I125: =ACCT_11700_752010_NYB_06 -> 14314 | J125: =ACCT_11700_752010_NYB_07 -> 14314 | K125: =ACCT_11700_752010_NYB_08 -> 14314 | L125: =ACCT_11700_752010_NYB_09 -> 14314 | M125: =ACCT_11700_752010_NYB_10 -> 14314 | N125: =ACCT_11700_752010_NYB_11 -> 14314 | O125: =ACCT_11700_752010_NYB_12 -> 14314 | P125: 165678 | Q125: 101.5183824 | S125: 92.12990196 | T125: =ACCT_11700_752010_TOT_CY_BUD -> 150356 | U125: =ACCT_11700_752010_TOT_CY_PROJ -> 156903.45 | V125: 15322 | W125: 0.1019048126 | X125: 8774.55 | Y125: 0.05592324452
A126: 11700 | B126: 730990 | C126: OTHER EXPENSE | D126: =ACCT_11700_730990_NYB_01 -> 0 | E126: =ACCT_11700_730990_NYB_02 -> 0 | F126: =ACCT_11700_730990_NYB_03 -> 0 | G126: =ACCT_11700_730990_NYB_04 -> 0 | H126: =ACCT_11700_730990_NYB_05 -> 0 | I126: =ACCT_11700_730990_NYB_06 -> 0 | J126: =ACCT_11700_730990_NYB_07 -> 0 | K126: =ACCT_11700_730990_NYB_08 -> 0 | L126: =ACCT_11700_730990_NYB_09 -> 0 | M126: =ACCT_11700_730990_NYB_10 -> 0 | N126: =ACCT_11700_730990_NYB_11 -> 0 | O126: =ACCT_11700_730990_NYB_12 -> 0 | P126: 0 | Q126: 0 | S126: 0 | T126: =ACCT_11700_730990_TOT_CY_BUD -> 0 | U126: =ACCT_11700_730990_TOT_CY_PROJ -> 0 | V126: 0 | W126: 0 | X126: 0 | Y126: 0 | AA126: HIDE
A127: 11700 | B127: 664250 | C127: BUILDING MAINTENANCE | D127: =ACCT_11700_664250_NYB_01 -> 0 | E127: =ACCT_11700_664250_NYB_02 -> 0 | F127: =ACCT_11700_664250_NYB_03 -> 0 | G127: =ACCT_11700_664250_NYB_04 -> 0 | H127: =ACCT_11700_664250_NYB_05 -> 0 | I127: =ACCT_11700_664250_NYB_06 -> 0 | J127: =ACCT_11700_664250_NYB_07 -> 0 | K127: =ACCT_11700_664250_NYB_08 -> 0 | L127: =ACCT_11700_664250_NYB_09 -> 0 | M127: =ACCT_11700_664250_NYB_10 -> 0 | N127: =ACCT_11700_664250_NYB_11 -> 0 | O127: =ACCT_11700_664250_NYB_12 -> 0 | P127: =SUM(D127:O127) -> 0 | Q127: =P127/$C$7 -> 0 | S127: =T127/$C$7 -> 0 | T127: =ACCT_11700_664250_TOT_CY_BUD -> 0 | U127: =ACCT_11700_664250_TOT_CY_PROJ -> 0 | V127: =P127-T127 -> 0 | W127: =IF(T127=0,0,V127/T127) -> 0 | X127: =P127-U127 -> 0 | Y127: =IF(U127=0,0,X127/U127) -> 0 | AA127: =IF(AND(P127=0,T127=0,U127=0),"HIDE","") -> HIDE
A128: 11700 | B128: 664440 | C128: EXTERMINATION | D128: =ACCT_11700_664440_NYB_01 -> 0 | E128: =ACCT_11700_664440_NYB_02 -> 0 | F128: =ACCT_11700_664440_NYB_03 -> 0 | G128: =ACCT_11700_664440_NYB_04 -> 0 | H128: =ACCT_11700_664440_NYB_05 -> 0 | I128: =ACCT_11700_664440_NYB_06 -> 0 | J128: =ACCT_11700_664440_NYB_07 -> 0 | K128: =ACCT_11700_664440_NYB_08 -> 0 | L128: =ACCT_11700_664440_NYB_09 -> 0 | M128: =ACCT_11700_664440_NYB_10 -> 0 | N128: =ACCT_11700_664440_NYB_11 -> 0 | O128: =ACCT_11700_664440_NYB_12 -> 0 | P128: =SUM(D128:O128) -> 0 | Q128: =P128/$C$7 -> 0 | S128: =T128/$C$7 -> 0 | T128: =ACCT_11700_664440_TOT_CY_BUD -> 0 | U128: =ACCT_11700_664440_TOT_CY_PROJ -> 0 | V128: =P128-T128 -> 0 | W128: =IF(T128=0,0,V128/T128) -> 0 | X128: =P128-U128 -> 0 | Y128: =IF(U128=0,0,X128/U128) -> 0 | AA128: =IF(AND(P128=0,T128=0,U128=0),"HIDE","") -> HIDE
A129: 11700 | B129: 664550 | C129: REPAIRS & MAINTENANCE | D129: =ACCT_11700_664550_NYB_01 -> 0 | E129: =ACCT_11700_664550_NYB_02 -> 0 | F129: =ACCT_11700_664550_NYB_03 -> 0 | G129: =ACCT_11700_664550_NYB_04 -> 0 | H129: =ACCT_11700_664550_NYB_05 -> 0 | I129: =ACCT_11700_664550_NYB_06 -> 0 | J129: =ACCT_11700_664550_NYB_07 -> 0 | K129: =ACCT_11700_664550_NYB_08 -> 0 | L129: =ACCT_11700_664550_NYB_09 -> 0 | M129: =ACCT_11700_664550_NYB_10 -> 0 | N129: =ACCT_11700_664550_NYB_11 -> 0 | O129: =ACCT_11700_664550_NYB_12 -> 0 | P129: =SUM(D129:O129) -> 0 | Q129: =P129/$C$7 -> 0 | S129: =T129/$C$7 -> 0 | T129: =ACCT_11700_664550_TOT_CY_BUD -> 0 | U129: =ACCT_11700_664550_TOT_CY_PROJ -> 0 | V129: =P129-T129 -> 0 | W129: =IF(T129=0,0,V129/T129) -> 0 | X129: =P129-U129 -> 0 | Y129: =IF(U129=0,0,X129/U129) -> 0 | AA129: =IF(AND(P129=0,T129=0,U129=0),"HIDE","") -> HIDE
A130: 11700 | B130: 730060 | C130: POSTAGE | D130: =ACCT_11700_730060_NYB_01 -> 1000 | E130: =ACCT_11700_730060_NYB_02 -> 100 | F130: =ACCT_11700_730060_NYB_03 -> 200 | G130: =ACCT_11700_730060_NYB_04 -> 200 | H130: =ACCT_11700_730060_NYB_05 -> 100 | I130: =ACCT_11700_730060_NYB_06 -> 100 | J130: =ACCT_11700_730060_NYB_07 -> 300 | K130: =ACCT_11700_730060_NYB_08 -> 200 | L130: =ACCT_11700_730060_NYB_09 -> 100 | M130: =ACCT_11700_730060_NYB_10 -> 100 | N130: =ACCT_11700_730060_NYB_11 -> 100 | O130: =ACCT_11700_730060_NYB_12 -> 100 | P130: 2600 | Q130: 1.593137255 | S130: 1.470588235 | T130: =ACCT_11700_730060_TOT_CY_BUD -> 2400 | U130: =ACCT_11700_730060_TOT_CY_PROJ -> 2596.61 | V130: 200 | W130: 0.08333333333 | X130: 3.39 | Y130: 0.001305548388
A131: 11700 | B131: 730130 | C131: PRINTING | D131: =ACCT_11700_730130_NYB_01 -> 100 | E131: =ACCT_11700_730130_NYB_02 -> 0 | F131: =ACCT_11700_730130_NYB_03 -> 0 | G131: =ACCT_11700_730130_NYB_04 -> 1350 | H131: =ACCT_11700_730130_NYB_05 -> 0 | I131: =ACCT_11700_730130_NYB_06 -> 0 | J131: =ACCT_11700_730130_NYB_07 -> 0 | K131: =ACCT_11700_730130_NYB_08 -> 0 | L131: =ACCT_11700_730130_NYB_09 -> 100 | M131: =ACCT_11700_730130_NYB_10 -> 0 | N131: =ACCT_11700_730130_NYB_11 -> 0 | O131: =ACCT_11700_730130_NYB_12 -> 0 | P131: 1550 | Q131: 0.949754902 | S131: 0.8884803922 | T131: =ACCT_11700_730130_TOT_CY_BUD -> 1450 | U131: =ACCT_11700_730130_TOT_CY_PROJ -> 1550.09 | V131: 100 | W131: 0.06896551724 | X131: -0.09 | Y131: -5.806114484e-05
A132: 11700 | B132: 600030 | C132: AUDIT FEES | D132: =ACCT_11700_600030_NYB_01 -> 558 | E132: =ACCT_11700_600030_NYB_02 -> 558 | F132: =ACCT_11700_600030_NYB_03 -> 558 | G132: =ACCT_11700_600030_NYB_04 -> 558 | H132: =ACCT_11700_600030_NYB_05 -> 558 | I132: =ACCT_11700_600030_NYB_06 -> 558 | J132: =ACCT_11700_600030_NYB_07 -> 558 | K132: =ACCT_11700_600030_NYB_08 -> 558 | L132: =ACCT_11700_600030_NYB_09 -> 558 | M132: =ACCT_11700_600030_NYB_10 -> 558 | N132: =ACCT_11700_600030_NYB_11 -> 558 | O132: =ACCT_11700_600030_NYB_12 -> 562 | P132: 6700 | Q132: 4.105392157 | S132: 4.105392157 | T132: =ACCT_11700_600030_TOT_CY_BUD -> 6700 | U132: =ACCT_11700_600030_TOT_CY_PROJ -> 6742 | V132: 0 | W132: 0 | X132: -42 | Y132: -0.006229605458
A133: 11700 | B133: 600010 | C133: CONSULTING FEES | D133: =ACCT_11700_600010_NYB_01 -> 0 | E133: =ACCT_11700_600010_NYB_02 -> 0 | F133: =ACCT_11700_600010_NYB_03 -> 0 | G133: =ACCT_11700_600010_NYB_04 -> 0 | H133: =ACCT_11700_600010_NYB_05 -> 0 | I133: =ACCT_11700_600010_NYB_06 -> 0 | J133: =ACCT_11700_600010_NYB_07 -> 0 | K133: =ACCT_11700_600010_NYB_08 -> 0 | L133: =ACCT_11700_600010_NYB_09 -> 0 | M133: =ACCT_11700_600010_NYB_10 -> 0 | N133: =ACCT_11700_600010_NYB_11 -> 0 | O133: =ACCT_11700_600010_NYB_12 -> 0 | P133: 0 | Q133: 0 | S133: 0 | T133: =ACCT_11700_600010_TOT_CY_BUD -> 0 | U133: =ACCT_11700_600010_TOT_CY_PROJ -> 0 | V133: 0 | W133: 0 | X133: 0 | Y133: =IF(U133=0,0,X133/U133) -> 0 | AA133: HIDE
A134: 11700 | B134: 600020 | C134: LEGAL FEES | D134: =ACCT_11700_600020_NYB_01 -> 0 | E134: =ACCT_11700_600020_NYB_02 -> 0 | F134: =ACCT_11700_600020_NYB_03 -> 250 | G134: =ACCT_11700_600020_NYB_04 -> 0 | H134: =ACCT_11700_600020_NYB_05 -> 0 | I134: =ACCT_11700_600020_NYB_06 -> 0 | J134: =ACCT_11700_600020_NYB_07 -> 0 | K134: =ACCT_11700_600020_NYB_08 -> 0 | L134: =ACCT_11700_600020_NYB_09 -> 0 | M134: =ACCT_11700_600020_NYB_10 -> 250 | N134: =ACCT_11700_600020_NYB_11 -> 0 | O134: =ACCT_11700_600020_NYB_12 -> 0 | P134: 500 | Q134: 0.306372549 | S134: 0.306372549 | T134: =ACCT_11700_600020_TOT_CY_BUD -> 500 | U134: =ACCT_11700_600020_TOT_CY_PROJ -> 0 | V134: 0 | W134: 0 | X134: 500 | Y134: 0
A135: 11700 | B135: 698030 | C135: RECRUITMENT EXPENSE | D135: =ACCT_11700_698030_NYB_01 -> 0 | E135: =ACCT_11700_698030_NYB_02 -> 0 | F135: =ACCT_11700_698030_NYB_03 -> 0 | G135: =ACCT_11700_698030_NYB_04 -> 0 | H135: =ACCT_11700_698030_NYB_05 -> 0 | I135: =ACCT_11700_698030_NYB_06 -> 0 | J135: =ACCT_11700_698030_NYB_07 -> 0 | K135: =ACCT_11700_698030_NYB_08 -> 0 | L135: =ACCT_11700_698030_NYB_09 -> 0 | M135: =ACCT_11700_698030_NYB_10 -> 0 | N135: =ACCT_11700_698030_NYB_11 -> 0 | O135: =ACCT_11700_698030_NYB_12 -> 0 | P135: 0 | Q135: 0 | S135: 0 | T135: =ACCT_11700_698030_TOT_CY_BUD -> 0 | U135: =ACCT_11700_698030_TOT_CY_PROJ -> 0 | V135: 0 | W135: 0 | X135: 0 | Y135: 0 | AA135: HIDE
A136: 11700 | B136: 600060 | C136: RECRUITMENT | D136: =ACCT_11700_600060_NYB_01 -> 0 | E136: =ACCT_11700_600060_NYB_02 -> 0 | F136: =ACCT_11700_600060_NYB_03 -> 0 | G136: =ACCT_11700_600060_NYB_04 -> 0 | H136: =ACCT_11700_600060_NYB_05 -> 0 | I136: =ACCT_11700_600060_NYB_06 -> 0 | J136: =ACCT_11700_600060_NYB_07 -> 0 | K136: =ACCT_11700_600060_NYB_08 -> 0 | L136: =ACCT_11700_600060_NYB_09 -> 0 | M136: =ACCT_11700_600060_NYB_10 -> 0 | N136: =ACCT_11700_600060_NYB_11 -> 0 | O136: =ACCT_11700_600060_NYB_12 -> 0 | P136: 0 | Q136: 0 | S136: 0 | T136: =ACCT_11700_600060_TOT_CY_BUD -> 0 | U136: =ACCT_11700_600060_TOT_CY_PROJ -> 0 | V136: 0 | W136: 0 | X136: 0 | Y136: 0 | AA136: HIDE
A137: 11700 | B137: 751010 | C137: OFFICE RENT EXPENSE | D137: =ACCT_11700_751010_NYB_01 -> 0 | E137: =ACCT_11700_751010_NYB_02 -> 0 | F137: =ACCT_11700_751010_NYB_03 -> 0 | G137: =ACCT_11700_751010_NYB_04 -> 0 | H137: =ACCT_11700_751010_NYB_05 -> 0 | I137: =ACCT_11700_751010_NYB_06 -> 0 | J137: =ACCT_11700_751010_NYB_07 -> 0 | K137: =ACCT_11700_751010_NYB_08 -> 0 | L137: =ACCT_11700_751010_NYB_09 -> 0 | M137: =ACCT_11700_751010_NYB_10 -> 0 | N137: =ACCT_11700_751010_NYB_11 -> 0 | O137: =ACCT_11700_751010_NYB_12 -> 0 | P137: 0 | Q137: 0 | S137: 0 | T137: =ACCT_11700_751010_TOT_CY_BUD -> 0 | U137: =ACCT_11700_751010_TOT_CY_PROJ -> 0 | V137: 0 | W137: 0 | X137: 0 | Y137: 0 | AA137: HIDE
A138: 11700 | B138: 694040 | C138: OPERATING SUPPLIES | D138: =ACCT_11700_694040_NYB_01 -> 350 | E138: =ACCT_11700_694040_NYB_02 -> 300 | F138: =ACCT_11700_694040_NYB_03 -> 300 | G138: =ACCT_11700_694040_NYB_04 -> 200 | H138: =ACCT_11700_694040_NYB_05 -> 200 | I138: =ACCT_11700_694040_NYB_06 -> 300 | J138: =ACCT_11700_694040_NYB_07 -> 300 | K138: =ACCT_11700_694040_NYB_08 -> 400 | L138: =ACCT_11700_694040_NYB_09 -> 300 | M138: =ACCT_11700_694040_NYB_10 -> 300 | N138: =ACCT_11700_694040_NYB_11 -> 250 | O138: =ACCT_11700_694040_NYB_12 -> 300 | P138: 3500 | Q138: 2.144607843 | S138: 1.669730392 | T138: =ACCT_11700_694040_TOT_CY_BUD -> 2725 | U138: =ACCT_11700_694040_TOT_CY_PROJ -> 4343.74 | V138: 775 | W138: 0.2844036697 | X138: -843.74 | Y138: -0.1942427493
A139: 11700 | B139: 694030 | C139: GUEST SUPPLIES | D139: =ACCT_11700_694030_NYB_01 -> 0 | E139: =ACCT_11700_694030_NYB_02 -> 0 | F139: =ACCT_11700_694030_NYB_03 -> 0 | G139: =ACCT_11700_694030_NYB_04 -> 0 | H139: =ACCT_11700_694030_NYB_05 -> 0 | I139: =ACCT_11700_694030_NYB_06 -> 0 | J139: =ACCT_11700_694030_NYB_07 -> 0 | K139: =ACCT_11700_694030_NYB_08 -> 0 | L139: =ACCT_11700_694030_NYB_09 -> 0 | M139: =ACCT_11700_694030_NYB_10 -> 0 | N139: =ACCT_11700_694030_NYB_11 -> 0 | O139: =ACCT_11700_694030_NYB_12 -> 0 | P139: =SUM(D139:O139) -> 0 | Q139: =P139/$C$7 -> 0 | S139: =T139/$C$7 -> 0 | T139: =ACCT_11700_694030_TOT_CY_BUD -> 0 | U139: =ACCT_11700_694030_TOT_CY_PROJ -> 19.06 | V139: =P139-T139 -> 0 | W139: =IF(T139=0,0,V139/T139) -> 0 | X139: =P139-U139 -> -19.06 | Y139: =IF(U139=0,0,X139/U139) -> -1 | AA139: =IF(AND(P139=0,T139=0,U139=0),"HIDE","") -> 
A140: 11700 | B140: 730370 | C140: LAUNDRY & DRY CLEANING | D140: =ACCT_11700_730370_NYB_01 -> 0 | E140: =ACCT_11700_730370_NYB_02 -> 0 | F140: =ACCT_11700_730370_NYB_03 -> 0 | G140: =ACCT_11700_730370_NYB_04 -> 0 | H140: =ACCT_11700_730370_NYB_05 -> 0 | I140: =ACCT_11700_730370_NYB_06 -> 0 | J140: =ACCT_11700_730370_NYB_07 -> 0 | K140: =ACCT_11700_730370_NYB_08 -> 0 | L140: =ACCT_11700_730370_NYB_09 -> 0 | M140: =ACCT_11700_730370_NYB_10 -> 0 | N140: =ACCT_11700_730370_NYB_11 -> 0 | O140: =ACCT_11700_730370_NYB_12 -> 0 | P140: =SUM(D140:O140) -> 0 | Q140: =P140/$C$7 -> 0 | S140: =T140/$C$7 -> 0 | T140: =ACCT_11700_730370_TOT_CY_BUD -> 0 | U140: =ACCT_11700_730370_TOT_CY_PROJ -> 0 | V140: =P140-T140 -> 0 | W140: =IF(T140=0,0,V140/T140) -> 0 | X140: =P140-U140 -> 0 | Y140: =IF(U140=0,0,X140/U140) -> 0 | AA140: =IF(AND(P140=0,T140=0,U140=0),"HIDE","") -> HIDE
A141: 11700 | B141: 650050 | C141: MOBILE COMMUNICATIONS | D141: =ACCT_11700_650050_NYB_01 -> 0 | E141: =ACCT_11700_650050_NYB_02 -> 0 | F141: =ACCT_11700_650050_NYB_03 -> 0 | G141: =ACCT_11700_650050_NYB_04 -> 0 | H141: =ACCT_11700_650050_NYB_05 -> 0 | I141: =ACCT_11700_650050_NYB_06 -> 0 | J141: =ACCT_11700_650050_NYB_07 -> 0 | K141: =ACCT_11700_650050_NYB_08 -> 0 | L141: =ACCT_11700_650050_NYB_09 -> 0 | M141: =ACCT_11700_650050_NYB_10 -> 0 | N141: =ACCT_11700_650050_NYB_11 -> 0 | O141: =ACCT_11700_650050_NYB_12 -> 0 | P141: 0 | Q141: 0 | S141: 0 | T141: =ACCT_11700_650050_TOT_CY_BUD -> 0 | U141: =ACCT_11700_650050_TOT_CY_PROJ -> 0 | V141: 0 | W141: 0 | X141: 0 | Y141: 0 | AA141: HIDE
A142: 11700 | B142: 698170 | C142: TRAINING EXTERNAL | D142: =ACCT_11700_698170_NYB_01 -> 0 | E142: =ACCT_11700_698170_NYB_02 -> 0 | F142: =ACCT_11700_698170_NYB_03 -> 0 | G142: =ACCT_11700_698170_NYB_04 -> 0 | H142: =ACCT_11700_698170_NYB_05 -> 0 | I142: =ACCT_11700_698170_NYB_06 -> 0 | J142: =ACCT_11700_698170_NYB_07 -> 0 | K142: =ACCT_11700_698170_NYB_08 -> 0 | L142: =ACCT_11700_698170_NYB_09 -> 0 | M142: =ACCT_11700_698170_NYB_10 -> 0 | N142: =ACCT_11700_698170_NYB_11 -> 0 | O142: =ACCT_11700_698170_NYB_12 -> 0 | P142: 0 | Q142: 0 | S142: 0 | T142: =ACCT_11700_698170_TOT_CY_BUD -> 0 | U142: =ACCT_11700_698170_TOT_CY_PROJ -> 534 | V142: 0 | W142: 0 | X142: -534 | Y142: -1
A143: 11700 | B143: 664270 | C143: COMMON GROUNDS | D143: =ACCT_11700_664270_NYB_01 -> 0 | E143: =ACCT_11700_664270_NYB_02 -> 0 | F143: =ACCT_11700_664270_NYB_03 -> 0 | G143: =ACCT_11700_664270_NYB_04 -> 0 | H143: =ACCT_11700_664270_NYB_05 -> 0 | I143: =ACCT_11700_664270_NYB_06 -> 0 | J143: =ACCT_11700_664270_NYB_07 -> 0 | K143: =ACCT_11700_664270_NYB_08 -> 0 | L143: =ACCT_11700_664270_NYB_09 -> 0 | M143: =ACCT_11700_664270_NYB_10 -> 0 | N143: =ACCT_11700_664270_NYB_11 -> 0 | O143: =ACCT_11700_664270_NYB_12 -> 0 | P143: =SUM(D143:O143) -> 0 | Q143: =P143/$C$7 -> 0 | S143: =T143/$C$7 -> 0 | T143: =ACCT_11700_664270_TOT_CY_BUD -> 0 | U143: =ACCT_11700_664270_TOT_CY_PROJ -> 0 | V143: =P143-T143 -> 0 | W143: =IF(T143=0,0,V143/T143) -> 0 | X143: =P143-U143 -> 0 | Y143: =IF(U143=0,0,X143/U143) -> 0 | AA143: =IF(AND(P143=0,T143=0,U143=0),"HIDE","") -> HIDE
A144: 11700 | B144: 620210 | C144: GROUND TRANSPORTATION | D144: =ACCT_11700_620210_NYB_01 -> 0 | E144: =ACCT_11700_620210_NYB_02 -> 0 | F144: =ACCT_11700_620210_NYB_03 -> 0 | G144: =ACCT_11700_620210_NYB_04 -> 0 | H144: =ACCT_11700_620210_NYB_05 -> 0 | I144: =ACCT_11700_620210_NYB_06 -> 0 | J144: =ACCT_11700_620210_NYB_07 -> 0 | K144: =ACCT_11700_620210_NYB_08 -> 0 | L144: =ACCT_11700_620210_NYB_09 -> 0 | M144: =ACCT_11700_620210_NYB_10 -> 0 | N144: =ACCT_11700_620210_NYB_11 -> 0 | O144: =ACCT_11700_620210_NYB_12 -> 0 | P144: 0 | Q144: 0 | S144: 0 | T144: =ACCT_11700_620210_TOT_CY_BUD -> 0 | U144: =ACCT_11700_620210_TOT_CY_PROJ -> 0 | V144: 0 | W144: 0 | X144: 0 | Y144: 0 | AA144: HIDE
A145: 11700 | B145: 696130 | C145: PARKING COSTS | D145: =ACCT_11700_696130_NYB_01 -> 0 | E145: =ACCT_11700_696130_NYB_02 -> 0 | F145: =ACCT_11700_696130_NYB_03 -> 0 | G145: =ACCT_11700_696130_NYB_04 -> 0 | H145: =ACCT_11700_696130_NYB_05 -> 0 | I145: =ACCT_11700_696130_NYB_06 -> 0 | J145: =ACCT_11700_696130_NYB_07 -> 0 | K145: =ACCT_11700_696130_NYB_08 -> 0 | L145: =ACCT_11700_696130_NYB_09 -> 0 | M145: =ACCT_11700_696130_NYB_10 -> 0 | N145: =ACCT_11700_696130_NYB_11 -> 0 | O145: =ACCT_11700_696130_NYB_12 -> 0 | P145: =SUM(D145:O145) -> 0 | Q145: =P145/$C$7 -> 0 | S145: =T145/$C$7 -> 0 | T145: =ACCT_11700_696130_TOT_CY_BUD -> 0 | U145: =ACCT_11700_696130_TOT_CY_PROJ -> 0 | V145: =P145-T145 -> 0 | W145: =IF(T145=0,0,V145/T145) -> 0 | X145: =P145-U145 -> 0 | Y145: =IF(U145=0,0,X145/U145) -> 0 | AA145: =IF(AND(P145=0,T145=0,U145=0),"HIDE","") -> HIDE
A146: 11700 | B146: 620310 | C146: ENTERTAINMENT EXTERNAL | D146: =ACCT_11700_620310_NYB_01 -> 0 | E146: =ACCT_11700_620310_NYB_02 -> 0 | F146: =ACCT_11700_620310_NYB_03 -> 0 | G146: =ACCT_11700_620310_NYB_04 -> 0 | H146: =ACCT_11700_620310_NYB_05 -> 0 | I146: =ACCT_11700_620310_NYB_06 -> 0 | J146: =ACCT_11700_620310_NYB_07 -> 0 | K146: =ACCT_11700_620310_NYB_08 -> 0 | L146: =ACCT_11700_620310_NYB_09 -> 0 | M146: =ACCT_11700_620310_NYB_10 -> 0 | N146: =ACCT_11700_620310_NYB_11 -> 0 | O146: =ACCT_11700_620310_NYB_12 -> 0 | P146: 0 | Q146: 0 | S146: 0 | T146: =ACCT_11700_620310_TOT_CY_BUD -> 0 | U146: =ACCT_11700_620310_TOT_CY_PROJ -> 0 | V146: 0 | W146: 0 | X146: 0 | Y146: 0 | AA146: HIDE
A147: 11700 | B147: 620020 | C147: LODGING | D147: =ACCT_11700_620020_NYB_01 -> 0 | E147: =ACCT_11700_620020_NYB_02 -> 0 | F147: =ACCT_11700_620020_NYB_03 -> 0 | G147: =ACCT_11700_620020_NYB_04 -> 0 | H147: =ACCT_11700_620020_NYB_05 -> 500 | I147: =ACCT_11700_620020_NYB_06 -> 0 | J147: =ACCT_11700_620020_NYB_07 -> 0 | K147: =ACCT_11700_620020_NYB_08 -> 0 | L147: =ACCT_11700_620020_NYB_09 -> 0 | M147: =ACCT_11700_620020_NYB_10 -> 0 | N147: =ACCT_11700_620020_NYB_11 -> 0 | O147: =ACCT_11700_620020_NYB_12 -> 0 | P147: 500 | Q147: 0.306372549 | S147: 0 | T147: =ACCT_11700_620020_TOT_CY_BUD -> 0 | U147: =ACCT_11700_620020_TOT_CY_PROJ -> 570.39 | V147: 500 | W147: 0 | X147: -70.39 | Y147: -0.1234067918
A148: 11700 | B148: 620120 | C148: TRAVEL MEALS | D148: =ACCT_11700_620120_NYB_01 -> 0 | E148: =ACCT_11700_620120_NYB_02 -> 0 | F148: =ACCT_11700_620120_NYB_03 -> 0 | G148: =ACCT_11700_620120_NYB_04 -> 0 | H148: =ACCT_11700_620120_NYB_05 -> 0 | I148: =ACCT_11700_620120_NYB_06 -> 0 | J148: =ACCT_11700_620120_NYB_07 -> 0 | K148: =ACCT_11700_620120_NYB_08 -> 0 | L148: =ACCT_11700_620120_NYB_09 -> 0 | M148: =ACCT_11700_620120_NYB_10 -> 0 | N148: =ACCT_11700_620120_NYB_11 -> 0 | O148: =ACCT_11700_620120_NYB_12 -> 0 | P148: 0 | Q148: 0 | S148: 0 | T148: =ACCT_11700_620120_TOT_CY_BUD -> 0 | U148: =ACCT_11700_620120_TOT_CY_PROJ -> 20.67 | V148: 0 | W148: 0 | X148: -20.67 | Y148: -1
A149: 11700 | B149: 620010 | C149: AIRFARE | D149: =ACCT_11700_620010_NYB_01 -> 0 | E149: =ACCT_11700_620010_NYB_02 -> 0 | F149: =ACCT_11700_620010_NYB_03 -> 1000 | G149: =ACCT_11700_620010_NYB_04 -> 0 | H149: =ACCT_11700_620010_NYB_05 -> 0 | I149: =ACCT_11700_620010_NYB_06 -> 0 | J149: =ACCT_11700_620010_NYB_07 -> 0 | K149: =ACCT_11700_620010_NYB_08 -> 0 | L149: =ACCT_11700_620010_NYB_09 -> 0 | M149: =ACCT_11700_620010_NYB_10 -> 0 | N149: =ACCT_11700_620010_NYB_11 -> 0 | O149: =ACCT_11700_620010_NYB_12 -> 0 | P149: 1000 | Q149: 0.612745098 | S149: 0.612745098 | T149: =ACCT_11700_620010_TOT_CY_BUD -> 1000 | U149: =ACCT_11700_620010_TOT_CY_PROJ -> 0 | V149: 0 | W149: 0 | X149: 1000 | Y149: 0
A150: 11700 | B150: 696010 | C150: UNIFORMS | D150: =ACCT_11700_696010_NYB_01 -> 0 | E150: =ACCT_11700_696010_NYB_02 -> 0 | F150: =ACCT_11700_696010_NYB_03 -> 500 | G150: =ACCT_11700_696010_NYB_04 -> 0 | H150: =ACCT_11700_696010_NYB_05 -> 0 | I150: =ACCT_11700_696010_NYB_06 -> 0 | J150: =ACCT_11700_696010_NYB_07 -> 500 | K150: =ACCT_11700_696010_NYB_08 -> 0 | L150: =ACCT_11700_696010_NYB_09 -> 0 | M150: =ACCT_11700_696010_NYB_10 -> 0 | N150: =ACCT_11700_696010_NYB_11 -> 0 | O150: =ACCT_11700_696010_NYB_12 -> 500 | P150: 1500 | Q150: 0.9191176471 | S150: 0.9191176471 | T150: =ACCT_11700_696010_TOT_CY_BUD -> 1500 | U150: =ACCT_11700_696010_TOT_CY_PROJ -> 1500 | V150: 0 | W150: 0 | X150: 0 | Y150: 0
A151: 11700 | B151: 676050 | C151: CRED CARD DISCOUNT - OTHER | D151: =ACCT_11700_676050_NYB_01 -> 4100 | E151: =ACCT_11700_676050_NYB_02 -> 5035 | F151: =ACCT_11700_676050_NYB_03 -> 1188 | G151: =ACCT_11700_676050_NYB_04 -> 428 | H151: =ACCT_11700_676050_NYB_05 -> 350 | I151: =ACCT_11700_676050_NYB_06 -> 200 | J151: =ACCT_11700_676050_NYB_07 -> 50 | K151: =ACCT_11700_676050_NYB_08 -> 0 | L151: =ACCT_11700_676050_NYB_09 -> 0 | M151: =ACCT_11700_676050_NYB_10 -> 0 | N151: =ACCT_11700_676050_NYB_11 -> 1100 | O151: =ACCT_11700_676050_NYB_12 -> 6500 | P151: 18951 | Q151: 11.61213235 | S151: 11.33578431 | T151: =ACCT_11700_676050_TOT_CY_BUD -> 18500 | U151: =ACCT_11700_676050_TOT_CY_PROJ -> 18541.01 | V151: 451 | W151: 0.02437837838 | X151: 409.99 | Y151: 0.02211260336
A152: 11700 | B152: 730040 | C152: MEMBER RELATIONS | D152: =ACCT_11700_730040_NYB_01 -> 400 | E152: =ACCT_11700_730040_NYB_02 -> 300 | F152: =ACCT_11700_730040_NYB_03 -> 400 | G152: =ACCT_11700_730040_NYB_04 -> 400 | H152: =ACCT_11700_730040_NYB_05 -> 300 | I152: =ACCT_11700_730040_NYB_06 -> 300 | J152: =ACCT_11700_730040_NYB_07 -> 300 | K152: =ACCT_11700_730040_NYB_08 -> 300 | L152: =ACCT_11700_730040_NYB_09 -> 400 | M152: =ACCT_11700_730040_NYB_10 -> 300 | N152: =ACCT_11700_730040_NYB_11 -> 300 | O152: =ACCT_11700_730040_NYB_12 -> 300 | P152: 4000 | Q152: 2.450980392 | S152: 2.450980392 | T152: =ACCT_11700_730040_TOT_CY_BUD -> 4000 | U152: =ACCT_11700_730040_TOT_CY_PROJ -> 4291.21 | V152: 0 | W152: 0 | X152: -291.21 | Y152: -0.06786197832
A153: 11700 | B153: 682090 | C153: PARTY RECEPTIONS | D153: =ACCT_11700_682090_NYB_01 -> 0 | E153: =ACCT_11700_682090_NYB_02 -> 0 | F153: =ACCT_11700_682090_NYB_03 -> 0 | G153: =ACCT_11700_682090_NYB_04 -> 0 | H153: =ACCT_11700_682090_NYB_05 -> 0 | I153: =ACCT_11700_682090_NYB_06 -> 0 | J153: =ACCT_11700_682090_NYB_07 -> 0 | K153: =ACCT_11700_682090_NYB_08 -> 0 | L153: =ACCT_11700_682090_NYB_09 -> 0 | M153: =ACCT_11700_682090_NYB_10 -> 0 | N153: =ACCT_11700_682090_NYB_11 -> 0 | O153: =ACCT_11700_682090_NYB_12 -> 0 | P153: 0 | Q153: 0 | S153: 0 | T153: =ACCT_11700_682090_TOT_CY_BUD -> 0 | U153: =ACCT_11700_682090_TOT_CY_PROJ -> 0 | V153: 0 | W153: 0 | X153: 0 | Y153: 0 | AA153: HIDE
A154: 11700 | B154: 650010 | C154: TELEPHONE LOCAL | D154: =ACCT_11700_650010_NYB_01 -> 0 | E154: =ACCT_11700_650010_NYB_02 -> 0 | F154: =ACCT_11700_650010_NYB_03 -> 0 | G154: =ACCT_11700_650010_NYB_04 -> 0 | H154: =ACCT_11700_650010_NYB_05 -> 0 | I154: =ACCT_11700_650010_NYB_06 -> 0 | J154: =ACCT_11700_650010_NYB_07 -> 0 | K154: =ACCT_11700_650010_NYB_08 -> 0 | L154: =ACCT_11700_650010_NYB_09 -> 0 | M154: =ACCT_11700_650010_NYB_10 -> 0 | N154: =ACCT_11700_650010_NYB_11 -> 0 | O154: =ACCT_11700_650010_NYB_12 -> 0 | P154: 0 | Q154: 0 | S154: 0 | T154: =ACCT_11700_650010_TOT_CY_BUD -> 0 | U154: =ACCT_11700_650010_TOT_CY_PROJ -> 0 | V154: 0 | W154: 0 | X154: 0 | Y154: 0 | AA154: HIDE
A155: 11700 | B155: 692050 | C155: OFFICE EQUIPMENT | D155: =ACCT_11700_692050_NYB_01 -> 600 | E155: =ACCT_11700_692050_NYB_02 -> 300 | F155: =ACCT_11700_692050_NYB_03 -> 200 | G155: =ACCT_11700_692050_NYB_04 -> 800 | H155: =ACCT_11700_692050_NYB_05 -> 300 | I155: =ACCT_11700_692050_NYB_06 -> 300 | J155: =ACCT_11700_692050_NYB_07 -> 400 | K155: =ACCT_11700_692050_NYB_08 -> 200 | L155: =ACCT_11700_692050_NYB_09 -> 200 | M155: =ACCT_11700_692050_NYB_10 -> 700 | N155: =ACCT_11700_692050_NYB_11 -> 400 | O155: =ACCT_11700_692050_NYB_12 -> 500 | P155: 4900 | Q155: 3.00245098 | S155: 2.941176471 | T155: =ACCT_11700_692050_TOT_CY_BUD -> 4800 | U155: =ACCT_11700_692050_TOT_CY_PROJ -> 4957.32 | V155: 100 | W155: 0.02083333333 | X155: -57.32 | Y155: -0.0115626992
A156: 11700 | B156: 682080 | C156: OWNERS PARTIES | D156: =ACCT_11700_682080_NYB_01 -> 0 | E156: =ACCT_11700_682080_NYB_02 -> 0 | F156: =ACCT_11700_682080_NYB_03 -> 0 | G156: =ACCT_11700_682080_NYB_04 -> 0 | H156: =ACCT_11700_682080_NYB_05 -> 0 | I156: =ACCT_11700_682080_NYB_06 -> 0 | J156: =ACCT_11700_682080_NYB_07 -> 0 | K156: =ACCT_11700_682080_NYB_08 -> 0 | L156: =ACCT_11700_682080_NYB_09 -> 0 | M156: =ACCT_11700_682080_NYB_10 -> 0 | N156: =ACCT_11700_682080_NYB_11 -> 0 | O156: =ACCT_11700_682080_NYB_12 -> 0 | P156: 0 | Q156: 0 | S156: 0 | T156: =ACCT_11700_682080_TOT_CY_BUD -> 0 | U156: =ACCT_11700_682080_TOT_CY_PROJ -> 0 | V156: 0 | W156: 0 | X156: 0 | Y156: 0 | AA156: HIDE
A157: 11700 | B157: 790076 | C157: RESORT SERVICES FEES EXPENSE | D157: =ACCT_11700_790076_NYB_01 -> 0 | E157: =ACCT_11700_790076_NYB_02 -> 0 | F157: =ACCT_11700_790076_NYB_03 -> 0 | G157: =ACCT_11700_790076_NYB_04 -> 0 | H157: =ACCT_11700_790076_NYB_05 -> 0 | I157: =ACCT_11700_790076_NYB_06 -> 0 | J157: =ACCT_11700_790076_NYB_07 -> 0 | K157: =ACCT_11700_790076_NYB_08 -> 0 | L157: =ACCT_11700_790076_NYB_09 -> 0 | M157: =ACCT_11700_790076_NYB_10 -> 0 | N157: =ACCT_11700_790076_NYB_11 -> 0 | O157: =ACCT_11700_790076_NYB_12 -> 0 | P157: 0 | Q157: 0 | S157: 0 | T157: =ACCT_11700_790076_TOT_CY_BUD -> 0 | U157: =ACCT_11700_790076_TOT_CY_PROJ -> 0 | V157: 0 | W157: 0 | X157: 0 | Y157: 0 | AA157: HIDE
A158: 11700 | B158: 705010 | C158: AMENITY MEMBERSHIP FEE | D158: =ACCT_11700_705010_NYB_01 -> 0 | E158: =ACCT_11700_705010_NYB_02 -> 0 | F158: =ACCT_11700_705010_NYB_03 -> 0 | G158: =ACCT_11700_705010_NYB_04 -> 0 | H158: =ACCT_11700_705010_NYB_05 -> 0 | I158: =ACCT_11700_705010_NYB_06 -> 0 | J158: =ACCT_11700_705010_NYB_07 -> 0 | K158: =ACCT_11700_705010_NYB_08 -> 0 | L158: =ACCT_11700_705010_NYB_09 -> 0 | M158: =ACCT_11700_705010_NYB_10 -> 0 | N158: =ACCT_11700_705010_NYB_11 -> 0 | O158: =ACCT_11700_705010_NYB_12 -> 0 | P158: 0 | Q158: 0 | S158: 0 | T158: =ACCT_11700_705010_TOT_CY_BUD -> 0 | U158: =ACCT_11700_705010_TOT_CY_PROJ -> 0 | V158: 0 | W158: 0 | X158: 0 | Y158: =IF(U158=0,0,X158/U158) -> 0 | AA158: HIDE
A159: 11700 | B159: 720035 | C159: OPERATIONS ALLOCATIONS OUT | D159: =ACCT_11700_720035_NYB_01 -> 0 | E159: =ACCT_11700_720035_NYB_02 -> 0 | F159: =ACCT_11700_720035_NYB_03 -> 0 | G159: =ACCT_11700_720035_NYB_04 -> 0 | H159: =ACCT_11700_720035_NYB_05 -> 0 | I159: =ACCT_11700_720035_NYB_06 -> 0 | J159: =ACCT_11700_720035_NYB_07 -> 0 | K159: =ACCT_11700_720035_NYB_08 -> 0 | L159: =ACCT_11700_720035_NYB_09 -> 0 | M159: =ACCT_11700_720035_NYB_10 -> 0 | N159: =ACCT_11700_720035_NYB_11 -> 0 | O159: =ACCT_11700_720035_NYB_12 -> 0 | P159: 0 | Q159: 0 | S159: 0 | T159: =ACCT_11700_720035_TOT_CY_BUD -> 0 | U159: =ACCT_11700_720035_TOT_CY_PROJ -> 0 | V159: 0 | W159: 0 | X159: 0 | Y159: 0 | AA159: HIDE
A160: 11700 | B160: 790075 | C160: HOA MANAGEMENT FEE EXPENSE | D160: =ACCT_11700_790075_NYB_01 -> 6452 | E160: =ACCT_11700_790075_NYB_02 -> 6452 | F160: =ACCT_11700_790075_NYB_03 -> 6452 | G160: =ACCT_11700_790075_NYB_04 -> 6452 | H160: =ACCT_11700_790075_NYB_05 -> 6452 | I160: =ACCT_11700_790075_NYB_06 -> 6452 | J160: =ACCT_11700_790075_NYB_07 -> 6452 | K160: =ACCT_11700_790075_NYB_08 -> 6452 | L160: =ACCT_11700_790075_NYB_09 -> 6452 | M160: =ACCT_11700_790075_NYB_10 -> 6452 | N160: =ACCT_11700_790075_NYB_11 -> 6452 | O160: =ACCT_11700_790075_NYB_12 -> 6452 | P160: 77424 | Q160: 47.44117647 | S160: 46.50735294 | T160: =ACCT_11700_790075_TOT_CY_BUD -> 75900 | U160: =ACCT_11700_790075_TOT_CY_PROJ -> 75900 | V160: 1524 | W160: 0.02007905138 | X160: 1524 | Y160: 0.02007905138
